Workbook

Sheet Main
C5: Please select:
B21: CAMP COORDINATION AND CAMP MANAGEMENT (CCCM)

Sheet Data
A1: REC | B1: Data Entry Date | C1: Camp profiling responsible organization | D1: Camp profiling responsible organization - Other | E1: Type of interviewer | F1: Type of interviewer - Other | G1: Date of interview | H1: Key informant | I1: Key informant - Sex | J1: Key informant - Name | K1: Key informant - Contact Number | L1: Key informant - Main position | M1: Key informant 2 | N1: Key informant 2 - Sex | O1: Key informant - Name | P1: Key informant - Contact Number | Q1: State/Region | R1: Township | S1: Village Tract/Town | T1: Village/Ward | U1: Camp Name | V1: Pcode | W1: GPS Coordinates - Longitude | X1: GPS Coordinates - Latitude | Y1: Type of location | Z1: Camp Establishment Date - Month | AA1: Camp Establishment Date - Year | AB1: Access to the camp, dry season - by foot | AC1: Access to the camp, dry season - By motorbike | AD1: Access to the camp, dry season - By car/ 4WD | AE1: Access to the camp, dry season - By water | AF1: Access to the camp, rainy season - by foot | AG1: Access to the camp, rainy season - By motorbike | AH1: Access to the camp, rainy season - By car/ 4WD | AI1: Access to the camp, rainy season - By water | AJ1: Name of nearest town from the camp | AK1: Distance to nearest town - in miles | AL1: Distance to nearest town - in minutes | AM1: Camp have a Management / Responsible Agency? Y/N | AN1: Name of Camp Management/Responsible Agency | AO1: Camp manager/responsible person name | AP1: Camp Manager - Phone # | AQ1: Registration book/list of residents available | AR1: Frequency of registration book update - With each population change | AS1: Frequency of registration book update - At least weekly | AT1: Frequency of registration book update - At least monthly | AU1: Frequency of registration book update - Less frequent than monthly | AV1: Frequency of registration book update - Never updated | AW1: Electronic copy of the registration - Yes, in camp | AX1: Electronic copy of the registration - Yes, in camp management/responsible agency | AY1: Electronic copy of the registration - No | AZ1: Information collected in registration book/list - Date of birth | BA1: Information collected in registration book/list - Age | BB1: Information collected in registration book/list - Date of entry into camp | BC1: Population - 0 to 5 months (Male) | BD1: Population - 0 to 5 months (Female) | BE1: Population - 0 to 5 months (Total) | BF1: Population - 6 to 23 months (Male) | BG1: Population - 6 to 23 months (Female) | BH1: Population - 6 to 23 months (Total) | BI1: Population - 2 to 4 years (Male) | BJ1: Population - 2 to 4 years (Female) | BK1: Population - 2 to 4 years (Total) | BL1: Population - 5 to 11 years (Male) | BM1: Population - 5 to 11 years (Female) | BN1: Population - 5 to 11 years (Total) | BO1: Population - 12 to 17 years (Male) | BP1: Population - 12 to 17 years (Female) | BQ1: Population - 12 to 17 years (Total) | BR1: Population - 18 to 35 years (Male) | BS1: Population - 18 to 35 years (Female) | BT1: Population - 18 to 35 years (Total) | BU1: Population - 36 to 59 years (Male) | BV1: Population - 36 to 59 years (Female) | BW1: Population - 36 to 59 years (Total) | BX1: Population - 60 years and above (Male) | BY1: Population - 60 years and above (Female) | BZ1: Population - 60 years and above (Total) | CA1: Population - Total (Male) | CB1: Population - Total (Female) | CC1: Population - Total (Total) | CD1: Vulnerable Population - Physically Disabled (Male) | CE1: Vulnerable Population - Physically Disabled (Female) | CF1: Vulnerable Population - Physically Disabled (Total) | CG1: Vulnerable Population - Mentally Disabled (Male) | CH1: Vulnerable Population - Mentally Disabled (Female) | CI1: Vulnerable Population - Mentally Disabled (Total) | CJ1: Vulnerable Population - Chronically ill (Male) | CK1: Vulnerable Population - Chronically ill (Female) | CL1: Vulnerable Population - Chronically ill (Total) | CM1: Vulnerable Population - Unaccompanied children (<18) (Male) | CN1: Vulnerable Population - Unaccompanied children (<18) (Female) | CO1: Vulnerable Population - Unaccompanied children (<18) (Total) | CP1: Vulnerable Population - Separated children (<18) (Male) | CQ1: Vulnerable Population - Separated children (<18) (Female) | CR1: Vulnerable Population - Separated children (<18) (Total) | CS1: Vulnerable Population - Unaccompanied elders (>60) (Male) | CT1: Vulnerable Population - Unaccompanied elders (>60) (Female) | CU1: Vulnerable Population - Unaccompanied elders (>60) (Total) | CV1: Vulnerable Population - Single headed households (Male) | CW1: Vulnerable Population - Single headed households (Female) | CX1: Vulnerable Population - Single headed households (Total) | CY1: Vulnerable Population - Pregnant women | CZ1: Vulnerable Population - Lactating women | DA1: Population - Births in last 6 months (Male) | DB1: Population - Births in last 6 months (Female) | DC1: Population - Births in last 6 months (Total) | DD1: Population - Deaths in last 6 months (Male) | DE1: Population - Deaths in last 6 months (Female) | DF1: Population - Deaths in last 6 months (Total) | DG1: Total number Households | DH1: Total number Individuals | DI1: Permanent arrivals in last 6 months - Households | DJ1: Permanent arrivals in last 6 months - Persons | DK1: Permanent departures in last 6 months - Households | DL1: Permanent departures in last 6 months - Persons | DM1: Anonymous complaints mechanism? Y/N | DN1: Camp management committee currently in place? Y/N | DO1: Camp management committee members - IDP members (Male) | DP1: Camp management committee members - IDP members (Female) | DQ1: Camp management committee members - Non-IDP members (Male) | DR1: Camp management committee members - Non-IDP members (Female) | DS1: Camp management committee members - Total (Male) | DT1: Camp management committee members - Total (Female | DU1: Number of Camp committee members who have received CCCM training | DV1: Camp Management Committee represented adequately by -Women | DW1: Camp Management Committee represented adequately by -Elderly | DX1: Camp Management Committee represented adequately by - Youth | DY1: Camp Management Committee represented adequately by - Ethnic Groups | DZ1: Camp Management Committee represented adequately by - Religious Groups | EA1: Camp Management Committee represented adequately by - PWSN | EB1: Distance to in Miles to nearest - Regular market | EC1: Distance to in Miles to nearest - Drinking water source | ED1: Distance to in Miles to nearest - Health facility | EE1: Distance to in Miles to nearest - Pre-school/nursery | EF1: Distance to in Miles to nearest - Primary school | EG1: Distance to in Miles to nearest - Middle school | EH1: Distance to in Miles to nearest - High school | EI1: Main type of kitchen(s) for camp residents | EJ1: Proper storage facility for food in the camp? Y/N | EK1: Main type of shelter for camp residents | EL1: Approximate proportion of households sharing shelter | EM1: Approximate proportion of households without shelter | EN1: Shelters usually have partitioned rooms for sleeping? Y/N | EO1: Main source of drinking water for camp residents | EP1: Daily amount of drinking water sufficient for all camp residents | EQ1: Total number of functioning latrines (Men) | ER1: Total number of functioning latrines (Women) | ES1: Total number of functioning latrines (Mixed) | ET1: Separate bathing areas for men and women? Y/N | EU1: Where/how is camp waste generally being disposed of | EV1: Type of the nearest accessible functioning health facility for camp residents | EW1: Type of the nearest accessible functioning health facility for camp residents - Other | EX1: Staff regularly available for camp residents - Doctors | EY1: Staff regularly available for camp residents - Nurses | EZ1: Staff regularly available for camp residents - Midwives | FA1: Health services regularly available for camp residents - Vaccination | FB1: Health services regularly available for camp residents - Preventive health care | FC1: Health services regularly available for camp residents - Pre&Post natal care | FD1: Health services regularly available for camp residents - Reproductive health care | FE1: Health services regularly available for camp residents - Reproductive health care | FF1: Health services regularly available for camp residents - Psychosocial support services | FG1: Health services regularly available for camp residents - Don’t know | FH1: Approximate proportion of FEMALE children attending school | FI1: Approximate proportion of MALE children attending school | FJ1: CURRENTLY, What are the TWO MAIN livelihoods activities for MALE camp resident - No.1 | FK1: CURRENTLY, What are the TWO MAIN livelihoods activities for MALE camp resident - No.2 | FL1: BEFORE DISPLACEMENT, what were the TWO MAIN livelihoods activities for MALE camp residents - No 1 | FM1: BEFORE DISPLACEMENT, what were the TWO MAIN livelihoods activities for MALE camp residents - No 2 | FN1: CURRENTLY, What are the TWO MAIN livelihoods activities for FEMALE camp resident - No.1 | FO1: CURRENTLY, What are the TWO MAIN livelihoods activities for FEMALE camp resident - No.2 | FP1: BEFORE DISPLACEMENT, what were the TWO MAIN livelihoods activities for FEMALE camp residents - No 1 | FQ1: BEFORE DISPLACEMENT, what were the TWO MAIN livelihoods activities for FEMALE camp residents - No 2 | FR1: Camp Managers Priority 1 | FS1: Camp Managers Priority 2 | FT1: Camp Managers Priority 3 | FU1: Camp Residents Priority 1 | FV1: Camp Residents Priority 2 | FW1: Camp Residents Priority 3 | FX1: 3Ws-NFI | FY1: CCCShelter3Ws
A2: G010 | B2: 31/7/2013 | C2: DRC | E2: Enumerator from camp profiling responsible organization | G2: 18/6/2013 | H2: Camp Manager | I2: Male | L2: Committee Member | Q2: Kachin | R2: Myitkyina | S2: Urban | T2: Tat Kone | U2: Tat Kone Baptist Church | V2: MMR001CMP001 | W2: 97.386719 | X2: 25.415482 | Y2: Urban | Z2: 6 | AA2: 2011 | AB2: Yes | AC2: Yes | AD2: Yes | AE2: No | AF2: Yes | AG2: Yes | AH2: Yes | AI2: No | AJ2: Myitkyina | AL2: 10 | AM2: Yes | AN2: KBC | AO2: Bawk Htoi Naw | AP2: 09 -4702709 6 | AQ2: Yes | AR2: No | AS2: No | AT2: Yes | AU2: No | AV2: No | AW2: No | AX2: No | AY2: Yes | AZ2: Yes | BA2: Yes | BB2: Yes | BC2: 0 | BD2: 2 | BE2: 0 | BF2: 4 | BG2: 5 | BH2: 0 | BI2: 8 | BJ2: 10 | BK2: 0 | BL2: 27 | BM2: 19 | BN2: 0 | BO2: 15 | BP2: 20 | BQ2: 0 | BR2: 25 | BS2: 28 | BT2: 0 | BU2: 28 | BV2: 32 | BW2: 0 | BX2: 5 | BY2: 11 | BZ2: 0 | CA2: 112 | CB2: 127 | CC2: 239 | CD2: 3 | CE2: 0 | CF2: 3 | CG2: 1 | CH2: 0 | CI2: 1 | CJ2: 1 | CK2: 1 | CL2: 2 | CM2: 4 | CN2: 4 | CO2: 8 | CP2: 0 | CQ2: 1 | CR2: 1 | CS2: 0 | CT2: 0 | CU2: 0 | CV2: 0 | CW2: 0 | CX2: 0 | CY2: 1 | CZ2: 11 | DA2: 1 | DB2: 0 | DC2: 1 | DD2: 0 | DE2: 0 | DF2: 0 | DG2: 54 | DH2: 239 | DI2: 1 | DJ2: 5 | DK2: 7 | DL2: 25 | DM2: Yes | DN2: Yes | DO2: 11 | DP2: 5 | DQ2: 2 | DR2: 0 | DS2: 13 | DT2: 5 | DU2: 2 | DV2: No | DW2: Yes | DX2: No | DY2: No | DZ2: Yes | EA2: No | EI2: Individual | EJ2: Yes | EK2: Solid shelters | EL2: 96-100% | EM2: 0% | EN2: Yes | EO2: Well | EP2: No | EQ2: 0 | ER2: 4 | ES2: 0 | ET2: No | EU2: Identified waste dump outside camp | EV2: Clinic | EX2: No | EY2: Yes | EZ2: Yes | FA2: Yes | FB2: No | FC2: Yes | FD2: Yes | FE2: Yes | FF2: Yes | FG2: No | FH2: 76-95% | FI2: 96-100% | FJ2: Mining | FK2: Other | FL2: Farming | FM2: Mining | FN2: Livestock | FO2: Handicrafts | FP2: Farming | FQ2: Livestock | FR2: Well / water tank | FS2: Complementary Food | FT2: Other | FU2: Hygiene kits | FV2: Latrines/toilets | FW2: Vocational training | FX2: KBC, UNHCR | FY2: KBC, UNHCR
A3: G009 | B3: 31/7/2013 | C3: DRC | E3: Enumerator from camp profiling responsible organization | G3: 17/6/2013 | H3: Camp Manager | I3: Male | L3: Committee Member | M3: Other | N3: Female | Q3: Kachin | R3: Myitkyina | S3: Urban | T3: N Jang Dung | U3: Njang Dung Baptist Church | V3: MMR001CMP002 | W3: 97.394547 | X3: 25.422194 | Y3: Urban | Z3: 6 | AA3: 2011 | AB3: Yes | AC3: Yes | AD3: Yes | AE3: No | AF3: Yes | AG3: Yes | AH3: Yes | AI3: No | AJ3: Myitkyina | AK3: 2 | AL3: 20 | AM3: Yes | AN3: KBC | AO3: U Kham Aung | AP3: 09 -400023005 | AQ3: Yes | AR3: No | AS3: No | AT3: No | AU3: Yes | AV3: No | AW3: Yes | AX3: No | AY3: No | AZ3: Yes | BA3: Yes | BB3: Yes | BC3: 1 | BD3: 0 | BE3: 0 | BF3: 4 | BG3: 3 | BH3: 0 | BI3: 6 | BJ3: 13 | BK3: 0 | BL3: 25 | BM3: 27 | BN3: 0 | BO3: 12 | BP3: 16 | BQ3: 0 | BR3: 28 | BS3: 27 | BT3: 0 | BU3: 16 | BV3: 38 | BW3: 0 | BX3: 9 | BY3: 14 | BZ3: 0 | CA3: 101 | CB3: 138 | CC3: 239 | CD3: 0 | CE3: 0 | CF3: 0 | CG3: 0 | CH3: 0 | CI3: 0 | CJ3: 2 | CK3: 0 | CL3: 2 | CM3: 0 | CN3: 0 | CO3: 0 | CP3: 0 | CQ3: 0 | CR3: 0 | CS3: 0 | CT3: 2 | CU3: 2 | CV3: 0 | CW3: 3 | CX3: 3 | CY3: 0 | CZ3: 10 | DA3: 1 | DB3: 0 | DC3: 1 | DD3: 0 | DE3: 1 | DF3: 1 | DG3: 58 | DH3: 239 | DI3: 2 | DJ3: 4 | DK3: 2 | DL3: 8 | DM3: Yes | DN3: Yes | DO3: 3 | DP3: 1 | DQ3: 0 | DR3: 2 | DS3: 13 | DT3: 2 | DU3: 2 | DV3: No | DW3: Yes | DX3: No | DY3: Yes | DZ3: Yes | EA3: No | EI3: Communal | EJ3: No | EK3: Solid shelters | EL3: 96-100% | EM3: 0% | EN3: Yes | EO3: Well | EP3: Yes | EQ3: 0 | ER3: 0 | ES3: 14 | ET3: No | EU3: Identified waste dump outside camp | EV3: Hospital | EX3: No | EY3: Yes | EZ3: Yes | FA3: No | FB3: Yes | FC3: Yes | FD3: Yes | FE3: No | FF3: No | FG3: No | FH3: 96-100% | FI3: 96-100% | FJ3: Farming | FK3: Other | FL3: Manufacturing (non-food) | FM3: Other | FN3: Farming | FO3: Other | FP3: Trade (buying and selling) | FQ3: Livestock | FR3: Other | FS3: Other | FT3: Cash/money assistance | FU3: Individual shelter/houses | FV3: Vocational training | FW3: Firewood / fuel | FX3: KBC, UNHCR | FY3: KBC, UNHCR
A4: G011 | B4: 31/7/2013 | C4: DRC | E4: Enumerator from camp profiling responsible organization | G4: 21/6/2013 | H4: Camp Manager | I4: Male | L4: FBO/NGO Staff | M4: Camp Manager | N4: Male | Q4: Kachin | R4: Myitkyina | S4: Urban | T4: Tat Kone-Htoi San | U4: Tat Kone Galile Baptist Church | V4: MMR001CMP003 | W4: 97.377663 | X4: 25.404753 | Y4: Urban | Z4: 7 | AA4: 2011 | AB4: Yes | AC4: Yes | AD4: Yes | AE4: No | AF4: Yes | AG4: Yes | AH4: Yes | AI4: No | AJ4: Myitkyina | AL4: 10 | AM4: Yes | AN4: KBC | AO4: U Htin San | AP4: 09 -40153328, 09 -401537674 | AQ4: Yes | AR4: No | AS4: No | AT4: Yes | AU4: No | AV4: No | AW4: No | AX4: No | AY4: Yes | AZ4: Yes | BA4: Yes | BB4: Yes | BC4: 1 | BD4: 0 | BE4: 0 | BF4: 2 | BG4: 3 | BH4: 0 | BI4: 5 | BJ4: 8 | BK4: 0 | BL4: 14 | BM4: 18 | BN4: 0 | BO4: 7 | BP4: 14 | BQ4: 0 | BR4: 11 | BS4: 11 | BT4: 0 | BU4: 11 | BV4: 18 | BW4: 0 | BX4: 6 | BY4: 5 | BZ4: 0 | CA4: 57 | CB4: 77 | CC4: 134 | CD4: 0 | CE4: 0 | CF4: 0 | CG4: 0 | CH4: 0 | CI4: 0 | CJ4: 0 | CK4: 0 | CL4: 0 | CM4: 1 | CN4: 2 | CO4: 3 | CP4: 0 | CQ4: 0 | CR4: 0 | CS4: 0 | CT4: 0 | CU4: 0 | CV4: 0 | CW4: 1 | CX4: 1 | CY4: 1 | CZ4: 3 | DA4: 1 | DB4: 0 | DC4: 1 | DD4: 0 | DE4: 1 | DF4: 1 | DG4: 30 | DH4: 134 | DI4: 2 | DJ4: 11 | DK4: 1 | DL4: 4 | DM4: Yes | DN4: Yes | DO4: 2 | DP4: 1 | DQ4: 2 | DR4: 1 | DS4: 4 | DT4: 6 | DU4: 1 | DV4: Yes | DW4: Yes | DX4: No | DY4: No | DZ4: Yes | EA4: No | EI4: Individual | EJ4: No | EK4: Solid shelters | EL4: 96-100% | EM4: 0% | EN4: Yes | EO4: Borehole/hand pump | EP4: Yes | EQ4: 2 | ER4: 2 | ES4: 0 | ET4: Yes | EU4: Is getting burnt | EV4: Hospital | EX4: No | EY4: No | EZ4: Yes | FA4: No | FB4: Yes | FC4: Yes | FD4: No | FE4: No | FF4: Yes | FG4: No | FH4: 96-100% | FI4: 96-100% | FJ4: Mining | FK4: Other | FL4: Farming | FN4: None | FO4: None | FP4: Farming | FQ4: Trade (buying and selling) | FR4: Cash/money assistance | FS4: Vocational training | FT4: Transport to school | FU4: School materials / supplies | FV4: Access to job opportunities | FW4: Other | FX4: KBC, UNHCR | FY4: KBC, UNHCR
A5: I010 | B5: 31/7/2013 | C5: SHALOM | E5: CCCM Focal Point | G5: 9/6/2013 | H5: Camp Manager | I5: Male | L5: Committee Member | Q5: Kachin | R5: Myitkyina | S5: Urban | T5: Tatkone Emanuela | U5: Tat Kone Emanuel Church | V5: MMR001CMP004 | W5: 97.379272 | X5: 25.401075 | Y5: Urban | Z5: 8 | AA5: 2011 | AB5: Yes | AC5: Yes | AD5: Yes | AE5: No | AF5: Yes | AG5: Yes | AH5: Yes | AI5: No | AJ5: Myitkyina | AK5: 1 | AM5: Yes | AN5: SHLOM | AO5: U La Nan | AP5: 09-47019391 | AQ5: Yes | AR5: No | AS5: No | AT5: Yes | AU5: No | AV5: No | AW5: Yes | AX5: No | AY5: No | AZ5: No | BA5: Yes | BB5: Yes | BC5: 1 | BD5: 0 | BE5: 1 | BF5: 4 | BG5: 1 | BH5: 5 | BI5: 2 | BJ5: 3 | BK5: 5 | BL5: 6 | BM5: 4 | BN5: 10 | BO5: 3 | BP5: 1 | BQ5: 4 | BR5: 11 | BS5: 4 | BT5: 15 | BU5: 9 | BV5: 7 | BW5: 16 | BX5: 0 | BY5: 5 | BZ5: 5 | CA5: 36 | CB5: 25 | CC5: 61 | CD5: 0 | CE5: 0 | CF5: 0 | CG5: 0 | CH5: 0 | CI5: 0 | CJ5: 1 | CK5: 1 | CL5: 2 | CM5: 0 | CN5: 0 | CO5: 0 | CP5: 0 | CQ5: 0 | CR5: 0 | CS5: 0 | CT5: 0 | CU5: 0 | CV5: 1 | CW5: 0 | CX5: 1 | CY5: 1 | CZ5: 1 | DA5: 1 | DB5: 0 | DC5: 1 | DD5: 0 | DE5: 0 | DF5: 0 | DG5: 14 | DH5: 61 | DI5: 1 | DJ5: 7 | DK5: 1 | DL5: 7 | DM5: Yes | DN5: Yes | DO5: 2 | DP5: 3 | DQ5: 6 | DR5: 1 | DS5: 8 | DT5: 4 | DU5: 2 | DV5: Yes | DW5: Yes | DX5: Yes | DY5: Yes | DZ5: Yes | EA5: No | EB5: 0.5 | ED5: 1 | EF5: 0.5 | EG5: 0.5 | EH5: 1.5 | EI5: Individual | EJ5: No | EK5: Solid shelters | EL5: less than 25% | EM5: less than 25% | EN5: Yes | EO5: Well | EP5: Yes | EQ5: 0 | ER5: 0 | ES5: 2 | ET5: No | EU5: Is getting burnt | EV5: Hospital | EX5: No | EY5: No | EZ5: No | FA5: No | FB5: No | FC5: No | FD5: No | FE5: Yes | FF5: No | FG5: No | FH5: 96-100% | FI5: 76-95% | FJ5: Mining | FK5: Other | FL5: Farming | FM5: Other | FN5: Trade (buying and selling) | FO5: None | FP5: Livestock | FQ5: Trade (buying and selling) | FR5: Medical staff (doctor, nurse, etc) | FS5: Medicines | FT5: Access to job opportunities | FU5: Bathing spaces | FV5: Vocational training | FW5: Firewood / fuel | FX5: KMSS, UNHCR, DRC | FY5: UNHCR
A6: A013 | B6: 31/7/2013 | C6: DRC | E6: Enumerator from camp profiling responsible organization | G6: 20/6/2013 | H6: Camp Manager | I6: Male | L6: Committee Member | M6: Other | N6: Male | Q6: Kachin | R6: Myitkyina | S6: Urban | T6: Tat kone | U6: Tat Kone San Pya Baptist Church | V6: MMR001CMP005 | W6: 97.382192 | X6: 25.404015 | Y6: Urban | AB6: No | AC6: No | AD6: No | AE6: No | AF6: No | AG6: No | AH6: No | AI6: No | AJ6: Myitkyina | AM6: Yes | AN6: KBC | AQ6: Yes | AR6: No | AS6: No | AT6: No | AU6: No | AV6: No | AW6: No | AX6: No | AY6: Yes | AZ6: No | BA6: No | BB6: No | BC6: 0 | BD6: 0 | BE6: 0 | BF6: 0 | BG6: 0 | BH6: 0 | BI6: 0 | BJ6: 0 | BK6: 0 | BL6: 0 | BM6: 0 | BN6: 0 | BO6: 0 | BP6: 0 | BQ6: 0 | BR6: 0 | BS6: 0 | BT6: 0 | BU6: 0 | BV6: 0 | BW6: 0 | BX6: 0 | BY6: 0 | BZ6: 0 | CA6: 0 | CB6: 0 | CC6: 0 | CD6: 0 | CE6: 0 | CF6: 0 | CG6: 0 | CH6: 0 | CI6: 0 | CJ6: 0 | CK6: 0 | CL6: 0 | CM6: 0 | CN6: 0 | CO6: 0 | CP6: 0 | CQ6: 0 | CR6: 0 | CS6: 0 | CT6: 0 | CU6: 0 | CV6: 0 | CW6: 0 | CX6: 0 | CY6: 0 | CZ6: 0 | DA6: 0 | DB6: 0 | DC6: 0 | DD6: 0 | DE6: 0 | DF6: 0 | DG6: 43 | DH6: 191 | DI6: 1 | DJ6: 4 | DK6: 0 | DL6: 0 | DM6: Yes | DN6: Yes | DO6: 9 | DP6: 19 | DQ6: 5 | DR6: 1 | DS6: 14 | DT6: 20 | DU6: 1 | DV6: No | DW6: No | DX6: No | DY6: No | DZ6: Yes | EA6: No | EI6: Communal | EJ6: Yes | EK6: Solid shelters | EL6: 51-75% | EM6: 25-50% | EO6: Borehole/hand pump | EP6: Yes | EQ6: 2 | ER6: 3 | ES6: 0 | ET6: No | EU6: Is getting burnt | EV6: Hospital | EX6: No | EY6: Yes | EZ6: Yes | FA6: No | FB6: No | FC6: No | FD6: No | FE6: No | FF6: No | FG6: No | FH6: 96-100% | FI6: 96-100% | FJ6: Farming | FK6: Other | FL6: Farming | FM6: Other | FN6: Trade (buying and selling) | FO6: None | FP6: Farming | FQ6: Trade (buying and selling) | FR6: Bathing spaces | FS6: Bathing spaces | FT6: Cash/money assistance | FU6: Other | FV6: Vocational training | FW6: Transport to school | FX6: KBC, UNHCR | FY6: KBC, Shalom, UNHCR
A7: A017 | B7: 31/7/2013 | C7: KBC | E7: CCCM Focal Point | G7: 29/6/2013 | H7: Camp Manager | I7: Male | L7: Religious Leader | M7: Camp Resident | N7: Male | Q7: Kachin | R7: Myitkyina | S7: Urban | T7: Si tar Pu | U7: Shatapru Sut Ngai Tawng | V7: MMR001CMP006 | W7: 97.399628 | X7: 25.412313 | Y7: Urban | Z7: 8 | AA7: 2011 | AB7: Yes | AC7: Yes | AD7: Yes | AE7: Yes | AF7: Yes | AG7: Yes | AH7: Yes | AI7: Yes | AJ7: Myitkyina | AK7: 1 | AL7: 3 | AM7: Yes | AN7: U Zaw Dan | AO7: Rev. U Maji Bawk Lar | AP7: 09-400029741 | AQ7: Yes | AR7: Yes | AS7: No | AT7: No | AU7: Yes | AV7: No | AW7: No | AX7: No | AY7: Yes | AZ7: Yes | BA7: Yes | BB7: Yes | BC7: 3 | BD7: 3 | BE7: 6 | BF7: 14 | BG7: 7 | BH7: 21 | BI7: 20 | BJ7: 13 | BK7: 33 | BL7: 53 | BM7: 38 | BN7: 91 | BO7: 30 | BP7: 48 | BQ7: 78 | BR7: 31 | BS7: 48 | BT7: 79 | BU7: 23 | BV7: 41 | BW7: 64 | BX7: 6 | BY7: 16 | BZ7: 22 | CA7: 180 | CB7: 214 | CC7: 394 | CD7: 4 | CE7: 1 | CF7: 5 | CG7: 1 | CH7: 1 | CI7: 2 | CJ7: 1 | CK7: 3 | CL7: 4 | CM7: 0 | CN7: 0 | CO7: 0 | CP7: 0 | CQ7: 0 | CR7: 0 | CS7: 6 | CT7: 16 | CU7: 22 | CV7: 1 | CW7: 4 | CX7: 5 | CY7: 7 | CZ7: 1 | DA7: 0 | DB7: 3 | DC7: 3 | DD7: 0 | DE7: 0 | DF7: 0 | DG7: 94 | DH7: 394 | DI7: 14 | DJ7: 41 | DK7: 18 | DL7: 79 | DM7: Yes | DN7: Yes | DO7: 2 | DP7: 0 | DQ7: 16 | DR7: 1 | DS7: 18 | DT7: 1 | DU7: 2 | DV7: Yes | DW7: Yes | DX7: Yes | DY7: No | DZ7: Yes | EA7: No | EB7: 0.5 | EE7: 0.25 | EF7: 1 | EG7: 0.5 | EH7: 0.5 | EI7: Communal | EJ7: yes | EK7: Solid shelters | EO7: Borehole/hand pump | EP7: Yes | EQ7: 6 | ER7: 6 | ES7: 0 | ET7: Yes | EU7: Identified waste dump outside camp | EV7: Clinic | EX7: No | EY7: yes | EZ7: No | FA7: No | FB7: No | FC7: No | FD7: No | FE7: No | FF7: No | FG7: No | FH7: 96-100% | FI7: 96-100% | FJ7: Livestock | FK7: None | FL7: Farming | FM7: Livestock | FN7: Trade (buying and selling) | FO7: Manufacturing (non-food) | FP7: Farming | FQ7: Livestock | FR7: Vocational training | FS7: Basic Food | FT7: Access to job opportunities | FU7: Individual shelter/houses | FV7: School materials / supplies | FW7: Firewood / fuel | FX7: UNHCR | FY7: KBC, UNHCR
A8: A011 | B8: 30/7/2013 | C8: Shalom | E8: CCCM Focal Point | G8: 4/7/2013 | H8: Camp Manager | I8: Male | L8: Religious leader | Q8: Kachin | R8: Myitkyina | S8: Urban | T8: Si tar Pu | U8: Shatapru Thida Aye Baptist Church | V8: MMR001CMP007 | W8: 97.418005 | X8: 25.423817 | Y8: Urban | Z8: 1 | AA8: 2012 | AB8: Yes | AC8: Yes | AD8: Yes | AE8: Yes | AF8: Yes | AG8: Yes | AH8: Yes | AI8: Yes | AJ8: Myitkyina | AK8: 5 | AM8: Yes | AN8: Shalom | AO8: U Zaw Pan Latt | AP8: 09-400030539 | AQ8: Yes | AR8: Yes | AS8: No | AT8: No | AU8: No | AV8: No | AW8: yes | AX8: No | AY8: No | AZ8: Yes | BA8: Yes | BB8: yes | BC8: 0 | BD8: 1 | BE8: 1 | BF8: 1 | BG8: 0 | BH8: 1 | BI8: 1 | BJ8: 4 | BK8: 5 | BL8: 5 | BM8: 5 | BN8: 10 | BO8: 11 | BP8: 8 | BQ8: 19 | BR8: 7 | BS8: 5 | BT8: 12 | BU8: 9 | BV8: 11 | BW8: 20 | BX8: 2 | BY8: 4 | BZ8: 6 | CA8: 36 | CB8: 38 | CC8: 74 | CD8: 0 | CE8: 0 | CF8: 0 | CG8: 0 | CH8: 0 | CI8: 0 | CJ8: 0 | CK8: 0 | CL8: 0 | CM8: 0 | CN8: 0 | CO8: 0 | CP8: 1 | CQ8: 3 | CR8: 4 | CS8: 0 | CT8: 0 | CU8: 0 | CV8: 0 | CW8: 0 | CX8: 0 | CY8: 0 | CZ8: 1 | DA8: 0 | DB8: 1 | DC8: 1 | DD8: 0 | DE8: 0 | DF8: 0 | DG8: 15 | DH8: 74 | DI8: 1 | DJ8: 3 | DK8: 2 | DL8: 6 | DM8: yes | DN8: yes | DO8: 1 | DP8: 1 | DQ8: 3 | DR8: 1 | DS8: 4 | DT8: 2 | DU8: 1 | DV8: Yes | DW8: Yes | DX8: Yes | DY8: Yes | DZ8: Yes | EA8: No | EB8: 0.5 | EI8: Communal | EJ8: yes | EK8: Community/religious building | EL8: less than 25% | EM8: 0% | EN8: yes | EO8: Well | EP8: yes | EQ8: 0 | ER8: 0 | ES8: 0 | ET8: No | EU8: Common identified waste dump inside camp | EV8: Clinic | EX8: No | EY8: yes | EZ8: No | FA8: No | FB8: Yes | FC8: Yes | FD8: No | FE8: No | FF8: yes | FG8: No | FH8: 96-100% | FI8: 76-95% | FJ8: Livestock | FK8: Other | FL8: Livestock | FM8: Farming | FN8: Livestock | FO8: Other | FP8: Livestock | FR8: Basic Food | FS8: Cash/money assistance | FT8: Firewood / fuel | FU8: Access to job opportunities | FV8: Access to job opportunities | FW8: Basic Food | FX8: KBC, UNHCR, DRC
A9: I006 | B9: 31/7/2013 | C9: DRC | E9: Enumerator from camp profiling responsible organization | G9: 17/6/2013 | H9: Camp Manager | I9: Male | L9: Religious Leader | Q9: Kachin | R9: Myitkyina | S9: Man Kin (Sinbo Sub-township) | T9: Man Kin | U9: Man Hkring Baptist Church | V9: MMR001CMP008 | W9: 97.418694 | X9: 25.428911 | Y9: Urban | Z9: 7 | AA9: 2011 | AB9: Yes | AC9: Yes | AD9: Yes | AE9: No | AF9: Yes | AG9: Yes | AH9: Yes | AI9: No | AJ9: Myitkyina | AK9: 4 | AL9: 15 | AM9: Yes | AN9: KBC | AO9: U Hkawng Htaw | AP9: 09-400013281 | AQ9: Yes | AR9: No | AS9: No | AT9: Yes | AU9: No | AV9: No | AW9: Yes | AX9: No | AY9: No | AZ9: Yes | BA9: Yes | BB9: Yes | BC9: 2 | BD9: 2 | BE9: 4 | BF9: 3 | BG9: 1 | BH9: 4 | BI9: 27 | BJ9: 22 | BK9: 49 | BL9: 36 | BM9: 50 | BN9: 86 | BO9: 35 | BP9: 31 | BQ9: 66 | BR9: 32 | BS9: 54 | BT9: 86 | BU9: 3 | BV9: 20 | BW9: 23 | BX9: 32 | BY9: 44 | BZ9: 76 | CA9: 170 | CB9: 224 | CC9: 394 | CD9: 0 | CE9: 0 | CF9: 0 | CG9: 0 | CH9: 0 | CI9: 0 | CJ9: 0 | CK9: 1 | CL9: 1 | CM9: 0 | CN9: 3 | CO9: 3 | CP9: 1 | CQ9: 1 | CR9: 2 | CS9: 0 | CT9: 0 | CU9: 0 | CV9: 0 | CW9: 3 | CX9: 3 | CY9: 8 | CZ9: 5 | DA9: 2 | DB9: 0 | DC9: 2 | DD9: 1 | DE9: 1 | DF9: 2 | DG9: 93 | DH9: 394 | DI9: 7 | DJ9: 31 | DK9: 1 | DL9: 6 | DM9: Yes | DN9: Yes | DO9: 3 | DP9: 11 | DQ9: 10 | DR9: 4 | DS9: 13 | DT9: 15 | DU9: 2 | DV9: No | DW9: No | DX9: No | DY9: No | DZ9: Yes | EA9: No | EF9: 0.125 | EI9: Communal | EJ9: No | EK9: Solid shelters | EL9: 76-95% | EM9: 76-95% | EN9: Yes | EO9: Well | EP9: Yes | EQ9: 5 | ER9: 9 | ES9: 0 | ET9: No | EU9: Is getting burnt | EV9: Hospital | EX9: Yes | EY9: Yes | EZ9: Yes | FA9: No | FB9: Yes | FC9: Yes | FD9: Yes | FE9: Yes | FF9: Yes | FG9: No | FH9: 96-100% | FI9: 96-100% | FJ9: Farming | FK9: Trade (buying and selling) | FL9: None | FM9: None | FN9: Manufacturing (non-food) | FO9: Other | FP9: Farming | FQ9: Livestock | FR9: Cash/money assistance | FS9: Cash/money assistance | FT9: Vocational training | FU9: Vocational training | FV9: Access to job opportunities | FW9: Firewood / fuel | FX9: KBC, UNHCR | FY9: UNHCR
A10: A019 | B10: 31/7/2013 | C10: KBC | G10: 4/7/2011 | H10: Camp Manager | I10: Male | L10: Religious Leader | Q10: Kachin | R10: Myitkyina | S10: Urban | T10: Shwe Zet | U10: Shwe Zet Baptist Church | V10: MMR001CMP009 | W10: 97.419403 | X10: 25.440928 | Y10: Urban | Z10: 7 | AA10: 2011 | AB10: Yes | AC10: Yes | AD10: Yes | AE10: Yes | AF10: Yes | AG10: Yes | AH10: Yes | AI10: Yes | AJ10: Myitkyina | AK10: 5 | AM10: Yes | AN10: KBC | AO10: U Aung Latt | AP10: 09-400032735 | AQ10: Yes | AR10: No | AS10: No | AT10: Yes | AU10: No | AV10: No | AW10: No | AX10: No | AY10: Yes | AZ10: Yes | BA10: Yes | BB10: Yes | BC10: 1 | BD10: 0 | BE10: 1 | BF10: 9 | BG10: 2 | BH10: 11 | BI10: 19 | BJ10: 25 | BK10: 44 | BL10: 23 | BM10: 34 | BN10: 57 | BO10: 38 | BP10: 53 | BQ10: 91 | BR10: 35 | BS10: 50 | BT10: 85 | BU10: 20 | BV10: 40 | BW10: 60 | BX10: 15 | BY10: 20 | BZ10: 35 | CA10: 160 | CB10: 224 | CC10: 384 | CD10: 1 | CE10: 1 | CF10: 2 | CG10: 0 | CH10: 0 | CI10: 0 | CJ10: 1 | CK10: 0 | CL10: 1 | CM10: 2 | CN10: 0 | CO10: 2 | CP10: 0 | CQ10: 0 | CR10: 0 | CS10: 0 | CT10: 0 | CU10: 0 | CV10: 0 | CW10: 1 | CX10: 1 | CY10: 6 | CZ10: 13 | DA10: 0 | DB10: 0 | DC10: 0 | DD10: 0 | DE10: 1 | DF10: 1 | DG10: 79 | DH10: 384 | DI10: 0 | DJ10: 0 | DK10: 3 | DL10: 12 | DM10: yes | DN10: yes | DO10: 1 | DP10: 1 | DQ10: 2 | DR10: 5 | DS10: 3 | DT10: 6 | DU10: 3 | DV10: No | DW10: No | DX10: No | DY10: No | DZ10: No | EA10: No | EI10: Communal | EJ10: yes | EK10: Solid shelters | EO10: Well | EP10: Yes | EQ10: 0 | ER10: 0 | ES10: 0 | ET10: Yes | EU10: Identified waste dump outside camp | EV10: Rural centre | EX10: No | EY10: No | EZ10: Yes | FA10: No | FB10: No | FC10: No | FD10: No | FE10: No | FF10: No | FG10: No | FH10: 96-100% | FI10: 96-100% | FJ10: None | FK10: None | FL10: Farming | FM10: Other | FN10: None | FO10: None | FP10: Farming | FQ10: Other | FR10: Complementary Food | FS10: Access to job opportunities | FT10: Cash/money assistance | FU10: Vocational training | FV10: Individual shelter/houses | FW10: Blankets/Winter Clothing | FX10: KMSS, UNHCR | FY10: KBC, UNHCR
A11: F011 | B11: 31/7/2013 | C11: KBC | E11: CCCM Focal Point | G11: 13/6/2013 | H11: Camp Manager | I11: Male | L11: Religious Leader | Q11: Kachin | R11: Myitkyina | S11: Urban | T11: Du Kahtawng ward (4) | U11: Du Kahtawng Qtr. 4 | V11: MMR001CMP010 | W11: 97.383057 | X11: 25.395994 | Y11: Urban | Z11: 6 | AA11: 2011 | AB11: Yes | AC11: Yes | AD11: Yes | AE11: No | AF11: Yes | AG11: Yes | AH11: Yes | AI11: No | AJ11: Myitkyina | AK11: 1 | AL11: 10 | AM11: Yes | AN11: KBC | AO11: U Su Eik Kham | AQ11: Yes | AR11: No | AS11: Yes | AT11: No | AU11: No | AV11: No | AW11: No | AX11: No | AY11: Yes | AZ11: Yes | BA11: Yes | BB11: Yes | BC11: 0 | BD11: 0 | BE11: 0 | BF11: 1 | BG11: 0 | BH11: 1 | BI11: 2 | BJ11: 0 | BK11: 2 | BL11: 2 | BM11: 2 | BN11: 4 | BO11: 5 | BP11: 6 | BQ11: 11 | BR11: 3 | BS11: 2 | BT11: 5 | BU11: 5 | BV11: 6 | BW11: 11 | BX11: 1 | BY11: 1 | BZ11: 2 | CA11: 19 | CB11: 17 | CC11: 36 | CD11: 0 | CE11: 0 | CF11: 0 | CG11: 0 | CH11: 0 | CI11: 0 | CJ11: 0 | CK11: 1 | CL11: 1 | CM11: 0 | CN11: 1 | CO11: 1 | CP11: 0 | CQ11: 0 | CR11: 0 | CS11: 0 | CT11: 0 | CU11: 0 | CV11: 0 | CW11: 1 | CX11: 1 | CY11: 0 | CZ11: 0 | DA11: 0 | DB11: 0 | DC11: 0 | DD11: 0 | DE11: 0 | DF11: 0 | DG11: 6 | DH11: 36 | DI11: 6 | DJ11: 36 | DK11: 3 | DL11: 16 | DM11: No | DN11: No | DO11: 0 | DP11: 0 | DQ11: 0 | DR11: 0 | DS11: 0 | DT11: 0 | DU11: 0 | DV11: No | DW11: No | DX11: No | DY11: No | DZ11: No | EA11: No | EB11: 1 | ED11: 1 | EI11: Communal | EJ11: Yes | EK11: Solid shelters | EL11: 0% | EM11: 0% | EN11: Yes | EO11: Borehole/hand pump | EP11: Yes | EQ11: 0 | ER11: 0 | ES11: 0 | ET11: No | EU11: Identified waste dump outside camp | EV11: Clinic | EX11: Yes | EY11: Yes | EZ11: Yes | FA11: Yes | FB11: Yes | FC11: Yes | FD11: Yes | FE11: Yes | FF11: No | FG11: No | FH11: less than 25% | FI11: less than 25% | FJ11: Mining | FK11: None | FL11: Farming | FM11: Livestock | FN11: None | FO11: None | FP11: Farming | FQ11: Livestock | FR11: Latrines/toilets | FS11: School materials / supplies | FT11: Well / water tank | FU11: Bathing spaces | FV11: Cash/money assistance | FW11: Medicines | FX11: KBC, UNHCR | FY11: KBC, UNHCR
A12: F013 | B12: 31/7/2013 | C12: KBC | E12: CCCM Focal Point | G12: 13/6/2013 | H12: Camp Manager | I12: Male | L12: Religious Leader | Q12: Kachin | R12: Myitkyina | S12: Urban | T12: Du Kahtawng Ward (5) | U12: Du Kahtawng Qtr. 5 | V12: MMR001CMP011 | W12: 97.381195 | X12: 25.396364 | Y12: Urban | Z12: 6 | AA12: 2011 | AB12: Yes | AC12: Yes | AD12: Yes | AE12: No | AF12: Yes | AG12: Yes | AH12: Yes | AI12: No | AJ12: Myitkyina | AK12: 1 | AL12: 15 | AM12: Yes | AN12: KBC | AO12: U Su Eik Kham | AQ12: Yes | AR12: No | AS12: No | AT12: Yes | AU12: No | AV12: No | AW12: No | AX12: No | AY12: Yes | AZ12: Yes | BA12: Yes | BB12: Yes | BC12: 0 | BD12: 0 | BE12: 0 | BF12: 0 | BG12: 1 | BH12: 1 | BI12: 1 | BJ12: 0 | BK12: 1 | BL12: 5 | BM12: 2 | BN12: 7 | BO12: 3 | BP12: 3 | BQ12: 6 | BR12: 1 | BS12: 1 | BT12: 2 | BU12: 3 | BV12: 4 | BW12: 7 | BX12: 2 | BY12: 3 | BZ12: 5 | CA12: 15 | CB12: 14 | CC12: 29 | CD12: 0 | CE12: 0 | CF12: 0 | CG12: 0 | CH12: 0 | CI12: 0 | CJ12: 1 | CK12: 0 | CL12: 1 | CM12: 0 | CN12: 0 | CO12: 0 | CP12: 0 | CQ12: 0 | CR12: 0 | CS12: 0 | CT12: 0 | CU12: 0 | CV12: 2 | CW12: 1 | CX12: 3 | CY12: 0 | CZ12: 1 | DA12: 0 | DB12: 0 | DC12: 0 | DD12: 0 | DE12: 0 | DF12: 0 | DG12: 8 | DH12: 29 | DI12: 8 | DJ12: 29 | DK12: 0 | DL12: 0 | DM12: No | DN12: No | DO12: 0 | DP12: 0 | DQ12: 0 | DR12: 0 | DS12: 0 | DT12: 0 | DU12: 0 | DV12: No | DW12: No | DX12: No | DY12: No | DZ12: No | EA12: No | EI12: Communal | EJ12: No | EK12: Solid shelters | EL12: 0% | EM12: 0% | EN12: Yes | EO12: Borehole/hand pump | EP12: Yes | EQ12: 1 | ER12: 1 | ES12: 0 | ET12: No | EU12: Identified waste dump outside camp | EV12: Clinic | EX12: Yes | EY12: Yes | EZ12: Yes | FA12: Yes | FB12: Yes | FC12: Yes | FD12: Yes | FE12: Yes | FF12: No | FG12: No | FH12: less than 25% | FI12: less than 25% | FJ12: Other | FK12: None | FL12: Farming | FM12: Livestock | FN12: Other | FO12: None | FP12: Farming | FQ12: Livestock | FR12: Bathing spaces | FS12: Cash/money assistance | FT12: Well / water tank | FU12: Transport to school | FV12: Partitions within shelters | FW12: Medicines | FX12: KBC, UNHCR | FY12: KBC, UNHCR
A13: F012 | B13: 31/7/2013 | C13: KBC | E13: CCCM Focal Point | G13: 13/6/2013 | H13: Camp Manager | I13: Male | L13: Religious Leader | Q13: Kachin | R13: Myitkyina | S13: Urban | T13: Du Kahtawng ward (14) | U13: Du Kahtawng Qtr. 14 | V13: MMR001CMP012 | W13: 97.385101 | X13: 25.399796 | Y13: Urban | Z13: 6 | AA13: 2011 | AB13: Yes | AC13: Yes | AD13: Yes | AE13: No | AF13: Yes | AG13: Yes | AH13: Yes | AI13: No | AJ13: Myitkyina | AK13: 1 | AL13: 15 | AM13: Yes | AN13: KBC | AO13: U Su Eik Kham | AQ13: Yes | AR13: No | AS13: Yes | AT13: No | AU13: No | AV13: No | AW13: No | AX13: No | AY13: Yes | AZ13: Yes | BA13: Yes | BB13: Yes | BC13: 0 | BD13: 0 | BE13: 0 | BF13: 0 | BG13: 0 | BH13: 0 | BI13: 0 | BJ13: 2 | BK13: 2 | BL13: 3 | BM13: 1 | BN13: 4 | BO13: 1 | BP13: 2 | BQ13: 3 | BR13: 1 | BS13: 3 | BT13: 4 | BU13: 2 | BV13: 4 | BW13: 6 | BX13: 1 | BY13: 2 | BZ13: 3 | CA13: 8 | CB13: 14 | CC13: 22 | CD13: 1 | CE13: 0 | CF13: 1 | CG13: 0 | CH13: 0 | CI13: 0 | CJ13: 1 | CK13: 2 | CL13: 3 | CM13: 0 | CN13: 0 | CO13: 0 | CP13: 1 | CQ13: 0 | CR13: 1 | CS13: 0 | CT13: 0 | CU13: 0 | CV13: 0 | CW13: 1 | CX13: 1 | CY13: 0 | CZ13: 0 | DA13: 0 | DB13: 0 | DC13: 0 | DD13: 0 | DE13: 1 | DF13: 1 | DG13: 6 | DH13: 22 | DI13: 6 | DJ13: 33 | DK13: 6 | DL13: 23 | DM13: No | DN13: No | DO13: 0 | DP13: 0 | DQ13: 0 | DR13: 0 | DS13: 0 | DT13: 0 | DU13: 0 | DV13: No | DW13: No | DX13: No | DY13: No | DZ13: No | EA13: No | ED13: 5 | EI13: Communal | EJ13: Yes | EK13: Solid shelters | EL13: less than 25% | EM13: 0% | EO13: Borehole/hand pump | EP13: Yes | EQ13: 0 | ER13: 0 | ES13: 2 | ET13: No | EU13: Identified waste dump outside camp | EV13: Clinic | EX13: Yes | EY13: Yes | EZ13: Yes | FA13: Yes | FB13: Yes | FC13: Yes | FD13: Yes | FE13: Yes | FF13: Yes | FG13: No | FH13: 25-50% | FI13: less than 25% | FJ13: Other | FK13: None | FL13: Farming | FM13: Livestock | FN13: Other | FO13: None | FP13: Farming | FQ13: Livestock | FR13: Cash/money assistance | FS13: Latrines/toilets | FT13: Medicines | FU13: School materials / supplies | FV13: Kitchen sets | FW13: Well / water tank | FX13: KBC, UNHCR | FY13: KBC, UNHCR
A14: C012 | B14: 30/7/2013 | C14: DRC | E14: Enumerator from camp profiling responsible organization | G14: 13/6/2013 | H14: Camp Manager | I14: Male | L14: Committee Member | M14: Other | N14: Female | Q14: Kachin | R14: Myitkyina | S14: Urban | T14: Kyun Pin Tharr | U14: Kyun Pin Thar Baptist Church | V14: MMR001CMP013 | W14: 97.405121 | X14: 25.365891 | Y14: Urban | Z14: 12 | AA14: 2011 | AB14: Yes | AC14: Yes | AD14: Yes | AE14: No | AF14: Yes | AG14: Yes | AH14: Yes | AI14: No | AJ14: Myitkyina | AL14: 10 | AM14: Yes | AN14: Camp Management Group | AO14: U Shan Lum | AP14: 0949241883 | AQ14: Yes | AR14: Yes | AS14: No | AT14: No | AU14: No | AV14: No | AW14: No | AX14: Yes | AY14: No | AZ14: Yes | BA14: Yes | BB14: Yes | BC14: 0 | BD14: 0 | BE14: 0 | BF14: 0 | BG14: 0 | BH14: 0 | BI14: 5 | BJ14: 3 | BK14: 8 | BL14: 6 | BM14: 6 | BN14: 12 | BO14: 9 | BP14: 5 | BQ14: 14 | BR14: 6 | BS14: 8 | BT14: 14 | BU14: 4 | BV14: 6 | BW14: 10 | BX14: 5 | BY14: 10 | BZ14: 15 | CA14: 35 | CB14: 38 | CC14: 73 | CD14: 2 | CE14: 2 | CF14: 4 | CG14: 0 | CH14: 0 | CI14: 0 | CJ14: 0 | CK14: 0 | CL14: 0 | CM14: 0 | CN14: 0 | CO14: 0 | CP14: 0 | CQ14: 0 | CR14: 0 | CS14: 1 | CT14: 1 | CU14: 2 | CV14: 2 | CW14: 7 | CX14: 9 | CY14: 2 | CZ14: 0 | DA14: 0 | DB14: 0 | DC14: 0 | DD14: 0 | DE14: 1 | DF14: 1 | DG14: 20 | DH14: 73 | DI14: 0 | DJ14: 0 | DK14: 0 | DL14: 0 | DM14: Yes | DN14: Yes | DO14: 3 | DP14: 2 | DQ14: 5 | DR14: 1 | DS14: 8 | DT14: 3 | DU14: 2 | DV14: No | DW14: Yes | DX14: No | DY14: No | DZ14: Yes | EA14: No | EI14: Communal | EJ14: Yes | EK14: Solid shelters | EL14: 96-100% | EN14: Yes | EO14: Well | EP14: Yes | EQ14: 0 | ER14: 0 | ES14: 4 | ET14: No | EU14: Is getting burnt | EV14: Hospital | EX14: No | EY14: Yes | EZ14: Yes | FA14: No | FB14: Yes | FC14: Yes | FD14: Yes | FE14: Yes | FF14: No | FG14: No | FH14: 96-100% | FI14: 76-95% | FJ14: Manufacturing (non-food) | FK14: Other | FL14: Farming | FM14: Livestock | FN14: Mining | FO14: Other | FP14: Farming | FQ14: Livestock | FR14: Latrines/toilets | FS14: Other | FT14: Well / water tank | FU14: Cash/money assistance | FV14: Bathing spaces | FW14: Medicines | FX14: KBC, UNHCR | FY14: KBC, UNHCR
A15: G006 | B15: 30/7/2013 | C15: DRC | E15: Enumerator from camp profiling responsible organization | G15: 19/6/2013 | H15: Camp Manager | I15: Male | L15: Committee Member | Q15: Kachin | R15: Myitkyina | S15: Urban | T15: Le Kone | U15: Le Kone Ziun Baptist Church | V15: MMR001CMP014 | W15: 97.40892 | X15: 25.355984 | Y15: Urban | Z15: 6 | AA15: 2011 | AB15: Yes | AC15: Yes | AD15: Yes | AE15: No | AF15: Yes | AG15: Yes | AH15: Yes | AI15: No | AJ15: Myitkyina | AK15: 2 | AL15: 15 | AM15: Yes | AN15: Le Kone Zeun Baptist | AO15: Kyan Bawn | AP15: 09 -40159 5730 | AQ15: Yes | AR15: Yes | AS15: No | AT15: No | AU15: No | AV15: No | AW15: No | AX15: No | AY15: Yes | AZ15: Yes | BA15: Yes | BB15: Yes | BC15: 2 | BD15: 1 | BE15: 0 | BF15: 9 | BG15: 7 | BH15: 0 | BI15: 25 | BJ15: 27 | BK15: 0 | BL15: 85 | BM15: 63 | BN15: 0 | BO15: 68 | BP15: 79 | BQ15: 0 | BR15: 80 | BS15: 104 | BT15: 0 | BU15: 58 | BV15: 84 | BW15: 0 | BX15: 23 | BY15: 27 | BZ15: 0 | CA15: 350 | CB15: 392 | CC15: 742 | CD15: 3 | CE15: 0 | CF15: 3 | CG15: 0 | CH15: 1 | CI15: 1 | CJ15: 3 | CK15: 2 | CL15: 5 | CM15: 5 | CN15: 2 | CO15: 7 | CP15: 3 | CQ15: 0 | CR15: 3 | CS15: 2 | CT15: 2 | CU15: 4 | CV15: 0 | CW15: 18 | CX15: 18 | CY15: 5 | CZ15: 9 | DA15: 1 | DB15: 1 | DC15: 2 | DD15: 1 | DE15: 0 | DF15: 1 | DG15: 151 | DH15: 742 | DI15: 10 | DJ15: 72 | DK15: 15 | DL15: 53 | DM15: Yes | DN15: Yes | DO15: 0 | DP15: 2 | DQ15: 9 | DR15: 0 | DS15: 9 | DT15: 2 | DU15: 1 | DV15: No | DW15: Yes | DX15: No | DY15: No | DZ15: No | EA15: No | EB15: 0.375 | ED15: 0.375 | EF15: 0.125 | EI15: Individual | EJ15: Yes | EK15: Solid shelters | EL15: 51-75% | EM15: 25-50% | EN15: Yes | EO15: Borehole/hand pump | EP15: Yes | EQ15: 0 | ER15: 0 | ES15: 15 | ET15: Yes | EU15: Common identified waste dump inside camp | EV15: Clinic | EX15: Yes | EY15: Yes | EZ15: Yes | FA15: No | FB15: Yes | FC15: Yes | FD15: Yes | FE15: Yes | FF15: Yes | FG15: No | FH15: 96-100% | FI15: 96-100% | FJ15: Trade (buying and selling) | FK15: Other | FL15: Farming | FM15: Other | FN15: Trade (buying and selling) | FO15: Manufacturing (non-food) | FP15: Farming | FQ15: Manufacturing (non-food) | FR15: Complementary Food | FS15: Cash/money assistance | FT15: Firewood / fuel | FU15: Vocational training | FV15: Medicines | FW15: Complementary Food | FX15: KBC, UNHCR | FY15: KBC, UNHCR
A16: G007 | B16: 30/7/2013 | C16: DRC | E16: Enumerator from camp profiling responsible organization | G16: 19/6/2013 | H16: Camp Manager | I16: Male | L16: Religious Leader | M16: Camp Manager | N16: Male | Q16: Kachin | R16: Myitkyina | S16: Urban | T16: Le Kone | U16: Maliyang Baptist Church | V16: MMR001CMP016 | W16: 97.411606 | X16: 25.360476 | Y16: Urban | Z16: 8 | AA16: 2011 | AB16: Yes | AC16: Yes | AD16: Yes | AE16: No | AF16: Yes | AG16: Yes | AH16: Yes | AI16: No | AJ16: Myitkyina | AK16: 1.25 | AL16: 10 | AM16: Yes | AN16: Le Kone MaliYang Baptist | AO16: U Haung Lwan | AP16: 09 -431879 68 | AQ16: Yes | AR16: Yes | AS16: No | AT16: No | AU16: No | AV16: No | AW16: No | AX16: No | AY16: Yes | AZ16: Yes | BA16: Yes | BB16: Yes | BC16: 0 | BD16: 0 | BE16: 0 | BF16: 4 | BG16: 5 | BH16: 0 | BI16: 10 | BJ16: 9 | BK16: 0 | BL16: 29 | BM16: 23 | BN16: 0 | BO16: 30 | BP16: 29 | BQ16: 0 | BR16: 48 | BS16: 41 | BT16: 0 | BU16: 27 | BV16: 41 | BW16: 0 | BX16: 14 | BY16: 11 | BZ16: 0 | CA16: 162 | CB16: 159 | CC16: 321 | CD16: 0 | CE16: 3 | CF16: 3 | CG16: 2 | CH16: 0 | CI16: 2 | CJ16: 4 | CK16: 1 | CL16: 5 | CM16: 3 | CN16: 3 | CO16: 6 | CP16: 0 | CQ16: 0 | CR16: 0 | CS16: 2 | CT16: 1 | CU16: 3 | CV16: 0 | CW16: 3 | CX16: 3 | CY16: 1 | CZ16: 5 | DA16: 0 | DB16: 0 | DC16: 0 | DD16: 0 | DE16: 0 | DF16: 0 | DG16: 75 | DH16: 321 | DI16: 3 | DJ16: 12 | DK16: 5 | DL16: 19 | DM16: Yes | DN16: Yes | DO16: 0 | DP16: 0 | DQ16: 5 | DR16: 2 | DS16: 5 | DT16: 2 | DU16: 2 | DV16: Yes | DW16: Yes | DX16: Yes | DY16: No | DZ16: Yes | EA16: No | EB16: 1 | ED16: 2 | EI16: Communal | EJ16: Yes | EK16: Solid shelters | EL16: 51-75% | EM16: 25-50% | EN16: Yes | EO16: Well | EP16: Yes | EQ16: 0 | ER16: 0 | ES16: 7 | ET16: No | EU16: Identified waste dump outside camp | EV16: Clinic | EX16: Yes | EY16: Yes | EZ16: Yes | FA16: No | FB16: Yes | FC16: Yes | FD16: Yes | FE16: No | FF16: Yes | FG16: No | FH16: 96-100% | FI16: 96-100% | FJ16: Livestock | FK16: Other | FL16: Farming | FM16: Livestock | FN16: Trade (buying and selling) | FO16: Other | FP16: Farming | FQ16: Trade (buying and selling) | FR16: School materials / supplies | FS16: Cash/money assistance | FT16: Firewood / fuel | FU16: Complementary Food | FV16: Bathing spaces | FW16: Hygiene kits | FX16: KBC, UNHCR | FY16: UNHCR
A17: A012 | B17: 30/7/2013 | C17: SHALOM | E17: CCCM Focal Point | G17: 4/7/2013 | H17: Camp Manager | I17: Male | L17: Religious leader | Q17: Kachin | R17: Myitkyina | S17: Urban | T17: Myae Myint | U17: Myay Myint Baptist Church | V17: MMR001CMP017 | W17: 97.376672 | X17: 25.387863 | Y17: Urban | Z17: 10 | AA17: 2011 | AB17: Yes | AC17: Yes | AD17: Yes | AE17: No | AF17: Yes | AG17: Yes | AH17: Yes | AI17: No | AJ17: Myitkyina | AK17: 2 | AM17: Yes | AN17: Shalom | AO17: U Gam Aung | AP17: 09-440006280 | AQ17: Yes | AR17: Yes | AS17: No | AT17: No | AU17: No | AV17: No | AW17: Yes | AX17: No | AY17: No | AZ17: Yes | BA17: Yes | BB17: yes | BC17: 0 | BD17: 0 | BE17: 0 | BF17: 3 | BG17: 0 | BH17: 3 | BI17: 1 | BJ17: 0 | BK17: 1 | BL17: 8 | BM17: 8 | BN17: 16 | BO17: 5 | BP17: 7 | BQ17: 12 | BR17: 1 | BS17: 2 | BT17: 3 | BU17: 6 | BV17: 7 | BW17: 13 | BX17: 1 | BY17: 3 | BZ17: 4 | CA17: 25 | CB17: 27 | CC17: 52 | CD17: 1 | CE17: 0 | CF17: 1 | CG17: 0 | CH17: 0 | CI17: 0 | CJ17: 0 | CK17: 0 | CL17: 0 | CM17: 0 | CN17: 0 | CO17: 0 | CP17: 0 | CQ17: 0 | CR17: 0 | CS17: 0 | CT17: 1 | CU17: 1 | CV17: 0 | CW17: 0 | CX17: 0 | CY17: 2 | CZ17: 0 | DA17: 0 | DB17: 0 | DC17: 0 | DD17: 0 | DE17: 0 | DF17: 0 | DG17: 12 | DH17: 53 | DI17: 2 | DJ17: 18 | DK17: 1 | DL17: 3 | DM17: yes | DN17: yes | DO17: 1 | DP17: 2 | DQ17: 4 | DR17: 2 | DS17: 5 | DT17: 4 | DU17: 1 | DV17: Yes | DW17: Yes | DX17: Yes | DY17: Yes | DZ17: Yes | EA17: No | EB17: 0.375 | EI17: Communal | EJ17: yes | EK17: Community/religious building | EL17: 76-95% | EM17: 0% | EN17: No | EO17: Well | EP17: Yes | EQ17: 0 | ER17: 0 | ES17: 0 | ET17: No | EU17: Identified waste dump outside camp | EV17: Clinic | EX17: No | EY17: yes | EZ17: No | FA17: No | FB17: Yes | FC17: yes | FD17: No | FE17: yes | FF17: yes | FG17: No | FH17: 96-100% | FI17: 96-100% | FJ17: Handicrafts | FK17: Other | FL17: Farming | FM17: Livestock | FN17: Livestock | FO17: Other | FP17: Farming | FQ17: Livestock | FR17: Basic Food | FS17: Partitions within shelters | FT17: Firewood / fuel | FU17: Women NFIs (sanitary pads, underwear, etc.) | FV17: Cash/money assistance | FW17: Vocational training | FX17: KBC, UNHCR, DRC
A18: H003 | B18: 29/7/2013 | C18: KBSS/KMSS | E18: CCCM Focal Point | G18: 14/6/2013 | H18: Camp Manager | I18: Male | L18: Committee Member | Q18: Kachin | R18: Myitkyina | S18: Urban | T18: Jan Mai Kawng | U18: Jan Mai Kawng Catholic Church | V18: MMR001CMP019 | W18: 97.373361 | X18: 25.403477 | Y18: Urban | Z18: 7 | AA18: 2011 | AB18: Yes | AC18: Yes | AD18: Yes | AE18: No | AF18: Yes | AG18: Yes | AH18: Yes | AI18: No | AJ18: Myitkyina | AK18: 1 | AM18: Yes | AN18: KMSS | AO18: Sa Yar U Ah lam Tu Ja | AP18: 09-47012472 | AQ18: Yes | AR18: No | AS18: No | AT18: Yes | AU18: No | AV18: No | AW18: No | AX18: Yes | AY18: No | AZ18: Yes | BA18: Yes | BB18: Yes | BC18: 1 | BD18: 1 | BE18: 2 | BF18: 14 | BG18: 20 | BH18: 34 | BI18: 15 | BJ18: 14 | BK18: 29 | BL18: 18 | BM18: 24 | BN18: 42 | BO18: 60 | BP18: 89 | BQ18: 149 | BR18: 39 | BS18: 51 | BT18: 90 | BU18: 37 | BV18: 50 | BW18: 87 | BX18: 3 | BY18: 9 | BZ18: 12 | CA18: 187 | CB18: 258 | CC18: 445 | CD18: 4 | CE18: 0 | CF18: 4 | CG18: 1 | CH18: 1 | CI18: 2 | CJ18: 0 | CK18: 2 | CL18: 2 | CM18: 4 | CN18: 2 | CO18: 6 | CP18: 0 | CQ18: 0 | CR18: 0 | CS18: 3 | CT18: 9 | CU18: 12 | CV18: 0 | CW18: 8 | CX18: 8 | CY18: 8 | CZ18: 9 | DA18: 1 | DB18: 1 | DC18: 2 | DD18: 0 | DE18: 0 | DF18: 0 | DG18: 99 | DH18: 445 | DI18: 0 | DJ18: 0 | DK18: 1 | DL18: 7 | DM18: No | DN18: Yes | DO18: 6 | DP18: 6 | DQ18: 4 | DR18: 4 | DS18: 10 | DT18: 10 | DU18: 2 | DV18: Yes | DW18: Yes | DX18: No | DY18: No | DZ18: Yes | EA18: No | EB18: 1 | EF18: 0.2 | EG18: 0.2 | EH18: 2 | EI18: Mixed | EJ18: Yes | EK18: Solid shelters | EL18: 96-100% | EM18: 0% | EN18: Yes | EO18: Well | EP18: Yes | EQ18: 0 | ER18: 0 | ES18: 0 | ET18: No | EU18: Identified waste dump outside camp | EV18: Hospital | EX18: No | EY18: No | EZ18: Yes | FA18: No | FB18: No | FC18: No | FD18: No | FE18: No | FF18: No | FG18: No | FH18: 96-100% | FI18: 96-100% | FJ18: Manufacturing (non-food) | FK18: Other | FL18: Farming | FM18: Trade (buying and selling) | FN18: Farming | FO18: Manufacturing (non-food) | FP18: Farming | FQ18: Other | FR18: Basic Food | FS18: Basic Food | FX18: KMSS, UNHCR | FY18: KMSS, UNHCR
A19: H006 | B19: 29/7/2013 | C19: SHALOM | E19: CCCM Focal Point | G19: 12/6/2013 | H19: Camp Manager | I19: Male | L19: Religious Leader | Q19: Kachin | R19: Myitkyina | S19: Maw Hpawng | T19: Maw Hpawng | U19: Maw Hpawng Hka Nan Baptist Church | V19: MMR001CMP020 | W19: 97.28473 | X19: 25.37402 | Y19: Rural | Z19: 10 | AA19: 2011 | AB19: Yes | AC19: Yes | AD19: Yes | AE19: No | AF19: Yes | AG19: Yes | AH19: Yes | AI19: No | AJ19: Myitkyina | AK19: 7 | AL19: 0.25 | AM19: Yes | AN19: Shalom | AO19: U Ngwa Lay | AP19: 09-40003309 | AQ19: Yes | AR19: Yes | AS19: No | AT19: No | AU19: Yes | AV19: No | AW19: No | AX19: No | AY19: Yes | AZ19: Yes | BA19: Yes | BB19: Yes | BC19: 3 | BD19: 3 | BE19: 6 | BF19: 5 | BG19: 7 | BH19: 12 | BI19: 5 | BJ19: 3 | BK19: 8 | BL19: 8 | BM19: 5 | BN19: 13 | BO19: 6 | BP19: 9 | BQ19: 15 | BR19: 4 | BS19: 7 | BT19: 11 | BU19: 10 | BV19: 7 | BW19: 17 | BX19: 7 | BY19: 13 | BZ19: 20 | CA19: 48 | CB19: 54 | CC19: 102 | CD19: 1 | CE19: 0 | CF19: 1 | CG19: 0 | CH19: 0 | CI19: 0 | CJ19: 0 | CK19: 0 | CL19: 0 | CM19: 0 | CN19: 0 | CO19: 0 | CP19: 0 | CQ19: 0 | CR19: 0 | CS19: 0 | CT19: 0 | CU19: 0 | CV19: 0 | CW19: 0 | CX19: 0 | CY19: 0 | CZ19: 4 | DA19: 0 | DB19: 0 | DC19: 0 | DD19: 0 | DE19: 0 | DF19: 0 | DG19: 24 | DH19: 107 | DI19: 24 | DJ19: 102 | DK19: 0 | DL19: 0 | DM19: No | DN19: Yes | DO19: 3 | DP19: 1 | DQ19: 1 | DR19: 0 | DS19: 4 | DT19: 1 | DU19: 1 | DV19: Yes | DW19: No | DX19: No | DY19: No | DZ19: Yes | EA19: No | EC19: 0.125 | EG19: 0.25 | EH19: 0.25 | EI19: Individual | EJ19: No | EK19: Community/religious building | EL19: 51-75% | EM19: 51-75% | EN19: Yes | EO19: Well | EP19: Yes | EQ19: 0 | ER19: 0 | ES19: 2 | ET19: No | EU19: Common identified waste dump inside camp | EV19: Rural centre | EX19: No | EY19: Yes | EZ19: No | FA19: No | FB19: Yes | FC19: Yes | FD19: No | FE19: Yes | FF19: Yes | FG19: No | FH19: 51-75% | FI19: less than 25% | FJ19: Farming | FK19: Fishing | FL19: Farming | FM19: Livestock | FN19: Livestock | FO19: Trade (buying and selling) | FP19: Farming | FQ19: Livestock | FR19: Basic Food | FS19: Individual shelter/houses | FT19: Individual shelter/houses | FU19: School materials / supplies | FV19: Firewood / fuel | FW19: Access to job opportunities | FX19: KBC, UNHCR, DRC | FY19: Shalom, UNHCR
A20: I007 | B20: 31/7/2013 | C20: SHALOM | E20: CCCM Focal Point | G20: 11/6/2013 | H20: Camp Manager | I20: Male | L20: Religious Leader | Q20: Kachin | R20: Myitkyina | S20: Maw Hpawng | T20: Maw Hpawng | U20: Maw Hpawng Lhaovo Baptist Church | V20: MMR001CMP021 | W20: 97.29108 | X20: 25.37118 | Y20: Rural | Z20: 10 | AA20: 2011 | AB20: Yes | AC20: Yes | AD20: Yes | AE20: No | AF20: Yes | AG20: Yes | AH20: Yes | AI20: No | AJ20: Myitkyina | AK20: 7 | AL20: 25 | AM20: Yes | AN20: KBC | AO20: U Gyung Dau | AP20: 09-401537691 | AQ20: Yes | AR20: Yes | AS20: No | AT20: No | AU20: No | AV20: No | AW20: Yes | AX20: No | AY20: No | AZ20: Yes | BA20: Yes | BB20: Yes | BC20: 1 | BD20: 0 | BE20: 1 | BF20: 4 | BG20: 2 | BH20: 6 | BI20: 1 | BJ20: 6 | BK20: 7 | BL20: 12 | BM20: 10 | BN20: 22 | BO20: 12 | BP20: 8 | BQ20: 20 | BR20: 12 | BS20: 12 | BT20: 24 | BU20: 5 | BV20: 9 | BW20: 14 | BX20: 2 | BY20: 3 | BZ20: 5 | CA20: 49 | CB20: 50 | CC20: 99 | CD20: 0 | CE20: 0 | CF20: 0 | CG20: 0 | CH20: 0 | CI20: 0 | CJ20: 2 | CK20: 0 | CL20: 2 | CM20: 0 | CN20: 0 | CO20: 0 | CP20: 0 | CQ20: 0 | CR20: 0 | CS20: 1 | CT20: 0 | CU20: 1 | CV20: 1 | CW20: 1 | CX20: 2 | CY20: 2 | CZ20: 1 | DA20: 0 | DB20: 0 | DC20: 0 | DD20: 0 | DE20: 0 | DF20: 0 | DG20: 20 | DH20: 99 | DI20: 24 | DJ20: 110 | DK20: 0 | DL20: 0 | DM20: Yes | DN20: Yes | DO20: 3 | DP20: 6 | DQ20: 1 | DR20: 0 | DS20: 4 | DT20: 6 | DU20: 1 | DV20: Yes | DW20: Yes | DX20: No | DY20: No | DZ20: Yes | EA20: No | EB20: 0.125 | EG20: 0.125 | EH20: 1 | EI20: Individual | EJ20: Yes | EK20: Solid shelters | EO20: Well | EP20: Yes | EQ20: 0 | ER20: 0 | ES20: 0 | ET20: No | EU20: Identified waste dump outside camp | EV20: Rural centre | EX20: No | EY20: No | EZ20: No | FA20: No | FB20: Yes | FC20: No | FD20: No | FE20: Yes | FF20: No | FG20: No | FH20: 96-100% | FI20: 96-100% | FJ20: Trade (buying and selling) | FK20: Handicrafts | FL20: Farming | FM20: Livestock | FN20: Trade (buying and selling) | FO20: Livestock | FP20: Farming | FQ20: Livestock | FR20: Basic Food | FS20: Firewood / fuel | FT20: Access to job opportunities | FU20: Cash/money assistance | FV20: Hygiene kits | FW20: Access to job opportunities | FX20: KBC, UNHCR, DRC | FY20: Shalom, UNHCR
A21: B012 | B21: 31/7/2013 | C21: SHALOM | E21: Enumerator from camp profiling responsible organization | G21: 12/7/2013 | H21: Camp Manager | I21: Male | L21: Committee Member | Q21: Kachin | R21: Myitkyina | S21: Urban | T21: Kachin Su Ward | U21: Wun Tho Buddhist Monastery | V21: MMR001CMP022 | W21: 97.403408 | X21: 25.377546 | Y21: Urban | Z21: 4 | AA21: 2012 | AB21: Yes | AC21: Yes | AD21: Yes | AE21: No | AF21: Yes | AG21: Yes | AH21: Yes | AI21: No | AJ21: Myitkyina | AL21: 10 | AM21: Yes | AN21: Shalom | AO21: U Myint Then | AP21: 09-33185282 | AQ21: Yes | AR21: No | AS21: Yes | AT21: No | AU21: No | AV21: No | AW21: No | AX21: Yes | AY21: No | AZ21: Yes | BA21: Yes | BB21: Yes | BC21: 1 | BD21: 0 | BE21: 1 | BF21: 1 | BG21: 3 | BH21: 4 | BI21: 3 | BJ21: 6 | BK21: 9 | BL21: 14 | BM21: 18 | BN21: 32 | BO21: 14 | BP21: 19 | BQ21: 33 | BR21: 15 | BS21: 17 | BT21: 32 | BU21: 12 | BV21: 10 | BW21: 22 | BX21: 1 | BY21: 1 | BZ21: 2 | CA21: 61 | CB21: 74 | CC21: 135 | CD21: 0 | CE21: 1 | CF21: 1 | CG21: 1 | CH21: 0 | CI21: 1 | CJ21: 1 | CK21: 1 | CL21: 2 | CM21: 0 | CN21: 0 | CO21: 0 | CP21: 0 | CQ21: 0 | CR21: 0 | CS21: 0 | CT21: 0 | CU21: 0 | CV21: 0 | CW21: 2 | CX21: 2 | CY21: 1 | CZ21: 5 | DA21: 1 | DB21: 0 | DC21: 1 | DD21: 2 | DE21: 0 | DF21: 2 | DG21: 24 | DH21: 135 | DI21: 24 | DJ21: 135 | DK21: 0 | DL21: 0 | DM21: Yes | DN21: Yes | DO21: 2 | DP21: 2 | DQ21: 0 | DR21: 0 | DS21: 2 | DT21: 2 | DU21: 2 | DV21: Yes | DW21: Yes | DX21: No | DY21: Yes | DZ21: Yes | EA21: No | EI21: Individual | EJ21: Yes | EK21: Solid shelters | EL21: 0% | EN21: Yes | EO21: Borehole/hand pump | EP21: No | EQ21: 0 | ER21: 0 | ES21: 6 | ET21: No | EU21: Common identified waste dump inside camp | EV21: Hospital | EX21: No | EY21: Yes | EZ21: Yes | FA21: No | FB21: Yes | FC21: No | FD21: Yes | FE21: No | FF21: No | FG21: No | FH21: 25-50% | FI21: 51-75% | FJ21: Mining | FK21: Other | FL21: Livestock | FN21: Mining | FO21: Other | FP21: Farming | FQ21: Livestock | FR21: Firewood / fuel | FS21: Kitchen sets | FT21: School materials / supplies | FU21: Vocational training | FV21: Transport to school | FW21: Access to job opportunities | FX21: UNHCR, DRC | FY21: Shalom, UNHCR
A22: I011 | B22: 31/7/2013 | C22: SHALOM | E22: CCCM Focal Point | G22: 9/6/2013 | H22: Camp Manager | I22: Male | L22: Committee Member | Q22: Kachin | R22: Myitkyina | S22: Urban | T22: Tatkone | U22: Tat Kone COC Baptist / Tat Kone Htoi San | V22: MMR001CMP023 | W22: 97.3884 | X22: 25.40982 | Y22: Urban | Z22: 4 | AA22: 2012 | AB22: Yes | AC22: Yes | AD22: Yes | AE22: No | AF22: Yes | AG22: Yes | AH22: Yes | AI22: No | AJ22: Myitkyina | AK22: 1 | AM22: Yes | AN22: SHLOM | AO22: U Sandawng Hpung Ram | AP22: 09-36000564 | AQ22: Yes | AR22: Yes | AS22: No | AT22: No | AU22: No | AV22: No | AW22: No | AX22: No | AY22: Yes | AZ22: No | BA22: Yes | BB22: Yes | BC22: 2 | BD22: 2 | BE22: 4 | BF22: 9 | BG22: 2 | BH22: 11 | BI22: 13 | BJ22: 14 | BK22: 27 | BL22: 25 | BM22: 24 | BN22: 49 | BO22: 19 | BP22: 14 | BQ22: 33 | BR22: 50 | BS22: 49 | BT22: 99 | BU22: 40 | BV22: 30 | BW22: 70 | BX22: 14 | BY22: 13 | BZ22: 27 | CA22: 172 | CB22: 148 | CC22: 320 | CD22: 0 | CE22: 3 | CF22: 3 | CG22: 0 | CH22: 0 | CI22: 0 | CJ22: 1 | CK22: 2 | CL22: 3 | CM22: 0 | CN22: 0 | CO22: 0 | CP22: 0 | CQ22: 0 | CR22: 0 | CS22: 1 | CT22: 3 | CU22: 4 | CV22: 0 | CW22: 8 | CX22: 8 | CY22: 5 | CZ22: 5 | DA22: 0 | DB22: 0 | DC22: 0 | DD22: 0 | DE22: 0 | DF22: 0 | DG22: 68 | DH22: 320 | DI22: 29 | DJ22: 86 | DK22: 0 | DL22: 0 | DM22: Yes | DN22: Yes | DO22: 13 | DP22: 2 | DQ22: 5 | DR22: 1 | DS22: 18 | DT22: 3 | DU22: 1 | DV22: Yes | DW22: Yes | DX22: Yes | DY22: Yes | DZ22: Yes | EA22: No | EB22: 1 | ED22: 1 | EE22: 0.25 | EF22: 0.125 | EG22: 1 | EH22: 1 | EI22: Individual | EJ22: No | EK22: Solid shelters | EL22: 25-50% | EM22: 25-50% | EN22: Yes | EO22: Borehole/hand pump | EP22: Yes | EQ22: 4 | ER22: 7 | ES22: 0 | ET22: Yes | EU22: Common identified waste dump inside camp | EV22: Hospital | EX22: No | EY22: No | EZ22: No | FA22: No | FB22: Yes | FC22: No | FD22: No | FE22: No | FF22: No | FG22: No | FH22: 76-95% | FI22: 76-95% | FJ22: Mining | FK22: Other | FL22: Farming | FM22: Livestock | FN22: Livestock | FO22: Handicrafts | FP22: Farming | FQ22: Livestock | FR22: Transport to school | FS22: Transport to school | FT22: Access to job opportunities | FU22: Cash/money assistance | FV22: Individual shelter/houses | FW22: Medicines | FX22: KBC, UNHCR, DRC | FY22: Shalom, UNHCR
A23: H002 | B23: 29/7/2013 | C23: KBSS/KMSS | E23: CCCM Focal Point | G23: 7/6/2013 | H23: Camp Manager | I23: Female | L23: Religious Leader | M23: Camp Resident | N23: Female | Q23: Kachin | R23: Myitkyina | S23: Nam Koi | T23: Nam Koi | U23: Nan Kway St. John Catholic Church | V23: MMR001CMP024 | W23: 97.35938 | X23: 25.41177 | Y23: Urban | Z23: 1 | AA23: 2012 | AB23: No | AC23: Yes | AD23: No | AE23: Yes | AF23: No | AG23: Yes | AH23: No | AI23: Yes | AJ23: Myitkyina | AK23: 5 | AL23: 15 | AM23: Yes | AN23: KMSS/MKN | AO23: Daw Lu Taung | AP23: 09-400035482 | AQ23: Yes | AR23: No | AS23: No | AT23: Yes | AU23: No | AV23: No | AW23: No | AX23: No | AY23: Yes | AZ23: Yes | BA23: Yes | BB23: No | BC23: 2 | BD23: 5 | BE23: 7 | BF23: 7 | BG23: 6 | BH23: 13 | BI23: 12 | BJ23: 17 | BK23: 29 | BL23: 37 | BM23: 31 | BN23: 68 | BO23: 32 | BP23: 38 | BQ23: 70 | BR23: 31 | BS23: 37 | BT23: 68 | BU23: 20 | BV23: 29 | BW23: 49 | BX23: 3 | BY23: 11 | BZ23: 14 | CA23: 144 | CB23: 174 | CC23: 318 | CD23: 0 | CE23: 0 | CF23: 0 | CG23: 0 | CH23: 0 | CI23: 0 | CJ23: 0 | CK23: 0 | CL23: 0 | CM23: 0 | CN23: 0 | CO23: 0 | CP23: 0 | CQ23: 0 | CR23: 0 | CS23: 0 | CT23: 1 | CU23: 1 | CV23: 0 | CW23: 0 | CX23: 0 | CY23: 2 | CZ23: 7 | DA23: 0 | DB23: 0 | DC23: 0 | DD23: 0 | DE23: 0 | DF23: 0 | DG23: 67 | DH23: 318 | DI23: 4 | DJ23: 0 | DK23: 3 | DL23: 16 | DM23: Yes | DN23: Yes | DO23: 3 | DP23: 6 | DQ23: 1 | DR23: 1 | DS23: 4 | DT23: 7 | DU23: 0 | DV23: Yes | DW23: Yes | DX23: No | DY23: No | DZ23: Yes | EA23: No | EB23: 5 | EF23: 0.2 | EG23: 0.2 | EH23: 0.2 | EI23: Communal | EJ23: Yes | EK23: Solid shelters | EL23: 0% | EM23: 0% | EN23: Yes | EO23: Borehole/hand pump | EP23: Yes | EQ23: 8 | ER23: 12 | ES23: 0 | ET23: Yes | EU23: Common identified waste dump inside camp | EV23: Hospital | EX23: No | EY23: Yes | EZ23: No | FA23: No | FB23: No | FC23: No | FD23: No | FE23: No | FF23: No | FG23: No | FH23: 51-75% | FI23: 25-50% | FJ23: Manufacturing (non-food) | FK23: Other | FL23: Farming | FM23: Trade (buying and selling) | FN23: Trade (buying and selling) | FO23: Livestock | FP23: Farming | FQ23: Trade (buying and selling) | FR23: Medical staff (doctor, nurse, etc) | FS23: School materials / supplies | FT23: School materials / supplies | FU23: Transport to school | FV23: Complementary Food | FW23: Cash/money assistance | FX23: UNHCR | FY23: KMSS, DRC
A24: A015 | B24: 31/7/2013 | C24: DRC | E24: Enumerator from camp profiling responsible organization | G24: 14/6/2013 | H24: Camp Manager | I24: Male | L24: Committee Member | M24: Other | N24: Female | Q24: Kachin | R24: Waingmaw | S24: Urban | T24: Myo Ma No. (2) | U24: Qtr. 2 Myoma Baptist Church | V24: MMR001CMP025 | W24: 97.438271 | X24: 25.351655 | Y24: Urban | Z24: 6 | AA24: 2011 | AB24: Yes | AC24: Yes | AD24: Yes | AE24: No | AF24: yes | AG24: Yes | AH24: Yes | AI24: No | AJ24: Waingmaw | AL24: 1 | AM24: Yes | AN24: Committee | AO24: U Tu Nan | AP24: 09-450050101 | AQ24: Yes | AR24: Yes | AS24: No | AT24: No | AU24: No | AV24: No | AW24: Yes | AX24: No | AY24: No | AZ24: No | BA24: Yes | BB24: Yes | BC24: 0 | BD24: 2 | BE24: 2 | BF24: 2 | BG24: 5 | BH24: 7 | BI24: 17 | BJ24: 6 | BK24: 23 | BL24: 40 | BM24: 28 | BN24: 68 | BO24: 39 | BP24: 43 | BQ24: 82 | BR24: 42 | BS24: 42 | BT24: 84 | BU24: 35 | BV24: 52 | BW24: 87 | BX24: 5 | BY24: 15 | BZ24: 20 | CA24: 180 | CB24: 193 | CC24: 373 | CD24: 2 | CE24: 0 | CF24: 2 | CG24: 0 | CH24: 1 | CI24: 1 | CJ24: 3 | CK24: 2 | CL24: 5 | CM24: 1 | CN24: 2 | CO24: 3 | CP24: 3 | CQ24: 3 | CR24: 6 | CS24: 1 | CT24: 4 | CU24: 5 | CV24: 1 | CW24: 4 | CX24: 5 | CY24: 2 | CZ24: 5 | DA24: 0 | DB24: 1 | DC24: 1 | DD24: 1 | DE24: 0 | DF24: 1 | DG24: 83 | DH24: 373 | DI24: 5 | DJ24: 15 | DK24: 41 | DL24: 175 | DM24: Yes | DN24: yes | DO24: 0 | DP24: 7 | DQ24: 4 | DR24: 2 | DS24: 4 | DT24: 9 | DU24: 2 | DV24: Yes | DW24: Yes | DY24: No | DZ24: No | EA24: No | EI24: Individual | EJ24: yes | EK24: Solid shelters | EL24: 96-100% | EN24: Yes | EO24: Borehole/hand pump | EP24: Yes | EQ24: 6 | ER24: 8 | ES24: 0 | ET24: No | EU24: Identified waste dump outside camp | EV24: Hospital | EX24: Yes | EY24: yes | EZ24: Yes | FA24: No | FB24: Yes | FC24: Yes | FD24: yes | FE24: Yes | FF24: Yes | FG24: No | FH24: 96-100% | FI24: 96-100% | FJ24: Farming | FK24: Other | FL24: Farming | FM24: Trade (buying and selling) | FN24: Other | FO24: None | FP24: Other | FR24: Other | FS24: Cash/money assistance | FT24: Access to job opportunities | FU24: Hygiene kits | FV24: Hygiene kits | FW24: Kitchen sets | FX24: UNHCR, World Vision | FY24: KBC, UNHCR
A25: I012 | B25: 31/7/2013 | C25: SHALOM | E25: CCCM Focal Point | G25: 21/6/2013 | H25: Camp Manager | I25: Male | L25: Committee Member | Q25: Kachin | R25: Waingmaw | S25: Urban | T25: Qtr.4 | U25: Qtr. 4 Monestry (Thargaya Thayett Taw) | V25: MMR001CMP026 | W25: 97.432495 | X25: 25.350809 | Y25: Urban | Z25: 2 | AA25: 2012 | AB25: Yes | AC25: Yes | AD25: Yes | AE25: Yes | AF25: Yes | AG25: Yes | AH25: Yes | AI25: Yes | AJ25: Waimaw | AK25: 1 | AL25: 5 | AM25: Yes | AN25: SHLOM | AO25: U Thine Aung | AP25: 09-400042796 | AQ25: Yes | AR25: Yes | AS25: No | AT25: No | AU25: No | AV25: No | AW25: No | AX25: No | AY25: Yes | AZ25: Yes | BA25: Yes | BB25: yes | BC25: 3 | BD25: 6 | BE25: 9 | BF25: 1 | BG25: 10 | BH25: 11 | BI25: 22 | BJ25: 16 | BK25: 38 | BL25: 50 | BM25: 50 | BN25: 100 | BO25: 35 | BP25: 27 | BQ25: 62 | BR25: 67 | BS25: 86 | BT25: 153 | BU25: 60 | BV25: 53 | BW25: 113 | BX25: 20 | BY25: 21 | BZ25: 41 | CA25: 258 | CB25: 269 | CC25: 527 | CD25: 3 | CE25: 1 | CF25: 4 | CG25: 0 | CH25: 1 | CI25: 1 | CJ25: 1 | CK25: 1 | CL25: 2 | CM25: 0 | CN25: 0 | CO25: 0 | CP25: 0 | CQ25: 0 | CR25: 0 | CS25: 0 | CT25: 0 | CU25: 0 | CV25: 0 | CW25: 0 | CX25: 0 | CY25: 3 | CZ25: 7 | DA25: 3 | DB25: 5 | DC25: 8 | DD25: 2 | DE25: 1 | DF25: 3 | DG25: 101 | DH25: 527 | DI25: 3 | DJ25: 19 | DK25: 2 | DL25: 7 | DM25: No | DN25: Yes | DO25: 8 | DP25: 3 | DQ25: 2 | DR25: 0 | DS25: 10 | DT25: 3 | DU25: 1 | DV25: Yes | DW25: Yes | DX25: Yes | DY25: Yes | DZ25: Yes | EA25: No | EI25: Individual | EJ25: No | EK25: Solid shelters | EM25: 0% | EN25: Yes | EP25: Yes | EQ25: 0 | ER25: 0 | ES25: 18 | ET25: Yes | EU25: Is getting burnt | EV25: Hospital | EX25: Yes | EY25: Yes | EZ25: No | FA25: No | FB25: Yes | FC25: No | FD25: No | FE25: No | FF25: Yes | FG25: No | FH25: 96-100% | FI25: 96-100% | FJ25: Farming | FK25: Mining | FL25: Mining | FM25: Handicrafts | FN25: Trade (buying and selling) | FO25: Handicrafts | FP25: Farming | FQ25: Trade (buying and selling) | FX25: UNHCR, World Vision, DRC | FY25: Shalom, UNHCR
A26: I015 | B26: 31/7/2013 | C26: SHALOM | E26: Other | G26: 21/6/2013 | H26: Camp Manager | I26: Male | L26: Religious Leader | Q26: Kachin | R26: Waingmaw | S26: Urban | T26: Mading | U26: Mading Baptist Church | V26: MMR001CMP027 | W26: 97.451965 | X26: 25.356632 | Y26: Rural | Z26: 5 | AA26: 2012 | AB26: Yes | AC26: Yes | AD26: Yes | AE26: No | AF26: Yes | AG26: Yes | AH26: Yes | AI26: No | AJ26: Waimaw | AL26: 10 | AM26: yes | AN26: SHLOM | AO26: U Naw Ja | AP26: 09-400034935 | AQ26: Yes | AR26: Yes | AS26: No | AT26: No | AU26: No | AV26: No | AW26: No | AX26: No | AY26: Yes | AZ26: Yes | BA26: Yes | BB26: No | BC26: 0 | BD26: 1 | BE26: 1 | BF26: 2 | BG26: 1 | BH26: 3 | BI26: 5 | BJ26: 5 | BK26: 10 | BL26: 10 | BM26: 15 | BN26: 25 | BO26: 12 | BP26: 10 | BQ26: 22 | BR26: 9 | BS26: 14 | BT26: 23 | BU26: 13 | BV26: 12 | BW26: 25 | BX26: 3 | BY26: 4 | BZ26: 7 | CA26: 54 | CB26: 62 | CC26: 116 | CD26: 3 | CE26: 1 | CF26: 4 | CG26: 0 | CH26: 0 | CI26: 0 | CJ26: 2 | CK26: 1 | CL26: 3 | CM26: 0 | CN26: 0 | CO26: 0 | CP26: 2 | CQ26: 3 | CR26: 5 | CS26: 0 | CT26: 0 | CU26: 0 | CV26: 0 | CW26: 4 | CX26: 4 | CY26: 2 | CZ26: 2 | DA26: 0 | DB26: 0 | DC26: 0 | DD26: 0 | DE26: 0 | DF26: 0 | DG26: 23 | DH26: 116 | DI26: 0 | DJ26: 2 | DK26: 0 | DL26: 0 | DM26: No | DN26: Yes | DO26: 3 | DP26: 3 | DQ26: 2 | DR26: 0 | DS26: 5 | DT26: 3 | DU26: 2 | DV26: Yes | DW26: No | DX26: No | DY26: No | DZ26: No | EA26: No | EI26: Individual | EJ26: Yes | EK26: Solid shelters | EL26: 96-100% | EM26: less than 25% | EN26: Yes | EO26: Well | EP26: Yes | EQ26: 2 | ER26: 2 | ES26: 0 | ET26: No | EU26: Common identified waste dump inside camp | EV26: Hospital | EX26: No | EY26: No | EZ26: No | FA26: No | FB26: No | FC26: No | FD26: No | FE26: No | FF26: No | FG26: No | FH26: 96-100% | FI26: 96-100% | FJ26: Other | FK26: None | FL26: Other | FN26: None | FO26: None | FP26: Farming | FQ26: Other | FR26: Hygiene kits | FS26: Basic Food | FT26: Cash/money assistance | FU26: Kitchen sets | FV26: Vocational training | FW26: Medicines | FX26: World Vision, DRC | FY26: Shalom, UNHCR
A27: G008 | B27: 31/7/2013 | C27: SHALOM | E27: CCCM Focal Point | G27: 23/6/2013 | H27: Camp Manager | I27: Male | L27: Committee Member | M27: Camp Resident | N27: Male | Q27: Kachin | R27: Waingmaw | S27: Urban | T27: Hkat Cho | U27: Hkat Cho | V27: MMR001CMP028 | W27: 97.408302 | X27: 25.324568 | Y27: Rural | Z27: 6 | AA27: 2011 | AB27: Yes | AC27: Yes | AD27: Yes | AE27: Yes | AF27: Yes | AG27: Yes | AH27: Yes | AI27: Yes | AJ27: WaingMaw | AK27: 3 | AL27: 5 | AM27: Yes | AN27: Shalom | AO27: U Eik Mon | AP27: 09 -400049 772 | AQ27: Yes | AR27: Yes | AS27: No | AT27: No | AU27: No | AV27: No | AW27: Yes | AX27: No | AY27: No | AZ27: Yes | BA27: Yes | BB27: Yes | BC27: 2 | BD27: 1 | BE27: 0 | BF27: 16 | BG27: 10 | BH27: 0 | BI27: 33 | BJ27: 25 | BK27: 0 | BL27: 35 | BM27: 54 | BN27: 0 | BO27: 39 | BP27: 41 | BQ27: 0 | BR27: 67 | BS27: 84 | BT27: 0 | BU27: 70 | BV27: 69 | BW27: 0 | BX27: 3 | BY27: 8 | BZ27: 0 | CA27: 265 | CB27: 292 | CC27: 557 | CD27: 6 | CE27: 0 | CF27: 6 | CG27: 0 | CH27: 0 | CI27: 0 | CJ27: 0 | CK27: 1 | CL27: 1 | CM27: 0 | CN27: 0 | CO27: 0 | CP27: 0 | CQ27: 0 | CR27: 0 | CS27: 0 | CT27: 0 | CU27: 0 | CV27: 0 | CW27: 5 | CX27: 5 | CY27: 5 | CZ27: 15 | DA27: 3 | DB27: 1 | DC27: 4 | DD27: 0 | DE27: 1 | DF27: 1 | DG27: 134 | DH27: 564 | DI27: 3 | DJ27: 12 | DK27: 5 | DL27: 13 | DM27: No | DN27: Yes | DO27: 4 | DP27: 4 | DQ27: 1 | DR27: 0 | DS27: 5 | DT27: 4 | DU27: 1 | DV27: Yes | DW27: Yes | DX27: No | DY27: No | DZ27: Yes | EA27: No | ED27: 0.5 | EI27: Individual | EJ27: Yes | EN27: Yes | EO27: Well | EP27: Yes | EQ27: 0 | ER27: 0 | ES27: 4 | ET27: Yes | EU27: Common identified waste dump inside camp | EV27: Rural sub-centre | EX27: No | EY27: Yes | EZ27: No | FA27: No | FB27: Yes | FC27: Yes | FD27: No | FE27: No | FF27: Yes | FG27: No | FH27: 96-100% | FI27: 96-100% | FJ27: Trade (buying and selling) | FK27: Mining | FL27: Farming | FM27: Trade (buying and selling) | FN27: Other | FO27: None | FP27: Trade (buying and selling) | FQ27: Other | FX27: UNHCR, World Vision, DRC | FY27: Shalom, UNHCR, DRC
A28: I004 | B28: 30/7/2013 | C28: KBSS/KMSS | E28: CCCM Focal Point | G28: 19/6/2013 | H28: Camp Manager | I28: Male | L28: Religious Leader | Q28: Kachin | R28: Waingmaw | S28: Mai Na | T28: Mai Na | U28: Maina Catholic Church (St. Joseph) | V28: MMR001CMP029 | W28: 97.43845 | X28: 25.4159 | Z28: 6 | AA28: 2013 | AB28: Yes | AC28: Yes | AD28: Yes | AE28: No | AF28: No | AG28: No | AH28: No | AI28: No | AJ28: Myitkyina | AK28: 4 | AL28: 15 | AM28: Yes | AN28: KMSS | AO28: Nga Brang Aung | AP28: 09-33109-5512 | AQ28: Yes | AR28: No | AS28: Yes | AT28: Yes | AU28: No | AV28: No | AW28: Yes | AX28: No | AY28: No | AZ28: Yes | BA28: Yes | BB28: Yes | BC28: 3 | BD28: 6 | BE28: 9 | BF28: 25 | BG28: 27 | BH28: 52 | BI28: 54 | BJ28: 57 | BK28: 111 | BL28: 106 | BM28: 110 | BN28: 216 | BO28: 88 | BP28: 73 | BQ28: 161 | BR28: 100 | BS28: 137 | BT28: 237 | BU28: 92 | BV28: 140 | BW28: 232 | BX28: 18 | BY28: 42 | BZ28: 60 | CA28: 486 | CB28: 592 | CC28: 1078 | CD28: 2 | CE28: 15 | CF28: 17 | CG28: 0 | CH28: 0 | CI28: 0 | CJ28: 0 | CK28: 6 | CL28: 6 | CM28: 3 | CN28: 9 | CO28: 12 | CP28: 0 | CQ28: 0 | CR28: 0 | CS28: 0 | CT28: 0 | CU28: 0 | CV28: 10 | CW28: 1 | CX28: 11 | CY28: 15 | CZ28: 41 | DA28: 3 | DB28: 9 | DC28: 12 | DD28: 3 | DE28: 0 | DF28: 3 | DG28: 243 | DH28: 1078 | DI28: 0 | DJ28: 0 | DK28: 2 | DL28: 10 | DM28: yes | DN28: Yes | DO28: 7 | DP28: 6 | DS28: 7 | DT28: 6 | DU28: 7 | DV28: Yes | DW28: No | DX28: No | DY28: Yes | DZ28: Yes | EA28: No | EB28: 1 | ED28: 7 | EF28: 1 | EG28: 1 | EH28: 7 | EI28: Individual | EJ28: Yes | EK28: Solid shelters | EL28: 96-100% | EM28: 25-50% | EN28: Yes | EO28: Well | EP28: Yes | EQ28: 0 | ER28: 0 | ES28: 0 | ET28: Yes | EU28: Common identified waste dump inside camp | EV28: Clinic | EX28: Yes | EY28: Yes | EZ28: No | FA28: No | FB28: Yes | FC28: No | FD28: Yes | FE28: Yes | FF28: Yes | FG28: No | FH28: less than 25% | FI28: less than 25% | FJ28: Farming | FK28: Other | FL28: Farming | FM28: Other | FN28: Trade (buying and selling) | FO28: Other | FP28: Farming | FQ28: Livestock | FR28: Basic Food | FS28: School materials / supplies | FT28: Firewood / fuel | FU28: Transport to school | FV28: School facilities | FW28: Vocational training | FX28: KMSS, UNHCR, World Vision | FY28: KMSS, UNHCR, DRC
A29: I013 | B29: 31/7/2013 | C29: SHALOM | E29: CCCM Focal Point | G29: 4/7/2013 | H29: Camp Manager | I29: Male | Q29: Kachin | R29: Waingmaw | S29: Urban | T29: Qtr.3 | U29: Qtr. 3 Mu-yin Baptist Church | V29: MMR001CMP030 | W29: 97.437569 | X29: 25.346004 | Z29: 6 | AA29: 2011 | AB29: Yes | AC29: Yes | AD29: Yes | AE29: No | AF29: Yes | AG29: Yes | AH29: Yes | AI29: No | AJ29: Waimaw | AK29: 0.125 | AL29: 5 | AM29: Yes | AN29: KBC | AO29: U Brang Nu | AP29: 09-36000855 | AQ29: Yes | AR29: No | AS29: No | AT29: Yes | AU29: No | AV29: No | AW29: No | AX29: No | AY29: Yes | AZ29: Yes | BA29: Yes | BB29: yes | BC29: 1 | BD29: 0 | BE29: 1 | BF29: 2 | BG29: 1 | BH29: 3 | BI29: 7 | BJ29: 0 | BK29: 7 | BL29: 13 | BM29: 10 | BN29: 23 | BO29: 16 | BP29: 19 | BQ29: 35 | BR29: 12 | BS29: 19 | BT29: 31 | BU29: 14 | BV29: 15 | BW29: 29 | BX29: 4 | BY29: 9 | BZ29: 13 | CA29: 69 | CB29: 73 | CC29: 142 | CD29: 0 | CE29: 0 | CF29: 0 | CG29: 0 | CH29: 0 | CI29: 0 | CJ29: 2 | CK29: 0 | CL29: 2 | CM29: 0 | CN29: 0 | CO29: 0 | CP29: 2 | CQ29: 6 | CR29: 8 | CS29: 0 | CT29: 2 | CU29: 2 | CV29: 1 | CW29: 6 | CX29: 7 | CY29: 1 | CZ29: 4 | DA29: 1 | DB29: 0 | DC29: 1 | DD29: 0 | DE29: 0 | DF29: 0 | DG29: 29 | DH29: 142 | DI29: 2 | DJ29: 10 | DK29: 0 | DL29: 0 | DM29: No | DN29: Yes | DO29: 2 | DP29: 0 | DQ29: 2 | DR29: 2 | DS29: 4 | DT29: 2 | DU29: 1 | DV29: Yes | DW29: Yes | DX29: No | DY29: No | DZ29: Yes | EA29: No | EB29: 0.25 | ED29: 0.25 | EE29: 0.25 | EF29: 1 | EG29: 1 | EH29: 1 | EI29: Communal | EJ29: Yes | EK29: Solid shelters | EL29: 51-75% | EM29: 25-50% | EN29: Yes | EO29: Well | EP29: Yes | EQ29: 0 | ER29: 0 | ES29: 0 | ET29: No | EU29: Identified waste dump outside camp | EV29: Hospital | EX29: No | EY29: No | EZ29: No | FA29: No | FB29: Yes | FC29: No | FD29: No | FE29: No | FF29: No | FG29: No | FH29: 96-100% | FI29: 96-100% | FJ29: Mining | FK29: Other | FL29: Farming | FM29: Trade (buying and selling) | FN29: Livestock | FO29: Other | FP29: Farming | FQ29: Livestock | FR29: Firewood / fuel | FS29: Firewood / fuel | FT29: Transport to school | FU29: Cash/money assistance | FX29: UNHCR, World Vision, DRC | FY29: Shalom, UNHCR
A30: H001 | B30: 29/7/2013 | C30: SHALOM | E30: CCCM Focal Point | G30: 19/6/2013 | H30: Camp Resident | I30: Female | L30: Committee Member | M30: Camp Resident | N30: Male | Q30: Kachin | R30: Waingmaw | S30: Mai Na | T30: Mai Na | U30: Maina AG Church | V30: MMR001CMP031 | W30: 97.435234 | X30: 25.425276 | Y30: Rural | Z30: 7 | AA30: 2013 | AB30: Yes | AC30: Yes | AD30: Yes | AE30: No | AF30: Yes | AG30: Yes | AH30: Yes | AI30: No | AJ30: Myitkyina | AK30: 6 | AL30: 15 | AM30: Yes | AN30: Shalom | AO30: Daw Ngwa Ma Thar | AP30: 09-47052236 | AQ30: Yes | AR30: No | AS30: No | AT30: Yes | AU30: No | AV30: No | AW30: No | AX30: Yes | AY30: No | AZ30: Yes | BA30: Yes | BB30: Yes | BC30: 3 | BD30: 3 | BE30: 6 | BF30: 11 | BG30: 6 | BH30: 17 | BI30: 12 | BJ30: 15 | BK30: 27 | BL30: 47 | BM30: 52 | BN30: 99 | BO30: 54 | BP30: 39 | BQ30: 93 | BR30: 75 | BS30: 65 | BT30: 140 | BU30: 55 | BV30: 60 | BW30: 115 | BX30: 11 | BY30: 19 | BZ30: 30 | CA30: 268 | CB30: 259 | CC30: 527 | CD30: 3 | CE30: 0 | CF30: 3 | CG30: 0 | CH30: 0 | CI30: 0 | CJ30: 10 | CK30: 9 | CL30: 19 | CM30: 5 | CN30: 2 | CO30: 7 | CP30: 3 | CQ30: 3 | CR30: 6 | CS30: 0 | CT30: 1 | CU30: 1 | CV30: 0 | CW30: 3 | CX30: 3 | CY30: 7 | CZ30: 3 | DA30: 1 | DB30: 2 | DC30: 3 | DD30: 1 | DE30: 1 | DF30: 2 | DG30: 113 | DH30: 543 | DI30: 0 | DJ30: 0 | DK30: 2 | DL30: 15 | DM30: Yes | DN30: Yes | DO30: 2 | DP30: 5 | DQ30: 1 | DR30: 0 | DS30: 3 | DT30: 5 | DU30: 0 | DV30: Yes | DW30: Yes | DX30: No | DY30: No | DZ30: Yes | EA30: No | EB30: 0.125 | EC30: 0.125 | ED30: 4 | EE30: 0.25 | EF30: 0.25 | EG30: 1 | EH30: 1.5 | EI30: Individual | EJ30: No | EK30: Solid shelters | EL30: 96-100% | EM30: 51-75% | EN30: Yes | EO30: Well | EP30: Yes | EQ30: 5 | ER30: 7 | ES30: 0 | ET30: Yes | EU30: Is getting burnt | EV30: Hospital | EX30: No | EY30: Yes | EZ30: No | FA30: No | FB30: Yes | FC30: No | FD30: Yes | FE30: Yes | FF30: No | FG30: No | FH30: 25-50% | FI30: 25-50% | FJ30: Mining | FK30: Other | FL30: Farming | FM30: Livestock | FN30: Trade (buying and selling) | FO30: Manufacturing (non-food) | FP30: Farming | FQ30: Livestock | FR30: Basic Food | FS30: Medical staff (doctor, nurse, etc) | FT30: Partitions within shelters | FU30: School materials / supplies | FV30: Hygiene kits | FW30: Cash/money assistance | FX30: UNHCR, World Vision, DRC | FY30: Shalom, UNHCR
A31: I014 | B31: 31/7/2013 | C31: SHALOM | E31: Other | G31: 6/6/2013 | H31: Camp Manager | I31: Male | Q31: Kachin | R31: Waingmaw | S31: Urban | T31: Qtr.2 | U31: Qtr. 2 Lhaovo Baptist Church | V31: MMR001CMP032 | W31: 97.441483 | X31: 25.354884 | Y31: Urban | Z31: 7 | AA31: 2011 | AB31: Yes | AC31: Yes | AD31: Yes | AE31: Yes | AF31: Yes | AG31: Yes | AH31: Yes | AI31: No | AJ31: Myitkyina | AL31: 20 | AM31: Yes | AN31: SHLOM | AO31: Rev.Zawng Hkawng | AP31: 09-44000299 | AQ31: Yes | AR31: Yes | AS31: No | AT31: No | AU31: No | AV31: No | AW31: Yes | AX31: No | AY31: No | AZ31: Yes | BA31: Yes | BB31: No | BC31: 3 | BD31: 2 | BE31: 5 | BF31: 3 | BG31: 7 | BH31: 10 | BI31: 12 | BJ31: 12 | BK31: 24 | BL31: 28 | BM31: 20 | BN31: 48 | BO31: 41 | BP31: 45 | BQ31: 86 | BR31: 42 | BS31: 50 | BT31: 92 | BU31: 22 | BV31: 39 | BW31: 61 | BX31: 4 | BY31: 12 | BZ31: 16 | CA31: 155 | CB31: 187 | CC31: 342 | CD31: 2 | CE31: 3 | CF31: 5 | CG31: 0 | CH31: 0 | CI31: 0 | CJ31: 6 | CK31: 5 | CL31: 11 | CM31: 11 | CN31: 18 | CO31: 29 | CP31: 0 | CQ31: 0 | CR31: 0 | CS31: 0 | CT31: 5 | CU31: 5 | CV31: 2 | CW31: 13 | CX31: 15 | CY31: 4 | CZ31: 6 | DA31: 1 | DB31: 2 | DC31: 3 | DD31: 0 | DE31: 0 | DF31: 0 | DG31: 118 | DH31: 332 | DI31: 30 | DJ31: 88 | DK31: 2 | DL31: 2 | DM31: No | DN31: Yes | DO31: 4 | DP31: 6 | DQ31: 4 | DR31: 1 | DS31: 8 | DT31: 7 | DU31: 2 | DV31: Yes | DW31: Yes | DX31: Yes | DY31: No | DZ31: No | EA31: No | EI31: Individual | EJ31: Yes | EK31: Solid shelters | EL31: 76-95% | EM31: 25-50% | EN31: Yes | EO31: Well | EP31: Yes | EQ31: 5 | ER31: 6 | ES31: 0 | ET31: Yes | EU31: Identified waste dump outside camp | EV31: Hospital | EX31: No | EY31: Yes | EZ31: No | FA31: No | FB31: No | FC31: No | FD31: No | FE31: No | FF31: No | FG31: No | FH31: 96-100% | FI31: 96-100% | FJ31: Handicrafts | FK31: Other | FL31: Farming | FM31: Livestock | FN31: Livestock | FO31: Handicrafts | FP31: Farming | FQ31: Trade (buying and selling) | FR31: Basic Food | FS31: Firewood / fuel | FT31: Cash/money assistance | FU31: Cash/money assistance | FV31: Firewood / fuel | FW31: Basic Food | FX31: UNHCR, World Vision, DRC | FY31: Shalom, UNHCR, World Vision
A32: A018 | B32: 31/7/2013 | C32: KBC | G32: 11/7/2013 | H32: Camp Manager | I32: Male | L32: Committee Member | Q32: Kachin | R32: Waingmaw | S32: Urban | U32: Waingmaw Baptist Zonal Office | V32: MMR001CMP036 | W32: 97.438259 | X32: 25.355842 | Y32: Rural | Z32: 11 | AA32: 2011 | AB32: No | AC32: No | AD32: No | AE32: No | AF32: No | AG32: No | AH32: No | AI32: No | AJ32: Waingmaw | AK32: 0.25 | AL32: 15 | AM32: Yes | AN32: KBC | AO32: U Gyung Lum | AP32: 09-400038862 | AQ32: Yes | AR32: No | AS32: No | AT32: Yes | AU32: No | AV32: No | AW32: No | AX32: No | AY32: Yes | AZ32: Yes | BA32: Yes | BB32: Yes | BC32: 0 | BD32: 0 | BE32: 0 | BF32: 0 | BG32: 0 | BH32: 0 | BI32: 0 | BJ32: 0 | BK32: 0 | BL32: 3 | BM32: 1 | BN32: 4 | BO32: 46 | BP32: 56 | BQ32: 102 | BR32: 17 | BS32: 28 | BT32: 45 | BU32: 0 | BV32: 0 | BW32: 0 | BX32: 0 | BY32: 0 | BZ32: 0 | CA32: 66 | CB32: 85 | CC32: 151 | CD32: 0 | CE32: 0 | CF32: 0 | CG32: 0 | CH32: 0 | CI32: 0 | CJ32: 0 | CK32: 0 | CL32: 0 | CM32: 0 | CN32: 0 | CO32: 0 | CP32: 0 | CQ32: 0 | CR32: 0 | CS32: 0 | CT32: 0 | CU32: 0 | CV32: 0 | CW32: 0 | CX32: 0 | CY32: 0 | CZ32: 0 | DA32: 0 | DB32: 0 | DC32: 0 | DD32: 0 | DE32: 0 | DF32: 0 | DG32: 0 | DH32: 151 | DI32: 0 | DJ32: 0 | DM32: Yes | DN32: Yes | DO32: 2 | DP32: 0 | DQ32: 2 | DR32: 1 | DS32: 4 | DT32: 1 | DV32: No | DW32: Yes | DX32: Yes | DY32: No | DZ32: Yes | EA32: No | EB32: 0.125 | EF32: 0.125 | EG32: 0.125 | EH32: 0.125 | EI32: Communal | EJ32: Yes | EK32: Solid shelters | EO32: Well | EP32: Yes | EQ32: 0 | ER32: 0 | ES32: 0 | ET32: Yes | EU32: Common identified waste dump inside camp | EV32: Hospital | EX32: No | EY32: No | EZ32: No | FA32: No | FB32: No | FC32: No | FD32: No | FE32: No | FF32: No | FG32: Yes | FH32: 51-75% | FI32: 51-75% | FJ32: Other | FK32: None | FL32: Other | FN32: Other | FO32: Other | FP32: Other | FR32: Firewood / fuel | FS32: Kitchen sets | FT32: School materials / supplies | FU32: Hygiene kits | FV32: Cash/money assistance | FW32: Well / water tank | FX32: KBC, UNHCR, World Vision | FY32: KBC, UNHCR, World Vision
A33: I009 | B33: 31/7/2013 | C33: SHALOM | E33: CCCM Focal Point | G33: 4/7/2013 | H33: Camp Manager | I33: Male | L33: Religious Leader | Q33: Kachin | R33: Waingmaw | S33: Urban | T33: Qtr.4 | U33: Thargaya Lisu Baptist Church | V33: MMR001CMP037 | W33: 97.42796 | X33: 25.33351 | AB33: Yes | AC33: Yes | AD33: Yes | AE33: No | AF33: Yes | AG33: Yes | AH33: Yes | AI33: No | AJ33: Wimaw | AK33: 5 | AL33: 20 | AM33: Yes | AN33: KBC | AO33: U Lamyata | AP33: 09-73076645 | AQ33: Yes | AR33: No | AS33: No | AT33: Yes | AU33: No | AV33: No | AW33: Yes | AX33: No | AY33: No | AZ33: No | BA33: Yes | BB33: No | BC33: 12 | BD33: 3 | BE33: 15 | BF33: 5 | BG33: 8 | BH33: 13 | BI33: 16 | BJ33: 12 | BK33: 28 | BL33: 34 | BM33: 32 | BN33: 66 | BO33: 31 | BP33: 24 | BQ33: 55 | BR33: 40 | BS33: 31 | BT33: 71 | BU33: 26 | BV33: 29 | BW33: 55 | BX33: 9 | BY33: 11 | BZ33: 20 | CA33: 173 | CB33: 150 | CC33: 323 | CD33: 3 | CE33: 0 | CF33: 3 | CG33: 1 | CH33: 0 | CI33: 1 | CJ33: 1 | CK33: 1 | CL33: 2 | CM33: 1 | CN33: 0 | CO33: 1 | CP33: 2 | CQ33: 3 | CR33: 5 | CS33: 1 | CT33: 0 | CU33: 1 | CV33: 1 | CW33: 4 | CX33: 5 | CY33: 3 | CZ33: 2 | DA33: 0 | DB33: 0 | DC33: 0 | DD33: 0 | DE33: 0 | DF33: 0 | DG33: 74 | DH33: 323 | DI33: 0 | DJ33: 0 | DK33: 1 | DL33: 12 | DM33: Yes | DN33: Yes | DO33: 2 | DP33: 1 | DQ33: 7 | DS33: 9 | DT33: 1 | DV33: Yes | DW33: Yes | DX33: No | DY33: No | DZ33: Yes | EA33: No | EB33: 1 | ED33: 0.5 | EE33: 0.01 | EF33: 0.01 | EG33: 0.01 | EH33: 1 | EI33: Individual | EJ33: Yes | EK33: Solid shelters | EL33: 51-75% | EM33: 25-50% | EN33: Yes | EO33: Well | EP33: No | EQ33: 5 | ER33: 5 | ES33: 0 | ET33: Yes | EU33: Identified waste dump outside camp | EV33: Hospital | EX33: No | EY33: No | EZ33: No | FA33: No | FB33: Yes | FC33: No | FD33: No | FE33: No | FF33: No | FG33: No | FH33: 76-95% | FI33: 76-95% | FJ33: Fishing | FK33: Other | FL33: Farming | FM33: Livestock | FN33: Livestock | FO33: Other | FP33: Farming | FQ33: Livestock | FR33: Basic Food | FS33: Health facility / Clinic | FT33: Partitions within shelters | FU33: Vocational training | FV33: Access to job opportunities | FW33: Cash/money assistance | FX33: UNHCR, DRC | FY33: Shalom, UNHCR, World Vision
A34: I008 | B34: 31/7/2013 | C34: OTHER | E34: CCCM Focal Point | G34: 23/6/2013 | H34: Camp Manager | I34: Male | L34: Religious Leader | Q34: Kachin | R34: Waingmaw | S34: Urban | T34: Qtr.3 | U34: Waingmaw AG Church | V34: MMR001CMP038 | W34: 97.443702 | X34: 25.351242 | Y34: Urban | Z34: 11 | AA34: 2011 | AB34: Yes | AC34: Yes | AD34: Yes | AE34: Yes | AF34: Yes | AG34: Yes | AH34: Yes | AI34: Yes | AJ34: Myitkyina | AK34: 10 | AL34: 30 | AM34: No | AO34: U Dau Lum | AP34: 09-440225709 | AQ34: Yes | AR34: Yes | AS34: No | AT34: Yes | AU34: No | AV34: No | AW34: Yes | AX34: Yes | AY34: No | AZ34: Yes | BA34: Yes | BB34: Yes | BC34: 0 | BD34: 2 | BE34: 2 | BF34: 15 | BG34: 13 | BH34: 28 | BI34: 16 | BJ34: 10 | BK34: 26 | BL34: 34 | BM34: 37 | BN34: 71 | BO34: 35 | BP34: 40 | BQ34: 75 | BR34: 46 | BS34: 53 | BT34: 99 | BU34: 30 | BV34: 32 | BW34: 62 | BX34: 9 | BY34: 14 | BZ34: 23 | CA34: 185 | CB34: 201 | CC34: 386 | CD34: 0 | CE34: 0 | CF34: 0 | CG34: 1 | CH34: 0 | CI34: 1 | CJ34: 1 | CK34: 0 | CL34: 1 | CM34: 0 | CN34: 0 | CO34: 0 | CP34: 1 | CQ34: 1 | CR34: 2 | CS34: 0 | CT34: 0 | CU34: 0 | CV34: 0 | CW34: 3 | CX34: 3 | CY34: 1 | CZ34: 2 | DA34: 0 | DB34: 0 | DC34: 0 | DD34: 0 | DE34: 0 | DF34: 0 | DG34: 79 | DH34: 386 | DI34: 7 | DJ34: 23 | DK34: 0 | DL34: 0 | DM34: No | DN34: Yes | DO34: 2 | DP34: 2 | DQ34: 4 | DR34: 1 | DS34: 6 | DT34: 3 | DU34: 2 | DV34: Yes | DW34: No | DX34: No | DY34: No | DZ34: No | EA34: No | EI34: Individual | EJ34: Yes | EK34: Solid shelters | EL34: 51-75% | EM34: 25-50% | EO34: Well | EP34: No | EQ34: 2 | ER34: 4 | ES34: 0 | ET34: Yes | EU34: Is getting burnt | EV34: Hospital | EX34: No | EY34: Yes | EZ34: No | FA34: No | FB34: No | FC34: No | FD34: No | FE34: No | FF34: No | FG34: No | FH34: 96-100% | FI34: 96-100% | FJ34: Other | FK34: None | FL34: Farming | FM34: Livestock | FN34: Other | FO34: None | FP34: Farming | FQ34: Livestock | FR34: Vocational training | FS34: Cash/money assistance | FT34: Access to job opportunities | FU34: Firewood / fuel | FV34: Firewood / fuel | FW34: Vocational training | FX34: UNHCR | FY34: Shalom, UNHCR, World Vision
A35: A016 | B35: 31/7/2013 | C35: KBC | G35: 11/7/2013 | H35: Camp Manager | I35: Male | L35: Religious Leader | M35: Camp Resident | N35: Female | Q35: Kachin | R35: Waingmaw | S35: Mai Na | T35: Mai Na | U35: Maina Lawang Baptist Church | V35: MMR001CMP039 | W35: 97.426297 | X35: 25.409566 | Y35: Urban | Z35: 12 | AA35: 2011 | AB35: Yes | AC35: Yes | AD35: Yes | AE35: No | AF35: Yes | AG35: Yes | AH35: Yes | AI35: No | AJ35: Myitkyina | AK35: 2 | AL35: 20 | AM35: Yes | AN35: KBC | AO35: U Lamung La Roi | AP35: 09-400056210 | AQ35: Yes | AR35: Yes | AS35: No | AT35: No | AU35: No | AV35: No | AW35: Yes | AX35: No | AY35: No | AZ35: Yes | BA35: Yes | BB35: No | BC35: 0 | BD35: 1 | BE35: 1 | BF35: 1 | BG35: 2 | BH35: 3 | BI35: 12 | BJ35: 2 | BK35: 14 | BL35: 15 | BM35: 15 | BN35: 30 | BO35: 26 | BP35: 15 | BQ35: 41 | BR35: 20 | BS35: 18 | BT35: 38 | BU35: 14 | BV35: 27 | BW35: 41 | BX35: 8 | BY35: 15 | BZ35: 23 | CA35: 96 | CB35: 95 | CC35: 191 | CD35: 0 | CE35: 0 | CF35: 0 | CG35: 0 | CH35: 1 | CI35: 1 | CJ35: 2 | CK35: 1 | CL35: 3 | CM35: 0 | CN35: 0 | CO35: 0 | CP35: 0 | CQ35: 0 | CR35: 0 | CS35: 1 | CT35: 1 | CU35: 2 | CV35: 1 | CW35: 5 | CX35: 6 | CY35: 2 | CZ35: 3 | DA35: 0 | DB35: 0 | DC35: 0 | DD35: 0 | DE35: 0 | DF35: 0 | DG35: 47 | DH35: 183 | DI35: 3 | DJ35: 7 | DK35: 1 | DL35: 3 | DM35: Yes | DN35: yes | DO35: 2 | DP35: 2 | DQ35: 1 | DR35: 0 | DS35: 3 | DT35: 2 | DU35: 0 | DV35: No | DW35: Yes | DX35: No | DY35: No | DZ35: No | EA35: No | EB35: 0.125 | EF35: 0.125 | EG35: 0.125 | EH35: 0.125 | EI35: Individual | EJ35: yes | EK35: Solid shelters | EO35: Well | EP35: Yes | EQ35: 0 | ER35: 0 | ES35: 8 | ET35: Yes | EU35: Is getting burnt | EV35: Rural centre | EX35: No | EY35: Yes | EZ35: No | FA35: No | FB35: No | FC35: No | FD35: No | FE35: No | FF35: No | FG35: No | FH35: 51-75% | FI35: 51-75% | FJ35: Other | FK35: None | FL35: Farming | FM35: Trade (buying and selling) | FN35: Other | FO35: None | FP35: Farming | FQ35: Trade (buying and selling) | FR35: Access to job opportunities | FS35: Medicines | FT35: School facilities | FU35: Hygiene kits | FV35: Vocational training | FW35: Blankets/Winter Clothing | FX35: KBC, UNHCR | FY35: KBC, UNHCR, World Vision
A36: A014 | B36: 31/7/2013 | C36: DRC | E36: Enumerator from camp profiling responsible organization | G36: 14/6/2013 | H36: Camp Manager | I36: Male | L36: Committee Member | M36: Camp Resident | N36: Male | Q36: Kachin | R36: Waingmaw | S36: Mai Na | T36: Mai Na | U36: Maina KBC (Bawng Ring) | V36: MMR001CMP040 | W36: 97.437435 | X36: 25.411413 | Y36: Rural | Z36: 6 | AA36: 2012 | AB36: Yes | AC36: Yes | AD36: Yes | AE36: No | AF36: yes | AG36: Yes | AH36: Yes | AI36: No | AJ36: Myitkyina | AK36: 6 | AM36: Yes | AN36: Committee | AO36: U Naw Lar | AP36: 09-400032846 | AQ36: Yes | AR36: No | AS36: No | AT36: Yes | AU36: No | AV36: No | AW36: Yes | AX36: No | AY36: No | AZ36: Yes | BA36: Yes | BB36: Yes | BC36: 5 | BD36: 8 | BE36: 13 | BF36: 28 | BG36: 32 | BH36: 60 | BI36: 87 | BJ36: 92 | BK36: 179 | BL36: 169 | BM36: 165 | BN36: 334 | BO36: 164 | BP36: 146 | BQ36: 310 | BR36: 206 | BS36: 233 | BT36: 439 | BU36: 158 | BV36: 204 | BW36: 362 | BX36: 53 | BY36: 90 | BZ36: 143 | CA36: 870 | CB36: 970 | CC36: 1840 | CD36: 3 | CE36: 3 | CF36: 6 | CG36: 2 | CH36: 0 | CI36: 2 | CJ36: 14 | CK36: 19 | CL36: 33 | CM36: 3 | CN36: 0 | CO36: 3 | CP36: 3 | CQ36: 0 | CR36: 3 | CS36: 0 | CT36: 2 | CU36: 2 | CV36: 2 | CW36: 2 | CX36: 4 | CY36: 20 | CZ36: 25 | DA36: 4 | DB36: 1 | DC36: 5 | DD36: 1 | DE36: 0 | DF36: 1 | DG36: 419 | DH36: 1840 | DI36: 0 | DJ36: 0 | DK36: 22 | DL36: 47 | DM36: Yes | DN36: Yes | DO36: 11 | DP36: 16 | DQ36: 3 | DR36: 2 | DS36: 14 | DT36: 18 | DU36: 2 | DV36: No | DW36: Yes | DX36: No | DY36: Yes | DZ36: Yes | EA36: No | EI36: Individual | EJ36: No | EK36: Solid shelters | EL36: 96-100% | EM36: 96-100% | EN36: Yes | EO36: Well | EP36: Yes | EQ36: 0 | ER36: 0 | ES36: 60 | ET36: No | EU36: Common identified waste dump inside camp | EV36: Hospital | EX36: Yes | EY36: Yes | EZ36: Yes | FA36: No | FB36: Yes | FC36: Yes | FD36: yes | FE36: No | FF36: Yes | FG36: No | FH36: 76-95% | FI36: 76-95% | FJ36: Other | FK36: None | FL36: Farming | FM36: Handicrafts | FN36: Trade (buying and selling) | FO36: Other | FP36: Farming | FQ36: Trade (buying and selling) | FR36: Firewood / fuel | FS36: Cash/money assistance | FT36: Communal building | FU36: Vocational training | FV36: School materials / supplies | FW36: Latrines/toilets | FX36: KBC, UNHCR | FY36: KBC, UNHCR
A37: B011 | B37: 30/7/2013 | C37: SHALOM | E37: CCCM Focal Point | G37: 7/6/2013 | H37: Camp Manager | I37: Male | L37: Committee Member | Q37: Kachin | R37: Chipwi | S37: Urban | U37: Chipwi KBC camp | V37: MMR001CMP042 | Y37: Urban | Z37: 12 | AA37: 2012 | AB37: Yes | AC37: Yes | AD37: Yes | AE37: No | AF37: Yes | AG37: Yes | AH37: No | AI37: No | AJ37: Chipwi | AK37: 0.5 | AL37: 30 | AM37: Yes | AN37: Shalom | AO37: U Yaw Na | AP37: 09-47018639 | AQ37: Yes | AR37: No | AS37: No | AT37: Yes | AU37: No | AV37: No | AW37: No | AX37: Yes | AY37: No | AZ37: Yes | BA37: Yes | BB37: Yes | BC37: 3 | BD37: 9 | BE37: 12 | BF37: 11 | BG37: 5 | BH37: 16 | BI37: 26 | BJ37: 17 | BK37: 43 | BL37: 60 | BM37: 46 | BN37: 106 | BO37: 42 | BP37: 44 | BQ37: 86 | BR37: 36 | BS37: 50 | BT37: 86 | BU37: 27 | BV37: 49 | BW37: 76 | BX37: 5 | BY37: 22 | BZ37: 27 | CA37: 210 | CB37: 242 | CC37: 452 | CD37: 3 | CE37: 0 | CF37: 3 | CG37: 0 | CH37: 1 | CI37: 1 | CJ37: 0 | CK37: 4 | CL37: 4 | CM37: 0 | CN37: 0 | CO37: 0 | CP37: 1 | CQ37: 2 | CR37: 3 | CS37: 0 | CT37: 5 | CU37: 5 | CV37: 0 | CW37: 6 | CX37: 6 | CY37: 6 | CZ37: 15 | DA37: 0 | DB37: 3 | DC37: 3 | DD37: 2 | DE37: 0 | DF37: 2 | DG37: 103 | DH37: 452 | DI37: 103 | DJ37: 452 | DK37: 0 | DL37: 0 | DM37: No | DN37: Yes | DO37: 3 | DP37: 0 | DQ37: 8 | DR37: 2 | DS37: 11 | DT37: 2 | DU37: 1 | DV37: Yes | DW37: No | DX37: No | DY37: No | DZ37: No | EA37: No | EB37: 0.5 | ED37: 0.5 | EI37: Individual | EJ37: Yes | EK37: Solid shelters | EL37: 0% | EM37: less than 25% | EN37: Yes | EO37: Rivers, springs, etc. | EP37: Yes | EQ37: 5 | ER37: 5 | ES37: 0 | ET37: No | EU37: Identified waste dump outside camp | EV37: Clinic | EX37: No | EY37: Yes | EZ37: No | FA37: No | FB37: No | FC37: No | FD37: No | FE37: No | FF37: No | FG37: No | FH37: 51-75% | FI37: 25-50% | FJ37: Farming | FK37: Other | FL37: Farming | FM37: Livestock | FN37: Other | FO37: None | FP37: Farming | FQ37: Livestock | FR37: Basic Food | FS37: Bathing spaces | FT37: Vocational training | FU37: Vocational training | FV37: Well / water tank | FW37: Well / water tank | FX37: UNHCR
A38: C009 | B38: 30/7/2013 | C38: RANIR | E38: Enumerator from camp profiling responsible organization | G38: 23/6/2013 | H38: Camp Manager | I38: Male | L38: Authority | M38: Camp Resident | N38: Male | Q38: Kachin | R38: Chipwi | S38: Hpa Re (Pang War Sub-township) | T38: Hpa Re Waw Jang | U38: Hpare Hkyer - BP6 | V38: MMR001CMP043 | Y38: Forest/bush | Z38: 5 | AA38: 2012 | AB38: Yes | AC38: Yes | AD38: Yes | AE38: No | AF38: Yes | AG38: Yes | AH38: Yes | AI38: No | AJ38: Chipwi | AK38: 28 | AL38: 90 | AM38: Yes | AN38: IDP and Refugee Relief Committee (IRRC) | AO38: U Hkawng Zawng | AP38: +86 1536849 2616 | AQ38: Yes | AR38: Yes | AS38: No | AT38: No | AU38: No | AV38: No | AW38: No | AX38: No | AY38: Yes | AZ38: No | BA38: Yes | BB38: Yes | BC38: 2 | BD38: 5 | BE38: 7 | BF38: 14 | BG38: 11 | BH38: 25 | BI38: 40 | BJ38: 53 | BK38: 93 | BL38: 100 | BM38: 102 | BN38: 202 | BO38: 74 | BP38: 60 | BQ38: 134 | BR38: 98 | BS38: 82 | BT38: 180 | BU38: 75 | BV38: 66 | BW38: 141 | BX38: 13 | BY38: 25 | BZ38: 38 | CA38: 416 | CB38: 404 | CC38: 820 | CD38: 5 | CE38: 1 | CF38: 6 | CG38: 1 | CH38: 0 | CI38: 1 | CJ38: 0 | CK38: 0 | CL38: 0 | CM38: 0 | CN38: 0 | CO38: 0 | CP38: 1 | CQ38: 1 | CR38: 2 | CS38: 0 | CT38: 1 | CU38: 1 | CV38: 0 | CW38: 14 | CX38: 14 | CY38: 5 | CZ38: 70 | DA38: 3 | DB38: 7 | DC38: 10 | DD38: 1 | DE38: 6 | DF38: 7 | DG38: 141 | DH38: 820 | DI38: 4 | DJ38: 22 | DK38: 3 | DL38: 10 | DM38: No | DN38: Yes | DO38: 2 | DP38: 0 | DQ38: 5 | DR38: 0 | DS38: 7 | DT38: 0 | DU38: 1 | DV38: No | DX38: Yes | DY38: No | DZ38: No | EA38: No | EB38: 28 | EG38: 47 | EH38: 47 | EI38: Individual | EJ38: No | EK38: Solid shelters | EL38: 96-100% | EM38: 0% | EN38: No | EO38: Rivers, springs, etc. | EP38: Yes | EQ38: 0 | ER38: 0 | ES38: 72 | ET38: No | EU38: Dumped everywhere inside the camp | EV38: Clinic | EX38: Yes | EY38: Yes | EZ38: Yes | FA38: No | FB38: Yes | FC38: No | FD38: Yes | FE38: Yes | FF38: No | FG38: No | FH38: 51-75% | FI38: 96-100% | FJ38: Other | FK38: None | FL38: Farming | FM38: Trade (buying and selling) | FN38: Other | FO38: None | FP38: Farming | FQ38: Other | FR38: School materials / supplies | FS38: Cash/money assistance | FT38: Bathing spaces | FU38: Complementary Food | FV38: Communal building | FW38: Other | FX38: UNHCR,KBC, DRC
A39: B001 | B39: 30/7/2013 | C39: UNHCR | E39: CCCM Focal Point | G39: 13/6/2013 | H39: Camp Manager | I39: Male | L39: Religious Leader | Q39: Kachin | R39: Bhamo | S39: Urban | T39: East Nyung Pin Yart | U39: Robert Church | V39: MMR001CMP047 | W39: 97.22877 | X39: 24.26502 | Y39: Urban | Z39: 7 | AA39: 2011 | AB39: Yes | AC39: Yes | AD39: Yes | AE39: No | AF39: Yes | AG39: Yes | AH39: Yes | AI39: No | AJ39: Bhamo | AL39: 5 | AM39: Yes | AN39: KBC | AO39: Rev. U Lahpai Aung Mai | AP39: 09-400027894 | AQ39: Yes | AR39: No | AS39: No | AT39: Yes | AU39: No | AV39: No | AW39: No | AX39: Yes | AY39: No | AZ39: No | BA39: Yes | BB39: Yes | BC39: 22 | BD39: 25 | BE39: 47 | BF39: 100 | BG39: 84 | BH39: 184 | BI39: 135 | BJ39: 132 | BK39: 267 | BL39: 292 | BM39: 262 | BN39: 554 | BO39: 190 | BP39: 220 | BQ39: 410 | BR39: 426 | BS39: 493 | BT39: 919 | BU39: 90 | BV39: 179 | BW39: 269 | BX39: 43 | BY39: 98 | BZ39: 141 | CA39: 1298 | CB39: 1493 | CC39: 2791 | CD39: 3 | CE39: 3 | CF39: 6 | CG39: 1 | CH39: 0 | CI39: 1 | CJ39: 4 | CK39: 3 | CL39: 7 | CM39: 15 | CN39: 17 | CO39: 32 | CP39: 0 | CQ39: 0 | CR39: 0 | CS39: 0 | CT39: 1 | CU39: 1 | CV39: 3 | CW39: 10 | CX39: 13 | CY39: 8 | CZ39: 68 | DA39: 5 | DB39: 7 | DC39: 12 | DD39: 4 | DE39: 2 | DF39: 6 | DG39: 550 | DH39: 2791 | DI39: 160 | DJ39: 520 | DK39: 78 | DL39: 270 | DM39: Yes | DN39: Yes | DO39: 3 | DP39: 2 | DQ39: 4 | DR39: 3 | DS39: 7 | DT39: 5 | DU39: 1 | DV39: No | DW39: No | DX39: No | DY39: No | DZ39: No | EA39: No | EI39: Individual | EJ39: No | EK39: Solid shelters | EL39: less than 25% | EM39: 0% | EN39: Yes | EO39: Borehole/hand pump | EP39: Yes | EQ39: 0 | ER39: 0 | ES39: 84 | ET39: No | EU39: Identified waste dump outside camp | EV39: Hospital | EX39: Yes | EY39: Yes | EZ39: No | FA39: No | FB39: Yes | FC39: Yes | FD39: Yes | FE39: No | FF39: Yes | FG39: No | FH39: 96-100% | FI39: 96-100% | FJ39: None | FK39: None | FL39: Farming | FM39: Livestock | FN39: Livestock | FO39: Manufacturing (non-food) | FP39: Farming | FQ39: Livestock | FR39: Transport to school | FS39: Firewood / fuel | FT39: Cash/money assistance | FU39: Transport to school | FV39: Medicines | FW39: Access to job opportunities | FX39: KBC, UNHCR | FY39: Shalom, UNHCR, DRC
A40: C003 | B40: 30/7/2013 | C40: UNHCR | E40: CCCM Focal Point | G40: 14/6/2013 | H40: Camp Manager | I40: Female | L40: Religious Leader | Q40: Kachin | R40: Bhamo | S40: Moe Hping | T40: Thar Si | U40: Lisu Boarding-House | V40: MMR001CMP049 | W40: 97.24163 | X40: 24.26611 | Y40: Urban | Z40: 6 | AA40: 2011 | AB40: Yes | AC40: Yes | AD40: Yes | AE40: No | AF40: Yes | AG40: Yes | AH40: Yes | AI40: No | AJ40: Bhamo | AK40: 2 | AL40: 15 | AM40: Yes | AN40: LBC | AO40: Daw Wor Sar Mi | AP40: 09-400048602 | AQ40: Yes | AR40: No | AS40: No | AT40: Yes | AU40: No | AV40: No | AW40: No | AX40: No | AY40: Yes | AZ40: Yes | BA40: Yes | BB40: Yes | BC40: 3 | BD40: 0 | BE40: 3 | BF40: 6 | BG40: 11 | BH40: 17 | BI40: 14 | BJ40: 9 | BK40: 23 | BL40: 53 | BM40: 30 | BN40: 83 | BO40: 43 | BP40: 20 | BQ40: 63 | BR40: 39 | BS40: 29 | BT40: 68 | BU40: 22 | BV40: 20 | BW40: 42 | BX40: 0 | BY40: 4 | BZ40: 4 | CA40: 180 | CB40: 123 | CC40: 303 | CD40: 0 | CE40: 0 | CF40: 0 | CG40: 0 | CH40: 1 | CI40: 1 | CJ40: 0 | CK40: 0 | CL40: 0 | CM40: 0 | CN40: 0 | CO40: 0 | CP40: 20 | CQ40: 11 | CR40: 31 | CS40: 0 | CT40: 0 | CU40: 0 | CV40: 1 | CW40: 9 | CX40: 10 | CY40: 4 | CZ40: 7 | DA40: 1 | DB40: 0 | DC40: 1 | DD40: 0 | DE40: 0 | DF40: 0 | DG40: 60 | DH40: 303 | DI40: 22 | DJ40: 112 | DK40: 1 | DL40: 2 | DM40: No | DN40: Yes | DO40: 5 | DP40: 13 | DQ40: 1 | DR40: 6 | DS40: 6 | DT40: 19 | DU40: 0 | DV40: Yes | DW40: Yes | DX40: Yes | DY40: No | DZ40: Yes | EA40: No | EB40: 0.375 | ED40: 1.5 | EE40: 0.625 | EF40: 1 | EG40: 1.625 | EH40: 2 | EI40: Individual | EJ40: No | EK40: Solid shelters | EL40: less than 25% | EM40: 76-95% | EN40: Yes | EO40: Well | EP40: Yes | EQ40: 0 | ER40: 0 | ES40: 8 | ET40: No | EU40: Common identified waste dump inside camp | EV40: Hospital | EX40: No | EY40: No | EZ40: No | FA40: No | FB40: Yes | FC40: Yes | FD40: No | FE40: No | FF40: Yes | FG40: No | FH40: 96-100% | FI40: 96-100% | FJ40: None | FK40: Other | FL40: Farming | FM40: Livestock | FN40: Livestock | FO40: None | FP40: Farming | FQ40: Livestock | FR40: Individual shelter/houses | FS40: Cash/money assistance | FT40: Other | FU40: Firewood / fuel | FV40: Kitchen sets | FW40: Access to job opportunities | FX40: UNHCR | FY40: UNHCR
A41: A003 | B41: 30/7/2013 | C41: UNHCR | E41: CCCM Focal Point | G41: 20/6/2013 | H41: Camp Manager | I41: Male | L41: Religious Leader | M41: Camp Resident | N41: Female | Q41: Kachin | R41: Bhamo | S41: Moe Hping | T41: Thar Si | U41: AD-2000 Tharthana Compound | V41: MMR001CMP050 | W41: 97.23883 | X41: 24.26072 | Y41: Urban | Z41: 11 | AA41: 2011 | AB41: Yes | AC41: Yes | AD41: Yes | AE41: No | AF41: Yes | AG41: Yes | AH41: Yes | AI41: No | AJ41: Bhamo | AL41: 5 | AM41: Yes | AN41: KMSS | AO41: U Lazing Aung | AP41: 09-400035851 | AQ41: Yes | AR41: No | AS41: No | AT41: No | AU41: No | AV41: No | AW41: Yes | AX41: No | AY41: No | AZ41: Yes | BA41: Yes | BB41: Yes | BC41: 15 | BD41: 10 | BE41: 25 | BF41: 20 | BG41: 25 | BH41: 45 | BI41: 30 | BJ41: 35 | BK41: 65 | BL41: 30 | BM41: 60 | BN41: 90 | BO41: 20 | BP41: 25 | BQ41: 45 | BR41: 150 | BS41: 150 | BT41: 300 | BU41: 200 | BV41: 160 | BW41: 360 | BX41: 70 | BY41: 80 | BZ41: 150 | CA41: 535 | CB41: 545 | CC41: 1080 | CD41: 6 | CE41: 4 | CF41: 10 | CG41: 2 | CH41: 0 | CI41: 2 | CJ41: 0 | CK41: 1 | CL41: 1 | CM41: 0 | CN41: 0 | CO41: 0 | CP41: 5 | CQ41: 3 | CR41: 8 | CS41: 0 | CT41: 3 | CU41: 3 | CV41: 1 | CW41: 1 | CX41: 2 | CY41: 3 | CZ41: 80 | DA41: 0 | DB41: 0 | DC41: 0 | DD41: 0 | DE41: 0 | DF41: 0 | DG41: 174 | DH41: 1080 | DI41: 0 | DJ41: 0 | DM41: No | DN41: Yes | DO41: 8 | DP41: 6 | DQ41: 0 | DR41: 0 | DS41: 8 | DT41: 6 | DU41: 2 | DV41: Yes | DW41: Yes | DX41: No | DY41: Yes | DZ41: Yes | EA41: No | EI41: Individual | EJ41: Yes | EK41: Solid shelters | EL41: 96-100% | EM41: 96-100% | EN41: Yes | EO41: Well | EP41: Yes | EQ41: 0 | ER41: 0 | ES41: 0 | ET41: yes | EU41: Identified waste dump outside camp | EV41: Rural centre | EX41: No | EY41: Yes | EZ41: No | FA41: No | FB41: Yes | FC41: Yes | FD41: No | FE41: No | FF41: Yes | FG41: No | FH41: 96-100% | FI41: 96-100% | FJ41: Farming | FK41: Handicrafts | FL41: Livestock | FM41: Trade (buying and selling) | FN41: Farming | FO41: Livestock | FP41: Farming | FQ41: Livestock | FR41: Cash/money assistance | FS41: Firewood / fuel | FT41: Transport to school | FU41: Access to job opportunities | FV41: Complementary Food | FW41: Women NFIs (sanitary pads, underwear, etc.) | FX41: KBSS, UNHCR | FY41: KBSS, UNHCR
A42: H005 | B42: 29/7/2013 | C42: KBSS/KMSS | E42: CCCM Focal Point | G42: 12/6/2013 | H42: Camp Manager | I42: Male | L42: Committee Member | M42: Camp Resident | N42: Female | Q42: Kachin | R42: Bhamo | S42: Urban | T42: Pawk Kone | U42: Mu-yin Baptist Church | V42: MMR001CMP051 | W42: 97.2342 | X42: 24.253067 | Y42: Urban | Z42: 10 | AA42: 2012 | AB42: Yes | AC42: Yes | AD42: Yes | AE42: Yes | AF42: No | AG42: Yes | AH42: No | AI42: No | AJ42: Bhamo | AK42: 1 | AL42: 5 | AM42: Yes | AN42: KBC | AO42: U Kha Aung | AP42: 7450839 | AQ42: Yes | AR42: No | AS42: No | AT42: No | AU42: No | AV42: No | AW42: Yes | AX42: No | AY42: No | AZ42: Yes | BA42: Yes | BB42: Yes | BC42: 0 | BD42: 0 | BE42: 0 | BF42: 0 | BG42: 0 | BH42: 0 | BI42: 0 | BJ42: 0 | BK42: 0 | BL42: 0 | BM42: 1 | BN42: 1 | BO42: 0 | BP42: 0 | BQ42: 0 | BR42: 0 | BS42: 0 | BT42: 0 | BU42: 0 | BV42: 1 | BW42: 1 | BX42: 1 | BY42: 0 | BZ42: 1 | CA42: 1 | CB42: 2 | CC42: 3 | CD42: 0 | CE42: 0 | CF42: 0 | CG42: 0 | CH42: 0 | CI42: 0 | CJ42: 0 | CK42: 0 | CL42: 0 | CM42: 0 | CN42: 0 | CO42: 0 | CP42: 0 | CQ42: 0 | CR42: 0 | CS42: 0 | CT42: 0 | CU42: 0 | CV42: 0 | CW42: 0 | CX42: 0 | CY42: 0 | CZ42: 0 | DA42: 0 | DB42: 0 | DC42: 0 | DD42: 0 | DE42: 0 | DF42: 0 | DG42: 1 | DH42: 3 | DI42: 0 | DJ42: 0 | DK42: 3 | DM42: No | DN42: Yes | DO42: 1 | DP42: 0 | DQ42: 5 | DR42: 0 | DS42: 6 | DT42: 0 | DU42: 1 | DV42: Yes | DW42: No | DX42: No | DY42: No | DZ42: No | EA42: No | EI42: Mixed | EJ42: No | EK42: Community/religious building | EL42: less than 25% | EM42: 0% | EN42: No | EO42: Well | EP42: Yes | EQ42: 2 | ER42: 2 | ES42: 0 | ET42: Yes | EU42: Common identified waste dump inside camp | EV42: Hospital | EX42: No | EY42: No | EZ42: No | FA42: No | FB42: No | FC42: No | FD42: No | FE42: No | FF42: No | FG42: No | FH42: 0% | FI42: 0% | FJ42: Livestock | FK42: None | FL42: None | FM42: Farming | FN42: Livestock | FO42: Livestock | FP42: None | FQ42: Farming | FR42: Firewood / fuel | FS42: Basic Food | FT42: Firewood / fuel | FU42: Complementary Food | FV42: Latrines/toilets | FW42: Medicines
A43: B004 | B43: 30/7/2013 | C43: UNHCR | E43: CCCM Focal Point | G43: 13/6/2013 | H43: Camp Manager | I43: Male | L43: Committee Member | Q43: Kachin | R43: Bhamo | S43: Urban | T43: Paung Kone Ward | U43: Htoi San Church | V43: MMR001CMP052 | W43: 97.23692 | X43: 24.24766 | Y43: Urban | Z43: 12 | AA43: 2011 | AB43: Yes | AC43: Yes | AD43: Yes | AE43: No | AF43: Yes | AG43: Yes | AH43: Yes | AI43: No | AJ43: Bhamo | AK43: 0.125 | AL43: 4 | AM43: No | AO43: U Hpaw Mi Brang Shaung | AP43: 074-50550 | AQ43: Yes | AR43: No | AS43: No | AT43: Yes | AU43: No | AV43: No | AW43: No | AX43: Yes | AY43: No | AZ43: Yes | BA43: Yes | BB43: Yes | BC43: 1 | BD43: 3 | BE43: 4 | BF43: 4 | BG43: 9 | BH43: 13 | BI43: 10 | BJ43: 12 | BK43: 22 | BL43: 18 | BM43: 31 | BN43: 49 | BO43: 13 | BP43: 22 | BQ43: 35 | BR43: 22 | BS43: 26 | BT43: 48 | BU43: 18 | BV43: 20 | BW43: 38 | BX43: 2 | BY43: 2 | BZ43: 4 | CA43: 88 | CB43: 125 | CC43: 213 | CD43: 0 | CE43: 0 | CF43: 0 | CG43: 0 | CH43: 0 | CI43: 0 | CJ43: 0 | CK43: 1 | CL43: 1 | CM43: 1 | CN43: 1 | CO43: 2 | CP43: 2 | CQ43: 10 | CR43: 12 | CS43: 3 | CT43: 2 | CU43: 5 | CV43: 0 | CW43: 1 | CX43: 1 | CY43: 2 | CZ43: 12 | DA43: 2 | DB43: 2 | DC43: 4 | DD43: 0 | DE43: 0 | DF43: 0 | DG43: 0 | DH43: 213 | DI43: 0 | DJ43: 0 | DM43: No | DN43: Yes | DO43: 3 | DP43: 2 | DQ43: 0 | DR43: 0 | DS43: 3 | DT43: 2 | DU43: 0 | DV43: No | DW43: No | DX43: No | DY43: No | DZ43: No | EA43: No | EF43: 0.25 | EG43: 0.25 | EH43: 0.25 | EI43: Individual | EJ43: Yes | EK43: Solid shelters | EL43: 96-100% | EM43: 0% | EN43: Yes | EO43: Borehole/hand pump | EP43: Yes | EQ43: 0 | ER43: 0 | ES43: 10 | ET43: No | EU43: Identified waste dump outside camp | EV43: Clinic | EX43: Yes | EY43: Yes | EZ43: No | FA43: Yes | FB43: Yes | FC43: Yes | FD43: Yes | FE43: No | FF43: No | FG43: No | FH43: 76-95% | FI43: 76-95% | FJ43: Farming | FK43: Livestock | FL43: Farming | FM43: Livestock | FN43: Farming | FO43: Livestock | FP43: Farming | FQ43: Livestock | FR43: School materials / supplies | FS43: Cash/money assistance | FT43: Firewood / fuel | FU43: Complementary Food | FV43: Medicines | FW43: Access to job opportunities
A44: C002 | B44: 30/7/2013 | C44: UNHCR | E44: CCCM Focal Point | G44: 14/6/2013 | H44: Camp Manager | I44: Male | L44: Committee Member | Q44: Kachin | R44: Bhamo | S44: Han Te | T44: Yoe Gyi | U44: Yoe Kyi Monastery | V44: MMR001CMP053 | W44: 97.24064 | X44: 24.24953 | Y44: Urban | Z44: 8 | AA44: 2012 | AB44: No | AC44: Yes | AD44: Yes | AE44: Yes | AF44: No | AG44: Yes | AH44: Yes | AI44: Yes | AJ44: Bhamo | AK44: 0.125 | AL44: 5 | AM44: Yes | AN44: Shalom | AO44: U Aye Lwin | AP44: 09-47017734 | AQ44: Yes | AR44: No | AS44: No | AT44: Yes | AU44: No | AV44: No | AW44: No | AX44: No | AY44: Yes | AZ44: No | BA44: Yes | BB44: Yes | BC44: 1 | BD44: 0 | BE44: 1 | BF44: 4 | BG44: 2 | BH44: 6 | BI44: 4 | BJ44: 3 | BK44: 7 | BL44: 10 | BM44: 6 | BN44: 16 | BO44: 18 | BP44: 8 | BQ44: 26 | BR44: 13 | BS44: 15 | BT44: 28 | BU44: 9 | BV44: 6 | BW44: 15 | BX44: 4 | BY44: 5 | BZ44: 9 | CA44: 63 | CB44: 45 | CC44: 108 | CD44: 0 | CE44: 0 | CF44: 0 | CG44: 0 | CH44: 0 | CI44: 0 | CJ44: 1 | CK44: 0 | CL44: 1 | CM44: 3 | CN44: 0 | CO44: 3 | CP44: 0 | CQ44: 0 | CR44: 0 | CS44: 1 | CT44: 1 | CU44: 2 | CV44: 0 | CW44: 2 | CX44: 2 | CY44: 1 | CZ44: 2 | DA44: 0 | DB44: 0 | DC44: 0 | DD44: 0 | DE44: 0 | DF44: 0 | DG44: 31 | DH44: 108 | DI44: 0 | DJ44: 0 | DK44: 0 | DL44: 0 | DM44: No | DN44: Yes | DO44: 0 | DP44: 3 | DQ44: 1 | DR44: 1 | DS44: 1 | DT44: 4 | DU44: 0 | DV44: Yes | DW44: No | DX44: No | DY44: No | DZ44: No | EA44: No | EB44: 3 | EF44: 4 | EI44: Communal | EJ44: Yes | EK44: Solid shelters | EL44: 0% | EM44: 0% | EN44: Yes | EO44: Borehole/hand pump | EP44: Yes | EQ44: 0 | ER44: 0 | ES44: 8 | ET44: Yes | EU44: Is getting burnt | EV44: Hospital | EX44: No | EY44: Yes | EZ44: No | FA44: No | FB44: No | FC44: No | FD44: No | FE44: No | FF44: No | FG44: No | FH44: less than 25% | FI44: less than 25% | FJ44: Livestock | FK44: Trade (buying and selling) | FL44: Farming | FM44: Livestock | FN44: Livestock | FO44: Manufacturing (food processing) | FP44: Trade (buying and selling) | FR44: Basic Food | FS44: Complementary Food | FT44: Firewood / fuel | FU44: Health facility / Clinic | FV44: Well / water tank | FW44: Cash/money assistance | FX44: UNHCR
A45: E003 | B45: 30/7/2013 | C45: UNHCR | E45: CCCM Focal Point | G45: 12/6/2013 | H45: Camp Manager | I45: Male | L45: Committee Member | Q45: Kachin | R45: Bhamo | S45: Nam Hlaing | T45: Nam Hlaing | U45: Nant Hlaing Church | V45: MMR001CMP054 | W45: 97.31586 | X45: 24.32638 | Y45: Urban | Z45: 11 | AA45: 2011 | AB45: No | AC45: Yes | AD45: Yes | AE45: No | AF45: No | AG45: Yes | AH45: Yes | AI45: No | AJ45: Bhamo | AK45: 10 | AL45: 90 | AM45: Yes | AN45: KMSS BHAMO | AO45: Aye Mon | AP45: 6881266 | AQ45: Yes | AR45: No | AS45: No | AT45: Yes | AU45: No | AV45: No | AW45: Yes | AX45: No | AY45: No | AZ45: Yes | BA45: Yes | BB45: yes | BC45: 2 | BD45: 0 | BE45: 2 | BF45: 0 | BG45: 0 | BH45: 0 | BI45: 9 | BJ45: 8 | BK45: 17 | BL45: 13 | BM45: 15 | BN45: 28 | BO45: 6 | BP45: 4 | BQ45: 10 | BR45: 13 | BS45: 11 | BT45: 24 | BU45: 10 | BV45: 13 | BW45: 23 | BX45: 5 | BY45: 6 | BZ45: 11 | CA45: 58 | CB45: 57 | CC45: 115 | CD45: 0 | CE45: 0 | CF45: 0 | CG45: 0 | CH45: 0 | CI45: 0 | CJ45: 0 | CK45: 0 | CL45: 0 | CM45: 0 | CN45: 0 | CO45: 0 | CP45: 0 | CQ45: 0 | CR45: 0 | CS45: 0 | CT45: 0 | CU45: 0 | CV45: 0 | CW45: 0 | CX45: 0 | CY45: 0 | CZ45: 0 | DA45: 4 | DB45: 0 | DC45: 4 | DD45: 0 | DE45: 0 | DF45: 0 | DG45: 22 | DH45: 117 | DI45: 0 | DJ45: 0 | DM45: No | DN45: Yes | DO45: 2 | DP45: 3 | DQ45: 5 | DR45: 1 | DS45: 7 | DT45: 4 | DU45: 1 | DV45: Yes | DW45: No | DX45: No | DY45: No | DZ45: No | EA45: No | EI45: Individual | EJ45: No | EL45: less than 25% | EM45: 0% | EN45: Yes | EO45: Borehole/hand pump | EP45: Yes | EQ45: 8 | ER45: 8 | ES45: 0 | ET45: Yes | EU45: Is getting burnt | EV45: Hospital | EX45: No | EY45: No | EZ45: Yes | FA45: No | FB45: Yes | FC45: Yes | FD45: Yes | FE45: Yes | FF45: Yes | FG45: No | FH45: 0% | FI45: 0% | FJ45: Livestock | FK45: Handicrafts | FL45: Farming | FM45: Handicrafts | FN45: Livestock | FO45: Trade (buying and selling) | FP45: Manufacturing (food processing) | FQ45: Trade (buying and selling) | FR45: Complementary Food | FS45: Complementary Food | FT45: Transport to school | FU45: Transport to school | FV45: Vocational training | FW45: Vocational training | FX45: UNHCR | FY45: UNHCR
A46: A005 | B46: 30/7/2013 | C46: UNHCR | E46: CCCM Focal Point | G46: 15/6/2013 | H46: Camp Manager | I46: Male | L46: Committee Member | Q46: Kachin | R46: Bhamo | S46: Shwe Kyee Nar | T46: Shwe Kyee Nar | U46: Ta Gun Taing Monastery (Shwe Kyi Na) | V46: MMR001CMP055 | W46: 97.22779 | X46: 24.29138 | Y46: Urban | Z46: 5 | AA46: 2012 | AB46: Yes | AC46: Yes | AD46: Yes | AE46: No | AF46: Yes | AG46: Yes | AH46: Yes | AI46: No | AJ46: Bhamo | AK46: 2 | AL46: 20 | AM46: Yes | AN46: KBSS | AO46: U Kham si | AQ46: Yes | AR46: Yes | AS46: No | AT46: No | AU46: No | AV46: No | AW46: No | AX46: No | AY46: Yes | AZ46: Yes | BA46: Yes | BB46: Yes | BC46: 3 | BD46: 0 | BE46: 3 | BF46: 7 | BG46: 6 | BH46: 13 | BI46: 6 | BJ46: 10 | BK46: 16 | BL46: 35 | BM46: 32 | BN46: 67 | BO46: 28 | BP46: 19 | BQ46: 47 | BR46: 37 | BS46: 36 | BT46: 73 | BU46: 31 | BV46: 37 | BW46: 68 | BX46: 4 | BY46: 16 | BZ46: 20 | CA46: 151 | CB46: 156 | CC46: 307 | CD46: 0 | CE46: 2 | CF46: 2 | CG46: 1 | CH46: 2 | CI46: 3 | CJ46: 0 | CK46: 2 | CL46: 2 | CM46: 4 | CN46: 3 | CO46: 7 | CP46: 2 | CQ46: 2 | CR46: 4 | CS46: 0 | CT46: 3 | CU46: 3 | CV46: 0 | CW46: 6 | CX46: 6 | CY46: 2 | CZ46: 3 | DA46: 5 | DB46: 0 | DC46: 5 | DD46: 0 | DE46: 0 | DF46: 0 | DG46: 69 | DH46: 307 | DI46: 0 | DJ46: 0 | DK46: 0 | DL46: 0 | DM46: No | DN46: Yes | DO46: 4 | DP46: 0 | DQ46: 0 | DR46: 0 | DS46: 4 | DT46: 0 | DU46: 2 | DV46: Yes | DW46: Yes | DX46: No | DY46: No | DZ46: No | EA46: No | EB46: 0.375 | EF46: 0.25 | EG46: 1 mile | EH46: 1 mile | EI46: Individual | EJ46: Yes | EK46: Solid shelters | EL46: 96-100% | EM46: 96-100% | EN46: Yes | EO46: Borehole/hand pump | EP46: Yes | EQ46: 8 | ER46: 9 | ES46: 0 | ET46: yes | EU46: Common identified waste dump inside camp | EV46: Hospital | EX46: No | EY46: No | EZ46: No | FA46: No | FB46: No | FC46: No | FD46: No | FE46: No | FF46: No | FG46: Yes | FH46: 96-100% | FI46: 96-100% | FJ46: Farming | FK46: Mining | FL46: Farming | FM46: Livestock | FN46: None | FO46: None | FP46: Farming | FQ46: Livestock | FR46: Cash/money assistance | FS46: Firewood / fuel | FT46: School materials / supplies | FU46: Blankets/Winter Clothing | FV46: Health facility / Clinic | FW46: Kitchen sets | FX46: UNHCR | FY46: UNHCR
A47: B002 | B47: 30/7/2013 | C47: KBC | E47: CCCM Focal Point | G47: 25/6/2013 | H47: Camp Manager | I47: Male | L47: Religious Leader | Q47: Kachin | R47: Momauk | S47: Urban | T47: Alinn Koung Ward - 2 | U47: Momauk Baptist Church | V47: MMR001CMP056 | W47: 97.34436 | X47: 24.25069 | Y47: Urban | Z47: 6 | AA47: 2011 | AB47: Yes | AC47: Yes | AD47: Yes | AE47: No | AF47: Yes | AG47: Yes | AH47: Yes | AI47: No | AJ47: Momauk | AL47: 15 | AM47: Yes | AN47: KBC | AO47: U Seng Aung | AP47: 09-33015569 | AQ47: Yes | AR47: No | AS47: No | AT47: Yes | AU47: No | AV47: No | AW47: No | AX47: Yes | AY47: No | AZ47: Yes | BA47: Yes | BB47: Yes | BC47: 24 | BD47: 13 | BE47: 37 | BF47: 98 | BG47: 87 | BH47: 185 | BI47: 53 | BJ47: 46 | BK47: 99 | BL47: 159 | BM47: 139 | BN47: 298 | BO47: 89 | BP47: 110 | BQ47: 199 | BR47: 112 | BS47: 205 | BT47: 317 | BU47: 114 | BV47: 213 | BW47: 327 | BX47: 35 | BY47: 63 | BZ47: 98 | CA47: 684 | CB47: 876 | CC47: 1560 | CD47: 4 | CE47: 1 | CF47: 5 | CG47: 0 | CH47: 1 | CI47: 1 | CJ47: 6 | CK47: 15 | CL47: 21 | CM47: 6 | CN47: 11 | CO47: 17 | CP47: 7 | CQ47: 12 | CR47: 19 | CS47: 16 | CT47: 18 | CU47: 34 | CV47: 7 | CW47: 22 | CX47: 29 | CY47: 30 | CZ47: 45 | DA47: 0 | DB47: 0 | DC47: 0 | DD47: 0 | DE47: 0 | DF47: 0 | DG47: 399 | DH47: 1555 | DI47: 0 | DJ47: 0 | DK47: 0 | DL47: 0 | DM47: No | DN47: Yes | DO47: 5 | DP47: 2 | DQ47: 1 | DR47: 1 | DS47: 6 | DT47: 3 | DU47: 1 | DV47: No | DW47: No | DX47: No | DY47: No | DZ47: No | EA47: No | EF47: 1 | EG47: 1 | EH47: 1 | EI47: Individual | EJ47: Yes | EK47: Solid shelters | EL47: 0% | EM47: 0% | EN47: Yes | EO47: Well | EP47: Yes | EQ47: 0 | ER47: 0 | ES47: 56 | ET47: Yes | EU47: Identified waste dump outside camp | EV47: Clinic | EX47: No | EY47: No | EZ47: No | FA47: No | FB47: Yes | FC47: Yes | FD47: Yes | FE47: Yes | FF47: No | FG47: No | FH47: 0% | FI47: less than 25% | FJ47: Trade (buying and selling) | FK47: Other | FL47: Farming | FM47: Other | FN47: Trade (buying and selling) | FO47: Other | FP47: Livestock | FQ47: Other | FR47: Cash/money assistance | FS47: Firewood / fuel | FT47: Medicines | FU47: Access to job opportunities | FV47: Communal building | FW47: Cash/money assistance | FX47: UNHCR | FY47: UNHCR
A48: H004 | B48: 29/7/2013 | C48: KBSS/KMSS | E48: CCCM Focal Point | G48: 23/6/2013 | H48: Camp Manager | I48: Male | L48: FBO/NGO Staff | Q48: Kachin | R48: Momauk | S48: Urban | T48: Kye Nan | U48: Momauk Catholic Church (St. Patrick) | V48: MMR001CMP057 | W48: 97.34695 | X48: 24.25177 | Y48: Urban | Z48: 8 | AA48: 2011 | AB48: Yes | AC48: Yes | AD48: Yes | AE48: No | AF48: Yes | AG48: Yes | AH48: Yes | AI48: No | AJ48: Momauk | AL48: 3 | AM48: Yes | AN48: KMSS | AO48: U Ja Li/ U Tu Htan | AP48: 745609 7 | AQ48: Yes | AR48: No | AS48: No | AT48: Yes | AU48: No | AV48: No | AW48: No | AX48: No | AY48: Yes | AZ48: Yes | BA48: Yes | BB48: Yes | BC48: 1 | BD48: 3 | BE48: 4 | BF48: 5 | BG48: 6 | BH48: 11 | BI48: 8 | BJ48: 22 | BK48: 30 | BL48: 58 | BM48: 60 | BN48: 118 | BO48: 66 | BP48: 55 | BQ48: 121 | BR48: 58 | BS48: 63 | BT48: 121 | BU48: 43 | BV48: 64 | BW48: 107 | BX48: 7 | BY48: 30 | BZ48: 37 | CA48: 246 | CB48: 303 | CC48: 549 | CD48: 2 | CE48: 0 | CF48: 2 | CG48: 0 | CH48: 0 | CI48: 0 | CJ48: 3 | CK48: 2 | CL48: 5 | CM48: 3 | CN48: 2 | CO48: 5 | CP48: 5 | CQ48: 0 | CR48: 5 | CS48: 0 | CT48: 3 | CU48: 3 | CV48: 0 | CW48: 8 | CX48: 8 | CY48: 6 | CZ48: 15 | DA48: 5 | DB48: 4 | DC48: 9 | DD48: 0 | DE48: 0 | DF48: 0 | DG48: 179 | DH48: 549 | DI48: 2 | DJ48: 5 | DK48: 3 | DL48: 13 | DM48: No | DN48: Yes | DO48: 4 | DP48: 4 | DQ48: 2 | DR48: 0 | DS48: 6 | DT48: 4 | DU48: 1 | DV48: Yes | DW48: Yes | DX48: Yes | DY48: Yes | DZ48: Yes | EA48: No | EI48: Individual | EJ48: Yes | EK48: Solid shelters | EL48: 25-50% | EM48: 0% | EN48: Yes | EO48: Well | EP48: Yes | EQ48: 9 | ER48: 14 | ES48: 2 | ET48: Yes | EU48: Identified waste dump outside camp | EV48: Clinic | EX48: No | EY48: No | EZ48: No | FA48: No | FB48: No | FC48: No | FD48: No | FE48: Yes | FF48: No | FG48: No | FH48: less than 25% | FI48: less than 25% | FJ48: Trade (buying and selling) | FK48: Manufacturing (non-food) | FL48: Farming | FM48: Livestock | FN48: Livestock | FO48: Manufacturing (non-food) | FP48: Farming | FQ48: Livestock | FR48: Complementary Food | FS48: Access to job opportunities | FT48: School materials / supplies | FU48: Cash/money assistance | FV48: Cash/money assistance | FX48: UNHCR
A49: B003 | B49: 30/7/2013 | C49: UNHCR | E49: CCCM Focal Point | G49: 24/6/2013 | H49: Camp Manager | I49: Male | L49: Committee Member | M49: Camp Resident | N49: Female | Q49: Kachin | R49: Momauk | S49: Urban | T49: Alinn Koung Ward | U49: Mandalay Monestry | V49: MMR001CMP058 | W49: 97.34694 | X49: 24.25186 | Y49: Urban | Z49: 10 | AA49: 2011 | AB49: Yes | AC49: Yes | AD49: Yes | AE49: No | AF49: Yes | AG49: Yes | AH49: Yes | AI49: No | AJ49: Momauk | AK49: 0.125 | AL49: 2 | AM49: No | AO49: U Sai Hpa | AP49: 7456042 | AQ49: Yes | AR49: No | AS49: Yes | AT49: No | AU49: No | AV49: No | AW49: No | AX49: No | AY49: Yes | AZ49: Yes | BA49: Yes | BB49: Yes | BC49: 0 | BD49: 0 | BE49: 0 | BF49: 0 | BG49: 0 | BH49: 0 | BI49: 2 | BJ49: 1 | BK49: 3 | BL49: 1 | BM49: 3 | BN49: 4 | BO49: 2 | BP49: 0 | BQ49: 2 | BR49: 1 | BS49: 2 | BT49: 3 | BU49: 4 | BV49: 3 | BW49: 7 | BX49: 1 | BY49: 2 | BZ49: 3 | CA49: 11 | CB49: 11 | CC49: 22 | CD49: 0 | CE49: 0 | CF49: 0 | CG49: 0 | CH49: 0 | CI49: 0 | CJ49: 0 | CK49: 0 | CL49: 0 | CM49: 0 | CN49: 0 | CO49: 0 | CP49: 0 | CQ49: 0 | CR49: 0 | CS49: 0 | CT49: 0 | CU49: 0 | CV49: 0 | CW49: 0 | CX49: 0 | CY49: 0 | CZ49: 1 | DA49: 0 | DB49: 0 | DC49: 0 | DD49: 0 | DE49: 0 | DF49: 0 | DG49: 6 | DH49: 22 | DI49: 0 | DJ49: 0 | DK49: 2 | DL49: 3 | DM49: No | DN49: Yes | DO49: 2 | DP49: 1 | DQ49: 0 | DR49: 0 | DS49: 2 | DT49: 1 | DU49: 1 | DV49: No | DW49: No | DX49: No | DY49: No | DZ49: No | EA49: No | EI49: Individual | EJ49: No | EK49: Solid shelters | EL49: less than 25% | EN49: Yes | EO49: Well | EP49: Yes | EQ49: 4 | ER49: 1 | ES49: 0 | ET49: Yes | EU49: Is getting burnt | EV49: Hospital | EX49: Yes | EY49: No | EZ49: No | FA49: No | FB49: No | FC49: No | FD49: No | FE49: No | FF49: No | FG49: No | FH49: less than 25% | FI49: less than 25% | FJ49: Manufacturing (non-food) | FK49: Other | FL49: Farming | FM49: Other | FN49: Trade (buying and selling) | FO49: Manufacturing (non-food) | FP49: Livestock | FQ49: Other | FR49: Complementary Food | FS49: Complementary Food | FT49: Firewood / fuel | FU49: Firewood / fuel | FV49: Cash/money assistance | FW49: Cash/money assistance | FX49: UNHCR
A50: A004 | B50: 30/7/2013 | C50: KBSS/KMSS | E50: CCCM Focal Point | G50: 23/6/2013 | H50: Camp Manager | I50: Male | L50: Committee Member | M50: Camp Resident | N50: Female | Q50: Kachin | R50: Momauk | S50: Urban | T50: Alinkawng | U50: Ni Thaw Ka Monestry | V50: MMR001CMP059 | W50: 97.34774 | X50: 24.25377 | Y50: Urban | Z50: 10 | AA50: 2011 | AB50: Yes | AC50: Yes | AD50: Yes | AE50: No | AF50: Yes | AG50: Yes | AH50: Yes | AI50: No | AJ50: Momauk | AK50: 0.125 | AL50: 4 | AM50: Yes | AN50: Committee | AO50: Daw Kham Ko | AP50: 6232282 | AQ50: Yes | AR50: Yes | AS50: No | AT50: No | AU50: No | AV50: No | AW50: No | AX50: Yes | AY50: No | AZ50: Yes | BA50: Yes | BB50: Yes | BC50: 0 | BD50: 0 | BE50: 0 | BF50: 1 | BG50: 2 | BH50: 3 | BI50: 1 | BJ50: 0 | BK50: 1 | BL50: 19 | BM50: 3 | BN50: 22 | BO50: 7 | BP50: 12 | BQ50: 19 | BR50: 3 | BS50: 7 | BT50: 10 | BU50: 7 | BV50: 13 | BW50: 20 | BX50: 1 | BY50: 4 | BZ50: 5 | CA50: 39 | CB50: 41 | CC50: 80 | CD50: 1 | CE50: 0 | CF50: 1 | CG50: 0 | CH50: 0 | CI50: 0 | CJ50: 0 | CK50: 0 | CL50: 0 | CM50: 2 | CN50: 4 | CO50: 6 | CP50: 0 | CQ50: 0 | CR50: 0 | CS50: 0 | CT50: 1 | CU50: 1 | CV50: 0 | CW50: 0 | CX50: 0 | CY50: 0 | CZ50: 1 | DA50: 0 | DB50: 0 | DC50: 0 | DD50: 0 | DE50: 0 | DF50: 0 | DG50: 22 | DH50: 80 | DI50: 0 | DJ50: 0 | DK50: 2 | DL50: 12 | DM50: No | DN50: Yes | DO50: 1 | DP50: 4 | DQ50: 0 | DR50: 0 | DS50: 1 | DT50: 4 | DU50: 1 | DV50: Yes | DW50: Yes | DX50: No | DY50: Yes | DZ50: No | EA50: No | EB50: 0.125 | EI50: Individual | EJ50: No | EK50: Solid shelters | EL50: 0% | EN50: Yes | EO50: Well | EP50: Yes | EQ50: 2 | ER50: 2 | ES50: 0 | ET50: No | EU50: Common identified waste dump inside camp | EV50: Clinic | EX50: No | EY50: Yes | EZ50: No | FA50: No | FB50: No | FC50: No | FD50: No | FE50: No | FF50: No | FG50: No | FH50: less than 25% | FI50: less than 25% | FJ50: Farming | FK50: Other | FL50: Farming | FM50: Other | FN50: Farming | FO50: Other | FP50: Farming | FQ50: Other | FR50: Complementary Food | FT50: Firewood / fuel | FV50: Cash/money assistance | FX50: UNHCR | FY50: UNHCR
A51: B005 | B51: 30/7/2013 | C51: KBSS/KMSS | E51: CCCM Focal Point | G51: 24/6/2013 | H51: Camp Manager | I51: Male | L51: FBO/NGO Staff | Q51: Kachin | R51: Momauk | S51: Man Pon | T51: Man Pon | U51: Man Bung Catholic compound | V51: MMR001CMP062 | W51: 97.32502 | X51: 24.2451 | Y51: Urban | Z51: 5 | AA51: 2012 | AB51: Yes | AC51: Yes | AD51: Yes | AE51: No | AF51: No | AG51: No | AH51: No | AI51: No | AJ51: Momauk | AK51: 0.5 | AL51: 30 | AN51: KBSS | AO51: U Lahpai Ja Li | AP51: 074-56097 | AQ51: Yes | AR51: No | AS51: No | AT51: Yes | AU51: No | AV51: No | AW51: Yes | AX51: No | AY51: No | AZ51: Yes | BA51: Yes | BB51: Yes | BC51: 4 | BD51: 4 | BE51: 8 | BF51: 1 | BG51: 1 | BH51: 2 | BI51: 18 | BJ51: 29 | BK51: 47 | BL51: 58 | BM51: 58 | BN51: 116 | BO51: 37 | BP51: 28 | BQ51: 65 | BR51: 58 | BS51: 69 | BT51: 127 | BU51: 36 | BV51: 57 | BW51: 93 | BX51: 9 | BY51: 21 | BZ51: 30 | CA51: 221 | CB51: 267 | CC51: 488 | CD51: 3 | CE51: 6 | CF51: 9 | CG51: 0 | CH51: 0 | CI51: 0 | CJ51: 3 | CK51: 2 | CL51: 5 | CM51: 2 | CN51: 0 | CO51: 2 | CP51: 0 | CQ51: 0 | CR51: 0 | CS51: 0 | CT51: 4 | CU51: 4 | CV51: 0 | CW51: 6 | CX51: 6 | CY51: 6 | CZ51: 25 | DA51: 5 | DB51: 5 | DC51: 10 | DD51: 0 | DE51: 0 | DF51: 0 | DG51: 117 | DH51: 488 | DI51: 5 | DJ51: 29 | DK51: 4 | DL51: 13 | DM51: No | DN51: Yes | DO51: 1 | DP51: 5 | DQ51: 0 | DR51: 0 | DS51: 1 | DT51: 5 | DU51: 1 | DV51: No | DW51: No | DX51: No | DY51: No | DZ51: No | EA51: No | EB51: 0.5 | EH51: 0.75 | EI51: Individual | EJ51: Yes | EK51: Solid shelters | EL51: less than 25% | EM51: 0% | EN51: Yes | EO51: Borehole/hand pump | EP51: No | EQ51: 6 | ER51: 8 | ES51: 0 | ET51: Yes | EU51: Common identified waste dump inside camp | EV51: Clinic | EX51: No | EY51: No | EZ51: No | FA51: No | FB51: No | FC51: No | FD51: No | FE51: Yes | FF51: No | FG51: No | FH51: less than 25% | FI51: less than 25% | FJ51: Farming | FK51: Manufacturing (non-food) | FL51: Farming | FM51: Livestock | FN51: Livestock | FO51: Manufacturing (non-food) | FP51: Farming | FQ51: Livestock | FR51: Cash/money assistance | FS51: Basic Food | FT51: Complementary Food | FU51: Firewood / fuel | FV51: Individual shelter/houses | FX51: UNHCR | FY51: KBSS, UNHCR
A52: C001 | B52: 30/7/2013 | C52: UNHCR | E52: CCCM Focal Point | G52: 16/6/2013 | H52: Camp Manager | I52: Male | L52: Committee Member | M52: Camp Resident | N52: Male | Q52: Kachin | R52: Mansi | S52: Urban | T52: Kaung Ra | U52: Mansi Baptist Church | V52: MMR001CMP066 | W52: 97.29182 | X52: 24.12906 | Y52: Urban | Z52: 11 | AA52: 2013 | AB52: No | AC52: No | AD52: No | AE52: No | AF52: No | AG52: No | AH52: No | AI52: No | AJ52: Bhamo | AK52: 12 | AL52: 60 | AM52: Yes | AN52: KBC | AO52: U Lahkang Tu | AP52: 09-47023636 | AQ52: Yes | AR52: No | AS52: No | AT52: Yes | AU52: No | AV52: No | AW52: No | AX52: Yes | AY52: No | AZ52: Yes | BA52: Yes | BB52: Yes | BC52: 2 | BD52: 1 | BE52: 3 | BF52: 5 | BG52: 8 | BH52: 13 | BI52: 17 | BJ52: 15 | BK52: 32 | BL52: 19 | BM52: 21 | BN52: 40 | BO52: 43 | BP52: 70 | BQ52: 113 | BR52: 15 | BS52: 45 | BT52: 60 | BU52: 37 | BV52: 60 | BW52: 97 | BX52: 8 | BY52: 16 | BZ52: 24 | CA52: 146 | CB52: 236 | CC52: 382 | CD52: 4 | CE52: 0 | CF52: 4 | CG52: 0 | CH52: 0 | CI52: 0 | CJ52: 1 | CK52: 4 | CL52: 5 | CM52: 2 | CN52: 3 | CO52: 5 | CP52: 2 | CQ52: 1 | CR52: 3 | CS52: 3 | CT52: 3 | CU52: 6 | CV52: 3 | CW52: 5 | CX52: 8 | CY52: 6 | CZ52: 14 | DA52: 2 | DB52: 2 | DC52: 4 | DD52: 1 | DE52: 1 | DF52: 2 | DG52: 90 | DH52: 382 | DI52: 4 | DJ52: 24 | DK52: 0 | DL52: 0 | DM52: No | DN52: Yes | DO52: 0 | DP52: 1 | DQ52: 5 | DR52: 3 | DS52: 5 | DT52: 4 | DU52: 1 | DV52: Yes | DW52: Yes | DX52: No | DY52: No | DZ52: Yes | EA52: No | EI52: Communal | EJ52: No | EK52: Solid shelters | EL52: 25-50% | EM52: 0% | EN52: Yes | EO52: Well | EP52: Yes | EQ52: 0 | ER52: 0 | ES52: 0 | ET52: No | EU52: Common identified waste dump inside camp | EV52: Hospital | EX52: Yes | EY52: Yes | EZ52: No | FA52: No | FB52: Yes | FC52: Yes | FD52: No | FE52: Yes | FF52: Yes | FG52: No | FH52: 0% | FI52: 76-95% | FJ52: Livestock | FK52: Other | FL52: Farming | FM52: Other | FN52: Livestock | FO52: Other | FP52: Farming | FQ52: Other | FR52: Basic Food | FS52: Basic Food | FT52: Vocational training | FU52: Kitchen sets | FV52: Individual shelter/houses | FW52: Women NFIs (sanitary pads, underwear, etc.) | FX52: KBSS, UNHCR | FY52: UNHCR
A53: A002 | B53: 30/7/2013 | C53: UNHCR | E53: CCCM Focal Point | G53: 20/6/2013 | H53: Camp Manager | I53: Male | L53: Committee Member | Q53: Kachin | R53: Shwegu | S53: Urban | T53: No.(4) Bawgabala | U53: Shwe Gu Baptist Church | V53: MMR001CMP067 | W53: 96.807353 | X53: 24.200361 | Y53: Urban | Z53: 7 | AA53: 2011 | AB53: Yes | AC53: Yes | AD53: Yes | AE53: No | AF53: Yes | AG53: Yes | AH53: Yes | AI53: Yes | AJ53: Shwegu | AL53: 20 | AM53: Yes | AN53: KBC | AO53: U maran Tu | AP53: 7452343 | AQ53: Yes | AR53: No | AS53: No | AT53: No | AU53: No | AV53: No | AW53: Yes | AX53: No | AY53: No | AZ53: Yes | BA53: Yes | BB53: Yes | BC53: 0 | BD53: 0 | BE53: 0 | BF53: 2 | BG53: 8 | BH53: 10 | BI53: 14 | BJ53: 10 | BK53: 24 | BL53: 27 | BM53: 27 | BN53: 54 | BO53: 40 | BP53: 5 | BQ53: 45 | BR53: 18 | BS53: 25 | BT53: 43 | BU53: 8 | BV53: 18 | BW53: 26 | BX53: 2 | BY53: 3 | BZ53: 5 | CA53: 111 | CB53: 96 | CC53: 207 | CD53: 1 | CE53: 2 | CF53: 3 | CG53: 0 | CH53: 0 | CI53: 0 | CJ53: 1 | CK53: 1 | CL53: 2 | CM53: 31 | CN53: 41 | CO53: 72 | CP53: 0 | CQ53: 0 | CR53: 0 | CS53: 0 | CT53: 0 | CU53: 0 | CV53: 1 | CW53: 5 | CX53: 6 | CY53: 3 | CZ53: 11 | DA53: 0 | DB53: 0 | DC53: 0 | DD53: 0 | DE53: 0 | DF53: 0 | DG53: 51 | DH53: 254 | DI53: 0 | DJ53: 0 | DK53: 2 | DL53: 9 | DM53: No | DN53: Yes | DO53: 0 | DP53: 0 | DQ53: 7 | DR53: 2 | DS53: 7 | DT53: 2 | DU53: 0 | DV53: No | DW53: Yes | DX53: Yes | DY53: No | DZ53: No | EA53: No | EH53: 30 | EI53: Individual | EJ53: No | EK53: Solid shelters | EL53: 0% | EM53: 25-50% | EN53: Yes | EO53: Well | EP53: No | EQ53: 3 | ER53: 5 | ES53: 4 | ET53: yes | EU53: Is getting burnt | EV53: Hospital | EX53: Yes | EY53: Yes | EZ53: No | FA53: No | FB53: Yes | FC53: Yes | FD53: No | FE53: Yes | FF53: Yes | FG53: No | FH53: 25-50% | FI53: 96-100% | FJ53: Mining | FK53: Other | FL53: Farming | FM53: Livestock | FN53: Other | FO53: None | FP53: Trade (buying and selling) | FQ53: Other | FR53: Basic Food | FS53: Complementary Food | FT53: Well / water tank | FU53: Cash/money assistance | FV53: Access to job opportunities | FW53: Vocational training | FX53: KBSS, UNHCR
A54: E002 | B54: 30/7/2013 | C54: KBSS/KMSS | E54: CCCM Focal Point | G54: 20/6/2013 | H54: Camp Manager | I54: Male | L54: Religious Leader | Q54: Kachin | R54: Shwegu | S54: Urban | T54: Qtr.4 | U54: Shwe Gu Catholic Church | V54: MMR001CMP068 | W54: 96.807353 | X54: 24.200367 | Y54: Urban | Z54: 7 | AA54: 2011 | AB54: Yes | AC54: Yes | AD54: Yes | AE54: Yes | AF54: Yes | AG54: Yes | AH54: Yes | AI54: Yes | AJ54: Shwegu | AM54: Yes | AN54: KMSS BHAMO | AO54: U Maran Seng | AP54: 09-402592054 | AQ54: Yes | AR54: No | AS54: No | AT54: Yes | AU54: No | AV54: No | AW54: No | AX54: No | AY54: Yes | AZ54: No | BA54: Yes | BB54: yes | BC54: 0 | BD54: 0 | BE54: 0 | BF54: 6 | BG54: 6 | BH54: 12 | BI54: 10 | BJ54: 10 | BK54: 20 | BL54: 12 | BM54: 18 | BN54: 30 | BO54: 18 | BP54: 24 | BQ54: 42 | BR54: 13 | BS54: 30 | BT54: 43 | BU54: 10 | BV54: 13 | BW54: 23 | BX54: 1 | BY54: 3 | BZ54: 4 | CA54: 70 | CB54: 104 | CC54: 174 | CD54: 1 | CE54: 1 | CF54: 2 | CG54: 0 | CH54: 0 | CI54: 0 | CJ54: 0 | CK54: 0 | CL54: 0 | CM54: 18 | CN54: 20 | CO54: 38 | CP54: 1 | CQ54: 0 | CR54: 1 | CS54: 0 | CT54: 0 | CU54: 0 | CV54: 0 | CW54: 1 | CX54: 1 | CY54: 3 | CZ54: 6 | DA54: 0 | DB54: 0 | DC54: 0 | DD54: 0 | DE54: 1 | DF54: 1 | DG54: 47 | DH54: 174 | DI54: 0 | DJ54: 0 | DM54: No | DN54: Yes | DO54: 1 | DP54: 5 | DR54: 1 | DS54: 1 | DT54: 6 | DV54: Yes | DW54: No | DX54: No | DY54: No | DZ54: No | EA54: No | EI54: Mixed | EJ54: Yes | EK54: Solid shelters | EL54: 0% | EM54: 0% | EN54: Yes | EO54: Borehole/hand pump | EP54: Yes | EQ54: 0 | ER54: 0 | ES54: 0 | ET54: Yes | EU54: Common identified waste dump inside camp | EV54: Clinic | EX54: Yes | EY54: Yes | EZ54: Yes | FA54: Yes | FB54: Yes | FC54: Yes | FD54: Yes | FE54: Yes | FF54: Yes | FG54: No | FH54: 96-100% | FI54: 96-100% | FJ54: Mining | FK54: Other | FL54: Farming | FM54: Livestock | FN54: Other | FO54: None | FP54: Farming | FQ54: Livestock | FR54: Firewood / fuel | FS54: Health facility / Clinic | FT54: Complementary Food | FU54: Medicines | FV54: Cash/money assistance | FW54: Hygiene kits | FX54: UNHCR | FY54: KBSS, UNHCR
A55: E009 | B55: 30/7/2013 | C55: KBSS/KMSS | E55: CCCM Focal Point | G55: 21/6/2013 | H55: Camp Manager | I55: Male | L55: Committee Member | Q55: Kachin | R55: Momauk | S55: Wein Hkam (Lwegel Sub-township) | T55: Loi Je | U55: Loi Je Catholic Church | V55: MMR001CMP069 | W55: 97.724567 | X55: 24.205417 | Y55: Urban | Z55: 11 | AA55: 2011 | AB55: Yes | AC55: yes | AD55: Yes | AE55: No | AF55: Yes | AG55: Yes | AH55: Yes | AI55: No | AJ55: Loi Je | AL55: 10 | AM55: Yes | AN55: FB | AO55: U Toe Mai | AP55: 13368827820 | AQ55: Yes | AR55: No | AS55: No | AT55: Yes | AU55: No | AV55: No | AW55: No | AX55: No | AY55: Yes | AZ55: Yes | BA55: Yes | BB55: Yes | BC55: 0 | BD55: 0 | BE55: 0 | BF55: 1 | BG55: 6 | BH55: 7 | BI55: 9 | BJ55: 18 | BK55: 27 | BL55: 44 | BM55: 19 | BN55: 63 | BO55: 26 | BP55: 17 | BQ55: 43 | BR55: 27 | BS55: 31 | BT55: 58 | BU55: 17 | BV55: 26 | BW55: 43 | BX55: 7 | BY55: 9 | BZ55: 16 | CA55: 131 | CB55: 126 | CC55: 257 | CD55: 0 | CE55: 2 | CF55: 2 | CG55: 0 | CH55: 0 | CI55: 0 | CJ55: 0 | CK55: 2 | CL55: 2 | CM55: 7 | CN55: 1 | CO55: 8 | CP55: 0 | CQ55: 0 | CR55: 0 | CS55: 0 | CT55: 0 | CU55: 0 | CV55: 0 | CW55: 3 | CX55: 3 | CY55: 3 | CZ55: 3 | DA55: 0 | DB55: 0 | DC55: 0 | DD55: 0 | DE55: 0 | DF55: 0 | DG55: 47 | DH55: 0 | DI55: 0 | DJ55: 0 | DK55: 4 | DL55: 25 | DM55: No | DN55: Yes | DO55: 9 | DP55: 4 | DU55: 1 | DV55: No | DW55: No | DX55: No | DY55: No | DZ55: No | EA55: No | EI55: Mixed | EJ55: Yes | EK55: Solid shelters | EN55: No | EO55: Borehole/hand pump | EP55: No | EQ55: 4 | ER55: 5 | ES55: 9 | ET55: No | EU55: Is getting burnt | EV55: Clinic | EW55: No | EX55: Yes | EY55: No | EZ55: No | FA55: No | FB55: No | FC55: No | FD55: No | FE55: No | FF55: No | FG55: No | FH55: 51-75% | FI55: 51-75% | FJ55: Other | FK55: None | FL55: Farming | FN55: Other | FO55: None | FP55: Farming | FQ55: Livestock | FR55: Complementary Food | FS55: Cash/money assistance | FT55: Latrines/toilets | FU55: Basic Food | FV55: Health facility / Clinic | FW55: Hygiene kits | FX55: UNHCR | FY55: KBSS, UNHCR
A56: C005 | B56: 30/7/2013 | C56: UNHCR | E56: CCCM Focal Point | G56: 20/6/2013 | H56: Camp Manager | I56: Female | L56: Committee Member | M56: Camp Resident | N56: Female | Q56: Kachin | R56: Momauk | S56: Wein Hkam (Lwegel Sub-township) | T56: Aung Ze Yar | U56: Loi Je Lisu Camp | V56: MMR001CMP070 | W56: 97.717133 | X56: 24.200433 | Y56: Urban | Z56: 4 | AA56: 2012 | AB56: Yes | AC56: Yes | AD56: Yes | AE56: No | AF56: Yes | AG56: Yes | AH56: Yes | AI56: No | AJ56: Loi Je | AL56: 15 | AM56: Yes | AN56: Loi Je Lisu Camp | AO56: Daw Lu Di | AP56: +86 (0692) 6876578 | AQ56: Yes | AR56: Yes | AS56: No | AT56: No | AU56: No | AV56: No | AW56: No | AX56: No | AY56: Yes | AZ56: Yes | BA56: Yes | BB56: No | BC56: 0 | BD56: 0 | BE56: 0 | BF56: 9 | BG56: 16 | BH56: 25 | BI56: 31 | BJ56: 34 | BK56: 65 | BL56: 78 | BM56: 70 | BN56: 148 | BO56: 56 | BP56: 51 | BQ56: 107 | BR56: 81 | BS56: 81 | BT56: 162 | BU56: 47 | BV56: 68 | BW56: 115 | BX56: 13 | BY56: 17 | BZ56: 30 | CA56: 315 | CB56: 337 | CC56: 652 | CD56: 4 | CE56: 0 | CF56: 4 | CG56: 1 | CH56: 0 | CI56: 1 | CJ56: 4 | CK56: 4 | CL56: 8 | CM56: 0 | CN56: 1 | CO56: 1 | CP56: 1 | CQ56: 0 | CR56: 1 | CS56: 13 | CT56: 17 | CU56: 30 | CV56: 2 | CW56: 15 | CX56: 17 | CY56: 5 | CZ56: 15 | DA56: 0 | DB56: 0 | DC56: 0 | DD56: 0 | DE56: 4 | DF56: 4 | DG56: 131 | DH56: 652 | DI56: 10 | DJ56: 44 | DK56: 0 | DL56: 0 | DM56: Yes | DN56: Yes | DO56: 19 | DP56: 10 | DQ56: 0 | DR56: 0 | DS56: 0 | DT56: 0 | DU56: 1 | DV56: Yes | DW56: Yes | DX56: No | DY56: No | DZ56: Yes | EA56: No | EI56: Mixed | EJ56: No | EK56: Solid shelters | EL56: 76-95% | EM56: 76-95% | EN56: Yes | EO56: Well | EP56: No | EQ56: 10 | ER56: 10 | ES56: 0 | ET56: No | EU56: Identified waste dump outside camp | EV56: Clinic | EX56: No | EY56: No | EZ56: No | FA56: No | FB56: No | FC56: Yes | FD56: No | FE56: No | FF56: No | FG56: No | FH56: 51-75% | FI56: 51-75% | FJ56: Other | FK56: None | FL56: Farming | FM56: Livestock | FN56: Other | FO56: None | FP56: Farming | FQ56: Livestock | FR56: Complementary Food | FS56: Firewood / fuel | FT56: Well / water tank | FU56: Communal building | FV56: Bathing spaces | FW56: Cash/money assistance | FX56: UNHCR | FY56: UNHCR
A57: C004 | B57: 30/7/2013 | C57: UNHCR | E57: CCCM Focal Point | G57: 22/6/2013 | H57: Camp Manager | I57: Female | L57: Committee Member | Q57: Kachin | R57: Momauk | S57: Wein Hkam (Lwegel Sub-township) | T57: Say Yone Kone | U57: Nyaung Na Pin | V57: MMR001CMP072 | W57: 97.724483 | X57: 24.205417 | Y57: Urban | Z57: 8 | AA57: 2012 | AB57: Yes | AC57: Yes | AD57: No | AE57: No | AF57: Yes | AG57: Yes | AH57: No | AI57: No | AJ57: Loi Je | AM57: Yes | AN57: Loi Je Baptist Church | AO57: U Naw San | AP57: +86 13320457325 | AQ57: Yes | AR57: Yes | AS57: No | AT57: No | AU57: No | AV57: No | AW57: No | AX57: No | AY57: Yes | AZ57: Yes | BA57: Yes | BB57: No | BC57: 3 | BD57: 0 | BE57: 3 | BF57: 3 | BG57: 4 | BH57: 7 | BI57: 11 | BJ57: 8 | BK57: 19 | BL57: 27 | BM57: 32 | BN57: 59 | BO57: 25 | BP57: 27 | BQ57: 52 | BR57: 29 | BS57: 18 | BT57: 47 | BU57: 26 | BV57: 31 | BW57: 57 | BX57: 6 | BY57: 11 | BZ57: 17 | CA57: 130 | CB57: 131 | CC57: 261 | CD57: 2 | CE57: 2 | CF57: 4 | CG57: 0 | CH57: 1 | CI57: 1 | CJ57: 3 | CK57: 0 | CL57: 3 | CM57: 0 | CN57: 0 | CO57: 0 | CP57: 0 | CQ57: 0 | CR57: 0 | CS57: 0 | CT57: 0 | CU57: 0 | CV57: 2 | CW57: 2 | CX57: 4 | CY57: 2 | CZ57: 4 | DA57: 0 | DB57: 0 | DC57: 0 | DD57: 0 | DE57: 0 | DF57: 0 | DG57: 47 | DH57: 261 | DI57: 0 | DJ57: 0 | DM57: No | DN57: Yes | DO57: 14 | DP57: 7 | DQ57: 0 | DR57: 0 | DS57: 0 | DT57: 0 | DU57: 1 | DV57: Yes | DW57: Yes | DX57: No | DY57: Yes | DZ57: Yes | EA57: No | EI57: Individual | EJ57: Yes | EL57: less than 25% | EM57: 96-100% | EN57: Yes | EO57: Well | EP57: Yes | EQ57: 0 | ER57: 0 | ES57: 0 | ET57: Yes | EU57: Identified waste dump outside camp | EV57: Clinic | EX57: No | EY57: No | EZ57: Yes | FA57: No | FB57: No | FC57: No | FD57: No | FE57: No | FF57: No | FG57: No | FH57: 51-75% | FI57: 25-50% | FJ57: Other | FK57: None | FL57: Farming | FM57: Livestock | FN57: Other | FO57: None | FP57: Farming | FQ57: Livestock | FR57: Basic Food | FS57: Basic Food | FT57: Kitchen sets | FU57: Women NFIs (sanitary pads, underwear, etc.) | FV57: Cash/money assistance | FW57: School facilities | FX57: UNHCR | FY57: UNHCR
A58: E001 | B58: 30/7/2013 | C58: UNHCR | E58: CCCM Focal Point | G58: 12/6/2013 | H58: Camp Manager | I58: Male | L58: Committee Member | Q58: Kachin | R58: Momauk | S58: Wein Hkam (Lwegel Sub-township) | T58: Seng Ja | U58: Seng Ja | V58: MMR001CMP073 | W58: 97.710864 | X58: 24.207333 | Y58: Urban | Z58: 8 | AA58: 2012 | AB58: Yes | AC58: Yes | AD58: Yes | AE58: No | AF58: Yes | AG58: Yes | AH58: Yes | AI58: No | AJ58: Waingmaw | AL58: 20 | AM58: Yes | AN58: KBC | AO58: U Lashi Tu Nan | AP58: 13320457150 | AQ58: Yes | AR58: No | AS58: No | AT58: Yes | AU58: No | AV58: No | AW58: No | AX58: yes | AY58: No | AZ58: Yes | BA58: Yes | BB58: yes | BC58: 1 | BD58: 0 | BE58: 1 | BF58: 3 | BG58: 4 | BH58: 7 | BI58: 6 | BJ58: 12 | BK58: 18 | BL58: 19 | BM58: 22 | BN58: 41 | BO58: 22 | BP58: 15 | BQ58: 37 | BR58: 21 | BS58: 18 | BT58: 39 | BU58: 18 | BV58: 23 | BW58: 41 | BX58: 2 | BY58: 9 | BZ58: 11 | CA58: 92 | CB58: 103 | CC58: 195 | CD58: 0 | CE58: 0 | CF58: 0 | CG58: 0 | CH58: 1 | CI58: 1 | CJ58: 1 | CK58: 0 | CL58: 1 | CM58: 0 | CN58: 0 | CO58: 0 | CP58: 0 | CQ58: 3 | CR58: 3 | CS58: 0 | CT58: 0 | CU58: 0 | CV58: 0 | CW58: 1 | CX58: 1 | CY58: 1 | CZ58: 4 | DA58: 1 | DB58: 1 | DC58: 2 | DD58: 1 | DE58: 0 | DF58: 1 | DG58: 35 | DH58: 195 | DI58: 4 | DJ58: 29 | DK58: 2 | DL58: 11 | DM58: No | DN58: Yes | DO58: 6 | DP58: 8 | DQ58: 1 | DR58: 0 | DS58: 7 | DT58: 8 | DU58: 0 | DV58: Yes | DW58: No | DX58: No | DY58: No | DZ58: No | EA58: No | EI58: Individual | EJ58: No | EK58: Solid shelters | EL58: 0% | EM58: 0% | EN58: Yes | EO58: Well | EP58: Yes | EQ58: 0 | ER58: 0 | ES58: 2 | ET58: Yes | EU58: Identified waste dump outside camp | EV58: Clinic | EX58: No | EY58: No | EZ58: No | FA58: No | FB58: Yes | FC58: Yes | FD58: Yes | FE58: Yes | FF58: No | FG58: No | FH58: 0% | FI58: 96-100% | FJ58: Farming | FK58: Other | FL58: Farming | FM58: Livestock | FN58: Other | FO58: None | FP58: Farming | FQ58: Livestock | FR58: Basic Food | FS58: Basic Food | FT58: Communal building | FU58: Complementary Food | FV58: Cash/money assistance | FW58: Cash/money assistance | FX58: UNHCR | FY58: UNHCR
A59: B014 | B59: 31/7/2013 | C59: UNHCR | E59: CCCM Focal Point | G59: 24/6/2013 | H59: Camp Manager | I59: Male | L59: Religious Leader | Q59: Kachin | R59: Mogaung | S59: Nawng Kaing Htaw | T59: Nawng Kaing Htaw | U59: Mang Hawng Baptist Church | V59: MMR001CMP077 | W59: 96.94228 | X59: 25.29658 | Y59: Urban | Z59: 5 | AA59: 2012 | AB59: Yes | AC59: Yes | AD59: Yes | AE59: No | AF59: Yes | AG59: Yes | AH59: Yes | AI59: No | AJ59: Mogaug | AM59: Yes | AN59: Relife Committee | AO59: U Zaw Htoi Nan | AP59: 09-400023943 | AQ59: Yes | AR59: Yes | AS59: No | AT59: No | AU59: No | AV59: No | AW59: No | AX59: Yes | AY59: No | AZ59: Yes | BA59: Yes | BB59: Yes | BC59: 0 | BD59: 0 | BE59: 0 | BF59: 3 | BG59: 2 | BH59: 5 | BI59: 7 | BJ59: 6 | BK59: 13 | BL59: 10 | BM59: 4 | BN59: 14 | BO59: 4 | BP59: 7 | BQ59: 11 | BR59: 0 | BS59: 6 | BT59: 6 | BU59: 0 | BV59: 1 | BW59: 1 | BX59: 0 | BY59: 0 | BZ59: 0 | CA59: 24 | CB59: 26 | CC59: 50 | CD59: 0 | CE59: 0 | CF59: 0 | CG59: 0 | CH59: 0 | CI59: 0 | CJ59: 0 | CK59: 1 | CL59: 1 | CM59: 2 | CN59: 0 | CO59: 2 | CP59: 0 | CQ59: 0 | CR59: 0 | CS59: 0 | CT59: 0 | CU59: 0 | CV59: 0 | CW59: 6 | CX59: 6 | CY59: 1 | CZ59: 4 | DA59: 0 | DB59: 0 | DC59: 0 | DD59: 1 | DE59: 3 | DF59: 4 | DG59: 14 | DH59: 60 | DI59: 1 | DJ59: 4 | DK59: 2 | DL59: 6 | DM59: No | DN59: Yes | DO59: 0 | DP59: 1 | DQ59: 0 | DR59: 9 | DS59: 9 | DT59: 1 | DU59: 0 | DV59: No | DW59: No | DX59: No | DY59: No | DZ59: No | EA59: Yes | EB59: 0.5 | ED59: 0.5 | EF59: 0.5 | EG59: 0.5 | EH59: 0.5 | EI59: Individual | EJ59: Yes | EK59: Solid shelters | EO59: Borehole/hand pump | EP59: No | EQ59: 2 | ER59: 2 | ES59: 0 | ET59: No | EU59: Identified waste dump outside camp | EV59: Hospital | EX59: No | EY59: No | EZ59: Yes | FA59: No | FB59: No | FC59: No | FD59: No | FE59: No | FF59: No | FG59: No | FH59: 96-100% | FI59: 96-100% | FJ59: Mining | FK59: Other | FL59: Farming | FM59: Livestock | FN59: Other | FO59: None | FP59: Farming | FQ59: Livestock | FR59: School materials / supplies | FS59: Cash/money assistance | FT59: Medical staff (doctor, nurse, etc) | FU59: Hygiene kits | FV59: Access to job opportunities | FW59: Blankets/Winter Clothing | FX59: UNHCR | FY59: KBC, UNHCR
A60: B015 | B60: 31/7/2013 | C60: UNHCR | E60: CCCM Focal Point | G60: 24/6/2013 | H60: Camp Manager | I60: Male | L60: Religious Leader | Q60: Kachin | R60: Mogaung | S60: Urban | T60: Kyuntaw | U60: Kyun Taw Baptist Church | V60: MMR001CMP078 | W60: 96.92262 | X60: 25.30567 | Y60: Urban | Z60: 5 | AA60: 2012 | AB60: Yes | AC60: Yes | AD60: Yes | AE60: No | AF60: Yes | AG60: Yes | AH60: Yes | AI60: No | AJ60: Mogaug | AM60: Yes | AN60: Relife Committee | AO60: U Zaw Tang | AP60: 09-401537670 | AQ60: Yes | AR60: Yes | AS60: No | AT60: No | AU60: No | AV60: No | AW60: No | AX60: No | AY60: Yes | AZ60: Yes | BA60: Yes | BB60: Yes | BC60: 1 | BD60: 0 | BE60: 1 | BF60: 3 | BG60: 1 | BH60: 4 | BI60: 5 | BJ60: 1 | BK60: 6 | BL60: 10 | BM60: 3 | BN60: 13 | BO60: 4 | BP60: 5 | BQ60: 9 | BR60: 1 | BS60: 5 | BT60: 6 | BU60: 1 | BV60: 6 | BW60: 7 | BX60: 0 | BY60: 2 | BZ60: 2 | CA60: 25 | CB60: 23 | CC60: 48 | CD60: 1 | CE60: 0 | CF60: 1 | CG60: 0 | CH60: 0 | CI60: 0 | CJ60: 0 | CK60: 0 | CL60: 0 | CM60: 1 | CN60: 0 | CO60: 1 | CP60: 1 | CQ60: 0 | CR60: 1 | CS60: 0 | CT60: 1 | CU60: 1 | CV60: 1 | CW60: 1 | CX60: 2 | CY60: 0 | CZ60: 4 | DA60: 1 | DB60: 0 | DC60: 1 | DD60: 0 | DE60: 0 | DF60: 0 | DG60: 13 | DH60: 48 | DI60: 0 | DJ60: 0 | DK60: 1 | DL60: 3 | DM60: No | DN60: Yes | DO60: 0 | DP60: 0 | DQ60: 12 | DR60: 5 | DS60: 12 | DT60: 5 | DU60: 0 | DV60: Yes | DW60: No | DX60: No | DY60: No | DZ60: Yes | EA60: No | EB60: 0.375 | EF60: 0.375 | EG60: 1 | EH60: 1 | EI60: Communal | EJ60: Yes | EK60: Solid shelters | EL60: 76-95% | EM60: 0% | EN60: Yes | EO60: Borehole/hand pump | EP60: Yes | EQ60: 2 | ER60: 3 | ES60: 5 | ET60: No | EU60: Identified waste dump outside camp | EV60: Hospital | EX60: No | EY60: No | EZ60: No | FA60: Yes | FB60: No | FC60: No | FD60: No | FE60: No | FF60: No | FG60: Yes | FH60: 96-100% | FI60: 96-100% | FJ60: Livestock | FK60: None | FL60: Farming | FM60: Livestock | FN60: None | FO60: None | FP60: Farming | FQ60: Other | FR60: Firewood / fuel | FS60: Vocational training | FT60: Complementary Food | FU60: Cash/money assistance | FV60: Well / water tank | FW60: Hygiene kits | FX60: UNHCR | FY60: KBC, UNHCR
A61: E008 | B61: 30/7/2013 | C61: UNHCR | E61: CCCM Focal Point | G61: 24/6/2013 | H61: Camp Manager | I61: Male | L61: Committee Member | Q61: Kachin | R61: Mogaung | S61: Urban | T61: Natkyi kone | U61: Nat Gyi Kone Baptist Church | V61: MMR001CMP079 | W61: 96.94874 | X61: 25.30442 | Y61: Urban | Z61: 3 | AA61: 2012 | AB61: Yes | AC61: yes | AD61: Yes | AE61: No | AF61: Yes | AG61: Yes | AH61: Yes | AI61: No | AJ61: Mogaung | AM61: Yes | AN61: KBC | AO61: U Sai Khum | AP61: 09-400035242 | AQ61: Yes | AR61: Yes | AS61: No | AT61: No | AU61: No | AV61: No | AW61: No | AX61: Yes | AY61: No | AZ61: Yes | BA61: Yes | BB61: Yes | BC61: 0 | BD61: 0 | BE61: 0 | BF61: 2 | BG61: 0 | BH61: 2 | BI61: 2 | BJ61: 1 | BK61: 3 | BL61: 8 | BM61: 4 | BN61: 12 | BO61: 1 | BP61: 3 | BQ61: 4 | BR61: 2 | BS61: 5 | BT61: 7 | BU61: 2 | BV61: 6 | BW61: 8 | BX61: 2 | BY61: 2 | BZ61: 4 | CA61: 19 | CB61: 21 | CC61: 40 | CD61: 1 | CE61: 0 | CF61: 1 | CG61: 0 | CH61: 0 | CI61: 0 | CJ61: 0 | CK61: 0 | CL61: 0 | CM61: 0 | CN61: 0 | CO61: 0 | CP61: 0 | CQ61: 0 | CR61: 0 | CS61: 0 | CT61: 0 | CU61: 0 | CV61: 0 | CW61: 0 | CX61: 0 | CY61: 2 | CZ61: 2 | DA61: 0 | DB61: 1 | DC61: 1 | DD61: 0 | DE61: 1 | DF61: 1 | DG61: 12 | DH61: 40 | DI61: 1 | DJ61: 1 | DK61: 4 | DL61: 17 | DM61: No | DN61: Yes | DO61: 1 | DP61: 1 | DQ61: 7 | DR61: 0 | DS61: 8 | DT61: 1 | DU61: 0 | DV61: No | DW61: No | DX61: No | DY61: No | DZ61: No | EA61: No | EF61: No | EI61: Communal | EJ61: Yes | EK61: Solid shelters | EL61: less than 25% | EM61: less than 25% | EN61: Yes | EO61: Well | EP61: Yes | EQ61: 0 | ER61: 0 | ES61: 3 | ET61: Yes | EU61: Is getting burnt | EV61: Hospital | EW61: No | EX61: No | EY61: Yes | EZ61: No | FA61: No | FB61: No | FC61: No | FD61: No | FE61: No | FF61: No | FG61: No | FH61: 96-100% | FI61: 96-100% | FJ61: Other | FK61: None | FL61: Farming | FN61: Other | FO61: None | FP61: None | FQ61: None | FR61: Medicines | FS61: Cash/money assistance | FT61: Firewood / fuel | FU61: Women NFIs (sanitary pads, underwear, etc.) | FV61: Access to job opportunities | FW61: Hygiene kits | FX61: UNHCR | FY61: KBC, UNHCR
A62: E007 | B62: 30/7/2013 | C62: KBC | E62: Other | F62: Other (name) | G62: 29/6/2013 | H62: Camp Manager | I62: Male | L62: Religious Leader | Q62: Kachin | R62: Mohnyin | S62: Nam Mun | T62: Nam Mun | U62: Nant Mun | V62: MMR001CMP081 | W62: 96.36495 | X62: 24.99835 | Y62: Rural | Z62: 3 | AA62: 2012 | AB62: Yes | AC62: Yes | AD62: Yes | AE62: No | AF62: Yes | AG62: Yes | AH62: Yes | AI62: No | AJ62: Ho Pin | AK62: 15 | AL62: 60 | AM62: Yes | AN62: KBC | AO62: Aung Mai | AP62: 09-47035631 | AQ62: Yes | AR62: No | AS62: No | AT62: Yes | AU62: No | AV62: No | AW62: Yes | AX62: No | AY62: No | AZ62: No | BA62: Yes | BB62: Yes | BC62: 0 | BD62: 0 | BE62: 0 | BF62: 1 | BG62: 0 | BH62: 0 | BI62: 5 | BJ62: 7 | BK62: 12 | BL62: 20 | BM62: 10 | BN62: 30 | BO62: 8 | BP62: 12 | BQ62: 20 | BR62: 4 | BS62: 9 | BT62: 13 | BU62: 7 | BV62: 11 | BW62: 18 | BX62: 2 | BY62: 1 | BZ62: 3 | CA62: 47 | CB62: 50 | CC62: 97 | CD62: 1 | CE62: 1 | CF62: 2 | CG62: 0 | CH62: 0 | CI62: 0 | CJ62: 0 | CK62: 1 | CL62: 1 | CM62: 2 | CN62: 1 | CO62: 3 | CP62: 0 | CQ62: 1 | CR62: 1 | CS62: 1 | CT62: 1 | CU62: 2 | CV62: 0 | CW62: 3 | CX62: 3 | CY62: 2 | CZ62: 1 | DA62: 0 | DB62: 0 | DC62: 0 | DD62: 0 | DE62: 0 | DF62: 0 | DG62: 21 | DH62: 97 | DI62: 21 | DJ62: 97 | DK62: 2 | DL62: 8 | DM62: No | DN62: Yes | DO62: 0 | DP62: 0 | DQ62: 4 | DR62: 6 | DS62: 4 | DT62: 6 | DU62: 0 | DV62: No | DW62: No | DX62: No | DY62: No | DZ62: No | EA62: No | EC62: 1 | ED62: 1 | EF62: No | EH62: 15 | EI62: Individual | EJ62: No | EK62: Solid shelters | EL62: less than 25% | EM62: 0% | EN62: Yes | EO62: Borehole/hand pump | EP62: Yes | EQ62: 0 | ER62: 0 | ES62: 3 | ET62: No | EU62: Identified waste dump outside camp | EV62: Rural sub-centre | EX62: No | EY62: Yes | EZ62: Yes | FA62: No | FB62: Yes | FC62: No | FD62: No | FE62: No | FF62: No | FG62: No | FH62: 96-100% | FI62: 96-100% | FJ62: Trade (buying and selling) | FK62: None | FL62: Farming | FN62: Other | FO62: None | FP62: Farming | FR62: Medicines | FS62: Latrines/toilets | FT62: Vocational training | FU62: Medicines | FV62: School facilities | FW62: Well / water tank
A63: D011 | B63: 31/7/2013 | C63: KBC | E63: Other | G63: 17/6/2013 | H63: Camp Manager | I63: Male | L63: Committee Member | M63: Camp Resident | N63: Female | Q63: Kachin | R63: Hpakant | S63: Urban | T63: Ngapyawtaw | U63: Nga Pyaw Taw Baptist Nursery School | V63: MMR001CMP082 | W63: 96.31279 | X63: 25.61116 | Y63: Urban | Z63: 8 | AA63: 2012 | AB63: Yes | AC63: Yes | AD63: Yes | AE63: No | AF63: Yes | AG63: Yes | AH63: Yes | AI63: No | AJ63: Hpakan | AK63: 0 | AL63: 1 | AM63: Yes | AN63: Hpakan Baptist | AO63: Saya B Tu Jar | AP63: 09-6413346 | AQ63: Yes | AR63: No | AS63: No | AT63: Yes | AU63: No | AV63: No | AW63: Yes | AX63: No | AY63: No | AZ63: Yes | BA63: Yes | BB63: Yes | BC63: 4 | BD63: 3 | BE63: 7 | BF63: 3 | BG63: 12 | BH63: 15 | BI63: 9 | BJ63: 16 | BK63: 25 | BL63: 24 | BM63: 33 | BN63: 57 | BO63: 34 | BP63: 38 | BQ63: 72 | BR63: 28 | BS63: 34 | BT63: 62 | BU63: 26 | BV63: 40 | BW63: 66 | BX63: 3 | BY63: 6 | BZ63: 9 | CA63: 131 | CB63: 182 | CC63: 313 | CD63: 1 | CE63: 1 | CF63: 2 | CG63: 0 | CH63: 0 | CI63: 0 | CJ63: 0 | CK63: 0 | CL63: 0 | CM63: 0 | CN63: 0 | CO63: 0 | CP63: 0 | CQ63: 0 | CR63: 0 | CS63: 0 | CT63: 0 | CU63: 0 | CV63: 0 | CW63: 10 | CX63: 10 | CY63: 5 | CZ63: 25 | DA63: 2 | DB63: 0 | DC63: 2 | DD63: 1 | DE63: 0 | DF63: 1 | DG63: 87 | DH63: 313 | DI63: 87 | DJ63: 313 | DK63: 8 | DL63: 25 | DM63: Yes | DN63: Yes | DO63: 2 | DP63: 0 | DQ63: 24 | DR63: 9 | DS63: 26 | DT63: 9 | DU63: 0 | DV63: Yes | DW63: No | DX63: Yes | DY63: No | DZ63: Yes | EA63: No | EB63: 0.2 | EC63: 0.2 | ED63: 0 | EE63: 0 | EF63: 0.2 | EG63: 0.2 | EH63: 0.2 | EI63: Communal | EJ63: Yes | EK63: Community/religious building | EL63: 76-95% | EM63: 0% | EN63: Yes | EO63: Other | EP63: No | EQ63: 6 | ER63: 5 | ES63: 7 | ET63: Yes | EU63: Identified waste dump outside camp | EV63: Hospital | EX63: Yes | EY63: No | EZ63: Yes | FA63: No | FB63: No | FC63: No | FD63: No | FE63: Yes | FF63: No | FG63: No | FH63: 76-95% | FI63: 76-95% | FJ63: Trade (buying and selling) | FK63: Other | FL63: Farming | FM63: Mining | FN63: None | FO63: None | FP63: Farming | FQ63: Trade (buying and selling) | FR63: Cash/money assistance | FS63: Cash/money assistance | FT63: Well / water tank | FU63: Health facility / Clinic | FV63: Medicines | FW63: Blankets/Winter Clothing | FX63: KBC, UNHCR | FY63: Shalom, UNHCR
A64: H011 | B64: 30/7/2013 | C64: UNHCR | E64: CCCM Focal Point | G64: 14/6/2013 | H64: Camp Manager | I64: Male | L64: Committee Member | M64: Camp Resident | N64: Male | Q64: Kachin | R64: Hpakant | S64: Seik Mu | T64: Maw Shan | U64: Maw Wan, Mu-yin Baptist Church | V64: MMR001CMP091 | W64: 96.319688 | X64: 25.615202 | Y64: Urban | Z64: 8 | AA64: 2012 | AB64: Yes | AC64: Yes | AD64: Yes | AE64: No | AF64: Yes | AG64: Yes | AH64: Yes | AI64: No | AJ64: Hpakan | AK64: 1 | AL64: 0 | AM64: Yes | AN64: Maw Wan, Mu-yin Baptist Church | AO64: Sa Yar Zaw Taung | AP64: 09-47015499 | AQ64: Yes | AR64: Yes | AS64: No | AT64: No | AU64: No | AV64: No | AW64: Yes | AX64: No | AY64: No | AZ64: No | BA64: Yes | BB64: Yes | BC64: 0 | BD64: 0 | BE64: 0 | BF64: 1 | BG64: 1 | BH64: 2 | BI64: 4 | BJ64: 1 | BK64: 5 | BL64: 5 | BM64: 4 | BN64: 9 | BO64: 0 | BP64: 0 | BQ64: 0 | BR64: 2 | BS64: 3 | BT64: 5 | BU64: 3 | BV64: 2 | BW64: 5 | BX64: 0 | BY64: 1 | BZ64: 1 | CA64: 15 | CB64: 12 | CC64: 27 | CD64: 0 | CE64: 0 | CF64: 0 | CG64: 0 | CH64: 0 | CI64: 0 | CJ64: 0 | CK64: 0 | CL64: 0 | CM64: 0 | CN64: 0 | CO64: 0 | CP64: 0 | CQ64: 0 | CR64: 0 | CS64: 0 | CT64: 0 | CU64: 0 | CV64: 0 | CW64: 0 | CX64: 0 | CY64: 1 | CZ64: 3 | DA64: 0 | DB64: 0 | DC64: 0 | DD64: 0 | DE64: 0 | DF64: 0 | DG64: 5 | DH64: 27 | DI64: 5 | DJ64: 27 | DK64: 43 | DL64: 211 | DM64: No | DN64: Yes | DO64: 0 | DP64: 0 | DQ64: 5 | DR64: 0 | DS64: 5 | DT64: 0 | DU64: 0 | DV64: Yes | DW64: No | DX64: Yes | DY64: No | DZ64: Yes | EA64: No | EB64: 0.125 | ED64: 0.125 | EE64: 0.25 | EF64: 0.25 | EG64: 0.25 | EH64: 0.25 | EI64: Individual | EJ64: Yes | EK64: Community/religious building | EL64: 0% | EM64: 0% | EN64: Yes | EO64: Well | EP64: Yes | EQ64: 0 | ER64: 0 | ES64: 8 | ET64: Yes | EU64: Is getting burnt | EV64: Clinic | EX64: No | EY64: No | EZ64: No | FA64: No | FB64: No | FC64: No | FD64: No | FE64: No | FF64: No | FG64: Yes | FH64: 96-100% | FI64: 96-100% | FJ64: Mining | FK64: None | FL64: Mining | FM64: None | FN64: None | FO64: None | FP64: Farming | FQ64: Livestock | FR64: Cash/money assistance | FS64: Cash/money assistance | FU64: School materials / supplies | FW64: Basic Food | FX64: UNHCR
A65: E014 | B65: 31/7/2013 | C65: KBSS/KMSS | E65: Enumerator from camp profiling responsible organization | G65: 14/6/2013 | H65: Camp Manager | I65: Male | L65: Religious Leader | Q65: Kachin | R65: Hpakant | S65: Nam Ma Hpyit | T65: Nam Ma Hpyit | U65: Nant Ma Hpit Catholic Church | V65: MMR001CMP103 | W65: 96.341353 | X65: 25.613895 | Y65: Urban | Z65: 8 | AA65: 2013 | AB65: Yes | AC65: Yes | AD65: Yes | AE65: No | AF65: Yes | AG65: Yes | AH65: Yes | AI65: No | AJ65: Hpakant | AL65: 15 | AM65: Yes | AN65: Rc | AO65: Mung Ban Aung | AP65: 09-400031602 | AQ65: Yes | AR65: No | AS65: No | AT65: No | AU65: Yes | AV65: No | AW65: No | AX65: Yes | AY65: No | AZ65: Yes | BA65: Yes | BB65: Yes | BC65: 2 | BD65: 3 | BE65: 5 | BF65: 7 | BG65: 10 | BH65: 17 | BI65: 6 | BJ65: 13 | BK65: 19 | BL65: 42 | BM65: 33 | BN65: 75 | BO65: 46 | BP65: 39 | BQ65: 85 | BR65: 51 | BS65: 46 | BT65: 97 | BU65: 55 | BV65: 70 | BW65: 125 | BX65: 6 | BY65: 7 | BZ65: 13 | CA65: 215 | CB65: 221 | CC65: 436 | CD65: 0 | CE65: 3 | CF65: 3 | CG65: 0 | CH65: 2 | CI65: 2 | CJ65: 10 | CK65: 1 | CL65: 11 | CM65: 0 | CN65: 0 | CO65: 0 | CP65: 0 | CQ65: 1 | CR65: 1 | CS65: 0 | CT65: 1 | CU65: 1 | CV65: 2 | CW65: 6 | CX65: 8 | CY65: 0 | CZ65: 0 | DA65: 2 | DB65: 2 | DC65: 4 | DD65: 0 | DE65: 1 | DF65: 1 | DG65: 0 | DH65: 0 | DI65: 0 | DJ65: 0 | DM65: No | DN65: Yes | DO65: 2 | DP65: 2 | DQ65: 8 | DR65: 1 | DS65: 10 | DT65: 3 | DU65: 7 | DV65: No | DW65: No | DX65: No | DY65: No | DZ65: No | EA65: No | EI65: Mixed | EJ65: No | EK65: Solid shelters | EL65: 25-50% | EM65: 0% | EN65: No | EO65: Well | EP65: Yes | EQ65: 3 | ER65: 4 | ES65: 0 | ET65: Yes | EU65: Identified waste dump outside camp | EV65: Hospital | EX65: No | EY65: Yes | EZ65: No | FA65: Yes | FB65: No | FC65: No | FD65: No | FE65: No | FF65: No | FG65: No | FH65: less than 25% | FI65: less than 25% | FJ65: Mining | FK65: None | FL65: Livestock | FM65: Mining | FN65: None | FO65: None | FP65: Farming | FQ65: Trade (buying and selling) | FR65: Cash/money assistance | FS65: Cash/money assistance | FT65: Access to job opportunities | FU65: Access to job opportunities | FV65: Latrines/toilets | FW65: Vocational training | FX65: UNHCR
A66: E016 | B66: 31/7/2013 | C66: KBC | G66: 17/6/2013 | H66: Camp Manager | I66: Male | L66: Religious Leader | Q66: Kachin | R66: Hpakant | S66: Seik Mu | T66: Seik Mu | U66: Yumar Baptist Church | V66: MMR001CMP105 | W66: 96.306911 | X66: 25.59925 | Y66: Rural | Z66: 8 | AA66: 2012 | AB66: Yes | AC66: Yes | AD66: Yes | AE66: No | AF66: Yes | AG66: Yes | AH66: Yes | AI66: No | AJ66: Hpakant | AL66: 5 | AM66: Yes | AN66: Yuma (KBC) | AO66: Rev. U Naw Mai | AP66: 09-400037875 | AQ66: Yes | AR66: Yes | AS66: No | AT66: No | AU66: No | AV66: No | AW66: No | AX66: No | AY66: Yes | AZ66: No | BA66: Yes | BB66: No | BC66: 0 | BD66: 0 | BE66: 0 | BF66: 0 | BG66: 6 | BH66: 0 | BI66: 0 | BJ66: 5 | BK66: 5 | BL66: 7 | BM66: 10 | BN66: 17 | BO66: 1 | BP66: 2 | BQ66: 3 | BR66: 6 | BS66: 6 | BT66: 12 | BU66: 12 | BV66: 11 | BW66: 23 | BX66: 0 | BY66: 1 | BZ66: 1 | CA66: 26 | CB66: 41 | CC66: 67 | CD66: 1 | CE66: 1 | CF66: 2 | CG66: 0 | CH66: 0 | CI66: 0 | CJ66: 1 | CK66: 1 | CL66: 2 | CM66: 0 | CN66: 0 | CO66: 0 | CP66: 0 | CQ66: 0 | CR66: 0 | CS66: 0 | CT66: 0 | CU66: 0 | CV66: 0 | CW66: 0 | CX66: 0 | CY66: 0 | CZ66: 0 | DA66: 0 | DB66: 1 | DC66: 1 | DD66: 0 | DE66: 0 | DF66: 0 | DG66: 21 | DH66: 64 | DI66: 47 | DJ66: 156 | DK66: 27 | DL66: 50 | DM66: Yes | DN66: Yes | DO66: 2 | DP66: 0 | DQ66: 3 | DR66: 3 | DS66: 5 | DT66: 3 | DU66: 1 | DV66: No | DW66: No | DX66: No | DY66: No | DZ66: No | EA66: No | EI66: Communal | EJ66: Yes | EK66: Solid shelters | EL66: 0% | EM66: 0% | EN66: Yes | EO66: Other | EP66: Yes | EQ66: 0 | ER66: 0 | ES66: 6 | ET66: No | EU66: Identified waste dump outside camp | EV66: Clinic | EW66: No | EX66: No | EY66: No | EZ66: No | FA66: No | FB66: No | FC66: No | FD66: No | FE66: No | FF66: No | FG66: Yes | FH66: 96-100% | FI66: 96-100% | FJ66: Mining | FK66: Trade (buying and selling) | FL66: Trade (buying and selling) | FM66: Mining | FN66: Handicrafts | FO66: Other | FP66: Handicrafts | FQ66: Other | FR66: Well / water tank | FS66: Hygiene kits | FT66: Vocational training | FU66: Access to job opportunities | FV66: Cash/money assistance | FW66: Cash/money assistance | FX66: UNHCR | FY66: Shalom, UNHCR
A67: D004 | B67: 30/7/2013 | C67: UNHCR | E67: Enumerator from camp profiling responsible organization | G67: 13/6/2013 | H67: Camp Manager | I67: Male | L67: Committee Member | M67: Camp Resident | N67: Female | Q67: Kachin | R67: Hpakant | S67: Seik Mu | T67: Sai Taung (Ywar Haung) | U67: Chin Church, Seik Mu | V67: MMR001CMP109 | W67: 96.283377 | X67: 25.582065 | Y67: Rural | Z67: 8 | AA67: 2013 | AB67: Yes | AC67: Yes | AD67: Yes | AE67: No | AF67: Yes | AG67: Yes | AH67: Yes | AI67: No | AJ67: Hpakan | AK67: 3 | AL67: 10 | AM67: Yes | AN67: Chin Baptist | AO67: L Man Kyel | AP67: 09-40000191 | AQ67: Yes | AR67: Yes | AS67: No | AT67: No | AU67: No | AV67: No | AW67: No | AX67: No | AY67: Yes | AZ67: Yes | BA67: Yes | BB67: Yes | BC67: 0 | BD67: 0 | BE67: 0 | BF67: 0 | BG67: 1 | BH67: 1 | BI67: 0 | BJ67: 0 | BK67: 0 | BL67: 1 | BM67: 3 | BN67: 4 | BO67: 1 | BP67: 1 | BQ67: 2 | BR67: 4 | BS67: 1 | BT67: 5 | BU67: 0 | BV67: 1 | BW67: 1 | BX67: 1 | BY67: 0 | BZ67: 1 | CA67: 7 | CB67: 7 | CC67: 14 | CD67: 1 | CE67: 0 | CF67: 1 | CG67: 0 | CH67: 0 | CI67: 0 | CJ67: 0 | CK67: 0 | CL67: 0 | CM67: 0 | CN67: 0 | CO67: 0 | CP67: 3 | CQ67: 0 | CR67: 3 | CS67: 1 | CT67: 0 | CU67: 1 | CV67: 0 | CW67: 0 | CX67: 0 | CY67: 0 | CZ67: 1 | DA67: 0 | DB67: 0 | DC67: 0 | DD67: 0 | DE67: 0 | DF67: 0 | DG67: 2 | DH67: 14 | DI67: 6 | DJ67: 24 | DK67: 4 | DL67: 10 | DM67: No | DN67: Yes | DO67: 0 | DP67: 0 | DQ67: 4 | DR67: 1 | DS67: 4 | DT67: 1 | DU67: 0 | DV67: No | DW67: No | DX67: No | DY67: No | DZ67: Yes | EA67: No | EB67: 0.375 | EC67: 0.25 | ED67: 0.25 | EE67: 0.125 | EF67: 0.125 | EG67: 0.375 | EH67: 0.375 | EI67: Individual | EJ67: Yes | EK67: Community/religious building | EL67: 0% | EM67: 0% | EN67: Yes | EO67: Rivers, springs, etc. | EP67: Yes | EQ67: 0 | ER67: 0 | ES67: 1 | ET67: No | EU67: Identified waste dump outside camp | EV67: Clinic | EX67: No | EY67: No | EZ67: No | FA67: No | FB67: No | FC67: No | FD67: No | FE67: No | FF67: No | FG67: Yes | FH67: 76-95% | FI67: 76-95% | FJ67: Farming | FK67: None | FL67: Farming | FM67: Livestock | FN67: Farming | FO67: None | FP67: Farming | FQ67: Livestock | FR67: Individual shelter/houses | FS67: Basic Food | FT67: Basic Food | FU67: Well / water tank | FV67: Well / water tank | FX67: UNHCR
A68: F007 | B68: 30/7/2013 | C68: DRC | E68: Enumerator from camp profiling responsible organization | G68: 23/6/2013 | H68: Camp Manager | I68: Male | L68: Religious Leader | M68: Camp Resident | N68: Female | Q68: Kachin | R68: Waingmaw | S68: Saga Pa (Sadung Sub-township) | T68: Zai Aung | U68: Zai Awng / Mung Ga Zup | V68: MMR001CMP111 | W68: 97.75679 | X68: 25.10667 | Y68: Rural | Z68: 11 | AA68: 2011 | AB68: Yes | AC68: Yes | AD68: Yes | AE68: No | AF68: Yes | AG68: No | AH68: No | AI68: No | AJ68: Waingmaw | AK68: 60 | AM68: Yes | AN68: IRRC | AO68: Kareng La Nu | AP68: 1539 4803029 | AQ68: Yes | AR68: No | AS68: No | AT68: Yes | AU68: No | AV68: No | AW68: Yes | AX68: No | AY68: No | AZ68: No | BA68: Yes | BB68: No | BC68: 16 | BD68: 12 | BE68: 28 | BF68: 37 | BG68: 26 | BH68: 63 | BI68: 127 | BJ68: 118 | BK68: 245 | BL68: 278 | BM68: 261 | BN68: 539 | BO68: 187 | BP68: 186 | BQ68: 373 | BR68: 219 | BS68: 358 | BT68: 577 | BU68: 241 | BV68: 366 | BW68: 607 | BX68: 105 | BY68: 81 | BZ68: 186 | CA68: 1210 | CB68: 1408 | CC68: 2618 | CD68: 10 | CE68: 12 | CF68: 22 | CG68: 3 | CH68: 0 | CI68: 3 | CJ68: 53 | CK68: 69 | CL68: 122 | CM68: 0 | CN68: 0 | CO68: 0 | CP68: 0 | CQ68: 0 | CR68: 0 | CS68: 3 | CT68: 7 | CU68: 10 | CV68: 41 | CW68: 5 | CX68: 46 | CY68: 42 | CZ68: 78 | DA68: 15 | DB68: 8 | DC68: 23 | DD68: 7 | DE68: 1 | DF68: 8 | DG68: 630 | DH68: 2618 | DI68: 11 | DJ68: 25 | DK68: 3 | DL68: 10 | DM68: Yes | DN68: Yes | DO68: 19 | DP68: 4 | DQ68: 0 | DR68: 1 | DS68: 19 | DT68: 5 | DU68: 3 | DV68: Yes | DW68: Yes | DX68: No | DY68: Yes | DZ68: Yes | EA68: No | EI68: Individual | EJ68: Yes | EK68: Solid shelters | EL68: 76-95% | EM68: less than 25% | EN68: Yes | EO68: Rivers, springs, etc. | EP68: No | EQ68: 0 | ER68: 0 | ES68: 80 | ET68: No | EU68: Is getting burnt | EV68: Clinic | EX68: Yes | EY68: No | EZ68: Yes | FA68: No | FB68: Yes | FC68: No | FD68: Yes | FE68: No | FF68: No | FG68: No | FH68: 76-95% | FI68: 76-95% | FJ68: Other | FK68: None | FL68: Farming | FM68: Livestock | FN68: Other | FO68: None | FP68: Farming | FQ68: Livestock | FR68: School facilities | FS68: Access to job opportunities | FT68: Other | FU68: Cash/money assistance | FV68: Other | FW68: Kitchen sets | FX68: IRRC, UNHCR, KBC, DRC | FY68: KBC, UNHCR
A69: F009 | B69: 30/7/2013 | C69: DRC | E69: Enumerator from camp profiling responsible organization | G69: 24/6/2013 | H69: Camp Manager | I69: Male | L69: Authority | M69: Camp Resident | N69: Male | Q69: Kachin | R69: Waingmaw | S69: Saga Pa (Sadung Sub-township) | T69: Saga Pa | U69: Border Post 8 | V69: MMR001CMP113 | W69: 97.915833 | X69: 25.220278 | Y69: Forest/bush | Z69: 11 | AA69: 2011 | AB69: Yes | AC69: Yes | AD69: Yes | AE69: No | AF69: Yes | AG69: Yes | AH69: Yes | AI69: No | AJ69: Sadung | AK69: 30 | AL69: 720 | AM69: Yes | AN69: IRRC | AO69: U Maran Naw | AP69: 1539 39 27048 | AQ69: Yes | AR69: No | AS69: Yes | AT69: No | AU69: No | AV69: No | AW69: No | AX69: No | AY69: Yes | AZ69: Yes | BA69: Yes | BB69: No | BC69: 2 | BD69: 5 | BE69: 7 | BF69: 16 | BG69: 11 | BH69: 27 | BI69: 36 | BJ69: 26 | BK69: 62 | BL69: 75 | BM69: 70 | BN69: 145 | BO69: 31 | BP69: 26 | BQ69: 57 | BR69: 55 | BS69: 77 | BT69: 132 | BU69: 50 | BV69: 65 | BW69: 115 | BX69: 23 | BY69: 41 | BZ69: 64 | CA69: 288 | CB69: 321 | CC69: 609 | CD69: 4 | CE69: 1 | CF69: 5 | CG69: 4 | CH69: 0 | CI69: 4 | CJ69: 4 | CK69: 1 | CL69: 5 | CM69: 8 | CN69: 9 | CO69: 17 | CP69: 3 | CQ69: 2 | CR69: 5 | CS69: 3 | CT69: 2 | CU69: 5 | CV69: 0 | CW69: 4 | CX69: 4 | CY69: 5 | CZ69: 67 | DA69: 2 | DB69: 17 | DC69: 19 | DD69: 2 | DE69: 13 | DF69: 15 | DG69: 132 | DH69: 549 | DI69: 41 | DJ69: 206 | DK69: 0 | DL69: 0 | DM69: Yes | DN69: Yes | DO69: 6 | DP69: 4 | DQ69: 1 | DR69: 0 | DS69: 7 | DT69: 4 | DU69: 1 | DV69: Yes | DW69: Yes | DX69: No | DY69: Yes | DZ69: Yes | EA69: No | EB69: 15 | EH69: 30 | EI69: Individual | EJ69: Yes | EK69: Solid shelters | EL69: 25-50% | EM69: less than 25% | EN69: Yes | EO69: Rivers, springs, etc. | EP69: Yes | EQ69: 0 | ER69: 0 | ES69: 90 | ET69: No | EU69: Common identified waste dump inside camp | EV69: Clinic | EX69: No | EY69: Yes | EZ69: Yes | FA69: Yes | FB69: Yes | FC69: No | FD69: Yes | FE69: No | FF69: No | FG69: No | FH69: 51-75% | FI69: 25-50% | FJ69: Other | FK69: None | FL69: Farming | FM69: Trade (buying and selling) | FN69: None | FO69: None | FP69: Farming | FQ69: Trade (buying and selling) | FR69: Other | FS69: Other | FT69: School facilities | FU69: School facilities | FV69: Individual shelter/houses | FW69: Communal building | FX69: UNHCR, KMSS, DRC | FY69: KMSS, UNHCR
A70: F006 | B70: 30/7/2013 | C70: DRC | E70: Enumerator from camp profiling responsible organization | G70: 23/6/2013 | H70: Camp Resident | I70: Male | L70: Committee Member | M70: Camp Resident | N70: Male | Q70: Kachin | R70: Waingmaw | S70: Saga Pa (Sadung Sub-township) | T70: Hkau Shau | U70: Hkau Shau (BP 12) | V70: MMR001CMP115 | W70: 97.807183 | X70: 25.200333 | Y70: Rural | Z70: 12 | AA70: 2011 | AB70: Yes | AC70: Yes | AD70: Yes | AE70: No | AF70: Yes | AG70: Yes | AH70: Yes | AI70: No | AJ70: Shadung | AL70: 600 | AM70: Yes | AN70: IRRC | AO70: Ngw si le | AP70: 6245531 | AQ70: Yes | AR70: No | AS70: NO | AT70: No | AU70: Yes | AV70: No | AW70: No | AX70: No | AY70: Yes | AZ70: No | BA70: Yes | BB70: No | BC70: 1 | BD70: 3 | BE70: 4 | BF70: 28 | BG70: 10 | BH70: 38 | BI70: 41 | BJ70: 39 | BK70: 80 | BL70: 133 | BM70: 122 | BN70: 255 | BO70: 87 | BP70: 102 | BQ70: 189 | BR70: 168 | BS70: 143 | BT70: 311 | BU70: 99 | BV70: 111 | BW70: 210 | BX70: 40 | BY70: 33 | BZ70: 73 | CA70: 597 | CB70: 563 | CC70: 1160 | CD70: 6 | CE70: 0 | CF70: 6 | CG70: 1 | CH70: 2 | CI70: 3 | CJ70: 2 | CK70: 2 | CL70: 4 | CM70: 0 | CN70: 0 | CO70: 0 | CP70: 5 | CQ70: 1 | CR70: 6 | CS70: 0 | CT70: 1 | CU70: 1 | CV70: 0 | CW70: 3 | CX70: 3 | CY70: 21 | CZ70: 33 | DA70: 4 | DB70: 0 | DC70: 4 | DD70: 0 | DE70: 0 | DF70: 0 | DG70: 171 | DH70: 1164 | DI70: 5 | DJ70: 44 | DK70: 5 | DL70: 40 | DM70: Yes | DN70: Yes | DO70: 9 | DP70: 3 | DQ70: 1 | DR70: 0 | DS70: 10 | DT70: 3 | DU70: 2 | DV70: Yes | DW70: Yes | DX70: No | DY70: Yes | DZ70: Yes | EA70: No | EI70: Individual | EJ70: No | EK70: Solid shelters | EL70: 96-100% | EM70: 0% | EN70: Yes | EO70: Rivers, springs, etc. | EP70: No | EQ70: 0 | ER70: 0 | ES70: 60 | ET70: No | EU70: Is getting burnt | EV70: Hospital | EX70: No | EY70: Yes | EZ70: No | FA70: Yes | FB70: Yes | FC70: No | FD70: No | FE70: No | FF70: No | FG70: No | FH70: 51-75% | FI70: 25-50% | FJ70: None | FK70: None | FL70: Farming | FM70: Livestock | FN70: None | FO70: None | FP70: Livestock | FQ70: Trade (buying and selling) | FR70: Other | FS70: Other | FT70: Other | FU70: Well / water tank | FV70: Well / water tank | FW70: Access to job opportunities | FX70: KBC, DRC | FY70: Shalom, DRC
A71: H008 | B71: 30/7/2013 | C71: DRC | E71: Enumerator from camp profiling responsible organization | G71: 25/6/2013 | H71: Camp Resident | I71: Male | L71: Committee Member | M71: Camp Manager | N71: Male | Q71: Kachin | R71: Waingmaw | S71: Nam Sang Yang | T71: Nam Sang Yang | U71: Woi Chyai | V71: MMR001CMP116 | W71: 97.567117 | X71: 24.768383 | Y71: Urban | Z71: 6 | AA71: 2011 | AB71: Yes | AC71: Yes | AD71: Yes | AE71: No | AF71: Yes | AG71: Yes | AH71: Yes | AI71: No | AJ71: Laiza | AK71: 0 | AL71: 0 | AM71: Yes | AN71: IRRC | AO71: N Gang Ja La | AP71: 153686 6579 43 | AQ71: Yes | AR71: No | AS71: No | AT71: Yes | AU71: No | AV71: No | AW71: No | AX71: No | AY71: Yes | AZ71: No | BA71: Yes | BB71: Yes | BC71: 21 | BD71: 26 | BE71: 47 | BF71: 89 | BG71: 66 | BH71: 155 | BI71: 47 | BJ71: 62 | BK71: 109 | BL71: 82 | BM71: 108 | BN71: 190 | BO71: 329 | BP71: 347 | BQ71: 676 | BR71: 333 | BS71: 388 | BT71: 721 | BU71: 1027 | BV71: 1066 | BW71: 2093 | BX71: 161 | BY71: 152 | BZ71: 313 | CA71: 2089 | CB71: 2215 | CC71: 4304 | CD71: 28 | CE71: 20 | CF71: 48 | CG71: 0 | CH71: 1 | CI71: 1 | CJ71: 8 | CK71: 2 | CL71: 10 | CM71: 0 | CN71: 0 | CO71: 0 | CP71: 0 | CQ71: 0 | CR71: 0 | CS71: 1 | CT71: 0 | CU71: 1 | CV71: 0 | CW71: 114 | CX71: 114 | CY71: 40 | CZ71: 96 | DA71: 6 | DB71: 13 | DC71: 19 | DD71: 0 | DE71: 0 | DF71: 0 | DG71: 842 | DH71: 4304 | DI71: 13 | DJ71: 58 | DK71: 2 | DL71: 13 | DM71: Yes | DN71: Yes | DO71: 5 | DP71: 1 | DQ71: 1 | DR71: 0 | DS71: 6 | DT71: 1 | DU71: 2 | DV71: Yes | DW71: Yes | DX71: No | DY71: No | DZ71: No | EA71: No | EB71: 1 | ED71: 0.25 | EF71: 0.75 | EI71: Individual | EJ71: Yes | EK71: Community/religious building | EL71: 25-50% | EM71: 0% | EN71: Yes | EO71: Rivers, springs, etc. | EP71: No | EQ71: 0 | ER71: 0 | ES71: 73 | ET71: No | EU71: Is getting burnt | EV71: Hospital | EX71: Yes | EY71: No | EZ71: No | FA71: Yes | FB71: Yes | FC71: Yes | FD71: Yes | FE71: No | FF71: No | FG71: No | FH71: 96-100% | FI71: 96-100% | FJ71: Trade (buying and selling) | FK71: Other | FL71: Farming | FM71: Trade (buying and selling) | FN71: Other | FO71: None | FP71: Farming | FQ71: Livestock | FR71: Well / water tank | FS71: Complementary Food | FT71: Cash/money assistance | FU71: Women NFIs (sanitary pads, underwear, etc.) | FV71: Vocational training | FW71: Cash/money assistance | FX71: DRC, Shalom
A72: H007 | B72: 30/7/2013 | C72: DRC | E72: Enumerator from camp profiling responsible organization | G72: 26/6/2013 | H72: Camp Resident | I72: Male | L72: Committee Member | M72: Other | N72: Female | Q72: Kachin | R72: Waingmaw | S72: Nam Sang Yang | T72: Nam Sang Yang | U72: Laiza Market 3 / Laiza Gat | V72: MMR001CMP117 | W72: 97.551717 | X72: 24.746817 | Y72: Urban | Z72: 6 | AA72: 2011 | AB72: Yes | AC72: Yes | AD72: Yes | AE72: No | AF72: Yes | AG72: Yes | AH72: Yes | AI72: No | AJ72: Laiza | AL72: 10 | AM72: Yes | AN72: IRRC | AO72: Mading Tu Mai | AP72: 89 34002 | AQ72: Yes | AR72: No | AS72: No | AT72: No | AU72: Yes | AV72: No | AW72: No | AX72: No | AY72: Yes | AZ72: No | BA72: Yes | BB72: No | BC72: 3 | BD72: 9 | BE72: 12 | BF72: 34 | BG72: 32 | BH72: 66 | BI72: 84 | BJ72: 91 | BK72: 175 | BL72: 201 | BM72: 202 | BN72: 403 | BO72: 122 | BP72: 163 | BQ72: 285 | BR72: 152 | BS72: 341 | BT72: 493 | BU72: 147 | BV72: 290 | BW72: 437 | BX72: 58 | BY72: 82 | BZ72: 140 | CA72: 801 | CB72: 1210 | CC72: 2011 | CD72: 12 | CE72: 3 | CF72: 15 | CG72: 1 | CH72: 1 | CI72: 2 | CJ72: 10 | CK72: 9 | CL72: 19 | CM72: 0 | CN72: 0 | CO72: 0 | CP72: 1 | CQ72: 0 | CR72: 1 | CS72: 2 | CT72: 5 | CU72: 7 | CV72: 0 | CW72: 18 | CX72: 18 | CY72: 10 | CZ72: 25 | DA72: 10 | DB72: 8 | DC72: 18 | DD72: 0 | DE72: 0 | DF72: 0 | DG72: 467 | DH72: 2011 | DI72: 4 | DJ72: 16 | DK72: 1 | DL72: 7 | DM72: No | DN72: Yes | DO72: 2 | DP72: 1 | DQ72: 1 | DR72: 0 | DS72: 3 | DT72: 1 | DU72: 1 | DV72: Yes | DW72: Yes | DX72: Yes | DY72: Yes | DZ72: Yes | EA72: No | EB72: 2 | EE72: 0.125 | EF72: 1.1 | EG72: 1.1 | EH72: 1.1 | EI72: Individual | EJ72: Yes | EK72: Community/religious building | EL72: 25-50% | EM72: 51-75% | EN72: Yes | EO72: Other | EP72: No | EQ72: 0 | ER72: 0 | ES72: 4 | ET72: No | EU72: Is getting burnt | EV72: Clinic | EX72: No | EY72: Yes | EZ72: No | FA72: No | FB72: Yes | FC72: Yes | FD72: No | FE72: No | FF72: Yes | FG72: No | FH72: 76-95% | FI72: 25-50% | FJ72: Other | FK72: None | FL72: Farming | FM72: Livestock | FN72: Other | FO72: None | FP72: Farming | FQ72: Trade (buying and selling) | FR72: Complementary Food | FS72: Cash/money assistance | FT72: School materials / supplies | FU72: Latrines/toilets | FV72: Cash/money assistance | FW72: Bathing spaces
A73: F010 | B73: 31/7/2013 | C73: DRC | E73: Enumerator from camp profiling responsible organization | G73: 23/6/2013 | H73: Camp Resident | I73: Male | L73: Committee Member | M73: Camp Resident | N73: Male | Q73: Kachin | R73: Waingmaw | S73: Ma Ga Ran Yang | T73: Ma Ga Ran Yang | U73: Maga Yang | V73: MMR001CMP119 | W73: 97.71523 | X73: 24.98025 | Y73: Rural | Z73: 6 | AA73: 2011 | AB73: Yes | AC73: Yes | AD73: Yes | AE73: No | AF73: Yes | AG73: Yes | AH73: No | AI73: No | AJ73: Waingmaw | AK73: 60 | AL73: 240 | AM73: Yes | AN73: IRRC | AO73: Kawje Yaw San | AP73: 18008829 779 | AQ73: Yes | AR73: No | AS73: No | AT73: Yes | AU73: No | AV73: No | AW73: No | AX73: No | AY73: Yes | AZ73: No | BA73: Yes | BB73: Yes | BC73: 27 | BD73: 22 | BE73: 49 | BF73: 31 | BG73: 29 | BH73: 60 | BI73: 158 | BJ73: 135 | BK73: 293 | BL73: 283 | BM73: 314 | BN73: 597 | BO73: 198 | BP73: 210 | BQ73: 408 | BR73: 234 | BS73: 291 | BT73: 525 | BU73: 304 | BV73: 379 | BW73: 683 | BX73: 102 | BY73: 125 | BZ73: 227 | CA73: 1337 | CB73: 1505 | CC73: 2842 | CD73: 20 | CE73: 9 | CF73: 29 | CG73: 1 | CH73: 1 | CI73: 2 | CJ73: 5 | CK73: 8 | CL73: 13 | CM73: 12 | CN73: 12 | CO73: 24 | CP73: 1 | CQ73: 0 | CR73: 1 | CS73: 0 | CT73: 0 | CU73: 0 | CV73: 0 | CW73: 20 | CX73: 20 | CY73: 27 | CZ73: 23 | DA73: 12 | DB73: 8 | DC73: 20 | DD73: 6 | DE73: 6 | DF73: 12 | DG73: 627 | DH73: 2842 | DI73: 23 | DJ73: 75 | DK73: 0 | DL73: 0 | DM73: Yes | DN73: Yes | DO73: 10 | DP73: 1 | DQ73: 1 | DR73: 0 | DS73: 11 | DT73: 1 | DU73: 1 | DV73: No | DW73: No | DX73: Yes | DY73: No | DZ73: No | EA73: No | EB73: 6 | EH73: 50 | EI73: Individual | EJ73: Yes | EK73: Solid shelters | EL73: 96-100% | EM73: 0% | EN73: Yes | EO73: Rivers, springs, etc. | EP73: Yes | EQ73: 0 | ER73: 0 | ES73: 190 | ET73: No | EU73: Identified waste dump outside camp | EV73: Clinic | EX73: Yes | EY73: Yes | EZ73: Yes | FA73: Yes | FB73: Yes | FC73: Yes | FD73: Yes | FE73: Yes | FF73: No | FG73: No | FH73: 76-95% | FI73: 76-95% | FJ73: None | FK73: None | FL73: Farming | FM73: Livestock | FN73: Livestock | FO73: Trade (buying and selling) | FP73: Farming | FQ73: Livestock | FR73: Well / water tank | FS73: Well / water tank | FT73: Access to job opportunities | FU73: Access to job opportunities | FV73: School materials / supplies | FW73: Medicines | FX73: IRRC, KMSS, UNHCR | FY73: KMSS, DRC
A74: C010 | B74: 30/7/2013 | C74: RANIR | E74: Enumerator from camp profiling responsible organization | G74: 23/6/2013 | H74: Camp Resident | I74: Male | L74: Committee Member | M74: Other | N74: Male | Q74: Kachin | R74: Waingmaw | S74: Nam Sang Yang | T74: Pa Jau | U74: Pajau / Jan Mai | V74: MMR001CMP120 | W74: 97.751389 | X74: 24.831944 | Y74: Rural | Z74: 7 | AA74: 2011 | AB74: Yes | AC74: Yes | AD74: Yes | AE74: No | AF74: Yes | AG74: Yes | AH74: Yes | AI74: No | AJ74: Waingmaw | AK74: 80 | AL74: 270 | AM74: Yes | AN74: IDP and Refugee Relief Committee (IRRC) | AO74: U Zaw Tar | AP74: +86 13368827604 | AQ74: Yes | AR74: No | AS74: No | AT74: Yes | AU74: No | AV74: No | AW74: No | AX74: No | AY74: Yes | AZ74: No | BA74: Yes | BB74: No | BC74: 6 | BD74: 4 | BE74: 10 | BF74: 12 | BG74: 6 | BH74: 18 | BI74: 11 | BJ74: 12 | BK74: 23 | BL74: 24 | BM74: 19 | BN74: 43 | BO74: 7 | BP74: 4 | BQ74: 11 | BR74: 16 | BS74: 50 | BT74: 66 | BU74: 6 | BV74: 21 | BW74: 27 | BX74: 6 | BY74: 7 | BZ74: 13 | CA74: 88 | CB74: 123 | CC74: 211 | CD74: 0 | CE74: 0 | CF74: 0 | CG74: 1 | CH74: 1 | CI74: 2 | CJ74: 0 | CK74: 0 | CL74: 0 | CM74: 1 | CN74: 4 | CO74: 5 | CP74: 7 | CQ74: 1 | CR74: 8 | CS74: 0 | CT74: 0 | CU74: 0 | CV74: 0 | CW74: 2 | CX74: 2 | CY74: 11 | CZ74: 18 | DA74: 1 | DB74: 1 | DC74: 2 | DD74: 0 | DE74: 0 | DF74: 0 | DG74: 60 | DH74: 211 | DI74: 9 | DJ74: 24 | DK74: 13 | DL74: 35 | DM74: No | DN74: Yes | DO74: 0 | DP74: 0 | DQ74: 5 | DR74: 1 | DS74: 5 | DT74: 1 | DU74: 1 | DV74: No | DW74: No | DX74: No | DY74: No | DZ74: No | EA74: Yes | EI74: Individual | EJ74: Yes | EK74: Solid shelters | EL74: 76-95% | EM74: 0% | EN74: Yes | EO74: Rivers, springs, etc. | EP74: Yes | EQ74: 0 | ER74: 0 | ES74: 11 | ET74: No | EU74: Identified waste dump outside camp | EV74: Rural centre | EX74: No | EY74: Yes | EZ74: Yes | FA74: Yes | FB74: Yes | FC74: Yes | FD74: Yes | FE74: Yes | FF74: Yes | FG74: No | FH74: 96-100% | FI74: 96-100% | FJ74: None | FK74: None | FL74: Farming | FM74: Livestock | FN74: Handicrafts | FO74: None | FP74: Farming | FQ74: Livestock | FR74: Cash/money assistance | FS74: Cash/money assistance | FT74: Firewood / fuel | FU74: Other | FV74: Vocational training | FX74: KBC, DRC | FY74: KBC, UNHCR
A75: B010 | B75: 30/7/2013 | C75: RANIR | E75: Enumerator from camp profiling responsible organization | G75: 24/6/2013 | H75: Camp Manager | I75: Male | L75: Authority | M75: Camp Resident | N75: Male | Q75: Kachin | R75: Momauk | S75: Ton Hone Yang (Dawthponeyan Sub-township) | T75: Laiza | U75: Je Yang Hka | V75: MMR001CMP121 | W75: 97.568283 | X75: 24.688167 | Y75: Rural | Z75: 6 | AA75: 2012 | AB75: Yes | AC75: Yes | AD75: Yes | AE75: No | AF75: Yes | AG75: Yes | AH75: Yes | AI75: No | AJ75: Laiza | AK75: 5 | AL75: 30 | AM75: Yes | AN75: IRRC | AO75: U Brang Shaung | AP75: 86-13312722011 | AQ75: Yes | AR75: Yes | AS75: No | AT75: No | AU75: No | AV75: No | AW75: Yes | AX75: No | AY75: No | AZ75: No | BA75: Yes | BB75: No | BC75: 153 | BD75: 173 | BE75: 326 | BF75: 188 | BG75: 173 | BH75: 361 | BI75: 345 | BJ75: 365 | BK75: 710 | BL75: 932 | BM75: 702 | BN75: 1634 | BO75: 643 | BP75: 663 | BQ75: 1306 | BR75: 1045 | BS75: 1026 | BT75: 2071 | BU75: 805 | BV75: 878 | BW75: 1683 | BX75: 202 | BY75: 233 | BZ75: 435 | CA75: 4313 | CB75: 4213 | CC75: 8526 | CD75: 49 | CE75: 7 | CF75: 56 | CG75: 0 | CH75: 0 | CI75: 0 | CJ75: 9 | CK75: 16 | CL75: 25 | CM75: 0 | CN75: 0 | CO75: 0 | CP75: 5 | CQ75: 6 | CR75: 11 | CS75: 2 | CT75: 4 | CU75: 6 | CV75: 0 | CW75: 75 | CX75: 75 | CY75: 78 | CZ75: 84 | DA75: 21 | DB75: 26 | DC75: 47 | DD75: 8 | DE75: 6 | DF75: 14 | DG75: 1643 | DH75: 8556 | DI75: 15 | DJ75: 112 | DK75: 1 | DL75: 3 | DM75: Yes | DN75: Yes | DO75: 4 | DP75: 1 | DQ75: 6 | DR75: 1 | DS75: 10 | DT75: 2 | DU75: 3 | DV75: Yes | DW75: Yes | DX75: Yes | DY75: Yes | DZ75: Yes | EA75: No | EH75: 5 | EI75: Individual | EJ75: Yes | EK75: Solid shelters | EL75: 25-50% | EM75: 0% | EN75: No | EO75: Rivers, springs, etc. | EP75: No | EQ75: 0 | ER75: 0 | ES75: 497 | ET75: No | EU75: Is getting burnt | EV75: Hospital | EX75: Yes | EY75: Yes | EZ75: Yes | FA75: Yes | FB75: Yes | FC75: Yes | FD75: Yes | FE75: Yes | FF75: Yes | FG75: No | FH75: 76-95% | FI75: 76-95% | FJ75: Farming | FK75: Other | FL75: Farming | FM75: Trade (buying and selling) | FN75: Trade (buying and selling) | FO75: Other | FP75: Farming | FQ75: Trade (buying and selling) | FR75: Basic Food | FS75: Basic Food | FT75: School facilities | FU75: Medicines | FV75: Cash/money assistance | FW75: Cash/money assistance | FX75: IRRC, UNHCR | FY75: KBSS, UNHCR, DRC
A76: F008 | B76: 30/7/2013 | C76: DRC | E76: Enumerator from camp profiling responsible organization | G76: 22/6/2013 | H76: Camp Manager | I76: Male | L76: Authority | M76: Other | N76: Female | Q76: Kachin | R76: Momauk | S76: In Baw Mai Kyin (Dawthponeyan Sub-township) | T76: Hpun Lum Yang | U76: Hpun Lum Yang | V76: MMR001CMP122 | W76: 97.573167 | X76: 24.661467 | Y76: Rural | Z76: 6 | AA76: 2011 | AB76: Yes | AC76: Yes | AD76: Yes | AE76: No | AF76: Yes | AG76: Yes | AH76: Yes | AI76: No | AJ76: Laiza/ Daw hpung Yang | AK76: 2 | AL76: 30 | AM76: Yes | AN76: IRRC | AO76: Lashi Tang Gum | AP76: 133249 75780 | AQ76: Yes | AR76: No | AS76: No | AT76: Yes | AU76: No | AV76: No | AW76: No | AX76: No | AY76: Yes | AZ76: No | BA76: Yes | BB76: Yes | BC76: 18 | BD76: 15 | BE76: 33 | BF76: 20 | BG76: 28 | BH76: 48 | BI76: 76 | BJ76: 81 | BK76: 157 | BL76: 167 | BM76: 237 | BN76: 404 | BO76: 196 | BP76: 183 | BQ76: 379 | BR76: 256 | BS76: 218 | BT76: 474 | BU76: 292 | BV76: 237 | BW76: 529 | BX76: 43 | BY76: 76 | BZ76: 119 | CA76: 1068 | CB76: 1075 | CC76: 2143 | CD76: 0 | CE76: 0 | CF76: 0 | CG76: 1 | CH76: 0 | CI76: 1 | CJ76: 0 | CK76: 2 | CL76: 2 | CM76: 0 | CN76: 0 | CO76: 0 | CP76: 3 | CQ76: 4 | CR76: 7 | CS76: 0 | CT76: 0 | CU76: 0 | CV76: 0 | CW76: 110 | CX76: 110 | CY76: 29 | CZ76: 64 | DA76: 9 | DB76: 13 | DC76: 22 | DD76: 7 | DE76: 2 | DF76: 9 | DG76: 439 | DH76: 2144 | DI76: 9 | DJ76: 32 | DK76: 11 | DL76: 58 | DM76: Yes | DN76: Yes | DO76: 11 | DP76: 4 | DQ76: 3 | DR76: 1 | DS76: 14 | DT76: 5 | DU76: 3 | DV76: Yes | DW76: Yes | DX76: Yes | DY76: Yes | DZ76: Yes | EA76: No | EB76: 2 | EG76: 2 | EH76: 2 | EI76: Individual | EJ76: Yes | EK76: Solid shelters | EL76: 96-100% | EM76: 0% | EN76: No | EO76: Well | EP76: Yes | EQ76: 0 | ER76: 0 | ES76: 180 | ET76: No | EU76: Is getting burnt | EV76: Clinic | EX76: Yes | EY76: Yes | EZ76: Yes | FA76: Yes | FB76: Yes | FC76: Yes | FD76: Yes | FE76: Yes | FF76: Yes | FG76: No | FH76: 96-100% | FI76: 76-95% | FJ76: Handicrafts | FK76: Other | FL76: Farming | FM76: Livestock | FN76: Other | FO76: None | FP76: Farming | FQ76: Livestock | FR76: Medicines | FS76: Other | FT76: Firewood / fuel | FU76: Complementary Food | FV76: Cash/money assistance | FW76: Other | FX76: IRRC, UNHCR | FY76: KMSS, Shalom, DRC
A77: B008 | B77: 30/7/2013 | C77: RANIR | E77: Enumerator from camp profiling responsible organization | G77: 22/6/2013 | H77: Camp Resident | I77: Male | L77: Committee Member | M77: Camp Resident | N77: Female | Q77: Kachin | R77: Momauk | S77: Zee Wone Gawt | T77: Dum Bung | U77: Dum Bung | V77: MMR001CMP123 | W77: 97.5371 | X77: 24.461033 | Y77: Forest/bush | Z77: 8 | AA77: 2011 | AB77: Yes | AC77: Yes | AD77: Yes | AE77: No | AF77: Yes | AG77: Yes | AH77: No | AI77: No | AJ77: Momauk | AK77: 25 | AL77: 180 | AM77: Yes | AN77: IRRC | AO77: U Htwe Lum | AP77: 86-15368652887 | AQ77: Yes | AR77: No | AS77: No | AT77: Yes | AU77: No | AV77: No | AW77: No | AX77: No | AY77: Yes | AZ77: Yes | BA77: Yes | BB77: Yes | BC77: 4 | BD77: 6 | BE77: 10 | BF77: 9 | BG77: 8 | BH77: 17 | BI77: 26 | BJ77: 29 | BK77: 55 | BL77: 28 | BM77: 75 | BN77: 103 | BO77: 40 | BP77: 39 | BQ77: 79 | BR77: 64 | BS77: 53 | BT77: 117 | BU77: 69 | BV77: 73 | BW77: 142 | BX77: 21 | BY77: 17 | BZ77: 38 | CA77: 261 | CB77: 300 | CC77: 561 | CD77: 3 | CE77: 4 | CF77: 7 | CG77: 0 | CH77: 0 | CI77: 0 | CJ77: 1 | CK77: 3 | CL77: 4 | CM77: 0 | CN77: 0 | CO77: 0 | CP77: 0 | CQ77: 0 | CR77: 0 | CS77: 0 | CT77: 0 | CU77: 0 | CV77: 0 | CW77: 70 | CX77: 70 | CY77: 11 | CZ77: 7 | DA77: 6 | DB77: 1 | DC77: 7 | DD77: 1 | DE77: 1 | DF77: 2 | DG77: 118 | DH77: 591 | DI77: 2 | DJ77: 12 | DK77: 4 | DL77: 19 | DM77: Yes | DN77: Yes | DO77: 5 | DP77: 5 | DQ77: 1 | DR77: 0 | DS77: 6 | DT77: 5 | DU77: 0 | DV77: Yes | DW77: Yes | DX77: No | DY77: Yes | DZ77: Yes | EA77: No | EI77: Individual | EJ77: Yes | EK77: Solid shelters | EL77: 96-100% | EM77: 0% | EN77: Yes | EO77: Rivers, springs, etc. | EP77: Yes | EQ77: 0 | ER77: 0 | ES77: 126 | ET77: No | EU77: Common identified waste dump inside camp | EV77: Clinic | EX77: Yes | EY77: Yes | EZ77: Yes | FA77: Yes | FB77: Yes | FC77: No | FD77: Yes | FE77: Yes | FF77: No | FG77: No | FH77: 76-95% | FI77: 76-95% | FJ77: None | FK77: None | FL77: Farming | FM77: Livestock | FN77: None | FO77: None | FP77: Farming | FQ77: Livestock | FR77: Complementary Food | FS77: Basic Food | FT77: Vocational training | FU77: Blankets/Winter Clothing | FV77: Blankets/Winter Clothing | FW77: Medicines | FX77: UNHCR | FY77: KMSS, UNHCR
A78: C007 | B78: 30/7/2013 | C78: RANIR | E78: Enumerator from camp profiling responsible organization | G78: 24/6/2013 | H78: Camp Manager | I78: Male | L78: Authority | M78: Camp Resident | N78: Female | Q78: Kachin | R78: Momauk | S78: Kawng Hsa (Lwegel Sub-township) | T78: Mai Gyar Yang | U78: Pa Kahtawng | V78: MMR001CMP126 | W78: 97.752667 | X78: 24.2744 | Y78: Rural | Z78: 4 | AA78: 2012 | AB78: Yes | AC78: Yes | AD78: Yes | AE78: No | AF78: Yes | AG78: Yes | AH78: Yes | AI78: No | AJ78: Loi Je | AK78: 7 | AL78: 15 | AM78: Yes | AN78: IDP and Refugee Relief Committee (IRRC) | AO78: U Zaw Bawk | AP78: +86 13578285542 | AQ78: Yes | AR78: No | AS78: No | AT78: Yes | AU78: No | AV78: No | AW78: No | AX78: Yes | AY78: No | AZ78: No | BA78: Yes | BB78: Yes | BC78: 8 | BD78: 15 | BE78: 23 | BF78: 39 | BG78: 34 | BH78: 73 | BI78: 120 | BJ78: 122 | BK78: 242 | BL78: 388 | BM78: 363 | BN78: 751 | BO78: 412 | BP78: 433 | BQ78: 845 | BR78: 133 | BS78: 271 | BT78: 404 | BU78: 138 | BV78: 245 | BW78: 383 | BX78: 56 | BY78: 98 | BZ78: 154 | CA78: 1294 | CB78: 1581 | CC78: 2875 | CD78: 7 | CE78: 2 | CF78: 9 | CG78: 0 | CH78: 0 | CI78: 0 | CJ78: 9 | CK78: 6 | CL78: 15 | CM78: 0 | CN78: 0 | CO78: 0 | CP78: 494 | CQ78: 561 | CR78: 1055 | CS78: 1 | CT78: 0 | CU78: 1 | CV78: 0 | CW78: 171 | CX78: 171 | CY78: 26 | CZ78: 20 | DA78: 19 | DB78: 11 | DC78: 30 | DD78: 7 | DE78: 3 | DF78: 10 | DG78: 503 | DH78: 2875 | DI78: 21 | DJ78: 627 | DK78: 5 | DL78: 11 | DM78: Yes | DN78: Yes | DO78: 2 | DP78: 2 | DQ78: 7 | DR78: 0 | DS78: 9 | DT78: 2 | DU78: 1 | DV78: Yes | DW78: Yes | DX78: Yes | DY78: No | DZ78: Yes | EA78: No | EB78: 1.5 | EG78: 1.5 | EH78: 1.5 | EI78: Individual | EJ78: Yes | EK78: Solid shelters | EL78: 96-100% | EM78: 0% | EN78: No | EO78: Rivers, springs, etc. | EP78: Yes | EQ78: 55 | ER78: 62 | ES78: 117 | ET78: Yes | EU78: Is getting burnt | EV78: Clinic | EX78: Yes | EY78: Yes | EZ78: Yes | FA78: Yes | FB78: Yes | FC78: Yes | FD78: Yes | FE78: Yes | FF78: Yes | FG78: No | FH78: 76-95% | FI78: 76-95% | FJ78: Handicrafts | FK78: Other | FL78: Farming | FM78: Livestock | FN78: Handicrafts | FO78: Other | FP78: Farming | FQ78: Livestock | FR78: Basic Food | FS78: Blankets/Winter Clothing | FT78: Complementary Food | FU78: Cash/money assistance | FV78: Cash/money assistance | FW78: Firewood / fuel | FX78: UNHCR | FY78: KBSS, UNHCR
A79: C008 | B79: 30/7/2013 | C79: RANIR | E79: Enumerator from camp profiling responsible organization | G79: 21/6/2013 | H79: Other | I79: Male | L79: Authority | M79: Other | N79: Male | Q79: Kachin | R79: Mansi | S79: In Ba Pa | T79: La Na | U79: Lana Zup Ja | V79: MMR001CMP128 | W79: 97.625617 | X79: 24.056133 | Y79: Rural | Z79: 10 | AA79: 2011 | AB79: Yes | AC79: Yes | AD79: Yes | AE79: No | AF79: Yes | AG79: Yes | AH79: Yes | AI79: No | AJ79: Loi Je | AK79: 24 | AL79: 150 | AM79: Yes | AN79: IDP and Refugee Relief Committee (IRRC) | AO79: U Tan Gun | AP79: +86 18387503436 | AQ79: Yes | AR79: No | AS79: No | AT79: Yes | AU79: No | AV79: No | AW79: No | AX79: No | AY79: Yes | AZ79: No | BA79: Yes | BB79: Yes | BC79: 6 | BD79: 4 | BE79: 10 | BF79: 16 | BG79: 20 | BH79: 36 | BI79: 43 | BJ79: 45 | BK79: 88 | BL79: 109 | BM79: 90 | BN79: 199 | BO79: 26 | BP79: 21 | BQ79: 47 | BR79: 49 | BS79: 102 | BT79: 151 | BU79: 62 | BV79: 101 | BW79: 163 | BX79: 16 | BY79: 33 | BZ79: 49 | CA79: 327 | CB79: 416 | CC79: 743 | CD79: 5 | CE79: 10 | CF79: 15 | CG79: 0 | CH79: 3 | CI79: 3 | CJ79: 18 | CK79: 14 | CL79: 32 | CM79: 0 | CN79: 0 | CO79: 0 | CP79: 6 | CQ79: 4 | CR79: 10 | CS79: 3 | CT79: 10 | CU79: 13 | CV79: 4 | CW79: 10 | CX79: 14 | CY79: 6 | CZ79: 42 | DA79: 6 | DB79: 4 | DC79: 10 | DD79: 0 | DE79: 1 | DF79: 1 | DG79: 173 | DH79: 741 | DI79: 3 | DJ79: 15 | DK79: 3 | DL79: 15 | DM79: Yes | DN79: Yes | DO79: 5 | DP79: 3 | DQ79: 0 | DR79: 1 | DS79: 5 | DT79: 4 | DU79: 0 | DV79: Yes | DW79: Yes | DX79: Yes | DY79: No | DZ79: Yes | EA79: No | EB79: 27 | EG79: 4 | EH79: 27 | EI79: Individual | EJ79: Yes | EK79: Solid shelters | EL79: 76-95% | EM79: 0% | EN79: Yes | EO79: Rivers, springs, etc. | EP79: Yes | EQ79: 20 | ER79: 21 | ES79: 0 | ET79: No | EU79: Identified waste dump outside camp | EV79: Clinic | EX79: Yes | EY79: Yes | EZ79: Yes | FA79: No | FB79: Yes | FC79: Yes | FD79: Yes | FE79: Yes | FF79: Yes | FG79: No | FH79: 76-95% | FI79: 96-100% | FJ79: Other | FK79: None | FL79: Farming | FM79: Other | FN79: Farming | FO79: Livestock | FP79: Farming | FQ79: Livestock | FR79: Latrines/toilets | FS79: Cash/money assistance | FT79: Cash/money assistance | FU79: Other | FV79: Well / water tank | FW79: Well / water tank | FX79: UNHCR | FY79: KBSS, UNHCR
A80: B007 | B80: 30/7/2013 | C80: RANIR | E80: Enumerator from camp profiling responsible organization | G80: 22/6/2013 | H80: Camp Manager | I80: Male | L80: Authority | M80: Camp Resident | N80: Female | Q80: Kachin | R80: Mansi | S80: Dum Buk | T80: Dum Buk | U80: Bum Tsit Pa | V80: MMR001CMP129 | W80: 97.609833 | X80: 24.002433 | Y80: Rural | Z80: 10 | AA80: 2011 | AB80: Yes | AC80: Yes | AD80: Yes | AE80: No | AF80: Yes | AG80: Yes | AH80: No | AI80: No | AJ80: Lwaije | AK80: 20 | AL80: 120 | AM80: Yes | AN80: IRRC | AO80: U Tu Lum | AP80: 866221601 | AQ80: Yes | AR80: Yes | AS80: No | AT80: No | AU80: No | AV80: No | AW80: No | AX80: No | AY80: Yes | AZ80: No | BA80: Yes | BB80: No | BC80: 29 | BD80: 40 | BE80: 69 | BF80: 24 | BG80: 35 | BH80: 59 | BI80: 125 | BJ80: 135 | BK80: 260 | BL80: 340 | BM80: 308 | BN80: 648 | BO80: 258 | BP80: 259 | BQ80: 517 | BR80: 167 | BS80: 327 | BT80: 494 | BU80: 170 | BV80: 274 | BW80: 444 | BX80: 58 | BY80: 75 | BZ80: 133 | CA80: 1171 | CB80: 1453 | CC80: 2624 | CD80: 18 | CE80: 15 | CF80: 33 | CG80: 85 | CH80: 46 | CI80: 131 | CJ80: 1 | CK80: 2 | CL80: 3 | CM80: 0 | CN80: 0 | CO80: 0 | CP80: 58 | CQ80: 72 | CR80: 130 | CS80: 0 | CT80: 0 | CU80: 0 | CV80: 111 | CW80: 65 | CX80: 176 | CY80: 22 | CZ80: 130 | DA80: 9 | DB80: 9 | DC80: 18 | DD80: 6 | DE80: 3 | DF80: 9 | DG80: 551 | DH80: 2624 | DI80: 15 | DJ80: 57 | DK80: 34 | DL80: 135 | DM80: No | DN80: Yes | DO80: 3 | DP80: 0 | DQ80: 6 | DR80: 0 | DS80: 9 | DT80: 0 | DU80: 1 | DV80: Yes | DW80: Yes | DX80: No | DY80: Yes | DZ80: Yes | EA80: No | EH80: 20 | EI80: Individual | EJ80: No | EK80: Solid shelters | EL80: less than 25% | EM80: 0% | EN80: No | EO80: Well | EP80: Yes | EQ80: 0 | ER80: 0 | ES80: 70 | ET80: No | EU80: Is getting burnt | EV80: Rural centre | EX80: Yes | EY80: Yes | EZ80: Yes | FA80: No | FB80: Yes | FC80: Yes | FD80: Yes | FE80: Yes | FF80: Yes | FG80: No | FH80: 96-100% | FI80: 76-95% | FJ80: Other | FK80: None | FL80: Other | FN80: Farming | FO80: Other | FP80: Farming | FQ80: Livestock | FR80: Basic Food | FS80: Well / water tank | FT80: Medicines | FU80: Cash/money assistance | FV80: Cash/money assistance | FW80: Blankets/Winter Clothing | FX80: UNHCR
A81: C006 | B81: 30/7/2013 | C81: RANIR | E81: Enumerator from camp profiling responsible organization | G81: 23/6/2013 | H81: Camp Manager | I81: Male | L81: Authority | M81: Camp Resident | N81: Female | Q81: Kachin | R81: Momauk | S81: Ba Lawng Kawng (Lwegel Sub-township) | T81: Hpa Lum | U81: Nhkawng Pa | V81: MMR001CMP131 | W81: 97.669367 | X81: 24.378167 | Y81: Rural | Z81: 4 | AA81: 2012 | AB81: Yes | AC81: Yes | AD81: Yes | AE81: No | AF81: Yes | AG81: Yes | AH81: Yes | AI81: No | AJ81: Momauk | AL81: 180 | AM81: Yes | AN81: IDP and Refugee Relief Committee (IRRC) | AO81: U Pan Awng | AP81: +86 15368662827 | AQ81: Yes | AR81: No | AS81: No | AT81: Yes | AU81: No | AV81: No | AW81: No | AX81: No | AY81: Yes | AZ81: No | BA81: Yes | BB81: Yes | BC81: 4 | BD81: 12 | BE81: 16 | BF81: 21 | BG81: 21 | BH81: 42 | BI81: 80 | BJ81: 69 | BK81: 149 | BL81: 175 | BM81: 172 | BN81: 347 | BO81: 105 | BP81: 96 | BQ81: 201 | BR81: 76 | BS81: 154 | BT81: 230 | BU81: 142 | BV81: 227 | BW81: 369 | BX81: 78 | BY81: 94 | BZ81: 172 | CA81: 681 | CB81: 845 | CC81: 1526 | CD81: 1 | CE81: 12 | CF81: 13 | CG81: 0 | CH81: 0 | CI81: 0 | CJ81: 3 | CK81: 1 | CL81: 4 | CM81: 0 | CN81: 0 | CO81: 0 | CP81: 1 | CQ81: 4 | CR81: 5 | CS81: 2 | CT81: 2 | CU81: 4 | CV81: 0 | CW81: 126 | CX81: 126 | CY81: 19 | CZ81: 55 | DA81: 7 | DB81: 11 | DC81: 18 | DD81: 5 | DE81: 2 | DF81: 7 | DG81: 380 | DH81: 1525 | DI81: 0 | DJ81: 0 | DM81: No | DN81: Yes | DO81: 3 | DP81: 1 | DQ81: 4 | DR81: 1 | DS81: 7 | DT81: 2 | DU81: 2 | DV81: Yes | DW81: Yes | DX81: No | DY81: No | DZ81: No | EA81: No | EH81: 20 | EI81: Individual | EJ81: Yes | EK81: Solid shelters | EL81: 96-100% | EM81: 0% | EN81: Yes | EO81: Rivers, springs, etc. | EP81: Yes | EQ81: 10 | ER81: 10 | ES81: 71 | ET81: No | EU81: Common identified waste dump inside camp | EV81: Clinic | EX81: Yes | EY81: Yes | EZ81: Yes | FA81: Yes | FB81: Yes | FC81: Yes | FD81: Yes | FE81: Yes | FF81: Yes | FG81: No | FH81: 76-95% | FI81: 76-95% | FJ81: Other | FK81: None | FL81: Farming | FM81: Livestock | FN81: Other | FO81: None | FP81: Farming | FQ81: Livestock | FR81: Medicines | FS81: School materials / supplies | FT81: Complementary Food | FU81: Vocational training | FV81: Partitions within shelters | FW81: Latrines/toilets | FX81: UNHCR
A82: I001 | B82: 30/7/2013 | C82: KBSS/KMSS | E82: CCCM Focal Point | G82: 21/6/2013 | H82: Camp Manager | I82: Male | L82: Committee Member | Q82: Kachin | R82: Mansi | S82: Man Mawn | T82: Man Mawn | U82: Man Wing Catholic Church | V82: MMR001CMP132 | W82: 97.33463 | X82: 23.51491 | Y82: Rural | Z82: 11 | AA82: 2011 | AB82: Yes | AC82: Yes | AD82: Yes | AE82: No | AF82: Yes | AG82: Yes | AH82: Yes | AI82: No | AJ82: Man Si | AK82: 7 | AL82: 30 | AM82: Yes | AN82: IRRC/KMSS | AO82: Sr.Galau Naw Aung | AP82: 133249 7589 8 | AQ82: Yes | AR82: No | AS82: No | AT82: Yes | AU82: No | AV82: No | AW82: No | AX82: Yes | AY82: No | AZ82: No | BA82: Yes | BB82: No | BC82: 11 | BD82: 8 | BE82: 19 | BF82: 25 | BG82: 32 | BH82: 57 | BI82: 66 | BJ82: 59 | BK82: 125 | BL82: 223 | BM82: 176 | BN82: 399 | BO82: 140 | BP82: 132 | BQ82: 272 | BR82: 120 | BS82: 168 | BT82: 288 | BU82: 125 | BV82: 200 | BW82: 325 | BX82: 43 | BY82: 64 | BZ82: 107 | CA82: 753 | CB82: 839 | CC82: 1592 | CD82: 13 | CE82: 8 | CF82: 21 | CG82: 1 | CH82: 1 | CI82: 2 | CJ82: 2 | CK82: 1 | CL82: 3 | CM82: 1 | CN82: 3 | CO82: 4 | CP82: 4 | CQ82: 5 | CR82: 9 | CS82: 8 | CT82: 11 | CU82: 19 | CV82: 9 | CW82: 68 | CX82: 77 | CY82: 13 | CZ82: 40 | DA82: 0 | DB82: 0 | DC82: 0 | DD82: 3 | DE82: 2 | DF82: 5 | DG82: 308 | DH82: 0 | DI82: 20 | DJ82: 100 | DK82: 5 | DL82: 23 | DM82: No | DN82: Yes | DO82: 4 | DP82: 3 | DQ82: 0 | DR82: 0 | DS82: 4 | DT82: 3 | DU82: 2 | DV82: Yes | DW82: Yes | DX82: Yes | DY82: No | DZ82: Yes | EA82: No | EB82: 7 | EG82: 1.5 | EH82: 1.5 | EI82: Individual | EJ82: Yes | EK82: Solid shelters | EL82: 0% | EM82: 0% | EN82: Yes | EO82: Borehole/hand pump | EP82: No | EQ82: 30 | ER82: 35 | ES82: 30 | ET82: Yes | EU82: Common identified waste dump inside camp | EV82: Clinic | EX82: No | EY82: Yes | EZ82: Yes | FA82: Yes | FB82: Yes | FC82: Yes | FD82: Yes | FE82: No | FF82: Yes | FG82: No | FH82: 96-100% | FI82: 96-100% | FJ82: Farming | FK82: None | FL82: Farming | FM82: None | FN82: Farming | FO82: None | FP82: Farming | FQ82: Livestock | FR82: Well / water tank | FS82: Well / water tank | FT82: Medical staff (doctor, nurse, etc) | FU82: Medical staff (doctor, nurse, etc) | FV82: Vocational training | FW82: Vocational training | FY82: KBSS, UNHCR
A83: E010 | B83: 30/7/2013 | C83: KBC | E83: CCCM Focal Point | G83: 21/6/2013 | H83: Camp Manager | I83: Male | L83: Religious Leader | Q83: Kachin | R83: Mansi | S83: Man Mawn | T83: Man Mawn | U83: Man Wing Baptist Church | V83: MMR001CMP133 | W83: 97.5879 | X83: 23.83 | Y83: Rural | Z83: 2 | AA83: 2012 | AB83: Yes | AC83: Yes | AD83: Yes | AE83: No | AF83: Yes | AG83: Yes | AH83: Yes | AI83: No | AJ83: Nam kham | AM83: Yes | AN83: Management Committee | AO83: U Tu Lum | AP83: 189 88225035 | AQ83: Yes | AR83: No | AS83: No | AT83: Yes | AU83: No | AV83: No | AW83: No | AX83: No | AY83: Yes | AZ83: Yes | BA83: Yes | BB83: Yes | BC83: 2 | BD83: 1 | BE83: 3 | BF83: 8 | BG83: 5 | BH83: 13 | BI83: 44 | BJ83: 42 | BK83: 86 | BL83: 79 | BM83: 80 | BN83: 159 | BO83: 22 | BP83: 16 | BQ83: 38 | BR83: 56 | BS83: 70 | BT83: 126 | BU83: 44 | BV83: 60 | BW83: 104 | BX83: 8 | BY83: 12 | BZ83: 20 | CA83: 263 | CB83: 286 | CC83: 549 | CD83: 2 | CE83: 2 | CF83: 4 | CG83: 0 | CH83: 0 | CI83: 0 | CJ83: 0 | CK83: 2 | CL83: 2 | CM83: 0 | CN83: 3 | CO83: 3 | CP83: 0 | CQ83: 0 | CR83: 0 | CS83: 0 | CT83: 0 | CU83: 0 | CV83: 0 | CW83: 2 | CX83: 2 | CY83: 1 | CZ83: 16 | DA83: 2 | DB83: 1 | DC83: 3 | DD83: 0 | DE83: 0 | DF83: 0 | DG83: 111 | DH83: 549 | DI83: 9 | DJ83: 49 | DK83: 7 | DL83: 28 | DM83: No | DN83: Yes | DO83: 2 | DP83: 0 | DQ83: 14 | DR83: 7 | DS83: 16 | DT83: 7 | DU83: 4 | DV83: No | DW83: No | DX83: No | DY83: No | DZ83: No | EA83: No | EI83: Individual | EJ83: Yes | EK83: Solid shelters | EN83: No | EO83: Borehole/hand pump | EP83: Yes | EQ83: 8 | ER83: 8 | ES83: 0 | ET83: Yes | EU83: Common identified waste dump inside camp | EV83: Rural sub-centre | EW83: No | EX83: Yes | EY83: Yes | EZ83: Yes | FA83: No | FB83: Yes | FC83: Yes | FD83: Yes | FE83: No | FF83: No | FG83: No | FH83: 96-100% | FI83: 96-100% | FJ83: Farming | FK83: None | FL83: Farming | FN83: Farming | FO83: None | FP83: Farming | FQ83: Farming | FX83: UNHCR | FY83: KBC, UNHCR, DRC
A84: B009 | B84: 30/7/2013 | C84: RANIR | E84: Enumerator from camp profiling responsible organization | G84: 24/6/2013 | H84: Camp Manager | I84: Male | L84: Committee Member | M84: Camp Resident | N84: Male | Q84: Kachin | R84: Mansi | S84: La Gat Dawt | T84: La Gat Dawt | U84: Lung Kawk ( Hka Hkye Zup) | V84: MMR001CMP135 | W84: 97.585667 | X84: 23.9055 | Y84: Forest/bush | Z84: 8 | AA84: 2012 | AB84: Yes | AC84: Yes | AD84: Yes | AE84: No | AF84: Yes | AG84: Yes | AH84: No | AI84: No | AJ84: Nam Hkam | AK84: 15 | AL84: 90 | AM84: Yes | AN84: IRRC | AO84: U N-hkum Naw | AP84: 86-89 13038 | AQ84: Yes | AR84: Yes | AS84: No | AT84: No | AU84: No | AV84: No | AW84: No | AX84: No | AY84: Yes | AZ84: No | BA84: Yes | BB84: No | BC84: 3 | BD84: 3 | BE84: 6 | BF84: 1 | BG84: 1 | BH84: 2 | BI84: 15 | BJ84: 13 | BK84: 28 | BL84: 28 | BM84: 28 | BN84: 56 | BO84: 10 | BP84: 4 | BQ84: 14 | BR84: 34 | BS84: 52 | BT84: 86 | BU84: 29 | BV84: 42 | BW84: 71 | BX84: 13 | BY84: 20 | BZ84: 33 | CA84: 133 | CB84: 163 | CC84: 296 | CD84: 1 | CE84: 1 | CF84: 2 | CG84: 2 | CH84: 0 | CI84: 2 | CJ84: 5 | CK84: 2 | CL84: 7 | CM84: 0 | CN84: 0 | CO84: 0 | CP84: 3 | CQ84: 2 | CR84: 5 | CS84: 0 | CT84: 1 | CU84: 1 | CV84: 0 | CW84: 17 | CX84: 17 | CY84: 2 | CZ84: 9 | DA84: 2 | DB84: 1 | DC84: 3 | DD84: 1 | DE84: 0 | DF84: 1 | DG84: 85 | DH84: 296 | DI84: 4 | DJ84: 12 | DK84: 0 | DL84: 0 | DM84: No | DN84: Yes | DO84: 7 | DP84: 1 | DQ84: 1 | DR84: 0 | DS84: 8 | DT84: 1 | DU84: 1 | DV84: Yes | DW84: Yes | DX84: No | DY84: No | DZ84: Yes | EA84: No | EB84: 5 | EG84: 5 | EH84: 5 | EI84: Individual | EJ84: Yes | EK84: Solid shelters | EL84: 96-100% | EM84: 0% | EN84: Yes | EO84: Well | EP84: Yes | EQ84: 0 | ER84: 0 | ES84: 12 | ET84: Yes | EU84: Identified waste dump outside camp | EV84: Rural centre | EX84: No | EY84: Yes | EZ84: Yes | FA84: No | FB84: Yes | FC84: No | FD84: No | FE84: No | FF84: No | FG84: No | FH84: 96-100% | FI84: 96-100% | FJ84: Other | FK84: None | FL84: Farming | FM84: Livestock | FN84: Farming | FO84: Other | FP84: Farming | FQ84: Livestock | FR84: Other | FS84: Cash/money assistance | FT84: Medicines | FU84: Latrines/toilets | FV84: Well / water tank | FW84: Complementary Food | FX84: UNHCR
A85: F004 | B85: 30/7/2013 | C85: KBC | E85: CCCM Focal Point | G85: 21/6/2013 | H85: Camp Manager | I85: Male | L85: Religious Leader | M85: Camp Resident | N85: Female | Q85: Shan (North) | R85: Namhkan | S85: Maw Hsway | T85: Maw Hsway | U85: Nam Hkawng | V85: MMR015CMP139 | Y85: Rural | Z85: 9 | AA85: 2011 | AB85: Yes | AC85: Yes | AD85: Yes | AE85: No | AF85: Yes | AG85: Yes | AH85: Yes | AI85: No | AJ85: Mong Paw | AM85: Yes | AN85: KBC | AO85: Rev. Bawk Naw | AP85: 68809 43 | AQ85: Yes | AR85: No | AS85: No | AT85: Yes | AU85: No | AV85: No | AW85: Yes | AX85: No | AY85: No | AZ85: Yes | BA85: Yes | BB85: No | BC85: 0 | BD85: 0 | BE85: 0 | BF85: 1 | BG85: 2 | BH85: 3 | BI85: 3 | BJ85: 4 | BK85: 7 | BL85: 6 | BM85: 14 | BN85: 20 | BO85: 2 | BP85: 0 | BQ85: 2 | BR85: 3 | BS85: 2 | BT85: 5 | BU85: 5 | BV85: 5 | BW85: 10 | BX85: 1 | BY85: 3 | BZ85: 4 | CA85: 21 | CB85: 30 | CC85: 51 | CD85: 0 | CE85: 0 | CF85: 0 | CG85: 0 | CH85: 0 | CI85: 0 | CJ85: 0 | CK85: 0 | CL85: 0 | CM85: 0 | CN85: 0 | CO85: 0 | CP85: 2 | CQ85: 3 | CR85: 5 | CS85: 0 | CT85: 1 | CU85: 1 | CV85: 0 | CW85: 1 | CX85: 1 | CY85: 0 | CZ85: 0 | DA85: 0 | DB85: 0 | DC85: 0 | DD85: 0 | DE85: 0 | DF85: 0 | DG85: 11 | DH85: 51 | DI85: 0 | DJ85: 0 | DK85: 2 | DL85: 8 | DM85: No | DN85: Yes | DO85: 1 | DP85: 1 | DQ85: 1 | DR85: 0 | DS85: 3 | DT85: 1 | DU85: 1 | DV85: Yes | DW85: Yes | DX85: Yes | DY85: Yes | DZ85: Yes | EA85: No | EI85: Individual | EJ85: No | EK85: Solid shelters | EL85: 25-50% | EN85: Yes | EO85: Well | EP85: Yes | EQ85: 0 | ER85: 0 | ES85: 0 | ET85: NO | EU85: Common identified waste dump inside camp | EV85: Rural sub-centre | EX85: No | EY85: No | EZ85: No | FA85: No | FB85: No | FC85: Yes | FD85: No | FE85: No | FF85: No | FG85: No | FH85: less than 25% | FI85: less than 25% | FJ85: Other | FK85: None | FL85: Farming | FM85: Other | FN85: Other | FO85: None | FP85: Farming | FQ85: Other | FR85: Firewood / fuel | FS85: Cash/money assistance | FT85: Health facility / Clinic | FU85: Complementary Food | FV85: Partitions within shelters | FW85: Access to job opportunities | FX85: KBC, UNHCR
A86: B013 | B86: 31/7/2013 | C86: KBC | E86: CCCM Focal Point | G86: 28/6/2013 | H86: Camp Manager | I86: Male | L86: Religious Leader | Q86: Kachin | R86: Hpakant | S86: Nam Si In (Karmaing Sub-township) | T86: Nam Si In | U86: Hlaing Naung Baptist | V86: MMR001CMP148 | W86: 96.70596 | X86: 25.51352 | Y86: Rural | Z86: 10 | AA86: 2012 | AB86: Yes | AC86: Yes | AD86: Yes | AE86: No | AF86: Yes | AG86: Yes | AH86: Yes | AI86: No | AJ86: Hpakan | AL86: 20 | AM86: Yes | AN86: KBC | AO86: Rev. U Hpaw Wam La Seng | AP86: 09-47015215 | AQ86: Yes | AR86: No | AS86: No | AT86: Yes | AU86: No | AV86: No | AW86: No | AX86: No | AY86: Yes | AZ86: No | BA86: Yes | BB86: Yes | BC86: 0 | BD86: 1 | BE86: 1 | BF86: 2 | BG86: 0 | BH86: 2 | BI86: 3 | BJ86: 1 | BK86: 4 | BL86: 6 | BM86: 3 | BN86: 9 | BO86: 7 | BP86: 12 | BQ86: 19 | BR86: 1 | BS86: 5 | BT86: 6 | BU86: 3 | BV86: 7 | BW86: 10 | BX86: 0 | BY86: 2 | BZ86: 2 | CA86: 22 | CB86: 31 | CC86: 53 | CD86: 1 | CE86: 0 | CF86: 1 | CG86: 0 | CH86: 0 | CI86: 0 | CJ86: 1 | CK86: 1 | CL86: 2 | CM86: 0 | CN86: 0 | CO86: 0 | CP86: 0 | CQ86: 0 | CR86: 0 | CS86: 0 | CT86: 1 | CU86: 1 | CV86: 0 | CW86: 0 | CX86: 0 | CY86: 0 | CZ86: 2 | DA86: 0 | DB86: 1 | DC86: 1 | DD86: 0 | DE86: 0 | DF86: 0 | DG86: 23 | DH86: 58 | DI86: 10 | DJ86: 25 | DK86: 14 | DL86: 94 | DM86: No | DN86: Yes | DO86: 0 | DP86: 2 | DQ86: 5 | DR86: 2 | DS86: 5 | DT86: 4 | DU86: 2 | DV86: Yes | DW86: Yes | DX86: No | DY86: No | DZ86: No | EA86: No | EB86: 0.375 | EI86: Individual | EJ86: No | EK86: Solid shelters | EL86: 0% | EM86: 0% | EO86: Borehole/hand pump | EP86: Yes | EQ86: 0 | ER86: 0 | ES86: 3 | ET86: No | EU86: Common identified waste dump inside camp | EV86: Hospital | EX86: No | EY86: Yes | EZ86: No | FA86: No | FB86: No | FC86: No | FD86: No | FE86: No | FF86: No | FG86: No | FH86: 96-100% | FI86: 96-100% | FJ86: Farming | FK86: Other | FL86: Farming | FM86: Other | FN86: Farming | FO86: Other | FP86: Other | FR86: Blankets/Winter Clothing | FS86: Blankets/Winter Clothing | FT86: Medicines | FU86: Vocational training | FV86: Kitchen sets | FW86: Latrines/toilets | FX86: KBC, UNHCR
A87: C011 | B87: 30/7/2013 | C87: DRC | E87: Enumerator from camp profiling responsible organization | G87: 25/6/2013 | H87: Camp Resident | I87: Female | L87: Doctor / Nurse / Midwife | M87: Camp Resident | N87: Female | Q87: Kachin | R87: Waingmaw | S87: Saga Pa (Sadung Sub-township) | U87: Post 6 Camp | V87: MMR001CMP160 | W87: 97.990556 | X87: 25.265278 | Y87: Forest/bush | Z87: 11 | AA87: 2011 | AB87: Yes | AC87: Yes | AD87: Yes | AE87: No | AF87: Yes | AG87: Yes | AH87: No | AI87: No | AJ87: Waingmaw | AL87: 480 | AM87: Yes | AN87: IDP and Refugee Relief Committee (IRRC) | AO87: U Ying Bawm | AP87: +86 (0692)68709 68 | AQ87: Yes | AR87: No | AS87: Yes | AT87: No | AU87: No | AV87: No | AW87: No | AX87: Yes | AY87: No | AZ87: No | BA87: Yes | BB87: No | BC87: 1 | BD87: 1 | BE87: 2 | BF87: 10 | BG87: 3 | BH87: 13 | BI87: 26 | BJ87: 21 | BK87: 47 | BL87: 59 | BM87: 70 | BN87: 129 | BO87: 70 | BP87: 61 | BQ87: 131 | BR87: 86 | BS87: 94 | BT87: 180 | BU87: 53 | BV87: 54 | BW87: 107 | BX87: 13 | BY87: 18 | BZ87: 31 | CA87: 318 | CB87: 322 | CC87: 640 | CD87: 2 | CE87: 0 | CF87: 2 | CG87: 0 | CH87: 0 | CI87: 0 | CJ87: 3 | CK87: 2 | CL87: 5 | CM87: 1 | CN87: 3 | CO87: 4 | CP87: 6 | CQ87: 7 | CR87: 13 | CS87: 1 | CT87: 2 | CU87: 3 | CV87: 0 | CW87: 24 | CX87: 24 | CY87: 6 | CZ87: 10 | DA87: 1 | DB87: 0 | DC87: 1 | DD87: 2 | DE87: 0 | DF87: 2 | DG87: 120 | DH87: 640 | DI87: 5 | DJ87: 15 | DK87: 5 | DL87: 19 | DM87: No | DN87: Yes | DO87: 12 | DP87: 1 | DQ87: 2 | DR87: 0 | DS87: 14 | DT87: 3 | DU87: 2 | DV87: Yes | DW87: Yes | DX87: No | DY87: Yes | DZ87: Yes | EA87: No | EB87: 32 | EC87: 3 | EI87: Individual | EJ87: Yes | EK87: Solid shelters | EL87: 25-50% | EM87: 25-50% | EN87: Yes | EO87: Rivers, springs, etc. | EP87: Yes | EQ87: 0 | ER87: 0 | ES87: 80 | ET87: No | EU87: Identified waste dump outside camp | EV87: Clinic | EX87: No | EY87: Yes | EZ87: No | FA87: Yes | FB87: Yes | FC87: Yes | FD87: Yes | FE87: Yes | FF87: No | FG87: No | FH87: 96-100% | FI87: 96-100% | FJ87: None | FK87: None | FL87: Farming | FM87: Livestock | FN87: Other | FO87: None | FP87: Farming | FQ87: Livestock | FR87: Other | FS87: Cash/money assistance | FT87: Complementary Food | FU87: Vocational training | FV87: Medical staff (doctor, nurse, etc) | FW87: Access to job opportunities | FX87: UNHCR, KMSS, DRC | FY87: KMSS, UNHCR
A88: I005 | B88: 30/7/2013 | C88: KBSS/KMSS | E88: CCCM Focal Point | G88: 15/6/2013 | H88: Camp Manager | I88: Male | L88: Committee Member | Q88: Kachin | R88: Myitkyina | S88: Pa La Na Sa Khan Myar | T88: Pi Tauk Myaing | U88: Pa Dauk Myaing(Pa La Na) | V88: MMR001CMP162 | W88: 97.4345 | X88: 25.49382 | Z88: 12 | AA88: 2012 | AB88: Yes | AC88: Yes | AD88: Yes | AE88: No | AF88: Yes | AG88: Yes | AH88: Yes | AI88: No | AJ88: Myitkyina | AK88: 8 | AL88: 60 | AM88: Yes | AN88: KMSS | AO88: U Naw Hkum Shan Grawng | AP88: 09-401539564 | AQ88: Yes | AR88: No | AS88: Yes | AT88: No | AU88: No | AV88: No | AW88: No | AX88: No | AY88: Yes | AZ88: Yes | BA88: Yes | BB88: Yes | BC88: 1 | BD88: 3 | BE88: 4 | BF88: 3 | BG88: 7 | BH88: 10 | BI88: 5 | BJ88: 8 | BK88: 13 | BL88: 20 | BM88: 13 | BN88: 33 | BO88: 13 | BP88: 22 | BQ88: 35 | BR88: 15 | BS88: 17 | BT88: 32 | BU88: 14 | BV88: 17 | BW88: 31 | BX88: 4 | BY88: 1 | BZ88: 5 | CA88: 75 | CB88: 88 | CC88: 163 | CD88: 2 | CE88: 1 | CF88: 3 | CG88: 1 | CH88: 0 | CI88: 1 | CJ88: 2 | CK88: 2 | CL88: 4 | CM88: 0 | CN88: 0 | CO88: 0 | CP88: 0 | CQ88: 3 | CR88: 3 | CS88: 0 | CT88: 0 | CU88: 0 | CV88: 0 | CW88: 3 | CX88: 3 | CY88: 3 | CZ88: 10 | DA88: 1 | DB88: 3 | DC88: 4 | DD88: 0 | DE88: 0 | DF88: 0 | DG88: 31 | DH88: 163 | DI88: 0 | DJ88: 0 | DM88: No | DN88: Yes | DO88: 2 | DQ88: 4 | DR88: 1 | DS88: 6 | DT88: 1 | DV88: Yes | DW88: Yes | DX88: No | DY88: No | DZ88: Yes | EA88: No | EB88: 0.25 | ED88: 0.25 | EE88: 0.375 | EF88: 0.375 | EG88: 0.375 | EH88: 0.375 | EI88: Communal | EJ88: No | EK88: Community/religious building | EL88: 96-100% | EM88: 96-100% | EN88: No | EO88: Well | EP88: Yes | EQ88: 0 | ER88: 0 | ES88: 1 | ET88: No | EU88: Is getting burnt | EV88: Clinic | EX88: No | EY88: No | EZ88: No | FA88: No | FB88: No | FC88: No | FD88: No | FE88: No | FF88: No | FG88: No | FH88: 76-95% | FI88: 76-95% | FJ88: Other | FK88: None | FL88: Farming | FM88: Livestock | FN88: Other | FO88: None | FP88: Farming | FQ88: Farming | FR88: Medical staff (doctor, nurse, etc) | FS88: Kitchen sets | FT88: School facilities | FU88: Hygiene kits | FV88: Transport to school | FW88: Transport to school | FX88: UNHCR
A89: D003 | B89: 30/7/2013 | C89: OTHER | D89: Lisu Baptist | E89: Other | F89: Enumerator | G89: 17/6/2013 | H89: Camp Manager | I89: Male | L89: Committee Member | M89: Camp Resident | N89: Female | Q89: Kachin | R89: Hpakant | S89: Urban | T89: Maw Wan | U89: Lisu Baptist Church, Maw Wan Ward | V89: MMR001CMP167 | W89: 96.3164 | X89: 25.61842 | Y89: Rural | Z89: 1 | AA89: 2013 | AB89: Yes | AC89: Yes | AD89: Yes | AE89: No | AF89: Yes | AG89: Yes | AH89: Yes | AI89: No | AJ89: Hpakan | AK89: 0 | AL89: 1 | AM89: Yes | AN89: Lisu Baptist | AO89: Saya U Lel Mel Hu | AP89: 09-47126916 | AQ89: Yes | AR89: No | AS89: No | AT89: Yes | AU89: No | AV89: No | AW89: No | AX89: Yes | AY89: No | AZ89: No | BA89: No | BB89: No | BC89: 0 | BD89: 0 | BE89: 0 | BF89: 2 | BG89: 0 | BH89: 2 | BI89: 0 | BJ89: 1 | BK89: 1 | BL89: 3 | BM89: 3 | BN89: 6 | BO89: 2 | BP89: 1 | BQ89: 3 | BR89: 0 | BS89: 0 | BT89: 0 | BU89: 5 | BV89: 6 | BW89: 11 | BX89: 1 | BY89: 3 | BZ89: 4 | CA89: 13 | CB89: 14 | CC89: 27 | CD89: 0 | CE89: 0 | CF89: 0 | CG89: 0 | CH89: 0 | CI89: 0 | CJ89: 0 | CK89: 0 | CL89: 0 | CM89: 0 | CN89: 0 | CO89: 0 | CP89: 0 | CQ89: 0 | CR89: 0 | CS89: 0 | CT89: 0 | CU89: 0 | CV89: 0 | CW89: 3 | CX89: 3 | CY89: 0 | CZ89: 2 | DA89: 0 | DB89: 0 | DC89: 0 | DD89: 0 | DE89: 0 | DF89: 0 | DG89: 8 | DH89: 27 | DI89: 8 | DJ89: 27 | DK89: 4 | DL89: 16 | DM89: No | DN89: Yes | DO89: 1 | DP89: 0 | DQ89: 3 | DR89: 1 | DS89: 4 | DT89: 1 | DU89: 0 | DV89: Yes | DW89: Yes | DX89: Yes | DY89: Yes | DZ89: Yes | EA89: No | EB89: 0.125 | EC89: 0 | ED89: 0.125 | EE89: 0.125 | EF89: 0.125 | EG89: 0.125 | EH89: 0.125 | EI89: Mixed | EJ89: Yes | EK89: Community/religious building | EL89: 96-100% | EM89: 0% | EN89: No | EO89: Well | EP89: Yes | EQ89: 0 | ER89: 0 | ES89: 2 | ET89: No | EU89: Identified waste dump outside camp | EV89: Clinic | EX89: No | EY89: No | EZ89: No | FA89: No | FB89: No | FC89: No | FD89: No | FE89: No | FF89: No | FG89: Yes | FH89: 96-100% | FI89: 96-100% | FJ89: Mining | FK89: Other | FL89: Farming | FM89: Other | FN89: Handicrafts | FO89: Other | FP89: Farming | FQ89: Livestock | FR89: Basic Food | FS89: Cash/money assistance | FT89: Access to job opportunities | FU89: Access to job opportunities | FV89: Cash/money assistance | FW89: Complementary Food | FX89: KBC, UNHCR
A90: E013 | B90: 31/7/2013 | C90: KBSS/KMSS | E90: Enumerator from camp profiling responsible organization | G90: 14/6/2013 | H90: Camp Manager | I90: Male | L90: Religious Leader | Q90: Kachin | R90: Hpakant | S90: Lone Khin | T90: Lone Khin | U90: 5 Ward RC Church(lon Khin) | V90: MMR001CMP168 | W90: 96.35307 | X90: 25.65582 | Y90: Rural | Z90: 1 | AA90: 2013 | AB90: Yes | AC90: Yes | AD90: Yes | AE90: No | AF90: Yes | AG90: Yes | AH90: Yes | AI90: No | AJ90: Hpakant | AK90: 6 | AM90: Yes | AN90: KBC | AO90: U La Ja | AP90: 074 7239 2 | AQ90: Yes | AR90: No | AS90: Yes | AT90: No | AU90: No | AV90: No | AW90: No | AX90: Yes | AY90: No | AZ90: Yes | BA90: Yes | BB90: Yes | BC90: 4 | BD90: 2 | BE90: 6 | BF90: 8 | BG90: 4 | BH90: 12 | BI90: 13 | BJ90: 15 | BK90: 28 | BL90: 44 | BM90: 41 | BN90: 85 | BO90: 46 | BP90: 46 | BQ90: 92 | BR90: 37 | BS90: 51 | BT90: 88 | BU90: 55 | BV90: 57 | BW90: 112 | BX90: 5 | BY90: 16 | BZ90: 21 | CA90: 212 | CB90: 232 | CC90: 444 | CD90: 0 | CE90: 0 | CF90: 0 | CG90: 0 | CH90: 0 | CI90: 0 | CJ90: 1 | CK90: 1 | CL90: 2 | CM90: 0 | CN90: 0 | CO90: 0 | CP90: 0 | CQ90: 0 | CR90: 0 | CS90: 0 | CT90: 0 | CU90: 0 | CV90: 0 | CW90: 0 | CX90: 0 | CY90: 2 | CZ90: 8 | DA90: 2 | DB90: 2 | DC90: 4 | DD90: 1 | DE90: 0 | DF90: 1 | DG90: 99 | DH90: 444 | DI90: 227 | DJ90: 845 | DK90: 128 | DL90: 401 | DM90: No | DN90: Yes | DO90: 2 | DP90: 6 | DQ90: 12 | DR90: 0 | DS90: 14 | DT90: 6 | DU90: 1 | DV90: No | DW90: No | DX90: No | DY90: No | DZ90: No | EA90: No | EI90: Mixed | EJ90: No | EK90: Solid shelters | EL90: 96-100% | EM90: 0% | EN90: No | EO90: Well | EP90: Yes | EQ90: 0 | ER90: 0 | ES90: 10 | ET90: Yes | EU90: Identified waste dump outside camp | EV90: Clinic | EW90: No | EX90: No | EY90: No | EZ90: No | FA90: No | FB90: No | FC90: No | FD90: No | FE90: No | FF90: No | FG90: Yes | FH90: 76-95% | FI90: 76-95% | FJ90: Mining | FK90: None | FL90: Farming | FM90: Mining | FN90: Trade (buying and selling) | FO90: None | FP90: Livestock | FQ90: Trade (buying and selling) | FR90: Well / water tank | FS90: Well / water tank | FT90: Cash/money assistance | FU90: Kitchen sets | FV90: Individual shelter/houses | FW90: Health facility / Clinic | FX90: KBC, UNHCR
A91: D002 | B91: 30/7/2013 | C91: KBC | E91: Other | F91: Enumerator | G91: 14/6/2013 | H91: Camp Manager | I91: Male | L91: Committee Member | M91: Camp Resident | N91: Female | Q91: Kachin | R91: Hpakant | S91: Lone Khin | T91: Hmaw Si Zar | U91: Baptist Church, Hmaw Si Sar(Lon Khin) | V91: MMR001CMP169 | W91: 96.34647 | X91: 25.64765 | Y91: Rural | Z91: 1 | AA91: 2013 | AB91: No | AC91: Yes | AD91: No | AE91: No | AF91: No | AG91: No | AH91: No | AI91: No | AJ91: Hpakan | AK91: 5 | AL91: 20 | AM91: Yes | AN91: Maw Si Sar Baptist | AO91: U Htu Kawng | AP91: 09400033982 | AQ91: Yes | AR91: No | AS91: No | AT91: Yes | AU91: No | AV91: No | AW91: No | AX91: Yes | AY91: No | AZ91: No | BA91: No | BB91: Yes | BC91: 2 | BD91: 4 | BE91: 6 | BF91: 4 | BG91: 7 | BH91: 11 | BI91: 6 | BJ91: 17 | BK91: 23 | BL91: 25 | BM91: 29 | BN91: 54 | BO91: 15 | BP91: 9 | BQ91: 24 | BR91: 18 | BS91: 18 | BT91: 36 | BU91: 17 | BV91: 20 | BW91: 37 | BX91: 3 | BY91: 5 | BZ91: 8 | CA91: 90 | CB91: 109 | CC91: 199 | CD91: 1 | CE91: 1 | CF91: 2 | CG91: 0 | CH91: 0 | CI91: 0 | CJ91: 0 | CK91: 1 | CL91: 1 | CM91: 1 | CN91: 2 | CO91: 3 | CP91: 1 | CQ91: 0 | CR91: 1 | CS91: 0 | CT91: 0 | CU91: 0 | CV91: 0 | CW91: 3 | CX91: 3 | CY91: 3 | CZ91: 11 | DA91: 0 | DB91: 0 | DC91: 0 | DD91: 0 | DE91: 0 | DF91: 0 | DG91: 47 | DH91: 199 | DI91: 107 | DJ91: 401 | DK91: 66 | DL91: 202 | DM91: No | DN91: Yes | DO91: 0 | DP91: 0 | DQ91: 4 | DR91: 0 | DS91: 4 | DT91: 0 | DU91: 1 | DV91: Yes | DW91: No | DX91: No | DY91: No | DZ91: Yes | EA91: No | EE91: 0.125 | EF91: 0.125 | EG91: 0.125 | EH91: 1 | EI91: Communal | EJ91: Yes | EK91: Solid shelters | EL91: 96-100% | EM91: 96-100% | EN91: No | EO91: Well | EP91: Yes | EQ91: 4 | ER91: 4 | ES91: 0 | ET91: Yes | EU91: Identified waste dump outside camp | EV91: Other | EW91: Community Health Worker | EX91: No | EY91: No | EZ91: No | FA91: Yes | FB91: No | FC91: No | FD91: No | FE91: No | FF91: No | FG91: No | FH91: 96-100% | FI91: 96-100% | FJ91: Farming | FK91: Mining | FL91: Farming | FM91: Livestock | FN91: None | FO91: None | FP91: Farming | FQ91: Livestock | FR91: Individual shelter/houses | FS91: Firewood / fuel | FT91: Cash/money assistance | FU91: Kitchen sets | FV91: Latrines/toilets | FW91: Cash/money assistance | FX91: UNHCR
A92: D008 | B92: 31/7/2013 | C92: UNHCR | E92: Enumerator from camp profiling responsible organization | G92: 13/6/2013 | H92: Camp Manager | I92: Male | L92: Committee Member | M92: Camp Resident | N92: Female | Q92: Kachin | R92: Hpakant | S92: Lone Khin | T92: Lone Khin | U92: Baptist Church, Sai Ra village | V92: MMR001CMP172 | W92: 96.35307 | X92: 25.66847 | Y92: Rural | Z92: 1 | AA92: 2013 | AB92: Yes | AC92: Yes | AD92: Yes | AE92: No | AF92: Yes | AG92: Yes | AH92: Yes | AI92: No | AJ92: Hpakan | AK92: 8 | AL92: 20 | AM92: Yes | AN92: Government | AO92: U Yar Jar | AP92: 09-400029893 | AQ92: Yes | AR92: No | AS92: Yes | AT92: No | AU92: No | AV92: No | AW92: No | AX92: No | AY92: Yes | AZ92: No | BA92: No | BB92: Yes | BC92: 1 | BD92: 0 | BE92: 1 | BF92: 0 | BG92: 0 | BH92: 0 | BI92: 2 | BJ92: 3 | BK92: 5 | BL92: 1 | BM92: 0 | BN92: 1 | BO92: 2 | BP92: 2 | BQ92: 4 | BR92: 2 | BS92: 2 | BT92: 4 | BU92: 2 | BV92: 2 | BW92: 4 | BX92: 1 | BY92: 2 | BZ92: 3 | CA92: 11 | CB92: 11 | CC92: 22 | CD92: 0 | CE92: 1 | CF92: 1 | CG92: 0 | CH92: 0 | CI92: 0 | CJ92: 0 | CK92: 1 | CL92: 1 | CM92: 0 | CN92: 0 | CO92: 0 | CP92: 0 | CQ92: 0 | CR92: 0 | CS92: 0 | CT92: 0 | CU92: 0 | CV92: 0 | CW92: 0 | CX92: 0 | CY92: 0 | CZ92: 1 | DA92: 1 | DB92: 0 | DC92: 1 | DD92: 0 | DE92: 0 | DF92: 0 | DG92: 5 | DH92: 23 | DI92: 5 | DJ92: 23 | DK92: 25 | DL92: 110 | DM92: No | DN92: No | DO92: 0 | DP92: 0 | DQ92: 0 | DR92: 0 | DS92: 0 | DT92: 0 | DU92: 0 | DV92: No | DW92: No | DX92: No | DY92: No | DZ92: Yes | EA92: No | EB92: 0.125 | EC92: 0 | ED92: 0.125 | EE92: 0 | EF92: 0 | EG92: 1 | EH92: 1 | EI92: Communal | EJ92: Yes | EK92: Solid shelters | EL92: 96-100% | EM92: 0% | EN92: No | EO92: Well | EP92: Yes | EQ92: 0 | ER92: 0 | ES92: 3 | ET92: No | EU92: Common identified waste dump inside camp | EV92: Hospital | EX92: No | EY92: No | EZ92: No | FA92: No | FB92: No | FC92: No | FD92: No | FE92: No | FF92: No | FG92: Yes | FH92: 96-100% | FI92: 96-100% | FJ92: Other | FK92: None | FL92: Farming | FM92: Other | FN92: None | FO92: None | FP92: Other | FQ92: None | FR92: Basic Food | FS92: Basic Food | FT92: Firewood / fuel
A93: D007 | B93: 30/7/2013 | C93: UNHCR | E93: Enumerator from camp profiling responsible organization | G93: 13/6/2013 | H93: Camp Manager | I93: Male | L93: Committee Member | M93: Camp Resident | N93: Female | Q93: Kachin | R93: Hpakant | S93: Lone Khin | T93: Lone Khin | U93: Dhama Rakhita, Nyein Chan Tar Yar Ward(Lon Khin) | V93: MMR001CMP174 | W93: 96.35493 | X93: 25.64309 | Y93: Rural | Z93: 1 | AA93: 2013 | AB93: Yes | AC93: Yes | AD93: Yes | AE93: No | AF93: Yes | AG93: Yes | AH93: Yes | AI93: No | AJ93: Hpakan | AK93: 3 | AL93: 20 | AM93: Yes | AN93: Nyein Chan Thar Yar IDP Committee | AO93: Saya Arr Si | AP93: 09-47036678 | AQ93: Yes | AR93: No | AS93: No | AT93: Yes | AU93: No | AV93: No | AW93: No | AX93: No | AY93: Yes | AZ93: Yes | BA93: Yes | BB93: Yes | BC93: 1 | BD93: 2 | BE93: 3 | BF93: 5 | BG93: 2 | BH93: 7 | BI93: 10 | BJ93: 11 | BK93: 21 | BL93: 30 | BM93: 35 | BN93: 65 | BO93: 17 | BP93: 17 | BQ93: 34 | BR93: 32 | BS93: 27 | BT93: 59 | BU93: 42 | BV93: 35 | BW93: 77 | BX93: 8 | BY93: 6 | BZ93: 14 | CA93: 145 | CB93: 135 | CC93: 280 | CD93: 1 | CE93: 0 | CF93: 1 | CG93: 0 | CH93: 0 | CI93: 0 | CJ93: 0 | CK93: 0 | CL93: 0 | CM93: 1 | CN93: 0 | CO93: 1 | CP93: 0 | CQ93: 0 | CR93: 0 | CS93: 0 | CT93: 0 | CU93: 0 | CV93: 0 | CW93: 6 | CX93: 6 | CY93: 6 | CZ93: 8 | DA93: 1 | DB93: 2 | DC93: 3 | DD93: 2 | DE93: 0 | DF93: 2 | DG93: 61 | DH93: 280 | DI93: 79 | DJ93: 337 | DK93: 18 | DL93: 57 | DM93: No | DN93: Yes | DO93: 5 | DP93: 1 | DQ93: 5 | DR93: 1 | DS93: 10 | DT93: 2 | DU93: 2 | DV93: Yes | DW93: Yes | DX93: Yes | DY93: Yes | DZ93: Yes | EA93: No | EC93: 0 | EE93: 0 | EF93: 1 | EG93: 1 | EH93: 1 | EI93: Individual | EJ93: Yes | EK93: Solid shelters | EL93: 51-75% | EM93: 0% | EN93: Yes | EO93: Well | EP93: No | EQ93: 0 | ER93: 0 | ES93: 5 | ET93: No | EU93: Common identified waste dump inside camp | EV93: Rural sub-centre | EX93: No | EY93: No | EZ93: No | FA93: No | FB93: Yes | FC93: No | FD93: No | FE93: No | FF93: No | FG93: No | FH93: 25-50% | FI93: 25-50% | FJ93: Mining | FK93: Other | FL93: Farming | FM93: Livestock | FN93: Other | FO93: None | FP93: Farming | FQ93: Livestock | FR93: Basic Food | FS93: Basic Food | FT93: Medicines | FU93: Medicines | FV93: Well / water tank | FW93: Well / water tank | FX93: UNHCR
A94: D006 | B94: 30/7/2013 | C94: UNHCR | E94: Enumerator from camp profiling responsible organization | G94: 15/6/2013 | H94: Camp Manager | I94: Male | L94: Committee Member | M94: Camp Resident | N94: Male | Q94: Kachin | R94: Hpakant | S94: Lone Khin | T94: Lone Khin | U94: AG Church, Hmaw Si Sa | V94: MMR001CMP176 | W94: 96.34557 | X94: 25.6353 | Y94: Rural | Z94: 1 | AA94: 2013 | AB94: Yes | AC94: Yes | AD94: Yes | AE94: No | AF94: Yes | AG94: Yes | AH94: Yes | AI94: No | AJ94: Hpakan | AK94: 3 | AL94: 20 | AM94: Yes | AN94: AG | AO94: Saya Arr Phee | AP94: 09-6412972 | AQ94: Yes | AR94: No | AS94: No | AT94: Yes | AU94: No | AV94: No | AW94: No | AX94: No | AY94: Yes | AZ94: Yes | BA94: Yes | BB94: Yes | BC94: 1 | BD94: 1 | BE94: 2 | BF94: 9 | BG94: 3 | BH94: 12 | BI94: 5 | BJ94: 6 | BK94: 0 | BL94: 41 | BM94: 27 | BN94: 68 | BO94: 39 | BP94: 22 | BQ94: 61 | BR94: 53 | BS94: 60 | BT94: 113 | BU94: 26 | BV94: 19 | BW94: 45 | BX94: 10 | BY94: 6 | BZ94: 16 | CA94: 184 | CB94: 144 | CC94: 328 | CD94: 1 | CE94: 0 | CF94: 1 | CG94: 0 | CH94: 0 | CI94: 0 | CJ94: 2 | CK94: 0 | CL94: 2 | CM94: 2 | CN94: 0 | CO94: 2 | CP94: 0 | CQ94: 0 | CR94: 0 | CS94: 0 | CT94: 0 | CU94: 0 | CV94: 0 | CW94: 10 | CX94: 10 | CY94: 0 | CZ94: 5 | DA94: 0 | DB94: 5 | DC94: 5 | DD94: 0 | DE94: 0 | DF94: 0 | DG94: 66 | DH94: 328 | DI94: 1 | DJ94: 5 | DK94: 4 | DL94: 20 | DM94: No | DN94: Yes | DO94: 3 | DP94: 0 | DQ94: 2 | DR94: 1 | DS94: 5 | DT94: 1 | DU94: 1 | DV94: Yes | DW94: Yes | DX94: Yes | DY94: Yes | DZ94: Yes | EA94: No | EB94: 1 | EC94: 0.25 | ED94: 1 | EE94: 0.5 | EF94: 0.5 | EG94: 0.5 | EH94: 1 | EI94: Individual | EJ94: Yes | EK94: Solid shelters | EL94: 96-100% | EM94: 0% | EN94: No | EO94: Well | EP94: No | EQ94: 0 | ER94: 0 | ES94: 3 | ET94: No | EU94: Identified waste dump outside camp | EV94: Hospital | EX94: No | EY94: No | EZ94: No | FA94: No | FB94: No | FC94: No | FD94: No | FE94: No | FF94: No | FG94: Yes | FH94: 96-100% | FI94: 96-100% | FJ94: None | FK94: None | FL94: Farming | FM94: Livestock | FN94: Mining | FO94: None | FP94: Farming | FQ94: Livestock | FR94: Access to job opportunities | FS94: School materials / supplies | FT94: Individual shelter/houses | FU94: Well / water tank | FV94: Cash/money assistance | FW94: Transport to school | FX94: UNHCR
A95: D009 | B95: 31/7/2013 | C95: UNHCR | E95: Enumerator from camp profiling responsible organization | G95: 13/6/2013 | H95: Camp Manager | I95: Male | L95: Religious Leader | M95: Camp Resident | N95: Male | Q95: Kachin | R95: Hpakant | S95: Lone Khin | T95: Lone Khin | U95: Muring Baptist Church, Awng Ra, Wa Ra Zut VT | V95: MMR001CMP177 | W95: 96.35416 | X95: 25.65867 | Y95: Rural | Z95: 1 | AA95: 2013 | AB95: Yes | AC95: Yes | AD95: Yes | AE95: No | AF95: Yes | AG95: Yes | AH95: Yes | AI95: No | AJ95: Hpakan | AK95: 6 | AL95: 30 | AM95: Yes | AN95: Mu Yin Baptist | AO95: Saya Kun Naung | AP95: 09-42007516 | AQ95: Yes | AR95: Yes | AS95: No | AT95: No | AU95: No | AV95: No | AW95: No | AX95: No | AY95: Yes | AZ95: No | BA95: No | BB95: Yes | BC95: 1 | BD95: 0 | BE95: 1 | BF95: 0 | BG95: 1 | BH95: 1 | BI95: 1 | BJ95: 2 | BK95: 3 | BL95: 1 | BM95: 2 | BN95: 3 | BO95: 0 | BP95: 2 | BQ95: 2 | BR95: 2 | BS95: 0 | BT95: 2 | BU95: 3 | BV95: 3 | BW95: 6 | BX95: 2 | BY95: 2 | BZ95: 4 | CA95: 10 | CB95: 12 | CC95: 22 | CD95: 1 | CE95: 0 | CF95: 1 | CG95: 0 | CH95: 0 | CI95: 0 | CJ95: 0 | CK95: 0 | CL95: 0 | CM95: 0 | CN95: 0 | CO95: 0 | CP95: 0 | CQ95: 0 | CR95: 0 | CS95: 0 | CT95: 0 | CU95: 0 | CV95: 0 | CW95: 0 | CX95: 0 | CY95: 0 | CZ95: 1 | DA95: 1 | DB95: 0 | DC95: 1 | DD95: 0 | DE95: 0 | DF95: 0 | DG95: 6 | DH95: 22 | DI95: 0 | DJ95: 0 | DK95: 4 | DL95: 18 | DM95: No | DN95: Yes | DQ95: 10 | DS95: 10 | DV95: No | DW95: No | DX95: No | DY95: No | DZ95: Yes | EA95: No | EB95: 0.5 | EC95: 0 | ED95: 0.5 | EE95: 0.125 | EF95: 0.125 | EG95: 0.25 | EH95: 0.25 | EI95: Individual | EJ95: Yes | EK95: Solid shelters | EL95: 0% | EM95: 0% | EN95: Yes | EO95: Well | EP95: Yes | EQ95: 0 | ER95: 0 | ES95: 3 | ET95: Yes | EU95: Is getting burnt | EV95: Hospital | EX95: No | EY95: No | EZ95: No | FA95: No | FB95: No | FC95: No | FD95: No | FE95: No | FF95: No | FG95: Yes | FH95: 96-100% | FI95: 96-100% | FJ95: Livestock | FK95: Mining | FL95: Farming | FM95: Trade (buying and selling) | FN95: Trade (buying and selling) | FO95: None | FP95: Farming | FQ95: Livestock | FR95: Health facility / Clinic | FS95: Basic Food | FT95: Basic Food | FX95: UNHCR
A96: D010 | B96: 31/7/2013 | C96: KBC | E96: Other | G96: 13/6/2013 | H96: Camp Manager | I96: Male | L96: Religious Leader | M96: Camp Resident | N96: Male | Q96: Kachin | R96: Hpakant | S96: Lone Khin | T96: Lone Khin | U96: 5 Ward Baptist Church(lon Khin) | V96: MMR001CMP179 | W96: 96.35527 | X96: 25.65613 | Y96: Rural | Z96: 1 | AA96: 2013 | AB96: Yes | AC96: Yes | AD96: Yes | AE96: No | AF96: Yes | AG96: Yes | AH96: Yes | AI96: No | AJ96: Hpakan | AK96: 6 | AL96: 30 | AM96: Yes | AN96: Lone Khin Baptist | AO96: Saya Tu Lwan | AP96: 09401535100, 096410561 | AQ96: Yes | AR96: No | AS96: Yes | AT96: No | AU96: No | AV96: No | AW96: Yes | AX96: No | AY96: No | AZ96: Yes | BA96: Yes | BB96: Yes | BC96: 7 | BD96: 3 | BE96: 10 | BF96: 7 | BG96: 10 | BH96: 17 | BI96: 12 | BJ96: 15 | BK96: 27 | BL96: 67 | BM96: 70 | BN96: 137 | BO96: 44 | BP96: 50 | BQ96: 94 | BR96: 19 | BS96: 59 | BT96: 78 | BU96: 35 | BV96: 79 | BW96: 114 | BX96: 5 | BY96: 20 | BZ96: 25 | CA96: 196 | CB96: 306 | CC96: 502 | CD96: 3 | CE96: 2 | CF96: 5 | CG96: 1 | CH96: 0 | CI96: 1 | CJ96: 1 | CK96: 4 | CL96: 5 | CM96: 2 | CN96: 0 | CO96: 2 | CP96: 0 | CQ96: 0 | CR96: 0 | CS96: 0 | CT96: 0 | CU96: 0 | CV96: 0 | CW96: 0 | CX96: 0 | CY96: 4 | CZ96: 7 | DA96: 0 | DB96: 0 | DC96: 0 | DD96: 0 | DE96: 0 | DF96: 0 | DG96: 133 | DH96: 502 | DI96: 220 | DJ96: 847 | DK96: 70 | DL96: 210 | DM96: No | DN96: Yes | DO96: 4 | DP96: 0 | DQ96: 4 | DR96: 3 | DS96: 8 | DT96: 3 | DU96: 0 | DV96: Yes | DW96: Yes | DX96: Yes | DY96: No | DZ96: Yes | EA96: No | EB96: 0.5 | EC96: 0 | ED96: 0 | EE96: 0 | EH96: 0.5 | EI96: Communal | EJ96: Yes | EK96: Solid shelters | EL96: 96-100% | EM96: 25-50% | EN96: No | EO96: Well | EP96: Yes | EQ96: 0 | ER96: 0 | ES96: 13 | ET96: Yes | EU96: Identified waste dump outside camp | EV96: Clinic | EX96: No | EY96: Yes | EZ96: Yes | FA96: No | FB96: No | FC96: No | FD96: No | FE96: No | FF96: No | FG96: No | FH96: 76-95% | FI96: 76-95% | FJ96: Mining | FK96: None | FL96: Farming | FM96: Mining | FN96: Livestock | FO96: None | FP96: Farming | FQ96: Livestock | FR96: Basic Food | FS96: Cash/money assistance | FT96: School facilities | FU96: Hygiene kits | FV96: School materials / supplies | FW96: Medicines
A97: H009 | B97: 30/7/2013 | C97: KBSS/KMSS | E97: CCCM Focal Point | G97: 16/1/2013 | H97: Camp Manager | I97: Male | L97: Religious Leader | M97: Camp Resident | N97: Female | Q97: Kachin | R97: Hpakant | S97: Seik Mu | T97: Maw Shan | U97: Lisu Baptist Church, Maw Shan Vil,. Seik Mu | V97: MMR001CMP181 | W97: 96.2692 | X97: 25.56651 | Y97: Rural | Z97: 1 | AA97: 2013 | AB97: Yes | AC97: Yes | AD97: Yes | AE97: No | AF97: Yes | AG97: Yes | AH97: Yes | AI97: No | AJ97: Hpakan | AK97: 9 | AL97: 20 | AM97: Yes | AN97: Lisu Baptist | AO97: U Thaung Wu | AP97: 09-33048416 | AQ97: Yes | AR97: No | AS97: No | AT97: Yes | AU97: No | AV97: No | AW97: Yes | AX97: No | AY97: No | AZ97: Yes | BA97: Yes | BB97: No | BC97: 0 | BD97: 1 | BE97: 1 | BF97: 1 | BG97: 2 | BH97: 3 | BI97: 3 | BJ97: 3 | BK97: 6 | BL97: 7 | BM97: 10 | BN97: 17 | BO97: 8 | BP97: 3 | BQ97: 11 | BR97: 12 | BS97: 9 | BT97: 21 | BU97: 13 | BV97: 14 | BW97: 27 | BX97: 3 | BY97: 2 | BZ97: 5 | CA97: 47 | CB97: 44 | CC97: 91 | CD97: 1 | CE97: 0 | CF97: 1 | CG97: 0 | CH97: 0 | CI97: 0 | CJ97: 0 | CK97: 0 | CL97: 0 | CM97: 0 | CN97: 0 | CO97: 0 | CP97: 0 | CQ97: 0 | CR97: 0 | CS97: 0 | CT97: 2 | CU97: 2 | CV97: 3 | CW97: 1 | CX97: 4 | CY97: 0 | CZ97: 4 | DA97: 0 | DB97: 1 | DC97: 1 | DD97: 0 | DE97: 0 | DF97: 0 | DG97: 40 | DH97: 135 | DI97: 40 | DJ97: 135 | DK97: 14 | DL97: 44 | DM97: No | DN97: Yes | DO97: 0 | DP97: 0 | DQ97: 3 | DR97: 0 | DS97: 0 | DT97: 0 | DU97: 3 | DV97: Yes | DW97: Yes | DX97: No | DY97: No | DZ97: Yes | EA97: No | EB97: 0.5 | ED97: 0.5 | EF97: 0.5 | EG97: 0.5 | EH97: 0.5 | EI97: Individual | EJ97: Yes | EK97: Solid shelters | EL97: 25-50% | EN97: Yes | EO97: Other | EP97: No | EQ97: 0 | ER97: 0 | ES97: 0 | ET97: Yes | EU97: Common identified waste dump inside camp | EV97: Clinic | EX97: No | EY97: No | EZ97: No | FA97: Yes | FB97: Yes | FC97: No | FD97: No | FE97: No | FF97: Yes | FG97: No | FH97: 51-75% | FI97: 51-75% | FJ97: Mining | FK97: None | FL97: Farming | FM97: Livestock | FN97: None | FO97: None | FP97: Farming | FQ97: Livestock | FR97: Firewood / fuel | FS97: Medicines | FT97: Individual shelter/houses | FU97: Access to job opportunities | FV97: Well / water tank | FW97: Cash/money assistance | FX97: KBC, UNHCR
A98: E015 | B98: 31/7/2013 | C98: OTHER | E98: Other | G98: 15/6/2013 | H98: Camp Manager | I98: Male | L98: Committee Member | Q98: Kachin | R98: Hpakant | S98: Seik Mu | T98: Maw Shan | U98: Rawan Baptist Church, Maw Shan Vil., Seik Mu | V98: MMR001CMP182 | W98: 96.2792 | X98: 25.56551 | Y98: Rural | Z98: 1 | AA98: 2013 | AB98: Yes | AC98: Yes | AD98: Yes | AE98: No | AF98: Yes | AG98: Yes | AH98: Yes | AI98: No | AJ98: Hpakant | AK98: 3 | AL98: 20 | AM98: Yes | AN98: Committee Member | AO98: U Yin Ram | AP98: 09-400011071 | AQ98: Yes | AR98: No | AS98: No | AT98: No | AU98: No | AV98: No | AW98: No | AX98: Yes | AY98: No | AZ98: Yes | BA98: Yes | BB98: Yes | BC98: 0 | BD98: 0 | BE98: 0 | BF98: 1 | BG98: 1 | BH98: 2 | BI98: 0 | BJ98: 5 | BK98: 5 | BL98: 2 | BM98: 5 | BN98: 7 | BO98: 0 | BP98: 2 | BQ98: 2 | BR98: 2 | BS98: 4 | BT98: 6 | BU98: 4 | BV98: 6 | BW98: 10 | BX98: 2 | BY98: 0 | BZ98: 2 | CA98: 11 | CB98: 23 | CC98: 34 | CD98: 0 | CE98: 0 | CF98: 0 | CG98: 0 | CH98: 0 | CI98: 0 | CJ98: 0 | CK98: 0 | CL98: 0 | CM98: 0 | CN98: 0 | CO98: 0 | CP98: 0 | CQ98: 0 | CR98: 0 | CS98: 0 | CT98: 0 | CU98: 0 | CV98: 0 | CW98: 1 | CX98: 1 | CY98: 0 | CZ98: 2 | DA98: 0 | DB98: 0 | DC98: 0 | DD98: 0 | DE98: 0 | DF98: 0 | DG98: 9 | DH98: 34 | DI98: 9 | DJ98: 34 | DK98: 0 | DL98: 0 | DM98: No | DN98: Yes | DO98: 2 | DP98: 0 | DQ98: 11 | DR98: 0 | DS98: 13 | DT98: 0 | DU98: 3 | DV98: No | DW98: No | DX98: No | DY98: No | DZ98: No | EA98: No | EI98: Mixed | EJ98: No | EK98: Community/religious building | EL98: 96-100% | EM98: 96-100% | EN98: No | EO98: Well | EP98: No | EQ98: 0 | ER98: 0 | ES98: 0 | ET98: No | EU98: Identified waste dump outside camp | EV98: Clinic | EW98: No | EX98: No | EY98: No | EZ98: No | FA98: No | FB98: No | FC98: No | FD98: No | FE98: No | FF98: No | FG98: Yes | FH98: 96-100% | FI98: 96-100% | FJ98: Mining | FK98: Other | FL98: Farming | FM98: Mining | FN98: None | FO98: None | FP98: Farming | FQ98: Other | FR98: Basic Food | FS98: Communal building | FT98: Access to job opportunities | FU98: Complementary Food | FV98: Cash/money assistance | FW98: Firewood / fuel | FX98: UNHCR
A99: E012 | B99: 31/7/2013 | C99: OTHER | E99: Other | G99: 15/6/2013 | H99: Camp Manager | I99: Male | L99: Committee Member | Q99: Kachin | R99: Hpakant | S99: Seik Mu | T99: Seik Mu | U99: Sai Nai Baptish Church, Maw Shan Vil., Seki Mu | V99: MMR001CMP183 | W99: 96.35303 | X99: 25.6684 | Y99: Rural | Z99: 1 | AA99: 2013 | AB99: Yes | AC99: Yes | AD99: Yes | AE99: No | AF99: Yes | AG99: Yes | AH99: Yes | AI99: No | AJ99: Hpakant | AK99: 4 | AM99: Yes | AN99: Seng Ngai | AO99: U Seng Hkum | AP99: 09-400006973 | AQ99: Yes | AR99: No | AS99: No | AT99: Yes | AU99: No | AV99: No | AW99: Yes | AX99: No | AY99: No | AZ99: Yes | BA99: Yes | BB99: Yes | BC99: 3 | BD99: 4 | BE99: 7 | BF99: 0 | BG99: 3 | BH99: 3 | BI99: 6 | BJ99: 3 | BK99: 9 | BL99: 11 | BM99: 1 | BN99: 1 | BO99: 5 | BP99: 9 | BQ99: 14 | BR99: 23 | BS99: 18 | BT99: 41 | BU99: 15 | BV99: 18 | BW99: 33 | BX99: 1 | BY99: 1 | BZ99: 2 | CA99: 64 | CB99: 57 | CC99: 121 | CD99: 1 | CE99: 1 | CF99: 2 | CG99: 3 | CH99: 0 | CI99: 3 | CJ99: 0 | CK99: 0 | CL99: 0 | CM99: 0 | CN99: 0 | CO99: 0 | CP99: 0 | CQ99: 0 | CR99: 0 | CS99: 0 | CT99: 0 | CU99: 0 | CV99: 0 | CW99: 0 | CX99: 0 | CY99: 1 | CZ99: 10 | DA99: 1 | DB99: 0 | DC99: 1 | DD99: 2 | DE99: 0 | DF99: 2 | DG99: 0 | DH99: 0 | DI99: 0 | DJ99: 0 | DK99: 10 | DM99: Yes | DN99: Yes | DP99: 1 | DQ99: 4 | DR99: 1 | DS99: 4 | DT99: 2 | DU99: 1 | DV99: No | DW99: No | DX99: No | DY99: No | DZ99: No | EA99: No | EI99: Individual | EJ99: Yes | EK99: Solid shelters | EL99: 76-95% | EM99: less than 25% | EN99: No | EO99: Rivers, springs, etc. | EP99: No | EQ99: 0 | ER99: 0 | ES99: 0 | ET99: No | EU99: Common identified waste dump inside camp | EV99: Clinic | EX99: No | EY99: No | EZ99: No | FA99: Yes | FB99: No | FC99: No | FD99: No | FE99: Yes | FF99: No | FG99: No | FH99: 76-95% | FI99: 76-95% | FJ99: Farming | FK99: Trade (buying and selling) | FL99: Livestock | FM99: Trade (buying and selling) | FN99: Farming | FO99: None | FP99: Farming | FQ99: Other | FR99: Basic Food | FS99: Basic Food | FT99: Health facility / Clinic | FU99: Health facility / Clinic | FV99: Access to job opportunities | FW99: Access to job opportunities
A100: D005 | B100: 30/7/2013 | C100: UNHCR | E100: Enumerator from camp profiling responsible organization | G100: 13/6/2013 | H100: Camp Manager | I100: Male | L100: FBO/NGO Staff | M100: Camp Resident | N100: Female | Q100: Kachin | R100: Hpakant | S100: Seik Mu | T100: Sai Taung (Ywar Haung) | U100: Ward 2 Sai Taung Baptist Church, Seik Mu | V100: MMR001CMP184 | W100: 96.28668 | X100: 25.57756 | Y100: Rural | Z100: 1 | AA100: 2013 | AB100: Yes | AC100: Yes | AD100: Yes | AE100: No | AF100: Yes | AG100: Yes | AH100: Yes | AI100: No | AJ100: Hpakan | AK100: 3 | AL100: 10 | AM100: Yes | AN100: KBC | AO100: U Tain Bawn | AP100: 09-400030035 | AQ100: Yes | AR100: Yes | AS100: No | AT100: No | AU100: No | AV100: No | AW100: No | AX100: No | AY100: Yes | AZ100: No | BA100: Yes | BB100: Yes | BC100: 3 | BD100: 5 | BE100: 8 | BF100: 4 | BG100: 5 | BH100: 9 | BI100: 23 | BJ100: 18 | BK100: 41 | BL100: 35 | BM100: 39 | BN100: 74 | BO100: 36 | BP100: 26 | BQ100: 62 | BR100: 23 | BS100: 46 | BT100: 69 | BU100: 47 | BV100: 50 | BW100: 97 | BX100: 6 | BY100: 5 | BZ100: 11 | CA100: 177 | CB100: 194 | CC100: 371 | CD100: 0 | CE100: 1 | CF100: 1 | CG100: 0 | CH100: 2 | CI100: 2 | CJ100: 3 | CK100: 1 | CL100: 4 | CM100: 0 | CN100: 0 | CO100: 0 | CP100: 0 | CQ100: 0 | CR100: 0 | CS100: 0 | CT100: 0 | CU100: 0 | CV100: 7 | CW100: 9 | CX100: 16 | CY100: 2 | CZ100: 12 | DA100: 6 | DB100: 0 | DC100: 6 | DD100: 1 | DE100: 0 | DF100: 1 | DG100: 100 | DH100: 371 | DI100: 144 | DJ100: 520 | DK100: 44 | DL100: 149 | DM100: No | DN100: Yes | DO100: 0 | DP100: 0 | DQ100: 6 | DR100: 3 | DS100: 6 | DT100: 3 | DU100: 1 | DV100: Yes | DW100: No | DX100: No | DY100: No | DZ100: Yes | EA100: No | EB100: 0.125 | EC100: 4 | ED100: 0 | EE100: 0 | EF100: 0.125 | EG100: 0.125 | EH100: 0.125 | EI100: Communal | EJ100: Yes | EK100: Community/religious building | EL100: 96-100% | EM100: 0% | EN100: No | EO100: Rivers, springs, etc. | EP100: Yes | EQ100: 0 | ER100: 0 | ES100: 15 | ET100: No | EU100: Common identified waste dump inside camp | EV100: Clinic | EX100: No | EY100: Yes | EZ100: No | FA100: No | FB100: No | FC100: No | FD100: No | FE100: No | FF100: No | FG100: No | FH100: 96-100% | FI100: 96-100% | FJ100: None | FK100: None | FL100: Farming | FM100: Livestock | FN100: None | FO100: None | FP100: Farming | FQ100: Livestock | FR100: Well / water tank | FS100: Individual shelter/houses | FT100: School materials / supplies | FU100: Communal building | FV100: Firewood / fuel | FW100: Medicines | FX100: UNHCR
A101: F014 | B101: 31/7/2013 | C101: KBSS/KMSS | E101: Enumerator from camp profiling responsible organization | G101: 14/6/2013 | H101: Camp Manager | I101: Male | L101: Religious Leader | M101: Camp Resident | N101: Female | Q101: Kachin | R101: Hpakant | S101: Seik Mu | T101: Seik Mu | U101: Ward 2 Cahotlic Church, Seik Mu | V101: MMR001CMP185 | W101: 96.28825 | X101: 25.57921 | Y101: Rural | Z101: 1 | AA101: 2013 | AB101: Yes | AC101: Yes | AD101: Yes | AE101: No | AF101: Yes | AG101: Yes | AH101: Yes | AI101: No | AJ101: Hpakan | AK101: 2 | AM101: Yes | AN101: RC Relif Committee | AO101: Saya Nwa Gam Seng | AP101: 09-47055565 | AQ101: Yes | AR101: No | AS101: No | AT101: Yes | AU101: No | AV101: No | AW101: No | AX101: Yes | AY101: No | AZ101: Yes | BA101: Yes | BB101: Yes | BC101: 0 | BD101: 1 | BE101: 1 | BF101: 2 | BG101: 0 | BH101: 2 | BI101: 1 | BJ101: 0 | BK101: 1 | BL101: 13 | BM101: 10 | BN101: 23 | BO101: 11 | BP101: 15 | BQ101: 26 | BR101: 6 | BS101: 10 | BT101: 16 | BU101: 15 | BV101: 15 | BW101: 30 | BX101: 4 | BY101: 2 | BZ101: 6 | CA101: 52 | CB101: 53 | CC101: 105 | CD101: 0 | CE101: 0 | CF101: 0 | CG101: 1 | CH101: 0 | CI101: 1 | CJ101: 0 | CK101: 1 | CL101: 1 | CM101: 0 | CN101: 0 | CO101: 0 | CP101: 0 | CQ101: 0 | CR101: 0 | CS101: 0 | CT101: 0 | CU101: 0 | CV101: 0 | CW101: 0 | CX101: 0 | CY101: 0 | CZ101: 1 | DA101: 0 | DB101: 0 | DC101: 0 | DD101: 0 | DE101: 0 | DF101: 0 | DG101: 26 | DH101: 105 | DI101: 0 | DJ101: 0 | DM101: No | DN101: Yes | DO101: 2 | DP101: 2 | DQ101: 4 | DR101: 3 | DS101: 6 | DT101: 5 | DU101: 1 | DV101: Yes | DW101: Yes | DX101: Yes | DY101: Yes | DZ101: Yes | EA101: No | EI101: Mixed | EJ101: Yes | EK101: Community/religious building | EL101: 25-50% | EM101: 0% | EN101: No | EO101: Other | EP101: No | EQ101: 0 | ER101: 0 | ES101: 0 | ET101: No | EU101: Identified waste dump outside camp | EV101: Clinic | EX101: No | EY101: No | EZ101: No | FA101: No | FB101: No | FC101: No | FD101: No | FE101: No | FF101: No | FG101: Yes | FH101: 76-95% | FI101: 76-95% | FJ101: Mining | FK101: None | FL101: Farming | FM101: Mining | FN101: None | FO101: None | FP101: Farming | FQ101: Trade (buying and selling) | FR101: Cash/money assistance | FS101: Cash/money assistance | FT101: Well / water tank | FU101: Well / water tank | FV101: Medicines | FW101: Vocational training
A102: D001 | B102: 30/7/2013 | C102: OTHER | E102: Other | G102: 18/6/2013 | H102: Camp Manager | I102: Male | L102: Committee Member | M102: Camp Resident | N102: Female | Q102: Kachin | R102: Hpakant | S102: Urban | T102: Maw Wan | U102: AG Church, Maw Wan | V102: MMR001CMP190 | W102: 96.31735 | X102: 25.616509 | Y102: Urban | Z102: 1 | AA102: 2013 | AB102: No | AC102: Yes | AD102: Yes | AE102: No | AF102: No | AG102: Yes | AH102: Yes | AI102: No | AJ102: Hpakan | AK102: 0.5 | AL102: 15 | AM102: Yes | AN102: AG | AO102: Saya Yaw Han | AP102: 094711241 | AQ102: Yes | AR102: No | AS102: No | AT102: Yes | AU102: No | AV102: No | AW102: No | AX102: No | AY102: Yes | AZ102: Yes | BA102: No | BB102: No | BC102: 2 | BD102: 2 | BE102: 4 | BF102: 3 | BG102: 3 | BH102: 6 | BI102: 6 | BJ102: 3 | BK102: 9 | BL102: 9 | BM102: 4 | BN102: 13 | BO102: 7 | BP102: 7 | BQ102: 14 | BR102: 12 | BS102: 4 | BT102: 16 | BU102: 11 | BV102: 11 | BW102: 22 | BX102: 3 | BY102: 4 | BZ102: 7 | CA102: 53 | CB102: 38 | CC102: 91 | CD102: 0 | CE102: 0 | CF102: 0 | CG102: 0 | CH102: 0 | CI102: 0 | CJ102: 0 | CK102: 0 | CL102: 0 | CM102: 0 | CN102: 0 | CO102: 0 | CP102: 0 | CQ102: 0 | CR102: 0 | CS102: 0 | CT102: 0 | CU102: 0 | CV102: 0 | CW102: 1 | CX102: 1 | CY102: 1 | CZ102: 3 | DA102: 0 | DB102: 4 | DC102: 4 | DD102: 0 | DE102: 0 | DF102: 0 | DG102: 18 | DH102: 91 | DI102: 0 | DJ102: 0 | DM102: No | DN102: No | DV102: No | DW102: No | DX102: No | DY102: No | DZ102: No | EA102: No | EI102: Individual | EJ102: Yes | EK102: Solid shelters | EL102: 25-50% | EM102: less than 25% | EN102: Yes | EO102: Well | EP102: No | EQ102: 2 | ER102: 2 | ES102: 0 | ET102: No | EU102: Identified waste dump outside camp | EV102: Hospital | EX102: No | EY102: No | EZ102: No | FA102: No | FB102: No | FC102: No | FD102: No | FE102: No | FF102: No | FG102: No | FH102: 96-100% | FI102: 96-100% | FJ102: Mining | FK102: None | FL102: Farming | FM102: Livestock | FN102: Other | FO102: None | FP102: Livestock | FQ102: None | FR102: Cash/money assistance | FS102: Cash/money assistance | FT102: Firewood / fuel | FU102: Medicines | FV102: Complementary Food | FW102: Individual shelter/houses | FX102: UNHCR
A103: H010 | B103: 30/7/2013 | C103: UNHCR | E103: CCCM Focal Point | G103: 14/6/2013 | H103: Camp Manager | I103: Male | L103: Committee Member | M103: Camp Resident | N103: Female | Q103: Kachin | R103: Hpakant | S103: Seik Mu | T103: Maw Shan | U103: Hmaw Wan, Anglican | V103: MMR001CMP191 | W103: 96.31735 | X103: 25.616509 | Y103: Rural | Z103: 8 | AA103: 2012 | AB103: Yes | AC103: Yes | AD103: Yes | AE103: No | AF103: Yes | AG103: Yes | AH103: Yes | AI103: No | AJ103: Hpakan | AK103: 0.5 | AL103: 3 | AM103: Yes | AN103: Hmaw Wan, Anglican | AO103: U Naw San | AP103: 09-403743873 | AQ103: Yes | AR103: Yes | AS103: No | AT103: No | AU103: No | AV103: No | AW103: Yes | AX103: Yes | AY103: No | AZ103: Yes | BA103: Yes | BB103: Yes | BC103: 0 | BD103: 0 | BE103: 0 | BF103: 3 | BG103: 4 | BH103: 7 | BI103: 3 | BJ103: 2 | BK103: 5 | BL103: 8 | BM103: 6 | BN103: 14 | BO103: 3 | BP103: 3 | BQ103: 6 | BR103: 9 | BS103: 10 | BT103: 19 | BU103: 4 | BV103: 5 | BW103: 9 | BX103: 3 | BY103: 1 | BZ103: 4 | CA103: 33 | CB103: 31 | CC103: 64 | CD103: 0 | CE103: 1 | CF103: 1 | CG103: 0 | CH103: 0 | CI103: 0 | CJ103: 0 | CK103: 0 | CL103: 0 | CM103: 0 | CN103: 0 | CO103: 0 | CP103: 0 | CQ103: 0 | CR103: 0 | CS103: 0 | CT103: 0 | CU103: 0 | CV103: 0 | CW103: 1 | CX103: 1 | CY103: 0 | CZ103: 1 | DA103: 0 | DB103: 1 | DC103: 1 | DD103: 0 | DE103: 0 | DF103: 0 | DG103: 13 | DH103: 64 | DI103: 13 | DJ103: 64 | DK103: 15 | DL103: 85 | DM103: No | DN103: No | DO103: 0 | DP103: 0 | DQ103: 0 | DR103: 0 | DS103: 0 | DT103: 0 | DU103: 0 | DV103: No | DW103: No | DX103: No | DY103: No | DZ103: No | EA103: No | EB103: 8 | ED103: 8 | EF103: 0.25 | EG103: 0.25 | EH103: 0.25 | EI103: Individual | EJ103: Yes | EK103: Community/religious building | EL103: 96-100% | EM103: 0% | EN103: Yes | EO103: Well | EP103: Yes | EQ103: 0 | ER103: 0 | ES103: 5 | ET103: No | EU103: Identified waste dump outside camp | EV103: Hospital | EX103: Yes | EY103: No | EZ103: No | FA103: No | FB103: No | FC103: No | FD103: No | FE103: No | FF103: No | FG103: Yes | FH103: 96-100% | FI103: 96-100% | FJ103: Mining | FK103: None | FL103: Farming | FM103: Mining | FN103: None | FO103: None | FP103: Livestock | FQ103: Manufacturing (non-food) | FR103: Basic Food | FS103: Cash/money assistance | FT103: Health facility / Clinic | FU103: School materials / supplies | FV103: Health facility / Clinic | FW103: Access to job opportunities
A104: E011 | B104: 31/7/2013 | C104: OTHER | E104: Other | G104: // | H104: Camp Manager | I104: Male | L104: Committee Member | Q104: Kachin | R104: Hpakant | S104: Nam Ma Hpyit | T104: Nam Ma Hpyit | U104: Association of Christ, Nam Ma Phyit | V104: MMR001CMP192 | W104: 96.33959 | X104: 25.617998 | Z104: 1 | AA104: 2013 | AB104: Yes | AC104: Yes | AD104: Yes | AE104: No | AF104: Yes | AG104: Yes | AH104: Yes | AI104: No | AJ104: Hpakant | AL104: 40 | AM104: Yes | AN104: KMSS | AO104: U Thein Naing | AP104: 09-47011093 | AQ104: Yes | AR104: No | AS104: No | AT104: No | AU104: No | AV104: No | AW104: No | AX104: No | AY104: Yes | AZ104: No | BA104: No | BB104: No | BC104: 1 | BD104: 0 | BE104: 1 | BF104: 6 | BG104: 1 | BH104: 7 | BI104: 2 | BJ104: 1 | BK104: 3 | BL104: 5 | BM104: 6 | BN104: 11 | BO104: 4 | BP104: 6 | BQ104: 10 | BR104: 11 | BS104: 12 | BT104: 23 | BU104: 17 | BV104: 9 | BW104: 26 | BX104: 2 | BY104: 5 | BZ104: 7 | CA104: 48 | CB104: 40 | CC104: 88 | CD104: 0 | CE104: 0 | CF104: 0 | CG104: 0 | CH104: 0 | CI104: 0 | CJ104: 0 | CK104: 0 | CL104: 0 | CM104: 0 | CN104: 0 | CO104: 0 | CP104: 3 | CQ104: 1 | CR104: 4 | CS104: 0 | CT104: 0 | CU104: 0 | CV104: 1 | CW104: 3 | CX104: 4 | CY104: 1 | CZ104: 3 | DA104: 0 | DB104: 0 | DC104: 0 | DD104: 0 | DE104: 0 | DF104: 0 | DG104: 27 | DH104: 88 | DI104: 103 | DJ104: 30 | DK104: 3 | DL104: 15 | DM104: No | DN104: Yes | DO104: 4 | DP104: 0 | DQ104: 5 | DR104: 0 | DS104: 9 | DT104: 0 | DU104: 0 | DV104: No | DW104: No | DX104: No | DY104: No | DZ104: No | EA104: No | EI104: Communal | EJ104: Yes | EK104: Solid shelters | EL104: 51-75% | EM104: less than 25% | EN104: No | EO104: Well | EP104: Yes | EQ104: 1 | ER104: 1 | ES104: 0 | ET104: No | EU104: Common identified waste dump inside camp | EV104: Hospital | EX104: No | EY104: No | EZ104: No | FA104: No | FB104: No | FC104: No | FD104: No | FE104: No | FF104: No | FG104: No | FH104: 0% | FI104: less than 25% | FJ104: Mining | FK104: None | FL104: Farming | FM104: Mining | FN104: None | FO104: Livestock | FP104: Farming | FQ104: Livestock | FX104: UNHCR
A105: A001 | B105: 30/7/2013 | C105: UNHCR | E105: CCCM Focal Point | G105: 14/6/2013 | H105: Camp Manager | I105: Female | L105: Religious Leader | Q105: Kachin | R105: Bhamo | S105: Aung Thar | T105: Aung Thar | U105: Aung Thar Church | V105: MMR001CMP194 | W105: 97.25265 | X105: 24.260467 | Y105: Urban | Z105: 9 | AA105: 2011 | AB105: No | AC105: Yes | AD105: Yes | AE105: No | AF105: No | AG105: Yes | AH105: Yes | AI105: No | AJ105: Bhamo | AK105: 2 | AM105: Yes | AN105: KBC | AO105: Sayama Htoi Bu | AP105: 7451262 | AQ105: Yes | AR105: Yes | AS105: No | AT105: No | AU105: No | AV105: No | AW105: Yes | AX105: No | AY105: No | AZ105: Yes | BA105: Yes | BB105: Yes | BC105: 0 | BD105: 0 | BE105: 0 | BF105: 1 | BG105: 0 | BH105: 1 | BI105: 2 | BJ105: 2 | BK105: 4 | BL105: 2 | BM105: 4 | BN105: 6 | BO105: 2 | BP105: 4 | BQ105: 6 | BR105: 2 | BS105: 5 | BT105: 7 | BU105: 2 | BV105: 1 | BW105: 3 | BX105: 4 | BY105: 6 | BZ105: 10 | CA105: 15 | CB105: 22 | CC105: 37 | CD105: 0 | CE105: 0 | CF105: 0 | CG105: 0 | CH105: 0 | CI105: 0 | CJ105: 0 | CK105: 1 | CL105: 1 | CM105: 0 | CN105: 0 | CO105: 0 | CP105: 1 | CQ105: 1 | CR105: 2 | CS105: 0 | CT105: 0 | CU105: 0 | CV105: 1 | CW105: 0 | CX105: 1 | CY105: 1 | CZ105: 1 | DA105: 0 | DB105: 0 | DC105: 0 | DD105: 0 | DE105: 0 | DF105: 0 | DG105: 10 | DH105: 33 | DI105: 0 | DJ105: 0 | DL105: 2 | DM105: No | DN105: Yes | DO105: 0 | DP105: 0 | DQ105: 5 | DR105: 3 | DS105: 5 | DT105: 3 | DU105: 1 | DV105: No | DW105: No | DX105: No | DY105: No | DZ105: Yes | EA105: No | EI105: Individual | EJ105: Yes | EK105: Community/religious building | EL105: 0% | EM105: 0% | EN105: Yes | EO105: Borehole/hand pump | EP105: Yes | EQ105: 1 | ER105: 1 | ES105: 0 | ET105: No | EU105: Common identified waste dump inside camp | EV105: Clinic | EX105: No | EY105: Yes | EZ105: No | FA105: No | FB105: No | FC105: No | FD105: No | FE105: No | FF105: No | FG105: No | FH105: 96-100% | FI105: 96-100% | FJ105: Farming | FK105: Handicrafts | FL105: Farming | FM105: Livestock | FN105: Livestock | FO105: Other | FP105: Farming | FQ105: Livestock | FR105: Firewood / fuel | FS105: Cash/money assistance | FT105: Medicines | FU105: Vocational training | FV105: Complementary Food | FW105: Hygiene kits
A106: F005 | B106: 30/7/2013 | C106: SHALOM | E106: CCCM Focal Point | G106: 21/7/2013 | H106: Camp Manager | I106: Male | L106: Committee Member | Q106: Kachin | R106: Chipwi | S106: Urban | T106: Rit Law | U106: Lhaovao Baptist Church (LBC) | V106: MMR001CMP195 | Z106: 2 | AA106: 2012 | AB106: Yes | AC106: Yes | AD106: Yes | AE106: No | AF106: Yes | AG106: Yes | AH106: Yes | AI106: No | AJ106: Chipwi | AL106: 5 | AM106: Yes | AN106: Shalom | AO106: U D Ze Dai | AQ106: Yes | AR106: No | AS106: No | AT106: Yes | AU106: No | AV106: No | AW106: Yes | AX106: No | AY106: No | AZ106: Yes | BA106: Yes | BB106: Yes | BC106: 1 | BD106: 3 | BE106: 4 | BF106: 20 | BG106: 9 | BH106: 29 | BI106: 19 | BJ106: 5 | BK106: 24 | BL106: 28 | BM106: 8 | BN106: 36 | BO106: 40 | BP106: 37 | BQ106: 77 | BR106: 52 | BS106: 50 | BT106: 102 | BU106: 60 | BV106: 64 | BW106: 124 | BX106: 55 | BY106: 60 | BZ106: 115 | CA106: 275 | CB106: 236 | CC106: 511 | CD106: 0 | CE106: 2 | CF106: 2 | CG106: 0 | CH106: 1 | CI106: 1 | CJ106: 6 | CK106: 7 | CL106: 13 | CM106: 0 | CN106: 0 | CO106: 0 | CP106: 0 | CQ106: 0 | CR106: 0 | CS106: 0 | CT106: 0 | CU106: 0 | CV106: 0 | CW106: 0 | CX106: 0 | CY106: 4 | CZ106: 2 | DA106: 2 | DB106: 2 | DC106: 4 | DD106: 0 | DE106: 0 | DF106: 0 | DG106: 138 | DH106: 517 | DI106: 138 | DJ106: 517 | DK106: 0 | DL106: 0 | DM106: No | DN106: Yes | DO106: 5 | DP106: 1 | DQ106: 6 | DR106: 3 | DS106: 11 | DT106: 4 | DU106: 1 | DV106: Yes | DW106: Yes | DX106: No | DY106: No | DZ106: Yes | EA106: No | EI106: Individual | EJ106: Yes | EK106: Solid shelters | EL106: 0% | EM106: 51-75% | EN106: Yes | EO106: Rivers, springs, etc. | EP106: Yes | EQ106: 10 | ER106: 10 | ES106: 0 | ET106: No | EU106: Common identified waste dump inside camp | EV106: Hospital | EX106: No | EY106: Yes | EZ106: No | FA106: No | FB106: No | FC106: No | FD106: No | FE106: No | FF106: No | FG106: No | FH106: 51-75% | FI106: 25-50% | FJ106: Other | FK106: None | FL106: Farming | FN106: Other | FO106: None | FP106: Farming | FR106: Basic Food | FS106: Kitchen sets | FT106: Individual shelter/houses | FU106: Bathing spaces | FV106: Medicines | FW106: Vocational training | FX106: UNHCR | FY106: Shalom, UNHCR, DRC
A107: I003 | B107: 30/7/2013 | C107: KBSS/KMSS | E107: CCCM Focal Point | G107: 21/6/2013 | H107: Camp Manager | I107: Male | L107: Committee Member | Q107: Kachin | R107: Mansi | S107: Man Mawn | T107: Man Mawn | U107: Lagatyan | V107: MMR001CMP202 | W107: 97.6137 | X107: 23.8799 | Y107: Rural | Z107: 4 | AA107: 2013 | AB107: Yes | AC107: Yes | AD107: Yes | AE107: No | AF107: Yes | AG107: Yes | AH107: No | AI107: No | AJ107: Nam Hkam | AK107: 10 | AL107: 45 | AM107: Yes | AN107: LSO/KMSS | AO107: Sr. Lahpai Naw Naw | AP107: 15208801800 | AQ107: Yes | AR107: No | AS107: Yes | AT107: No | AU107: No | AV107: No | AW107: Yes | AX107: No | AY107: No | AZ107: Yes | BA107: Yes | BB107: Yes | BC107: 3 | BD107: 3 | BE107: 6 | BF107: 5 | BG107: 15 | BH107: 20 | BI107: 26 | BJ107: 29 | BK107: 55 | BL107: 53 | BM107: 46 | BN107: 99 | BO107: 20 | BP107: 25 | BQ107: 45 | BR107: 45 | BS107: 64 | BT107: 109 | BU107: 35 | BV107: 52 | BW107: 87 | BX107: 13 | BY107: 10 | BZ107: 23 | CA107: 200 | CB107: 244 | CC107: 444 | CD107: 1 | CE107: 1 | CF107: 2 | CG107: 0 | CH107: 0 | CI107: 0 | CJ107: 0 | CK107: 0 | CL107: 0 | CM107: 1 | CN107: 0 | CO107: 1 | CP107: 3 | CQ107: 6 | CR107: 9 | CS107: 0 | CT107: 1 | CU107: 1 | CV107: 0 | CW107: 0 | CX107: 0 | CY107: 15 | CZ107: 30 | DA107: 0 | DB107: 1 | DC107: 1 | DD107: 0 | DE107: 0 | DF107: 0 | DG107: 114 | DH107: 444 | DI107: 114 | DJ107: 444 | DK107: 0 | DL107: 0 | DM107: No | DN107: Yes | DO107: 7 | DP107: 4 | DQ107: 0 | DR107: 0 | DS107: 7 | DT107: 4 | DU107: 0 | DV107: Yes | DW107: No | DX107: No | DY107: No | DZ107: No | EA107: No | EB107: 1 | EI107: Individual | EJ107: No | EK107: Solid shelters | EL107: 51-75% | EM107: 0% | EN107: Yes | EO107: Rivers, springs, etc. | EP107: No | EQ107: 5 | ER107: 5 | ES107: 0 | ET107: No | EU107: Common identified waste dump inside camp | EV107: Clinic | EX107: No | EY107: Yes | EZ107: No | FA107: No | FB107: No | FC107: No | FD107: No | FE107: No | FF107: No | FG107: No | FH107: 51-75% | FI107: 51-75% | FJ107: Farming | FK107: None | FL107: Farming | FM107: Livestock | FN107: Farming | FO107: None | FP107: Farming | FQ107: Livestock | FR107: Basic Food | FT107: Firewood / fuel | FV107: Well / water tank
A108: E005 | B108: 30/7/2013 | C108: KBSS/KMSS | E108: CCCM Focal Point | G108: 18/6/2013 | H108: Camp Manager | I108: Male | Q108: Kachin | R108: Mansi | S108: Mung Ding Pa | T108: Mung Ding Pa | U108: Mung Ding Pa (Boarder) | V108: MMR001CMP203 | W108: 96.80885 | X108: 24.20645 | Y108: Rural | Z108: 7 | AA108: 2012 | AB108: Yes | AC108: Yes | AD108: Yes | AE108: No | AF108: Yes | AG108: Yes | AH108: Yes | AI108: No | AJ108: Man Si | AK108: 24 | AM108: Yes | AN108: IRRC/KMSS | AO108: Mr.Hka Aung | AP108: 09-91039627 | AQ108: Yes | AR108: Yes | AS108: No | AT108: No | AU108: No | AV108: No | AW108: No | AX108: No | AY108: Yes | AZ108: No | BA108: Yes | BB108: No | BC108: 0 | BD108: 0 | BE108: 0 | BF108: 0 | BG108: 0 | BH108: 0 | BI108: 0 | BJ108: 0 | BK108: 0 | BL108: 105 | BM108: 93 | BN108: 198 | BO108: 98 | BP108: 104 | BQ108: 202 | BR108: 0 | BS108: 0 | BT108: 0 | BU108: 0 | BV108: 0 | BW108: 0 | BX108: 0 | BY108: 0 | BZ108: 0 | CA108: 203 | CB108: 197 | CC108: 400 | CD108: 0 | CE108: 0 | CF108: 0 | CG108: 0 | CH108: 0 | CI108: 0 | CJ108: 0 | CK108: 0 | CL108: 0 | CM108: 0 | CN108: 0 | CO108: 0 | CP108: 0 | CQ108: 0 | CR108: 0 | CS108: 0 | CT108: 0 | CU108: 0 | CV108: 0 | CW108: 0 | CX108: 0 | CY108: 0 | CZ108: 0 | DA108: 0 | DB108: 0 | DC108: 0 | DD108: 0 | DE108: 0 | DF108: 0 | DG108: 98 | DH108: 400 | DI108: 0 | DJ108: 0 | DM108: No | DN108: Yes | DQ108: 4 | DR108: 3 | DS108: 4 | DT108: 3 | DU108: 1 | DV108: Yes | DW108: No | DX108: No | DY108: No | DZ108: No | EA108: No | EI108: Communal | EJ108: No | EK108: Solid shelters | EL108: 0% | EM108: 0% | EN108: Yes | EO108: Rivers, springs, etc. | EP108: Yes | EQ108: 7 | ER108: 7 | ES108: 7 | ET108: Yes | EU108: Is getting burnt | EV108: Rural centre | EX108: No | EY108: Yes | EZ108: Yes | FA108: Yes | FB108: Yes | FC108: Yes | FD108: Yes | FE108: Yes | FF108: Yes | FG108: No | FH108: 0% | FI108: 0% | FJ108: None | FK108: None | FL108: None | FN108: None | FO108: None | FP108: None | FR108: Complementary Food | FS108: Women NFIs (sanitary pads, underwear, etc.) | FT108: Blankets/Winter Clothing | FU108: Firewood / fuel | FV108: Well / water tank | FW108: Health facility / Clinic
A109: E004 | B109: 30/7/2013 | C109: KBSS/KMSS | E109: CCCM Focal Point | G109: 16/6/2013 | H109: Camp Manager | I109: Female | Q109: Kachin | R109: Mansi | S109: Nam Lin Pa | T109: Nam Lin Pa | U109: Nam Lim Pa (Boarder) | V109: MMR001CMP204 | W109: 96.80894 | X109: 24.20635 | Y109: Rural | Z109: 7 | AA109: 2012 | AB109: Yes | AC109: Yes | AD109: Yes | AE109: Yes | AF109: Yes | AG109: Yes | AH109: No | AI109: No | AJ109: Man Si | AK109: 34 | AL109: 34 | AM109: Yes | AN109: IRRC/KMSS | AO109: Pan Htoi Aung | AP109: 09-91039627 | AQ109: Yes | AR109: Yes | AS109: No | AT109: No | AU109: No | AV109: No | AW109: Yes | AX109: No | AY109: No | AZ109: No | BA109: Yes | BB109: No | BC109: 10 | BD109: 15 | BE109: 25 | BF109: 31 | BG109: 34 | BH109: 65 | BI109: 36 | BJ109: 40 | BK109: 76 | BL109: 193 | BM109: 202 | BN109: 395 | BO109: 133 | BP109: 150 | BQ109: 283 | BR109: 67 | BS109: 73 | BT109: 140 | BU109: 39 | BV109: 46 | BW109: 85 | BX109: 33 | BY109: 42 | BZ109: 75 | CA109: 542 | CB109: 602 | CC109: 1144 | CD109: 0 | CE109: 2 | CF109: 2 | CG109: 4 | CH109: 5 | CI109: 9 | CJ109: 0 | CK109: 3 | CL109: 3 | CM109: 0 | CN109: 0 | CO109: 0 | CP109: 0 | CQ109: 0 | CR109: 0 | CS109: 1 | CT109: 1 | CU109: 2 | CV109: 5 | CW109: 22 | CX109: 27 | CY109: 7 | CZ109: 19 | DA109: 0 | DB109: 2 | DC109: 2 | DD109: 0 | DE109: 2 | DF109: 2 | DG109: 185 | DH109: 1144 | DI109: 0 | DJ109: 0 | DM109: No | DN109: Yes | DO109: 2 | DQ109: 5 | DR109: 2 | DS109: 7 | DT109: 2 | DU109: 1 | DV109: Yes | DW109: No | DX109: No | DY109: No | DZ109: No | EA109: No | EI109: Individual | EJ109: Yes | EK109: Solid shelters | EL109: 0% | EM109: 0% | EN109: Yes | EO109: Rivers, springs, etc. | EP109: No | EQ109: 0 | ER109: 0 | ES109: 0 | ET109: No | EU109: Is getting burnt | EV109: Rural centre | EX109: Yes | EY109: Yes | EZ109: Yes | FA109: No | FB109: Yes | FC109: Yes | FD109: No | FE109: Yes | FF109: No | FG109: No | FH109: 25-50% | FI109: 25-50% | FJ109: Farming | FK109: Other | FL109: Farming | FM109: Other | FN109: None | FO109: None | FP109: Farming | FQ109: Other | FR109: Cash/money assistance | FS109: Complementary Food | FT109: Access to job opportunities | FU109: School materials / supplies | FV109: Bathing spaces | FW109: Kitchen sets
A110: F002 | B110: 30/7/2013 | C110: OTHER | E110: Other | F110: Church | G110: 26/6/2013 | H110: Other | I110: Male | L110: Other | Q110: Shan (North) | R110: Hseni | S110: Nar Tee | T110: Nar Tee | U110: Narte | V110: MMR015CMP207 | W110: 98.12944 | X110: 23.21177 | Y110: Rural | Z110: 4 | AA110: 2013 | AB110: Yes | AC110: Yes | AD110: Yes | AE110: No | AF110: Yes | AG110: Yes | AH110: Yes | AI110: No | AJ110: Theinni | AK110: 50 | AL110: 120 | AM110: Yes | AN110: Church | AO110: U Lawng Li | AP110: 09-47235046 | AQ110: Yes | AR110: No | AS110: No | AT110: Yes | AU110: No | AV110: No | AW110: Yes | AX110: No | AY110: No | AZ110: No | BA110: No | BB110: No | BC110: 1 | BD110: 0 | BE110: 1 | BF110: 6 | BG110: 3 | BH110: 9 | BI110: 12 | BJ110: 20 | BK110: 32 | BL110: 18 | BM110: 17 | BN110: 35 | BO110: 23 | BP110: 18 | BQ110: 41 | BR110: 24 | BS110: 24 | BT110: 48 | BU110: 34 | BV110: 30 | BW110: 64 | BX110: 10 | BY110: 18 | BZ110: 28 | CA110: 128 | CB110: 130 | CC110: 258 | CD110: 0 | CE110: 0 | CF110: 0 | CG110: 0 | CH110: 0 | CI110: 0 | CJ110: 0 | CK110: 2 | CL110: 2 | CM110: 0 | CN110: 0 | CO110: 0 | CP110: 0 | CQ110: 0 | CR110: 0 | CS110: 1 | CT110: 1 | CU110: 2 | CV110: 0 | CW110: 0 | CX110: 0 | CY110: 3 | CZ110: 6 | DA110: 0 | DB110: 0 | DC110: 0 | DD110: 0 | DE110: 0 | DF110: 0 | DG110: 50 | DH110: 258 | DI110: 55 | DJ110: 273 | DK110: 1 | DL110: 4
A111: G005 | B111: 30/7/2013 | C111: KBC | E111: CCCM Focal Point | G111: 20/6/2013 | H111: Camp Manager | I111: Male | L111: Committee Member | M111: Camp Resident | N111: Female | Q111: Shan (North) | R111: Namhkan | S111: Urban | T111: Aung Metta | U111: Nam Hkam (KBC Jaw Wang) | V111: MMR015CMP001 | W111: 97.6835 | X111: 23.8317 | Y111: Urban | Z111: 12 | AA111: 2011 | AB111: Yes | AC111: Yes | AD111: Yes | AE111: Yes | AF111: Yes | AG111: Yes | AH111: Yes | AI111: Yes | AJ111: Nam Hkam | AK111: 1 | AL111: 30 | AM111: Yes | AN111: KBC | AO111: Brang San Aung | AP111: 18288183074 | AQ111: Yes | AR111: No | AS111: Yes | AT111: No | AU111: No | AV111: No | AW111: No | AX111: Yes | AY111: No | AZ111: Yes | BA111: Yes | BB111: Yes | BC111: 0 | BD111: 2 | BE111: 0 | BF111: 6 | BG111: 8 | BH111: 0 | BI111: 12 | BJ111: 8 | BK111: 0 | BL111: 49 | BM111: 53 | BN111: 0 | BO111: 31 | BP111: 41 | BQ111: 0 | BR111: 29 | BS111: 47 | BT111: 0 | BU111: 39 | BV111: 44 | BW111: 0 | BX111: 8 | BY111: 18 | BZ111: 0 | CA111: 174 | CB111: 221 | CC111: 395 | CD111: 2 | CE111: 2 | CF111: 4 | CG111: 0 | CH111: 0 | CI111: 0 | CJ111: 0 | CK111: 4 | CL111: 4 | CM111: 0 | CN111: 1 | CO111: 1 | CP111: 1 | CQ111: 1 | CR111: 2 | CS111: 1 | CT111: 4 | CU111: 5 | CV111: 1 | CW111: 3 | CX111: 4 | CY111: 2 | CZ111: 8 | DA111: 0 | DB111: 2 | DC111: 2 | DD111: 0 | DE111: 0 | DF111: 0 | DG111: 84 | DH111: 390 | DI111: 2 | DJ111: 13 | DK111: 11 | DL111: 54 | DM111: Yes | DN111: Yes | DO111: 3 | DP111: 4 | DQ111: 4 | DR111: 3 | DS111: 7 | DT111: 7 | DU111: 2 | DV111: Yes | DW111: Yes | DX111: Yes | DY111: Yes | DZ111: Yes | EA111: No | EB111: 1 | EF111: 1 | EG111: 1 | EH111: 1 | EI111: Communal | EJ111: Yes | EK111: Solid shelters | EL111: 76-95% | EM111: 0% | EN111: No | EO111: Borehole/hand pump | EP111: Yes | EQ111: 3 | ER111: 3 | ES111: 0 | ET111: Yes | EU111: Identified waste dump outside camp | EV111: Hospital | EX111: No | EY111: Yes | EZ111: No | FA111: No | FB111: No | FC111: No | FD111: No | FE111: No | FF111: No | FG111: No | FH111: 96-100% | FI111: 96-100% | FJ111: Other | FK111: None | FL111: Farming | FM111: Livestock | FN111: Other | FO111: None | FP111: Farming | FQ111: Livestock | FR111: Kitchen sets | FS111: Access to job opportunities | FT111: Firewood / fuel | FU111: Vocational training | FV111: Transport to school | FW111: Cash/money assistance | FX111: KBC, UNHCR | FY111: KBC, UNHCR, DRC
A112: I002 | B112: 30/7/2013 | C112: KBSS/KMSS | E112: CCCM Focal Point | G112: 21/6/2013 | H112: Camp Resident | I112: Female | L112: Committee Member | Q112: Shan (North) | R112: Namhkan | S112: Urban | U112: Nam Hkam Catholic Church ( St. Thomas I) | V112: MMR015CMP003 | W112: 97.6852 | X112: 23.8331 | Y112: Urban | Z112: 12 | AA112: 2011 | AB112: Yes | AC112: Yes | AD112: Yes | AE112: No | AF112: No | AG112: No | AH112: No | AI112: No | AJ112: Man Si | AL112: 30 | AM112: Yes | AN112: LSO/KMSS | AO112: Tsaru Mi Nar | AP112: 09-444025437 | AQ112: Yes | AR112: Yes | AS112: No | AT112: No | AU112: No | AV112: No | AW112: No | AX112: Yes | AY112: No | AZ112: No | BA112: Yes | BB112: Yes | BC112: 1 | BD112: 4 | BE112: 5 | BF112: 10 | BG112: 7 | BH112: 17 | BI112: 15 | BJ112: 17 | BK112: 32 | BL112: 47 | BM112: 37 | BN112: 84 | BO112: 17 | BP112: 16 | BQ112: 33 | BR112: 15 | BS112: 34 | BT112: 49 | BU112: 16 | BV112: 27 | BW112: 43 | BX112: 4 | BY112: 8 | BZ112: 12 | CA112: 125 | CB112: 150 | CC112: 275 | CD112: 1 | CE112: 1 | CF112: 2 | CG112: 0 | CH112: 0 | CI112: 0 | CJ112: 1 | CK112: 0 | CL112: 1 | CM112: 1 | CN112: 1 | CO112: 2 | CP112: 2 | CQ112: 0 | CR112: 2 | CS112: 0 | CT112: 0 | CU112: 0 | CV112: 1 | CW112: 2 | CX112: 3 | CY112: 4 | CZ112: 12 | DA112: 3 | DB112: 0 | DC112: 3 | DD112: 0 | DE112: 0 | DF112: 0 | DG112: 66 | DH112: 275 | DI112: 0 | DJ112: 0 | DK112: 25 | DL112: 112 | DM112: No | DN112: Yes | DO112: 4 | DP112: 1 | DS112: 4 | DT112: 1 | DU112: 4 | DV112: Yes | DW112: No | DX112: No | DY112: Yes | DZ112: No | EA112: No | EI112: Communal | EJ112: Yes | EK112: Solid shelters | EL112: 0% | EM112: 0% | EN112: No | EO112: Well | EP112: Yes | EQ112: 3 | ER112: 3 | ES112: 3 | ET112: Yes | EU112: Identified waste dump outside camp | EV112: Hospital | EX112: No | EY112: No | EZ112: No | FA112: Yes | FB112: Yes | FC112: No | FD112: Yes | FE112: No | FF112: No | FG112: No | FH112: 96-100% | FI112: 96-100% | FJ112: Other | FK112: None | FL112: Farming | FM112: Livestock | FN112: Other | FO112: None | FP112: Farming | FQ112: Livestock
A113: G004 | B113: 30/7/2013 | C113: KBC | E113: CCCM Focal Point | G113: 20/6/2013 | H113: Camp Manager | I113: Male | M113: Camp Manager | N113: Male | Q113: Shan (North) | R113: Namhkan | S113: Urban | T113: Aung Metta | U113: Nam Hkam - Nay Win Ni (Palawng) | V113: MMR015CMP004 | W113: 97.6892 | X113: 23.8336 | Y113: Urban | Z113: 12 | AA113: 2013 | AB113: Yes | AC113: Yes | AD113: Yes | AE113: Yes | AF113: Yes | AG113: Yes | AH113: Yes | AI113: Yes | AJ113: Nam Hkam | AK113: 1 | AL113: 30 | AM113: Yes | AN113: Ta Aung Literature and Cultural Association | AO113: U San Aye | AP113: 13887877445 | AQ113: Yes | AR113: No | AS113: No | AT113: Yes | AU113: No | AV113: No | AW113: No | AX113: Yes | AY113: No | AZ113: Yes | BA113: Yes | BB113: Yes | BC113: 5 | BD113: 3 | BE113: 0 | BF113: 7 | BG113: 8 | BH113: 0 | BI113: 17 | BJ113: 12 | BK113: 0 | BL113: 33 | BM113: 25 | BN113: 0 | BO113: 28 | BP113: 15 | BQ113: 0 | BR113: 35 | BS113: 30 | BT113: 0 | BU113: 39 | BV113: 30 | BW113: 0 | BX113: 8 | BY113: 7 | BZ113: 0 | CA113: 172 | CB113: 130 | CC113: 302 | CD113: 1 | CE113: 0 | CF113: 1 | CG113: 0 | CH113: 1 | CI113: 1 | CJ113: 4 | CK113: 0 | CL113: 4 | CM113: 2 | CN113: 2 | CO113: 4 | CP113: 0 | CQ113: 0 | CR113: 0 | CS113: 0 | CT113: 0 | CU113: 0 | CV113: 2 | CW113: 10 | CX113: 12 | CY113: 5 | CZ113: 12 | DA113: 3 | DB113: 3 | DC113: 6 | DD113: 0 | DE113: 0 | DF113: 0 | DG113: 78 | DH113: 302 | DI113: 0 | DJ113: 0 | DK113: 16 | DL113: 76 | DM113: No | DN113: Yes | DO113: 5 | DP113: 2 | DQ113: 2 | DR113: 0 | DS113: 7 | DT113: 2 | DU113: 5 | DV113: Yes | DW113: Yes | DX113: No | DY113: No | DZ113: No | EA113: No | EB113: 1 | EC113: 3 | ED113: 1 | EE113: 0 | EF113: 1 | EG113: 2 | EH113: 2 | EI113: Mixed | EJ113: Yes | EK113: Solid shelters | EL113: less than 25% | EM113: less than 25% | EN113: No | EO113: Other | EP113: No | EQ113: 0 | ER113: 0 | ES113: 0 | ET113: Yes | EU113: Is getting burnt | EV113: Hospital | EX113: No | EY113: Yes | EZ113: No | FA113: No | FB113: No | FC113: No | FD113: No | FE113: No | FF113: No | FG113: No | FH113: 25-50% | FI113: 25-50% | FJ113: Farming | FK113: Other | FL113: Farming | FM113: Other | FN113: Farming | FO113: Other | FP113: Farming | FQ113: Other | FR113: Firewood / fuel | FS113: Partitions within shelters | FT113: Hygiene kits | FU113: Hygiene kits | FV113: Medicines | FW113: Firewood / fuel | FX113: KBC, UNHCR | FY113: KBC, UNHCR, DRC
A114: A008 | B114: 30/7/2013 | C114: UNHCR | G114: 25/6/2013 | H114: Camp Manager | I114: Male | Q114: Shan (North) | R114: Kutkai | S114: Mong See Wein Mai (Tarmoenye Sub-township) | T114: Mai Pong (Shu See) | U114: Mungji Pa Dabang (Baptist Church) | V114: MMR015CMP006 | W114: 98.220615 | X114: 23.400156 | Y114: Rural | Z114: 9 | AA114: 2011 | AB114: Yes | AC114: Yes | AD114: Yes | AE114: No | AF114: Yes | AG114: Yes | AH114: Yes | AI114: No | AJ114: Kutkai | AK114: 44 | AL114: 150 | AM114: Yes | AN114: KBC | AO114: Rev. U Tang Nai | AP114: 09-47325022 | AQ114: Yes | AR114: Yes | AS114: No | AT114: No | AU114: No | AV114: No | AW114: No | AX114: No | AY114: Yes | AZ114: Yes | BA114: Yes | BB114: Yes | BC114: 6 | BD114: 4 | BE114: 10 | BF114: 5 | BG114: 5 | BH114: 10 | BI114: 17 | BJ114: 14 | BK114: 31 | BL114: 26 | BM114: 33 | BN114: 59 | BO114: 25 | BP114: 15 | BQ114: 40 | BR114: 19 | BS114: 24 | BT114: 43 | BU114: 25 | BV114: 17 | BW114: 42 | BX114: 7 | BY114: 9 | BZ114: 16 | CA114: 130 | CB114: 121 | CC114: 251 | CD114: 1 | CE114: 0 | CF114: 1 | CG114: 0 | CH114: 0 | CI114: 0 | CJ114: 4 | CK114: 3 | CL114: 7 | CM114: 1 | CN114: 1 | CO114: 2 | CP114: 0 | CQ114: 0 | CR114: 0 | CS114: 7 | CT114: 14 | CU114: 21 | CV114: 1 | CW114: 1 | CX114: 2 | CY114: 5 | CZ114: 17 | DA114: 0 | DB114: 0 | DC114: 0 | DD114: 0 | DE114: 0 | DF114: 0 | DG114: 47 | DH114: 260 | DI114: 0 | DJ114: 0 | DM114: No | DN114: Yes | DO114: 0 | DP114: 0 | DQ114: 4 | DR114: 3 | DS114: 0 | DT114: 0 | DU114: 2 | DV114: No | DW114: No | DX114: No | DY114: No | DZ114: Yes | EA114: No | EC114: 0.25 | ED114: 1 | EG114: 0.1875 | EH114: 0.1875 | EJ114: No | EK114: Community/religious building | EL114: 96-100% | EO114: Rivers, springs, etc. | EP114: No | EQ114: 0 | ER114: 0 | ES114: 0 | ET114: No | EU114: Common identified waste dump inside camp | EV114: Rural centre | EX114: No | EY114: No | EZ114: Yes | FA114: No | FB114: No | FC114: No | FD114: No | FE114: No | FF114: No | FG114: No | FH114: 76-95% | FI114: 76-95% | FJ114: Farming | FK114: None | FL114: Farming | FM114: None | FN114: Farming | FO114: None | FP114: Farming | FQ114: None | FR114: Individual shelter/houses | FT114: Other | FV114: Communal building | FX114: KBC, UNHCR
A115: G002 | B115: 30/7/2013 | C115: UNHCR | E115: Enumerator from camp profiling responsible organization | G115: 23/6/2013 | H115: Camp Manager | I115: Female | L115: Committee Member | M115: Camp Manager | N115: Female | Q115: Shan (North) | R115: Kutkai | S115: Nam Hpat Kar | T115: Nam Hpat Kar (Ho Pon + Pang Sa Lorp) | U115: Nam Hpak Ka Mare | V115: MMR015CMP007 | W115: 97.49075 | X115: 23.413949 | Y115: Rural | Z115: 12 | AA115: 2011 | AB115: Yes | AC115: Yes | AD115: Yes | AE115: No | AF115: Yes | AG115: Yes | AH115: Yes | AI115: No | AJ115: Kutkai | AK115: 27 | AL115: 120 | AM115: Yes | AN115: Nam Hpa Ka KBC | AO115: Z Bawk Tauwng | AP115: 082-67049 , 082-67046 | AQ115: Yes | AR115: No | AS115: No | AT115: Yes | AU115: No | AV115: No | AW115: No | AX115: No | AY115: Yes | AZ115: No | BA115: Yes | BB115: Yes | BC115: 0 | BD115: 1 | BE115: 0 | BF115: 0 | BG115: 2 | BH115: 0 | BI115: 16 | BJ115: 21 | BK115: 0 | BL115: 48 | BM115: 51 | BN115: 0 | BO115: 15 | BP115: 19 | BQ115: 0 | BR115: 3 | BS115: 40 | BT115: 0 | BU115: 30 | BV115: 88 | BW115: 0 | BX115: 9 | BY115: 5 | BZ115: 0 | CA115: 121 | CB115: 227 | CC115: 348 | CD115: 2 | CE115: 1 | CF115: 3 | CG115: 0 | CH115: 2 | CI115: 2 | CJ115: 0 | CK115: 0 | CL115: 0 | CM115: 7 | CN115: 15 | CO115: 22 | CP115: 0 | CQ115: 0 | CR115: 0 | CS115: 1 | CT115: 2 | CU115: 3 | CV115: 0 | CW115: 5 | CX115: 5 | CY115: 7 | CZ115: 1 | DA115: 0 | DB115: 1 | DC115: 1 | DD115: 0 | DE115: 0 | DF115: 0 | DG115: 79 | DH115: 276 | DI115: 3 | DJ115: 11 | DK115: 2 | DL115: 8 | DM115: No | DN115: Yes | DO115: 1 | DP115: 2 | DQ115: 5 | DR115: 3 | DS115: 6 | DT115: 5 | DU115: 1 | DV115: Yes | DW115: No | DX115: Yes | DY115: No | DZ115: No | EA115: No | EB115: 0.25 | EC115: 0.5 | ED115: 0.25 | EE115: 0.3 | EF115: 0.3 | EG115: 0.5 | EH115: 0.5 | EI115: Individual | EJ115: No | EK115: Solid shelters | EL115: 76-95% | EM115: less than 25% | EO115: Rivers, springs, etc. | EP115: No | EQ115: 0 | ER115: 0 | ES115: 4 | ET115: No | EU115: Common identified waste dump inside camp | EV115: Hospital | EX115: No | EY115: No | EZ115: Yes | FA115: No | FB115: Yes | FC115: Yes | FD115: No | FE115: No | FF115: Yes | FG115: No | FH115: 51-75% | FI115: 51-75% | FJ115: Farming | FK115: Other | FL115: Farming | FM115: Livestock | FN115: Manufacturing (non-food) | FO115: Other | FP115: Farming | FQ115: Livestock | FR115: Cash/money assistance | FT115: Individual shelter/houses | FV115: School materials / supplies | FX115: KBC, UNHCR | FY115: Shalom, DRC
A116: F003 | B116: 30/7/2013 | C116: OTHER | D116: Youth | E116: CCCM Focal Point | G116: 28/6/2013 | H116: Camp Manager | I116: Male | L116: Committee Member | Q116: Shan (North) | R116: Manton | S116: Urban | T116: Ward (2) | U116: Mandung - Jinghpaw | V116: MMR015CMP009 | Y116: Urban | Z116: 4 | AA116: 2012 | AB116: Yes | AC116: Yes | AD116: Yes | AE116: No | AF116: Yes | AG116: Yes | AH116: Yes | AI116: No | AJ116: Manton | AK116: 0.25 | AL116: 15 | AM116: Yes | AN116: IDP Committee | AO116: Rev. Nan Jung | AP116: 09-47312039 | AQ116: Yes | AR116: No | AS116: No | AT116: Yes | AU116: No | AV116: No | AW116: No | AX116: Yes | AY116: No | AZ116: No | BA116: Yes | BB116: Yes | BC116: 0 | BD116: 0 | BE116: 0 | BF116: 5 | BG116: 3 | BH116: 8 | BI116: 3 | BJ116: 7 | BK116: 10 | BL116: 20 | BM116: 13 | BN116: 33 | BO116: 14 | BP116: 15 | BQ116: 29 | BR116: 16 | BS116: 25 | BT116: 41 | BU116: 18 | BV116: 27 | BW116: 45 | BX116: 7 | BY116: 10 | BZ116: 17 | CA116: 83 | CB116: 100 | CC116: 183 | CD116: 0 | CE116: 2 | CF116: 2 | CG116: 1 | CH116: 0 | CI116: 1 | CJ116: 0 | CK116: 1 | CL116: 1 | CM116: 0 | CN116: 0 | CO116: 0 | CP116: 1 | CQ116: 2 | CR116: 3 | CS116: 0 | CT116: 0 | CU116: 0 | CV116: 1 | CW116: 2 | CX116: 3 | CY116: 2 | CZ116: 5 | DA116: 0 | DB116: 0 | DC116: 0 | DD116: 1 | DE116: 0 | DF116: 1 | DG116: 43 | DH116: 183 | DI116: 3 | DJ116: 11 | DK116: 0 | DL116: 0 | DM116: No | DN116: Yes | DO116: 5 | DP116: 2 | DQ116: 17 | DR116: 3 | DS116: 22 | DT116: 5 | DU116: 0 | DV116: Yes | DW116: Yes | DX116: No | DY116: No | DZ116: Yes | EA116: No | EB116: 0.25 | ED116: 0.25 | EE116: 0.125 | EG116: 0.125 | EH116: 0.125 | EI116: Individual | EJ116: Yes | EK116: Solid shelters | EL116: 76-95% | EM116: 0% | EN116: Yes | EO116: Rivers, springs, etc. | EP116: No | EQ116: 0 | ER116: 0 | ES116: 0 | ET116: No | EU116: Common identified waste dump inside camp | EV116: Hospital | EX116: Yes | EY116: Yes | EZ116: Yes | FA116: No | FB116: Yes | FC116: No | FD116: No | FE116: No | FF116: No | FG116: No | FH116: 96-100% | FI116: 76-95% | FJ116: Farming | FK116: Livestock | FL116: Farming | FM116: Livestock | FN116: Farming | FO116: Livestock | FP116: Farming | FQ116: Livestock | FR116: School facilities | FS116: Vocational training | FT116: School materials / supplies | FU116: Medicines | FV116: Access to job opportunities | FW116: Medical staff (doctor, nurse, etc) | FX116: KBC, UNHCR | FY116: KBC, UNHCR
A117: G003 | B117: 30/7/2013 | C117: UNHCR | E117: Enumerator from camp profiling responsible organization | G117: 22/6/2013 | H117: Camp Manager | I117: Male | L117: Committee Member | Q117: Shan (North) | R117: Muse | S117: Man Gyat (Monekoe Sub-township) | T117: Gwum Hsan | U117: Munekoe Pa (Giwang) - Hka San (Mung Go Pa ) | V117: MMR015CMP012 | Y117: Urban | Z117: 7 | AA117: 2012 | AB117: Yes | AC117: Yes | AD117: Yes | AE117: No | AF117: Yes | AG117: Yes | AH117: Yes | AI117: No | AJ117: Mung Gu | AK117: 0.25 | AL117: 3 | AM117: Yes | AN117: Mung Gu KBC | AO117: Galau Thing Nan | AP117: 147873309 9 2 | AQ117: Yes | AR117: No | AS117: No | AT117: Yes | AU117: No | AV117: No | AW117: No | AX117: No | AY117: Yes | AZ117: No | BA117: Yes | BB117: Yes | BC117: 6 | BD117: 0 | BE117: 0 | BF117: 1 | BG117: 4 | BH117: 0 | BI117: 6 | BJ117: 6 | BK117: 0 | BL117: 10 | BM117: 17 | BN117: 0 | BO117: 4 | BP117: 5 | BQ117: 0 | BR117: 4 | BS117: 10 | BT117: 0 | BU117: 6 | BV117: 15 | BW117: 0 | BX117: 2 | BY117: 3 | BZ117: 0 | CA117: 39 | CB117: 60 | CC117: 99 | CD117: 0 | CE117: 1 | CF117: 1 | CG117: 1 | CH117: 0 | CI117: 1 | CJ117: 1 | CK117: 2 | CL117: 3 | CM117: 0 | CN117: 0 | CO117: 0 | CP117: 0 | CQ117: 0 | CR117: 0 | CS117: 0 | CT117: 0 | CU117: 0 | CV117: 0 | CW117: 6 | CX117: 6 | CY117: 2 | CZ117: 3 | DA117: 6 | DB117: 0 | DC117: 6 | DD117: 1 | DE117: 1 | DF117: 2 | DG117: 27 | DH117: 99 | DI117: 0 | DJ117: 0 | DK117: 0 | DL117: 0 | DM117: No | DN117: Yes | DO117: 3 | DP117: 0 | DQ117: 7 | DR117: 1 | DS117: 10 | DT117: 1 | DU117: 2 | DV117: Yes | DW117: Yes | DX117: Yes | DY117: Yes | DZ117: Yes | EA117: No | EB117: 0.25 | ED117: 0.75 | EF117: 0.25 | EG117: 2 | EH117: 2 | EI117: Communal | EJ117: Yes | EK117: Community/religious building | EL117: 96-100% | EM117: 0% | EO117: Rivers, springs, etc. | EP117: No | EQ117: 3 | ER117: 2 | ES117: 0 | ET117: Yes | EU117: Identified waste dump outside camp | EV117: Hospital | EX117: No | EY117: Yes | EZ117: Yes | FA117: No | FB117: No | FC117: No | FD117: No | FE117: No | FF117: No | FG117: No | FH117: 96-100% | FI117: 96-100% | FJ117: Farming | FK117: Livestock | FL117: Farming | FM117: Livestock | FN117: Farming | FO117: Livestock | FP117: Farming | FQ117: Livestock | FR117: Kitchen sets | FS117: Individual shelter/houses | FT117: Basic Food | FU117: Basic Food | FV117: Firewood / fuel | FX117: KBC, UNHCR
A118: F001 | B118: 30/7/2013 | C118: OTHER | D118: Youth | E118: CCCM Focal Point | G118: 27/6/2013 | H118: Camp Manager | I118: Male | L118: Committee Member | Q118: Shan (North) | R118: Namtu | S118: Urban | T118: Ward (7) | U118: Nam Tu Baptist | V118: MMR015CMP014 | Y118: Urban | Z118: 4 | AA118: 2012 | AB118: Yes | AC118: Yes | AD118: Yes | AE118: No | AF118: Yes | AG118: Yes | AH118: Yes | AI118: No | AJ118: Namtu | AK118: 0.25 | AL118: 15 | AM118: Yes | AN118: IDP Committee | AO118: U Brang Mai | AP118: 09-49150147 | AQ118: Yes | AR118: No | AS118: No | AT118: Yes | AU118: No | AV118: No | AW118: No | AX118: Yes | AY118: No | AZ118: No | BA118: Yes | BB118: Yes | BC118: 0 | BD118: 0 | BE118: 0 | BF118: 4 | BG118: 1 | BH118: 5 | BI118: 6 | BJ118: 7 | BK118: 13 | BL118: 9 | BM118: 11 | BN118: 20 | BO118: 1 | BP118: 6 | BQ118: 7 | BR118: 2 | BS118: 8 | BT118: 10 | BU118: 3 | BV118: 6 | BW118: 9 | BX118: 1 | BY118: 1 | BZ118: 2 | CA118: 26 | CB118: 40 | CC118: 66 | CD118: 0 | CE118: 1 | CF118: 1 | CG118: 0 | CH118: 0 | CI118: 0 | CJ118: 0 | CK118: 0 | CL118: 0 | CM118: 0 | CN118: 0 | CO118: 0 | CP118: 0 | CQ118: 0 | CR118: 0 | CS118: 0 | CT118: 0 | CU118: 0 | CV118: 0 | CW118: 0 | CX118: 0 | CY118: 0 | CZ118: 8 | DA118: 0 | DB118: 0 | DC118: 0 | DD118: 0 | DE118: 0 | DF118: 0 | DG118: 16 | DH118: 66 | DI118: 1 | DJ118: 4 | DK118: 1 | DL118: 8 | DM118: No | DN118: Yes | DO118: 1 | DP118: 1 | DQ118: 9 | DR118: 1 | DS118: 10 | DT118: 2 | DU118: 2 | DV118: Yes | DW118: Yes | DX118: No | DY118: No | DZ118: No | EA118: No | EB118: 0.25 | ED118: 0.25 | EG118: 0.5 | EH118: 0.5 | EI118: Individual | EJ118: Yes | EK118: Solid shelters | EL118: 96-100% | EM118: 0% | EN118: Yes | EO118: Rivers, springs, etc. | EP118: No | EQ118: 2 | ER118: 2 | ES118: 0 | ET118: No | EU118: Identified waste dump outside camp | EV118: Hospital | EX118: No | EY118: Yes | EZ118: Yes | FA118: No | FB118: Yes | FC118: No | FD118: No | FE118: No | FF118: No | FG118: No | FH118: 96-100% | FI118: 96-100% | FJ118: Farming | FK118: Other | FL118: Farming | FM118: Livestock | FN118: Farming | FO118: Livestock | FP118: Farming | FQ118: Livestock | FR118: Well / water tank | FS118: Well / water tank | FT118: Cash/money assistance | FU118: Vocational training | FV118: Medicines | FW118: Cash/money assistance | FX118: UNHCR | FY118: KBC, UNHCR
A119: A009 | B119: 30/7/2013 | C119: UNHCR | E119: Other | G119: 26/6/2013 | H119: Camp Manager | I119: Male | L119: Teacher | Q119: Shan (North) | R119: Kutkai | S119: Kar Lai Kone Hsar | T119: Kar Lai | U119: Kone Khem Camp | V119: MMR015CMP015 | Y119: Rural | Z119: 1 | AA119: 2013 | AB119: Yes | AC119: Yes | AD119: Yes | AE119: No | AF119: No | AG119: No | AH119: No | AI119: No | AJ119: Kutkai | AK119: 7 | AL119: 120 | AM119: Yes | AN119: U Tun Hkam | AO119: U Kin Dar Wa Ya | AQ119: Yes | AR119: No | AS119: Yes | AT119: No | AU119: No | AV119: No | AW119: No | AX119: No | AY119: Yes | AZ119: No | BA119: Yes | BB119: Yes | BC119: 4 | BD119: 8 | BE119: 12 | BF119: 12 | BG119: 11 | BH119: 23 | BI119: 18 | BJ119: 18 | BK119: 36 | BL119: 44 | BM119: 39 | BN119: 83 | BO119: 43 | BP119: 23 | BQ119: 66 | BR119: 58 | BS119: 61 | BT119: 119 | BU119: 38 | BV119: 50 | BW119: 88 | BX119: 13 | BY119: 13 | BZ119: 26 | CA119: 230 | CB119: 223 | CC119: 453 | CD119: 0 | CE119: 0 | CF119: 0 | CG119: 0 | CH119: 0 | CI119: 0 | CJ119: 0 | CK119: 0 | CL119: 0 | CM119: 0 | CN119: 0 | CO119: 0 | CP119: 0 | CQ119: 0 | CR119: 0 | CS119: 0 | CT119: 0 | CU119: 0 | CV119: 0 | CW119: 0 | CX119: 0 | CY119: 5 | CZ119: 7 | DA119: 1 | DB119: 2 | DC119: 3 | DD119: 2 | DE119: 2 | DF119: 4 | DG119: 86 | DH119: 453 | DI119: 86 | DJ119: 453 | DK119: 86 | DL119: 453 | DM119: No | DN119: Yes | DO119: 3 | DP119: 2 | DQ119: 1 | DR119: 0 | DS119: 4 | DT119: 2 | DU119: 0 | DV119: Yes | DW119: Yes | DX119: No | DY119: Yes | DZ119: Yes | EA119: No | EI119: Individual | EJ119: No | EK119: Solid shelters | EL119: 76-95% | EM119: less than 25% | EN119: No | EO119: Rivers, springs, etc. | EP119: yes | EQ119: 10 | ER119: 10 | ES119: 0 | ET119: No | EU119: Is getting burnt | EV119: Clinic | EX119: No | EY119: yes | EZ119: No | FA119: No | FB119: yes | FC119: No | FD119: No | FE119: No | FF119: No | FG119: No | FH119: 51-75% | FI119: 25-50% | FJ119: Farming | FK119: Other | FL119: Farming | FM119: None | FN119: Farming | FO119: None | FP119: Farming | FQ119: Other | FR119: Individual shelter/houses | FS119: Individual shelter/houses | FT119: Well / water tank | FU119: Basic Food | FV119: Cash/money assistance | FW119: Cash/money assistance
A120: G001 | B120: 30/7/2013 | C120: KBC | E120: Other | F120: KBC | G120: 24/6/2013 | H120: Camp Manager | I120: Male | L120: Religious Leader | M120: Camp Resident | N120: Male | Q120: Shan (North) | R120: Kutkai | S120: Urban | T120: Ward(5) | U120: Kutkai downtown (KBC Church) | V120: MMR015CMP016 | W120: 97.554308 | X120: 23.271719 | Y120: Urban | Z120: 12 | AA120: 2012 | AB120: Yes | AC120: Yes | AD120: Yes | AE120: No | AF120: Yes | AG120: Yes | AH120: Yes | AI120: No | AJ120: Kutkai | AK120: 0 | AL120: 0 | AM120: Yes | AN120: Kutkai KBC | AO120: U Naw San Aung | AP120: 09 -403711789 | AQ120: Yes | AR120: No | AS120: No | AT120: No | AU120: No | AV120: No | AW120: No | AX120: Yes | AY120: No | AZ120: Yes | BA120: Yes | BB120: Yes | BC120: 4 | BD120: 1 | BE120: 0 | BF120: 19 | BG120: 17 | BH120: 0 | BI120: 8 | BJ120: 9 | BK120: 0 | BL120: 76 | BM120: 66 | BN120: 0 | BO120: 32 | BP120: 22 | BQ120: 0 | BR120: 14 | BS120: 43 | BT120: 0 | BU120: 17 | BV120: 35 | BW120: 0 | BX120: 1 | BY120: 18 | BZ120: 0 | CA120: 171 | CB120: 211 | CC120: 382 | CD120: 3 | CE120: 0 | CF120: 3 | CG120: 0 | CH120: 0 | CI120: 0 | CJ120: 2 | CK120: 5 | CL120: 7 | CM120: 12 | CN120: 18 | CO120: 30 | CP120: 0 | CQ120: 0 | CR120: 0 | CS120: 0 | CT120: 2 | CU120: 2 | CV120: 2 | CW120: 2 | CX120: 4 | CY120: 6 | CZ120: 24 | DA120: 2 | DB120: 2 | DC120: 4 | DD120: 1 | DE120: 1 | DF120: 2 | DG120: 87 | DH120: 382 | DI120: 87 | DJ120: 382 | DK120: 17 | DL120: 68 | DM120: No | DN120: Yes | DO120: 2 | DP120: 2 | DQ120: 5 | DR120: 3 | DS120: 7 | DT120: 5 | DU120: 1 | DV120: Yes | DW120: Yes | DX120: Yes | DY120: No | DZ120: Yes | EA120: No | EI120: Individual | EJ120: Yes | EK120: Solid shelters | EL120: 0% | EM120: 0% | EN120: Yes | EO120: Well | EP120: Yes | EQ120: 4 | ER120: 5 | ES120: 0 | ET120: No | EU120: Is getting burnt | EV120: Hospital | EX120: Yes | EY120: Yes | EZ120: No | FA120: No | FB120: Yes | FC120: No | FD120: Yes | FE120: No | FF120: Yes | FG120: No | FH120: 76-95% | FI120: 51-75% | FJ120: Farming | FK120: Other | FL120: Farming | FM120: Other | FN120: Farming | FO120: Other | FP120: Farming | FQ120: Other | FR120: Firewood / fuel | FS120: Cash/money assistance | FT120: Cash/money assistance | FU120: Firewood / fuel | FV120: Complementary Food | FW120: Access to job opportunities | FX120: KBC, UNHCR
A121: B006 | B121: 30/7/2013 | C121: UNHCR | E121: Enumerator from camp profiling responsible organization | G121: 24/6/2013 | H121: Camp Manager | I121: Male | L121: Religious Leader | M121: Camp Resident | N121: Female | Q121: Shan (North) | R121: Kutkai | S121: Urban | T121: Ward - 3 | U121: Kutkai downtown (RC Church) | V121: MMR015CMP017 | W121: 97.565616 | X121: 23.273361 | Y121: Urban | Z121: 12 | AA121: 2012 | AB121: Yes | AC121: Yes | AD121: Yes | AE121: No | AF121: Yes | AG121: Yes | AH121: Yes | AI121: No | AJ121: Kutkai | AM121: Yes | AN121: Kutkai CRC | AO121: U Naung Latt | AP121: 082-62251 | AQ121: Yes | AR121: Yes | AS121: No | AT121: No | AU121: No | AV121: No | AW121: Yes | AX121: No | AY121: No | AZ121: Yes | BA121: Yes | BB121: Yes | BC121: 3 | BD121: 1 | BE121: 4 | BF121: 3 | BG121: 6 | BH121: 9 | BI121: 9 | BJ121: 10 | BK121: 19 | BL121: 19 | BM121: 22 | BN121: 41 | BO121: 10 | BP121: 9 | BQ121: 19 | BR121: 9 | BS121: 19 | BT121: 28 | BU121: 17 | BV121: 17 | BW121: 34 | BX121: 8 | BY121: 10 | BZ121: 18 | CA121: 78 | CB121: 94 | CC121: 172 | CD121: 0 | CE121: 1 | CF121: 1 | CG121: 0 | CH121: 0 | CI121: 0 | CJ121: 1 | CK121: 1 | CL121: 2 | CM121: 0 | CN121: 0 | CO121: 0 | CP121: 0 | CQ121: 0 | CR121: 0 | CS121: 1 | CT121: 2 | CU121: 3 | CV121: 2 | CW121: 0 | CX121: 2 | CY121: 5 | CZ121: 4 | DA121: 3 | DB121: 2 | DC121: 5 | DD121: 0 | DE121: 1 | DF121: 1 | DG121: 41 | DH121: 172 | DI121: 0 | DJ121: 20 | DK121: 7 | DL121: 0 | DM121: Yes | DN121: Yes | DO121: 5 | DP121: 2 | DQ121: 0 | DR121: 0 | DS121: 5 | DT121: 2 | DU121: 0 | DV121: Yes | DW121: Yes | DX121: Yes | DY121: Yes | DZ121: Yes | EA121: No | EB121: 1 | EI121: Individual | EJ121: No | EK121: Solid shelters | EL121: 0% | EM121: 0% | EN121: Yes | EO121: Rivers, springs, etc. | EP121: Yes | EQ121: 5 | ER121: 5 | ES121: 0 | ET121: No | EU121: Common identified waste dump inside camp | EV121: Hospital | EX121: No | EY121: Yes | EZ121: Yes | FA121: No | FB121: Yes | FC121: Yes | FD121: Yes | FE121: No | FF121: No | FG121: No | FH121: 51-75% | FI121: 76-95% | FJ121: Farming | FK121: Manufacturing (non-food) | FL121: Farming | FM121: Livestock | FN121: Farming | FO121: None | FP121: Farming | FQ121: Livestock | FR121: Firewood / fuel | FS121: Kitchen sets | FT121: Vocational training | FU121: Firewood / fuel | FV121: Bathing spaces
A122: A006 | B122: 30/7/2013 | C122: KBC | E122: Other | G122: 22/6/2013 | H122: Camp Manager | I122: Male | L122: Committee Member | M122: Camp Resident | N122: Male | Q122: Shan (North) | R122: Kutkai | S122: Mong Yu | T122: Mong Yu | U122: Mine Yu Lay village | V122: MMR015CMP018 | W122: 97.474306 | X122: 23.352518 | Y122: Rural | Z122: 1 | AA122: 2013 | AB122: Yes | AC122: Yes | AD122: Yes | AE122: No | AF122: Yes | AG122: Yes | AH122: Yes | AI122: No | AJ122: Kutkai | AK122: 20 | AL122: 60 | AM122: Yes | AN122: Committee | AO122: U Chyan Sar | AP122: 09-47318890 | AQ122: Yes | AR122: Yes | AS122: No | AT122: No | AU122: No | AV122: No | AW122: No | AX122: No | AY122: Yes | AZ122: Yes | BA122: Yes | BB122: Yes | BC122: 2 | BD122: 4 | BE122: 6 | BF122: 16 | BG122: 20 | BH122: 36 | BI122: 11 | BJ122: 12 | BK122: 23 | BL122: 27 | BM122: 41 | BN122: 68 | BO122: 37 | BP122: 31 | BQ122: 68 | BR122: 45 | BS122: 55 | BT122: 100 | BU122: 27 | BV122: 40 | BW122: 67 | BX122: 3 | BY122: 5 | BZ122: 8 | CA122: 168 | CB122: 208 | CC122: 376 | CD122: 2 | CE122: 1 | CF122: 3 | CG122: 0 | CH122: 0 | CI122: 0 | CJ122: 2 | CK122: 0 | CL122: 2 | CM122: 0 | CN122: 0 | CO122: 0 | CP122: 4 | CQ122: 5 | CR122: 9 | CS122: 0 | CT122: 0 | CU122: 0 | CV122: 0 | CW122: 8 | CX122: 8 | CY122: 4 | CZ122: 19 | DA122: 0 | DB122: 4 | DC122: 4 | DD122: 0 | DE122: 0 | DF122: 0 | DG122: 59 | DH122: 378 | DI122: 0 | DJ122: 0 | DM122: No | DN122: Yes | DO122: 6 | DP122: 0 | DQ122: 5 | DR122: 2 | DS122: 11 | DT122: 2 | DU122: 0 | DV122: Yes | DW122: Yes | DX122: Yes | DY122: No | DZ122: Yes | EA122: No | EI122: Individual | EJ122: No | EK122: Solid shelters | EL122: less than 25% | EM122: 0% | EN122: No | EO122: Rivers, springs, etc. | EP122: No | EQ122: 0 | ER122: 0 | ES122: 18 | ET122: No | EU122: Is getting burnt | EV122: Clinic | EX122: No | EY122: No | EZ122: Yes | FA122: No | FB122: Yes | FC122: No | FD122: No | FE122: No | FF122: No | FG122: No | FH122: 51-75% | FI122: 25-50% | FJ122: Farming | FK122: Other | FL122: Farming | FM122: Other | FN122: Farming | FO122: Other | FP122: Farming | FQ122: Livestock | FR122: Communal building | FS122: Cash/money assistance | FT122: Well / water tank | FU122: Firewood / fuel | FV122: Complementary Food | FW122: Kitchen sets
A123: A010 | B123: 30/7/2013 | C123: UNHCR | E123: Enumerator from camp profiling responsible organization | G123: 25/6/2013 | H123: Camp Manager | Q123: Shan (North) | R123: Kutkai | S123: Mong See Wein Mai (Tarmoenye Sub-township) | T123: Mai Pong (Shu See) | U123: Mungji Pa Dabang (RC Church) | V123: MMR015CMP019 | W123: 97.565616 | X123: 23.273361 | Y123: Rural | Z123: 9 | AA123: 2011 | AB123: Yes | AC123: Yes | AD123: Yes | AE123: No | AF123: Yes | AG123: Yes | AH123: Yes | AI123: No | AJ123: Kutkai | AK123: 44 | AL123: 150 | AM123: Yes | AN123: Committee | AO123: Sara Seng Hkum | AQ123: Yes | AR123: Yes | AS123: No | AT123: No | AU123: No | AV123: No | AW123: No | AX123: No | AY123: Yes | AZ123: Yes | BA123: Yes | BB123: Yes | BC123: 0 | BD123: 0 | BE123: 0 | BF123: 0 | BG123: 0 | BH123: 0 | BI123: 0 | BJ123: 0 | BK123: 0 | BL123: 0 | BM123: 0 | BN123: 0 | BO123: 0 | BP123: 0 | BQ123: 0 | BR123: 0 | BS123: 0 | BT123: 0 | BU123: 0 | BV123: 0 | BW123: 0 | BX123: 0 | BY123: 0 | BZ123: 0 | CA123: 0 | CB123: 0 | CC123: 0 | CD123: 0 | CE123: 0 | CF123: 0 | CG123: 0 | CH123: 0 | CI123: 0 | CJ123: 0 | CK123: 0 | CL123: 0 | CM123: 0 | CN123: 0 | CO123: 0 | CP123: 0 | CQ123: 0 | CR123: 0 | CS123: 0 | CT123: 0 | CU123: 0 | CV123: 0 | CW123: 0 | CX123: 0 | CY123: 0 | CZ123: 0 | DA123: 0 | DB123: 0 | DC123: 0 | DD123: 0 | DE123: 0 | DF123: 0 | DG123: 17 | DH123: 80 | DI123: 0 | DJ123: 0
A124: A007 | B124: 30/7/2013 | G124: 24/6/2013 | H124: Camp Manager | I124: Male | L124: Other | Q124: Shan (North) | R124: Kutkai | S124: Kar Lai Kone Hsar | T124: Kar Lai | U124: Zup Aung Camp | V124: MMR015CMP020 | Y124: Rural | Z124: 12 | AA124: 2012 | AB124: Yes | AC124: Yes | AD124: Yes | AE124: No | AF124: No | AG124: No | AH124: No | AI124: No | AJ124: Kutkai | AK124: 8 | AL124: 125 | AM124: Yes | AN124: Committee | AO124: U La Nu | AQ124: Yes | AR124: No | AS124: No | AT124: No | AU124: No | AV124: No | AW124: No | AX124: No | AY124: Yes | AZ124: Yes | BA124: Yes | BB124: Yes | BC124: 0 | BD124: 0 | BE124: 0 | BF124: 5 | BG124: 20 | BH124: 25 | BI124: 14 | BJ124: 18 | BK124: 32 | BL124: 25 | BM124: 29 | BN124: 54 | BO124: 33 | BP124: 28 | BQ124: 61 | BR124: 70 | BS124: 43 | BT124: 113 | BU124: 30 | BV124: 36 | BW124: 66 | BX124: 15 | BY124: 14 | BZ124: 29 | CA124: 192 | CB124: 188 | CC124: 380 | CD124: 0 | CE124: 2 | CF124: 2 | CG124: 0 | CH124: 0 | CI124: 0 | CJ124: 3 | CK124: 1 | CL124: 4 | CM124: 0 | CN124: 0 | CO124: 0 | CP124: 0 | CQ124: 0 | CR124: 0 | CS124: 0 | CT124: 0 | CU124: 0 | CV124: 0 | CW124: 0 | CX124: 0 | CY124: 4 | CZ124: 12 | DA124: 0 | DB124: 0 | DC124: 0 | DD124: 0 | DE124: 0 | DF124: 0 | DG124: 75 | DH124: 380 | DI124: 75 | DJ124: 380 | DK124: 0 | DL124: 0 | DM124: No | DN124: Yes | DO124: 6 | DP124: 1 | DQ124: 9 | DR124: 0 | DS124: 15 | DT124: 1 | DU124: 0 | DV124: Yes | DW124: Yes | DX124: No | DY124: No | DZ124: Yes | EA124: No | EH124: 8 | EI124: Individual | EJ124: No | EK124: Solid shelters | EL124: 0% | EM124: 0% | EN124: No | EO124: Rivers, springs, etc. | EP124: No | EQ124: 0 | ER124: 0 | ES124: 75 | ET124: No | EU124: Is getting burnt | EV124: Clinic | EX124: No | EY124: No | EZ124: No | FA124: No | FB124: Yes | FC124: No | FD124: No | FE124: No | FF124: No | FG124: No | FH124: 51-75% | FI124: 51-75% | FJ124: Farming | FK124: Other | FL124: Farming | FM124: Other | FN124: Farming | FO124: Other | FP124: Farming | FQ124: Other | FR124: Well / water tank | FS124: School materials / supplies | FT124: School materials / supplies | FU124: Cash/money assistance | FV124: Cash/money assistance | FW124: Well / water tank
A125: UNHCR1 | B125: 19/8/2013 | C125: KBC | E125: CCCM Focal Point | G125: 14/8/2013 | H125: Camp Manager | I125: Male | L125: Committee Member | Q125: Kachin | R125: Myitkyina | S125: Urban | T125: Myo Thit Gyi | U125: Jan Mai Kawng Baptist Church | V125: MMR001CMP018 | W125: 97.389778 | X125: 25.417734 | Y125: Urban | Z125: 7 | AA125: 2011 | AB125: Yes | AC125: Yes | AD125: Yes | AE125: No | AF125: Yes | AG125: Yes | AH125: Yes | AI125: No | AJ125: Myitkyina | AK125: 2 | AL125: 15 | AM125: yes | AN125: KBC | AO125: Saya Aung Myat | AP125: 09-40001305 | AQ125: Yes | AR125: Yes | AS125: No | AT125: No | AU125: No | AV125: No | AW125: No | AX125: Yes | AY125: No | AZ125: No | BA125: Yes | BB125: No | BC125: 7 | BD125: 5 | BE125: 12 | BF125: 11 | BG125: 10 | BH125: 21 | BI125: 44 | BJ125: 42 | BK125: 86 | BL125: 108 | BM125: 108 | BN125: 216 | BO125: 89 | BP125: 106 | BQ125: 195 | BR125: 87 | BS125: 128 | BT125: 215 | BU125: 69 | BV125: 110 | BW125: 179 | BX125: 29 | BY125: 21 | BZ125: 50 | CA125: 444 | CB125: 530 | CC125: 974 | CD125: 2 | CE125: 2 | CF125: 4 | CG125: 3 | CH125: 1 | CI125: 4 | CJ125: 1 | CK125: 2 | CL125: 3 | CM125: 6 | CN125: 7 | CO125: 13 | CP125: 0 | CQ125: 0 | CR125: 0 | CS125: 0 | CT125: 0 | CU125: 0 | CV125: 3 | CW125: 7 | CX125: 10 | CY125: 9 | CZ125: 20 | DD125: 2 | DE125: 7 | DF125: 9 | DG125: 203 | DH125: 974 | DI125: 18 | DJ125: 112 | DK125: 6 | DL125: 32 | DM125: yes | DN125: yes | DO125: 7 | DP125: 5 | DQ125: 5 | DR125: 2 | DS125: 12 | DT125: 7 | DU125: 1 | DV125: No | DW125: Yes | DX125: No | DY125: No | DZ125: Yes | EA125: No | EB125: 0.625 | EE125: =1/8 -> 0.125 | EF125: =1/8 -> 0.125 | EG125: 0.375 | EH125: 2 | EI125: Individual | EJ125: Yes | EK125: Solid shelters | EL125: 51-75% | EM125: 0% | EN125: Yes | EO125: Borehole/hand pump | EP125: Yes | EQ125: 0 | ER125: 0 | ES125: 41 | ET125: Yes | EU125: Common identified waste dump inside camp | EV125: Hospital | EX125: Yes | EY125: Yes | EZ125: Yes | FA125: No | FB125: Yes | FC125: Yes | FD125: Yes | FE125: Yes | FF125: Yes | FG125: No | FH125: 25-50% | FI125: 25-50% | FJ125: Mining | FK125: Other | FL125: Farming | FM125: Livestock | FN125: Handicrafts | FO125: Other | FP125: Farming | FQ125: Trade (buying and selling) | FR125: Medical staff (doctor, nurse, etc) | FS125: Medical staff (doctor, nurse, etc) | FT125: Access to job opportunities | FU125: Access to job opportunities | FV125: Vocational training | FW125: Cash/money assistance
A126: UNHCR2 | B126: 16/8/2013 | C126: DRC | E126: Enumerator from camp profiling responsible organization | G126: 20/6/2013 | H126: Camp Manager | I126: Male | L126: Committee Member | M126: Other | N126: Male | Q126: Kachin | R126: Myitkyina | S126: Myitkyina | T126: Le Kone | U126: Le Kone Bethlehem Church | W126: 97.409317 | X126: 25.36219 | Y126: Urban | Z126: 3 | AA126: 2011 | AB126: Yes | AC126: Yes | AD126: Yes | AE126: No | AF126: Yes | AG126: Yes | AH126: Yes | AI126: No | AJ126: Myitkyina | AK126: 1 | AL126: 5 minutes | AM126: Yes | AN126: KBC | AO126: U Naw Ja | AP126: 09401533628 | AQ126: Yes | AR126: Yes | AS126: No | AT126: No | AU126: No | AV126: No | AW126: No | AX126: No | AY126: Yes | AZ126: Yes | BA126: Yes | BB126: Yes | BC126: 1 | BD126: 0 | BE126: 1 | BF126: 6 | BG126: 2 | BH126: 8 | BI126: 11 | BJ126: 16 | BK126: 27 | BL126: 37 | BM126: 38 | BN126: 75 | BO126: 50 | BP126: 46 | BQ126: 96 | BR126: 60 | BS126: 64 | BT126: 124 | BU126: 34 | BV126: 47 | BW126: 81 | BX126: 12 | BY126: 22 | BZ126: 34 | CA126: 211 | CB126: 235 | CC126: 446 | CD126: 2 | CE126: 1 | CF126: 3 | CG126: 1 | CH126: 1 | CI126: 2 | CJ126: 2 | CK126: 2 | CL126: 4 | CM126: 25 | CN126: 25 | CO126: 50 | CP126: 3 | CQ126: 2 | CR126: 5 | CS126: 0 | CT126: 0 | CU126: 0 | CV126: 1 | CW126: 4 | CX126: 5 | CY126: 2 | CZ126: 9 | DA126: 1 | DB126: 0 | DC126: 1 | DD126: 1 | DE126: 0 | DF126: 1 | DG126: 86 | DH126: 446 | DI126: 1 | DJ126: 4 | DK126: 0 | DL126: 0 | DM126: Yes | DN126: Yes | DO126: 4 | DP126: 4 | DQ126: 7 | DR126: 3 | DS126: 11 | DT126: 7 | DU126: 2 | DV126: Yes | DW126: Yes | DX126: No | DY126: Yes | DZ126: Yes | EA126: No | EI126: Individual | EJ126: Yes | EK126: Community/religious building | EL126: 25-50% | EM126: 51-75% | EN126: Yes | EO126: Well | EP126: Yes | ET126: Yes | EU126: Identified waste dump outside camp | EV126: Hospital | EX126: No | EY126: Yes | EZ126: Yes | FA126: Yes | FB126: Yes | FC126: Yes | FD126: Yes | FE126: Yes | FF126: No | FG126: No | FH126: 96-100% | FI126: 96-100% | FJ126: Mining | FK126: Other | FL126: Trade (buying and selling) | FM126: Mining | FN126: Trade (buying and selling) | FO126: Other | FP126: Trade (buying and selling) | FQ126: Mining | FR126: Access to job opportunities | FS126: Access to job opportunities | FT126: Cash/money assistance | FU126: Vocational training | FV126: Cash/money assistance | FW126: Vocational training
A127: UNHCR3 | B127: 26/8/2013 | C127: UNHCR | E127: Enumerator from camp profiling responsible organization | G127: 19/8/2013 | H127: Camp Manager | I127: Male | L127: Religious Leader | M127: Camp Resident | N127: Female | Q127: Kachin | R127: Bhamo | T127: Hpan Khar Kone | U127: Phan Khar Kone | V127: MMR001CMP193 | W127: 97.25265 | X127: 24.22235 | Y127: Rural | Z127: 1 | AA127: 2013 | AB127: Yes | AC127: Yes | AD127: Yes | AE127: No | AF127: Yes | AG127: Yes | AH127: Yes | AI127: No | AJ127: Bhamo | AK127: 3 | AM127: Yes | AN127: KBC | AO127: U Zaw Seng | AP127: 6872205 | AQ127: Yes | AR127: Yes | AS127: No | AT127: No | AU127: No | AV127: No | AW127: No | AX127: No | AY127: Yes | AZ127: No | BA127: Yes | BB127: Yes | BC127: 3 | BD127: 1 | BE127: 4 | BF127: 0 | BG127: 3 | BH127: 3 | BI127: 4 | BJ127: 4 | BK127: 8 | BL127: 5 | BM127: 5 | BN127: 10 | BO127: 4 | BP127: 4 | BQ127: 8 | BR127: 7 | BS127: 16 | BT127: 23 | BU127: 8 | BV127: 6 | BW127: 14 | BX127: 3 | BY127: 5 | BZ127: 8 | CA127: =BC127+BF127+BI127+BL127+BO127+BR127+BU127+BX127 -> 34 | CB127: =BD127+BG127+BJ127+BM127+BP127+BS127+BV127+BY127 -> 44 | CC127: =SUM(CA127:CB127) -> 78 | CD127: 0 | CE127: 1 | CF127: 1 | CG127: 0 | CH127: 0 | CI127: 0 | CJ127: 0 | CK127: 1 | CL127: 1 | CM127: 0 | CN127: 0 | CO127: 0 | CP127: 0 | CQ127: 0 | CR127: 0 | CS127: 0 | CT127: 0 | CU127: 0 | CV127: 0 | CW127: 1 | CX127: 1 | CY127: 1 | CZ127: 5 | DA127: 1 | DB127: 2 | DC127: 3 | DD127: 0 | DE127: 0 | DF127: 0 | DG127: 18 | DH127: 78 | DI127: 4 | DJ127: 14 | DK127: 0 | DL127: 0 | DM127: No | DN127: Yes | DO127: 0 | DP127: 0 | DQ127: 4 | DR127: 3 | DS127: 4 | DT127: 3 | DU127: 0 | DV127: No | DW127: No | DX127: No | DY127: No | DZ127: Yes | EA127: No | EF127: 0.25 | EG127: 0.25 | EI127: Individual | EJ127: No | EK127: Solid shelters | EL127: 0% | EM127: 0% | EN127: Yes | EO127: Borehole/hand pump | EP127: Yes | EQ127: 0 | ER127: 0 | ES127: 6 | ET127: Yes | EU127: Is getting burnt | EV127: Hospital | EX127: No | EY127: Yes | EZ127: No | FA127: No | FB127: No | FC127: No | FD127: No | FE127: No | FF127: No | FG127: No | FH127: 96-100% | FI127: 96-100% | FJ127: Other | FK127: None | FL127: Farming | FM127: Trade (buying and selling) | FN127: Livestock | FO127: None | FP127: Farming | FQ127: Livestock | FR127: Medicines | FS127: Firewood / fuel | FT127: Other | FU127: Other | FV127: Firewood / fuel | FW127: Medicines
A189: 1 | B189: 2 | C189: 3 | D189: 4 | E189: 5 | F189: 6 | G189: 7 | H189: 8 | I189: 9 | J189: 10 | K189: 11 | L189: 12 | M189: 13 | N189: 14 | O189: 15 | P189: 16 | Q189: 17 | R189: 18 | S189: 19 | T189: 20 | U189: 21 | V189: 22 | W189: 23 | X189: 24 | Y189: 25 | Z189: 26 | AA189: 27 | AB189: 28 | AC189: 29 | AD189: 30 | AE189: 31 | AF189: 32 | AG189: 33 | AH189: 34 | AI189: 35 | AJ189: 36 | AK189: 37 | AL189: 38 | AM189: 39 | AN189: 40 | AO189: 41 | AP189: 42 | AQ189: 43 | AR189: 44 | AS189: 45 | AT189: 46 | AU189: 47 | AV189: 48 | AW189: 49 | AX189: 50 | AY189: 51 | AZ189: 52 | BA189: 53 | BB189: 54 | BC189: 55 | BD189: 56 | BE189: 57 | BF189: 58 | BG189: 59 | BH189: 60 | BI189: 61 | BJ189: 62 | BK189: 63 | BL189: 64 | BM189: 65 | BN189: 66 | BO189: 67 | BP189: 68 | BQ189: 69 | BR189: 70 | BS189: 71 | BT189: 72 | BU189: 73 | BV189: 74 | BW189: 75 | BX189: 76 | BY189: 77 | BZ189: 78 | CA189: 79 | CB189: 80 | CC189: 81 | CD189: 82 | CE189: 83 | CF189: 84 | CG189: 85 | CH189: 86 | CI189: 87 | CJ189: 88 | CK189: 89 | CL189: 90 | CM189: 91 | CN189: 92 | CO189: 93 | CP189: 94 | CQ189: 95 | CR189: 96 | CS189: 97 | CT189: 98 | CU189: 99 | CV189: 100 | CW189: 101 | CX189: 102 | CY189: 103 | CZ189: 104 | DA189: 105 | DB189: 106 | DC189: 107 | DD189: 108 | DE189: 109 | DF189: 110 | DG189: 111 | DH189: 112 | DI189: 113 | DJ189: 114 | DK189: 117 | DL189: 118 | DM189: 137 | DN189: 138 | DO189: 139 | DP189: 140 | DQ189: 141 | DR189: 142 | DS189: 143 | DT189: 144 | DU189: 145 | DV189: 147 | DW189: 148 | DX189: 149 | DY189: 150 | DZ189: 151 | EA189: 152 | EB189: 156 | EC189: 163 | ED189: 170 | EE189: 177 | EF189: 184 | EI189: 204 | EJ189: 205 | EK189: 206 | EL189: 207 | EM189: 208 | EN189: 209 | EO189: 210 | EP189: 212 | EQ189: 213 | ER189: 214 | ES189: 215 | ET189: 219 | EU189: 220 | EV189: 221 | EW189: 222 | EX189: 223 | EY189: 224 | EZ189: 225 | FA189: 226 | FB189: 227 | FC189: 228 | FD189: 229 | FE189: 230 | FF189: 231 | FG189: 232 | FH189: 233 | FI189: 234 | FJ189: 235 | FK189: 237 | FL189: 239 | FM189: 241 | FN189: 243 | FO189: 245 | FP189: 247 | FQ189: 249 | FR189: 251 | FS189: 253 | FT189: 256 | FU189: 258 | FV189: 261 | FW189: 263 | FX189: 266 | FY189: 267

Sheet Lookup
A1: A1 | B1: A2 | C1: A4.a | D1: A4.b | E1: A4.c | F1: E1 | G1: B9 | I1: D.27 | J1: E6. | K1: F8. | L1: F10. | M1: F11. | N1: F14. | O1: F19. | P1: F20. | Q1: G1. | R1: H | U1: Camp_TOWNSHIP_NAME | V1: Local Name | X1: Date | Y1: Month | Z1: Year | AB1: Region | AC1: State_Division | AD1: Township | AF1: Camp Management Agency
A2: DRC | B2: Enumerator from camp profiling responsible organization | C2: Camp Manager | D2: Male | E2: Committee Member | F2: Yes | G2: Urban | I2: Place of origin | J2: Elected camp residents | K2: Individual | L2: Open space (without roof/wall) | M2: 0% | N2: Well | O2: Common identified waste dump inside camp | P2: Hospital | Q2: Farming | R2: Basic Food | S2: Doctor(s) | U2: Bhamo | V2: AD-2000 Tharthana Compound | X2: 1 | Y2: 1 | Z2: 2010 | AB2: Kachin | AC2: Kachin | AD2: Bhamo | AF2: KMSS Myitkyina
A3: RANIR | B3: CCCM Focal Point | C3: Camp Resident | D3: Female | E3: FBO/NGO Staff | F3: No | G3: Rural | I3: Host families | J3: Appointed camp residents | K3: Communal | L3: Make-shift shelters | M3: < 25% | N3: Rivers, springs, etc. | O3: Identified waste dump outside camp | P3: Clinic | Q3: Fishing | R3: Complementary Food | S3: Nurse(s) | U3: Bhamo | V3: Aung Thar Church | X3: 2 | Y3: 2 | Z3: 2011 | AB3: Shan (North) | AC3: Kachin | AD3: Chipwi | AF3: KMSS Bhamo
A4: KBC | B4: Other | C4: Other | E4: Religious Leader | G4: Forest/bush | I4: Other IDP camps | J4: Any camp resident | K4: Mixed | L4: Community/religious building | M4: 25-50% | N4: Borehole/hand pump | O4: Dumped everywhere inside the camp | P4: Rural centre | Q4: Livestock | R4: Firewood / fuel | S4: Mid-wives | U4: Bhamo | V4: Daw Hpum Yang Ninghtawn | X4: 3 | Y4: 3 | Z4: 2012 | AC4: Kachin | AD4: Hpakan | AF4: Shalom
A5: UNHCR | E5: Teacher | I5: Abroad | J5: Elders | L5: Solid shelters | M5: 51-75% | N5: Other | O5: Is getting burnt | P5: Rural sub-centre | Q5: Manufacturing (food processing) | R5: Individual shelter/houses | S5: Community worker(s) | U5: Bhamo | V5: Host Families | X5: 4 | Y5: 4 | Z5: 2013 | AC5: Kachin | AD5: Injangyang
A6: KBSS/KMSS | E6: Doctor / Nurse / Midwife | I6: Other? | J6: Religious leaders | M6: 76-95% | P6: Referral centre | Q6: Mining | R6: Communal building | S6: Vaccination | U6: Bhamo | V6: Htoi San Church | X6: 5 | Y6: 5 | AC6: Kachin | AD6: Khaunglanhpu
A7: SHALOM | E7: Authority | I7: Don't know | J7: Others | M7: 96-100% | P7: Other | Q7: Trade (buying and selling) | R7: Partitions within shelters | S7: Preventive health care | U7: Bhamo | V7: Kannar Yeik Thar | X7: 6 | Y7: 6 | AC7: Kachin | AD7: Machanbaw
A8: OTHER | E8: Other | J8: Don't know | Q8: Manufacturing (non-food) | R8: Blankets/Winter Clothing | S8: Pre&Post natal care | U8: Bhamo | V8: Lisu Boarding-House | X8: 7 | Y8: 7 | AC8: Kachin | AD8: Mansi
Q9: Handicrafts | R9: Hygiene kits | S9: Reproductive health care | U9: Bhamo | V9: Mu-yin Baptist Church | X9: 8 | Y9: 8 | AC9: Kachin | AD9: Mogaung
Q10: Other | R10: Kitchen sets | S10: Psychosocial support services | U10: Bhamo | V10: Nant Hlaing Church | X10: 9 | Y10: 9 | AC10: Kachin | AD10: Mohnyin
Q11: None | R11: Women NFIs (sanitary pads, underwear, etc.) | S11: Don’t know | U11: Bhamo | V11: Phan Khar Kone | X11: 10 | Y11: 10 | AC11: Kachin | AD11: Momauk
R12: Health facility / Clinic | U12: Bhamo | V12: Robert Church | X12: 11 | Y12: 11 | AC12: Kachin | AD12: Myitkyina
R13: Medicines | U13: Bhamo | V13: Ta Gun Taing Monastery (Shwe Kyi Na) | X13: 12 | Y13: 12 | AC13: Kachin | AD13: Nawngmun
R14: Medical staff (doctor, nurse, etc) | U14: Bhamo | V14: Yoe Kyi Monastery | X14: 13 | AC14: Kachin | AD14: Puta-O
R15: School facilities | U15: Chipwi | V15: Chipwi KBC camp | X15: 14 | AC15: Kachin | AD15: Shwegu
R16: School materials / supplies | U16: Chipwi | V16: Gant Gwin | X16: 15 | AC16: Kachin | AD16: Sumprabum
R17: Transport to school | U17: Chipwi | V17: Hpare Hkyer - BP6 | X17: 16 | AC17: Kachin | AD17: Tanai
R18: Well / water tank | U18: Chipwi | V18: Lan Jaw | X18: 17 | AC18: Kachin | AD18: Tsawlaw
R19: Bathing spaces | U19: Chipwi | V19: Lhaovao Baptist Church (LBC) | X19: 18 | AC19: Kachin | AD19: Waingmaw
R20: Latrines/toilets | U20: Chipwi | V20: Women's Affairs Association Building | X20: 19 | AC20: Shan (North) | AD20: Lashio
R21: Access to job opportunities | U21: Hpakan | V21: 1 Ward, Sein Yadanar Company(Lon Khin) | X21: 20 | AC21: Shan (North) | AD21: Hseni
R22: Cash/money assistance | U22: Hpakan | V22: 5 Ward Baptist Church(lon Khin) | X22: 21 | AC22: Shan (North) | AD22: Mongyai
R23: Vocational training | U23: Hpakan | V23: 5 Ward RC Church(lon Khin) | X23: 22 | AC23: Shan (North) | AD23: Tangyan
R24: Other | U24: Hpakan | V24: AG Church, Hmaw Si Sa | X24: 23 | AC24: Shan (North) | AD24: Pangsang
U25: Hpakan | V25: AG Church, Maw Wan | X25: 24 | AC25: Shan (North) | AD25: Namphan
U26: Hpakan | V26: Anglican Church, Hmaw Si Sar | X26: 25 | AC26: Shan (North) | AD26: Pangwaun
U27: Hpakan | V27: Association of Christ, Nam Ma Phyit | X27: 26 | AC27: Shan (North) | AD27: Mongmao
U28: Hpakan | V28: Away Yar Rama Monastery, Ka Day village | X28: 27 | AC28: Shan (North) | AD28: Muse
U29: Hpakan | V29: Aye Mya Tharyar Church of Christ | X29: 28 | AC29: Shan (North) | AD29: Namhkan
U30: Hpakan | V30: Baptist Church, Hmaw Si Sar(Lon Khin) | X30: 29 | AC30: Shan (North) | AD30: Kutkai
U31: Hpakan | V31: Baptist Church, Naung Hmee VT | X31: 30 | AC31: Shan (North) | AD31: Kyaukme
U32: Hpakan | V32: Baptist Church, Sai Ra village | X32: 31 | AC32: Shan (North) | AD32: Nawnghkio
U33: Hpakan | V33: Chin Church, Seik Mu | AC33: Shan (North) | AD33: Hsipaw
U34: Hpakan | V34: Chin(Zomi) Baptist Church | AC34: Shan (North) | AD34: Namtu
U35: Hpakan | V35: Dhama Rakhita, Nyein Chan Tar Yar Ward(Lon Khin) | AC35: Shan (North) | AD35: Namhsan
U36: Hpakan | V36: Ei Wan Gali Asso., Ward 1, Seik Mu | AC36: Shan (North) | AD36: Mongmit
U37: Hpakan | V37: Free Christian Asso., Ward 1, Seik Mu | AC37: Shan (North) | AD37: Mabein
U38: Hpakan | V38: Hlaing Naung Baptist | AC38: Shan (North) | AD38: Manton
U39: Hpakan | V39: Hmaw Wan, Anglican | AC39: Shan (North) | AD39: Kunlong
U40: Hpakan | V40: Hmaw Wan, Baptist Christian Church | AC40: Shan (North) | AD40: Hopang
U41: Hpakan | V41: Lisu Baptist Church, Maw Shan Vil,. Seik Mu | AC41: Shan (North) | AD41: Laukkaing
U42: Hpakan | V42: Lisu Baptist Church, Maw Wan Ward | AC42: Shan (North) | AD42: Konkyan
U43: Hpakan | V43: Ma Mon Buddhist Monastery | AC43: Shan (North) | AD43: Nam Tit
U44: Hpakan | V44: Mashi Kahtawng Baptist Church | AC44: Shan (North) | AD44: Nar Wee (Na Wi)
U45: Hpakan | V45: Mashi Kahtawng Catholic Church | AC45: Shan (North) | AD45: Man Tun
U46: Hpakan | V46: Mashi Kahtawng Evangelical Church | AC46: Shan (North) | AD46: Kawng Min Hsang
U47: Hpakan | V47: Mashi Kahtawng Municipal Dammar Yone | AC47: Shan (North) | AD47: Hsawng Hpa (Saun Pha)
U48: Hpakan | V48: Mashi Kahtawng Myo Oo Taw Ya Monestry | AC48: Shan (North) | AD48: Hkun Mar (Hkwin Ma)
U49: Hpakan | V49: Mashi Kahtawng Rakhine traditional group | AC49: Shan (North) | AD49: Long Htan
U50: Hpakan | V50: Mashi Kahtawng Shan Traditional Monestry | AC50: Shan (North) | AD50: Yawng Lin
U51: Hpakan | V51: Mashi Kahtawng Yaung Chi Oo Thi la shin Monestry | AC51: Shan (North) | AD51: Lin Haw
U52: Hpakan | V52: Maw Si Zar, Thiriyardanar Sein, Damma Compound, Lone Khin | AC52: Shan (North) | AD52: Ka Lawng Hpar
U53: Hpakan | V53: Maw Wan, Catholic Church | AC53: Shan (North) | AD53: Aik Chan (Ai' Chun)
U54: Hpakan | V54: Maw Wan, Kachin Baptist Church | AC54: Shan (North) | AD54: Yin Pang
U55: Hpakan | V55: Maw Wan, Kyauk Hlaing Gu Pagoda Compound | AC55: Shan (North) | AD55: Man Man Hseng
U56: Hpakan | V56: Maw Wan, Mu-yin Baptist Church | AC56: Shan (North) | AD56: Nawng Hkit
U57: Hpakan | V57: Maw Wan, Myo Oo Pagoda | AC57: Shan (North) | AD57: Nam Hkam Wu
U58: Hpakan | V58: May Di Ka Rama Monastery(Lon Khin) | AC58: Shan (North) | AD58: Nar Kawng
U59: Hpakan | V59: Muring Baptist Church, Awng Ra, Wa Ra Zut VT | AC59: Shan (North) | AD59: Pang Hkam
U60: Hpakan | V60: Nant Ma Hpit Catholic Church | AC60: Shan (North) | AD60: Pang Yang
U61: Hpakan | V61: Nga Pyaw Taw Baptist Nursery School | AC61: Shan (North) | AD61: Mong Hpen
U62: Hpakan | V62: Nga Pyaw Taw Roman Catholic Church | AC62: Shan (North) | AD62: Ho Tawng ( Ho Tao)
U63: Hpakan | V63: Parami, Charity Office, MyoMa Quarter | AC63: Shan (North) | AD63: Mong Pawk
U64: Hpakan | V64: Rawan Baptist Church, Maw Shan Vil., Seik Mu | AC64: Shan (North) | AD64: Mong Kar
U65: Hpakan | V65: Sa Baw Sarsana Parla Monastery | AC65: Shan (North) | AD65: Nam Hpai
U66: Hpakan | V66: Sai Nai Baptish Church, Maw Shan Vil., Seki Mu
U67: Hpakan | V67: San Kyel, Masoe Yein Monestry
U68: Hpakan | V68: Tar Ma Hkan Buddhist Monastery, Haung Par
U69: Hpakan | V69: Thiri Mingalar Manizay Yone, Myoma Quarter
U70: Hpakan | V70: Ward 2 Cahotlic Church, Seik Mu
U71: Hpakan | V71: Ward 2 Sai Taung Baptist Church, Seik Mu
U72: Hpakan | V72: Wrad(5) Christian Association
U73: Hpakan | V73: Yumar Baptist Church
U74: Injangyang | V74: Lawk Hkawng Ginwang
U75: Khaunglanhpu | V75: La Ja
U76: Kutkai | V76: Kone Khem Camp
U77: Kutkai | V77: Kutkai downtown (KBC Church)
U78: Kutkai | V78: Kutkai downtown (RC Church)
U79: Kutkai | V79: Mine Yu Lay village
U80: Kutkai | V80: Mungji Pa Dabang (Baptist Church)
U81: Kutkai | V81: Mungji Pa Dabang (RC Church)
U82: Kutkai | V82: Nam Hpak Ka Mare
U83: Kutkai | V83: Zup Aung Camp
U84: Mansi | V84: Host Families
U85: Mansi | V85: Lung Kawk ( Hka Hkye Zup)
U86: Mansi | V86: Man Wing Baptist Church
U87: Mansi | V87: Man Wing Catholic Church
U88: Mansi | V88: Man Wing Host Families
U89: Mansi | V89: Mansi Baptist Church
U90: Mansi | V90: Nam Hka Mare (west of Man Wing)
U91: Mansi | V91: Nam Lim Pa - Scattered IDPs in forest
U92: Mansi | V92: Lagatyan
U93: Manton | V93: Mandung - Jinghpaw
U94: Manton | V94: Howa
U95: Manton | V95: Nam Hkyet
U96: Mogaung | V96: Kyun Taw Baptist Church
U97: Mogaung | V97: Mang Hawng Baptist Church
U98: Mogaung | V98: Nat Gyi Kone Baptist Church
U99: Mohnyin | V99: Nant Mun
U100: Mohnyin | V100: Nawng Ing (Indawgyi) Baptist Church
U101: Mohnyin | V101: St. Patrick Catholic Church
U102: Momauk | V102: Bum Tsit Pa
U103: Momauk | V103: Dum Bung
U104: Momauk | V104: Hpun Lum Yang
U105: Momauk | V105: Je Yang Hka
U106: Momauk | V106: Lana Zup Ja
U107: Momauk | V107: Nhkawng Pa
U108: Momauk | V108: Pa Kahtawng
U109: Momauk | V109: Host Families
U110: Momauk | V110: Loi Je Baptist Church
U111: Momauk | V111: Loi Je Catholic Church
U112: Momauk | V112: Loi Je Lisu Camp
U113: Momauk | V113: Mai Khat
